Workbook

Sheet WAVA
E1: 2017-01-01 | G1: WAVA Graded Score | AC1: Rank
A2: First Name | B2: Surname | C2: ='Summary Sheet'!B1 -> Name | D2: DOB | E2: Age | F2: Division | G2: Dewsbury 10k | H2: Epilepsy Action 10k | I2: Keighley BIG 10k | J2: Bunny Run 1 | K2: Liverpool 10m/Half | L2: VoY 10m | M2: Guiseley Gallop | N2: Over the Odda | O2: Leeds half | P2: Ilkley Trail | Q2: Otley 10 | R2: Solstice Saunter | S2: Eccup 10 | T2: Lister Parkrun | U2: Aurthur Shakerr | V2: Vale of York Half | W2: Kirkstall Abbey 10 | X2: Bradford city Runs | Y2: Guy Fawkes | Z2: Abbey Dash | AA2: Chevin Chase | AC2: =G2 -> Dewsbury 10k | AD2: Epilepsy Action 10k | AE2: Keighley BIG 10k | AF2: Bunny Run 1 | AG2: Liverpool 10m/Half | AH2: VoY 10m | AI2: Guiseley Gallop | AJ2: Over the Odda | AK2: Leeds half | AL2: Ilkley Trail | AM2: Otley 10 | AN2: Solstice Saunter | AO2: Eccup 10 | AP2: Lister Parkrun | AQ2: Aurthur Shakerr | AR2: Vale of York Half | AS2: Kirkstall Abbey 10 | AT2: Bradford city Runs | AU2: Guy Fawkes | AV2: Abbey Dash | AW2: Chevin Chase | AX2: Races
C3: Reza Abdi | D3: 1966-08-06 | E3: =DATEDIF(D3,$E$1,"Y") -> 50 | F3: =IFERROR(VLOOKUP(C3,'Division Lookup'!$A$2:$D$251,4,FALSE),"Second") -> First | G3: =VLOOKUP(C3,Dewsbury!$C$3:$L$46,7,FALSE) ->  | H3: =VLOOKUP($C3,Bradford!$C$3:$L$57,7,FALSE) ->  | I3: =VLOOKUP($C3,Keighley!$C$3:$N$42,9,FALSE) ->  | J3: =VLOOKUP($C3,'Bunny '!$C$3:$N$20,9,FALSE) ->  | K3: =VLOOKUP($C3,Liverpool!$C$3:$N$59,9,FALSE) ->  | L3: =VLOOKUP(C3,'VoY 10m'!$C$3:$N$40,9,FALSE) ->  | M3: =VLOOKUP(C3,Guisley!$C$3:$N$49,9,FALSE) ->  | N3: =VLOOKUP(C3,Odda!$C$3:$N$42,9,FALSE) ->  | O3: =VLOOKUP(C3,'Leeds half'!$C$4:$N$31,9,FALSE) ->  | P3: =VLOOKUP(C3,Ilkley!$C$3:$L$46,7,FALSE) ->  | Q3: =VLOOKUP(C3,Otley!$C$3:$L$46,9,FALSE) ->  | R3: =VLOOKUP(C3,Solstice!$C$3:$L$48,7,FALSE) ->  | S3: =VLOOKUP(C3,Eccup!$C$3:$L$46,9,FALSE) ->  | U3: =VLOOKUP(C3,Shakerr!$C$3:$L$46,7,FALSE) ->  | V3: =VLOOKUP(C3,VoY!$C$3:$L$46,9,FALSE) ->  | W3: =VLOOKUP(C3,Kirkstall!$C$3:$L$46,9,FALSE) ->  | X3: =VLOOKUP($C3,City!$C$3:$L$69,9,FALSE) ->  | Y3: =VLOOKUP(C3,'Guy Fawkes'!$C$3:$N$34,9,FALSE) ->  | Z3: =VLOOKUP(C3,Abbey!$C$3:$L$48,7,FALSE) ->  | AA3: =VLOOKUP(C3,Chevin!$C$3:$L$50,7,FALSE) ->  | AC3: =IF(ISNA(G3),0,1+COUNTIFS($F$3:$F$399,$F3,G$3:G$399,">"&G3)) -> 0 | AD3: =IF(ISNA(H3),0,1+COUNTIFS($F$3:$F$399,$F3,H$3:H$399,">"&H3)) -> 0 | AE3: =IF(ISNA(I3),0,1+COUNTIFS($F$3:$F$399,$F3,I$3:I$399,">"&I3)) -> 0 | AF3: =IF(ISNA(J3),0,1+COUNTIFS($F$3:$F$399,$F3,J$3:J$399,">"&J3)) -> 0 | AG3: =IF(ISNA(K3),0,1+COUNTIFS($F$3:$F$399,$F3,K$3:K$399,">"&K3)) -> 0 | AH3: =IF(ISNA(L3),0,1+COUNTIFS($F$3:$F$399,$F3,L$3:L$399,">"&L3)) -> 0 | AI3: =IF(ISNA(M3),0,1+COUNTIFS($F$3:$F$399,$F3,M$3:M$399,">"&M3)) -> 0 | AJ3: =IF(ISNA(N3),0,1+COUNTIFS($F$3:$F$399,$F3,N$3:N$399,">"&N3)) -> 0 | AK3: =IF(ISNA(O3),0,1+COUNTIFS($F$3:$F$399,$F3,O$3:O$399,">"&O3)) -> 0 | AL3: =IF(ISNA(P3),0,1+COUNTIFS($F$3:$F$399,$F3,P$3:P$399,">"&P3)) -> 0 | AM3: =IF(ISNA(Q3),0,1+COUNTIFS($F$3:$F$399,$F3,Q$3:Q$399,">"&Q3)) -> 0 | AN3: =IF(ISNA(R3),0,1+COUNTIFS($F$3:$F$399,$F3,R$3:R$399,">"&R3)) -> 0 | AO3: =IF(ISNA(S3),0,1+COUNTIFS($F$3:$F$399,$F3,S$3:S$399,">"&S3)) -> 0 | AP3: 0 | AQ3: =IF(ISNA(U3),0,1+COUNTIFS($F$3:$F$399,$F3,U$3:U$399,">"&U3)) -> 0 | AR3: 0 | AS3: 0 | AT3: 0 | AU3: 0 | AV3: 0 | AW3: =IF(ISNA(AA3),0,1+COUNTIFS($F$3:$F$399,$F3,AA$3:AA$399,">"&AA3)) -> 0 | AX3: =COUNTIF(AC3:AW3,">0") -> 0
C4: Keith Abson | D4: 1950-04-20 | E4: =DATEDIF(D4,$E$1,"Y") -> 66 | F4: =IFERROR(VLOOKUP(C4,'Division Lookup'!$A$2:$D$251,4,FALSE),"Second") -> Second | G4: =VLOOKUP(C4,Dewsbury!$C$3:$L$46,7,FALSE) ->  | H4: =VLOOKUP($C4,Bradford!$C$3:$L$57,7,FALSE) ->  | I4: =VLOOKUP($C4,Keighley!$C$3:$N$42,9,FALSE) ->  | J4: =VLOOKUP($C4,'Bunny '!$C$3:$N$20,9,FALSE) ->  | K4: =VLOOKUP($C4,Liverpool!$C$3:$N$59,9,FALSE) ->  | L4: =VLOOKUP(C4,'VoY 10m'!$C$3:$N$40,9,FALSE) ->  | M4: =VLOOKUP(C4,Guisley!$C$3:$N$49,9,FALSE) ->  | N4: =VLOOKUP(C4,Odda!$C$3:$N$42,9,FALSE) ->  | O4: =VLOOKUP(C4,'Leeds half'!$C$4:$N$31,9,FALSE) ->  | P4: =VLOOKUP(C4,Ilkley!$C$3:$L$46,7,FALSE) ->  | Q4: =VLOOKUP(C4,Otley!$C$3:$L$46,9,FALSE) ->  | R4: =VLOOKUP(C4,Solstice!$C$3:$L$48,7,FALSE) ->  | S4: =VLOOKUP(C4,Eccup!$C$3:$L$46,9,FALSE) ->  | U4: =VLOOKUP(C4,Shakerr!$C$3:$L$46,7,FALSE) ->  | V4: =VLOOKUP(C4,VoY!$C$3:$L$46,9,FALSE) ->  | W4: =VLOOKUP(C4,Kirkstall!$C$3:$L$46,9,FALSE) ->  | X4: =VLOOKUP($C4,City!$C$3:$L$69,9,FALSE) ->  | Y4: =VLOOKUP(C4,'Guy Fawkes'!$C$3:$N$34,9,FALSE) ->  | Z4: =VLOOKUP(C4,Abbey!$C$3:$L$48,7,FALSE) ->  | AA4: =VLOOKUP(C4,Chevin!$C$3:$L$50,7,FALSE) ->  | AC4: 0 | AD4: 0 | AE4: 0 | AF4: 0 | AG4: 0 | AH4: 0 | AI4: 0 | AJ4: 0 | AK4: =IF(ISNA(O4),0,1+COUNTIFS($F$3:$F$399,$F4,O$3:O$399,">"&O4)) -> 0 | AL4: =IF(ISNA(P4),0,1+COUNTIFS($F$3:$F$399,$F4,P$3:P$399,">"&P4)) -> 0 | AM4: =IF(ISNA(Q4),0,1+COUNTIFS($F$3:$F$399,$F4,Q$3:Q$399,">"&Q4)) -> 0 | AN4: =IF(ISNA(R4),0,1+COUNTIFS($F$3:$F$399,$F4,R$3:R$399,">"&R4)) -> 0 | AO4: =IF(ISNA(S4),0,1+COUNTIFS($F$3:$F$399,$F4,S$3:S$399,">"&S4)) -> 0 | AP4: 0 | AQ4: =IF(ISNA(U4),0,1+COUNTIFS($F$3:$F$399,$F4,U$3:U$399,">"&U4)) -> 0 | AR4: =IF(ISNA(V4),0,1+COUNTIFS($F$3:$F$399,$F4,V$3:V$399,">"&V4)) -> 0 | AS4: =IF(ISNA(W4),0,1+COUNTIFS($F$3:$F$399,$F4,W$3:W$399,">"&W4)) -> 0 | AT4: =IF(ISNA(X4),0,1+COUNTIFS($F$3:$F$399,$F4,X$3:X$399,">"&X4)) -> 0 | AU4: =IF(ISNA(Y4),0,1+COUNTIFS($F$3:$F$399,$F4,Y$3:Y$399,">"&Y4)) -> 0 | AV4: =IF(ISNA(Z4),0,1+COUNTIFS($F$3:$F$399,$F4,Z$3:Z$399,">"&Z4)) -> 0 | AW4: =IF(ISNA(AA4),0,1+COUNTIFS($F$3:$F$399,$F4,AA$3:AA$399,">"&AA4)) -> 0 | AX4: =COUNTIF(AC4:AW4,">0") -> 0
C5: Mel Akeroyd | D5: 1979-02-10 | E5: 37 | F5: =IFERROR(VLOOKUP(C5,'Division Lookup'!$A$2:$D$251,4,FALSE),"Second") -> Premier | G5: =VLOOKUP(C5,Dewsbury!$C$3:$L$46,7,FALSE) -> 0.6106895414 | H5: =VLOOKUP($C5,Bradford!$C$3:$L$57,7,FALSE) -> 0.6023429873 | I5: =VLOOKUP($C5,Keighley!$C$3:$N$42,9,FALSE) ->  | J5: =VLOOKUP($C5,'Bunny '!$C$3:$N$20,9,FALSE) -> 0.5368608799 | K5: =VLOOKUP($C5,Liverpool!$C$3:$N$59,9,FALSE) -> 0.601497006 | L5: =VLOOKUP(C5,'VoY 10m'!$C$3:$N$40,9,FALSE) ->  | M5: =VLOOKUP(C5,Guisley!$C$3:$N$49,9,FALSE) ->  | N5: =VLOOKUP(C5,Odda!$C$3:$N$42,9,FALSE) -> 0.4983844911 | O5: =VLOOKUP(C5,'Leeds half'!$C$4:$N$31,9,FALSE) -> 0.5752326414 | P5: =VLOOKUP(C5,Ilkley!$C$3:$L$46,7,FALSE) ->  | Q5: =VLOOKUP(C5,Otley!$C$3:$L$46,9,FALSE) ->  | R5: =VLOOKUP(C5,Solstice!$C$3:$L$48,7,FALSE) -> 0.5220926122 | S5: =VLOOKUP(C5,Eccup!$C$3:$L$46,9,FALSE) ->  | U5: =VLOOKUP(C5,Shakerr!$C$3:$L$46,7,FALSE) -> 0.4152086137 | V5: =VLOOKUP(C5,VoY!$C$3:$L$46,9,FALSE) ->  | W5: =VLOOKUP(C5,Kirkstall!$C$3:$L$46,9,FALSE) ->  | X5: =VLOOKUP($C5,City!$C$3:$L$69,9,FALSE) ->  | Y5: =VLOOKUP(C5,'Guy Fawkes'!$C$3:$N$34,9,FALSE) -> 0.4953695297 | Z5: =VLOOKUP(C5,Abbey!$C$3:$L$48,7,FALSE) ->  | AA5: =VLOOKUP(C5,Chevin!$C$3:$L$50,7,FALSE) ->  | AC5: 14 | AD5: 12 | AE5: 0 | AF5: 11 | AG5: 14 | AH5: 0 | AI5: 0 | AJ5: 7 | AK5: 4 | AL5: 0 | AM5: 0 | AN5: 15 | AO5: 0 | AP5: 0 | AQ5: 11 | AR5: 0 | AS5: 0 | AT5: 0 | AU5: 16 | AV5: 0 | AW5: 0 | AX5: 9
C6: Jessica Alred | D6: 1982-01-23 | E6: 34 | F6: =IFERROR(VLOOKUP(C6,'Division Lookup'!$A$2:$D$251,4,FALSE),"Second") -> Second | G6: =VLOOKUP(C6,Dewsbury!$C$3:$L$46,7,FALSE) ->  | H6: =VLOOKUP($C6,Bradford!$C$3:$L$57,7,FALSE) ->  | I6: =VLOOKUP($C6,Keighley!$C$3:$N$42,9,FALSE) ->  | J6: =VLOOKUP($C6,'Bunny '!$C$3:$N$20,9,FALSE) ->  | K6: =VLOOKUP($C6,Liverpool!$C$3:$N$59,9,FALSE) ->  | L6: =VLOOKUP(C6,'VoY 10m'!$C$3:$N$40,9,FALSE) ->  | M6: =VLOOKUP(C6,Guisley!$C$3:$N$49,9,FALSE) ->  | N6: =VLOOKUP(C6,Odda!$C$3:$N$42,9,FALSE) ->  | O6: =VLOOKUP(C6,'Leeds half'!$C$4:$N$31,9,FALSE) ->  | P6: =VLOOKUP(C6,Ilkley!$C$3:$L$46,7,FALSE) ->  | Q6: =VLOOKUP(C6,Otley!$C$3:$L$46,9,FALSE) ->  | R6: =VLOOKUP(C6,Solstice!$C$3:$L$48,7,FALSE) ->  | S6: =VLOOKUP(C6,Eccup!$C$3:$L$46,9,FALSE) ->  | U6: =VLOOKUP(C6,Shakerr!$C$3:$L$46,7,FALSE) ->  | V6: =VLOOKUP(C6,VoY!$C$3:$L$46,9,FALSE) ->  | W6: =VLOOKUP(C6,Kirkstall!$C$3:$L$46,9,FALSE) ->  | X6: =VLOOKUP($C6,City!$C$3:$L$69,9,FALSE) ->  | Y6: =VLOOKUP(C6,'Guy Fawkes'!$C$3:$N$34,9,FALSE) ->  | Z6: =VLOOKUP(C6,Abbey!$C$3:$L$48,7,FALSE) -> 0.4899648771 | AA6: =VLOOKUP(C6,Chevin!$C$3:$L$50,7,FALSE) ->  | AC6: 0 | AD6: 0 | AE6: 0 | AF6: 0 | AG6: 0 | AH6: 0 | AI6: 0 | AJ6: 0 | AK6: 0 | AL6: 0 | AM6: 0 | AN6: 0 | AO6: 0 | AP6: 0 | AQ6: 0 | AR6: 0 | AS6: 0 | AT6: 0 | AU6: 0 | AV6: 21 | AW6: 0 | AX6: 1
C7: Imogen Ambler | D7: 1996-04-30 | E7: 20 | F7: =IFERROR(VLOOKUP(C7,'Division Lookup'!$A$2:$D$251,4,FALSE),"Second") -> Second | G7: =VLOOKUP(C7,Dewsbury!$C$3:$L$46,7,FALSE) ->  | H7: =VLOOKUP($C7,Bradford!$C$3:$L$57,7,FALSE) ->  | I7: =VLOOKUP($C7,Keighley!$C$3:$N$42,9,FALSE) ->  | J7: =VLOOKUP($C7,'Bunny '!$C$3:$N$20,9,FALSE) ->  | K7: =VLOOKUP($C7,Liverpool!$C$3:$N$59,9,FALSE) ->  | L7: =VLOOKUP(C7,'VoY 10m'!$C$3:$N$40,9,FALSE) ->  | M7: =VLOOKUP(C7,Guisley!$C$3:$N$49,9,FALSE) ->  | N7: =VLOOKUP(C7,Odda!$C$3:$N$42,9,FALSE) ->  | O7: =VLOOKUP(C7,'Leeds half'!$C$4:$N$31,9,FALSE) ->  | P7: =VLOOKUP(C7,Ilkley!$C$3:$L$46,7,FALSE) ->  | Q7: =VLOOKUP(C7,Otley!$C$3:$L$46,9,FALSE) ->  | R7: =VLOOKUP(C7,Solstice!$C$3:$L$48,7,FALSE) ->  | S7: =VLOOKUP(C7,Eccup!$C$3:$L$46,9,FALSE) ->  | U7: =VLOOKUP(C7,Shakerr!$C$3:$L$46,7,FALSE) ->  | V7: =VLOOKUP(C7,VoY!$C$3:$L$46,9,FALSE) ->  | W7: =VLOOKUP(C7,Kirkstall!$C$3:$L$46,9,FALSE) ->  | X7: =VLOOKUP($C7,City!$C$3:$L$69,9,FALSE) ->  | Y7: =VLOOKUP(C7,'Guy Fawkes'!$C$3:$N$34,9,FALSE) ->  | Z7: =VLOOKUP(C7,Abbey!$C$3:$L$48,7,FALSE) ->  | AA7: =VLOOKUP(C7,Chevin!$C$3:$L$50,7,FALSE) ->  | AC7: 0 | AD7: 0 | AE7: 0 | AF7: 0 | AG7: 0 | AH7: 0 | AI7: 0 | AJ7: 0 | AK7: 0 | AL7: 0 | AM7: 0 | AN7: 0 | AO7: 0 | AP7: 0 | AQ7: 0 | AR7: 0 | AS7: 0 | AT7: 0 | AU7: 0 | AV7: 0 | AW7: 0 | AX7: 0
C8: James Anderson | D8: 1973-12-24 | E8: 43 | F8: =IFERROR(VLOOKUP(C8,'Division Lookup'!$A$2:$D$251,4,FALSE),"Second") -> Second | G8: =VLOOKUP(C8,Dewsbury!$C$3:$L$46,7,FALSE) ->  | H8: =VLOOKUP($C8,Bradford!$C$3:$L$57,7,FALSE) ->  | I8: =VLOOKUP($C8,Keighley!$C$3:$N$42,9,FALSE) ->  | J8: =VLOOKUP($C8,'Bunny '!$C$3:$N$20,9,FALSE) ->  | K8: =VLOOKUP($C8,Liverpool!$C$3:$N$59,9,FALSE) ->  | L8: =VLOOKUP(C8,'VoY 10m'!$C$3:$N$40,9,FALSE) ->  | M8: =VLOOKUP(C8,Guisley!$C$3:$N$49,9,FALSE) ->  | N8: =VLOOKUP(C8,Odda!$C$3:$N$42,9,FALSE) ->  | O8: =VLOOKUP(C8,'Leeds half'!$C$4:$N$31,9,FALSE) ->  | P8: =VLOOKUP(C8,Ilkley!$C$3:$L$46,7,FALSE) ->  | Q8: =VLOOKUP(C8,Otley!$C$3:$L$46,9,FALSE) ->  | R8: =VLOOKUP(C8,Solstice!$C$3:$L$48,7,FALSE) ->  | S8: =VLOOKUP(C8,Eccup!$C$3:$L$46,9,FALSE) ->  | U8: =VLOOKUP(C8,Shakerr!$C$3:$L$46,7,FALSE) ->  | V8: =VLOOKUP(C8,VoY!$C$3:$L$46,9,FALSE) ->  | W8: =VLOOKUP(C8,Kirkstall!$C$3:$L$46,9,FALSE) ->  | X8: =VLOOKUP($C8,City!$C$3:$L$69,9,FALSE) ->  | Y8: =VLOOKUP(C8,'Guy Fawkes'!$C$3:$N$34,9,FALSE) ->  | Z8: =VLOOKUP(C8,Abbey!$C$3:$L$48,7,FALSE) ->  | AA8: =VLOOKUP(C8,Chevin!$C$3:$L$50,7,FALSE) ->  | AC8: 0 | AD8: 0 | AE8: 0 | AF8: 0 | AG8: 0 | AH8: 0 | AI8: 0 | AJ8: 0 | AK8: 0 | AL8: 0 | AM8: 0 | AN8: 0 | AO8: 0 | AP8: 0 | AQ8: 0 | AR8: 0 | AS8: 0 | AT8: 0 | AU8: 0 | AV8: 0 | AW8: 0 | AX8: 0
C9: Dave Armstrong | D9: 1948-06-05 | E9: 68 | F9: =IFERROR(VLOOKUP(C9,'Division Lookup'!$A$2:$D$251,4,FALSE),"Second") -> Second | G9: =VLOOKUP(C9,Dewsbury!$C$3:$L$46,7,FALSE) ->  | H9: =VLOOKUP($C9,Bradford!$C$3:$L$57,7,FALSE) ->  | I9: =VLOOKUP($C9,Keighley!$C$3:$N$42,9,FALSE) ->  | J9: =VLOOKUP($C9,'Bunny '!$C$3:$N$20,9,FALSE) ->  | K9: =VLOOKUP($C9,Liverpool!$C$3:$N$59,9,FALSE) ->  | L9: =VLOOKUP(C9,'VoY 10m'!$C$3:$N$40,9,FALSE) ->  | M9: =VLOOKUP(C9,Guisley!$C$3:$N$49,9,FALSE) ->  | N9: =VLOOKUP(C9,Odda!$C$3:$N$42,9,FALSE) ->  | O9: =VLOOKUP(C9,'Leeds half'!$C$4:$N$31,9,FALSE) ->  | P9: =VLOOKUP(C9,Ilkley!$C$3:$L$46,7,FALSE) ->  | Q9: =VLOOKUP(C9,Otley!$C$3:$L$46,9,FALSE) ->  | R9: =VLOOKUP(C9,Solstice!$C$3:$L$48,7,FALSE) ->  | S9: =VLOOKUP(C9,Eccup!$C$3:$L$46,9,FALSE) ->  | U9: =VLOOKUP(C9,Shakerr!$C$3:$L$46,7,FALSE) ->  | V9: =VLOOKUP(C9,VoY!$C$3:$L$46,9,FALSE) ->  | W9: =VLOOKUP(C9,Kirkstall!$C$3:$L$46,9,FALSE) ->  | X9: =VLOOKUP($C9,City!$C$3:$L$69,9,FALSE) ->  | Y9: =VLOOKUP(C9,'Guy Fawkes'!$C$3:$N$34,9,FALSE) ->  | Z9: =VLOOKUP(C9,Abbey!$C$3:$L$48,7,FALSE) ->  | AA9: =VLOOKUP(C9,Chevin!$C$3:$L$50,7,FALSE) ->  | AC9: 0 | AD9: 0 | AE9: 0 | AF9: 0 | AG9: 0 | AH9: 0 | AI9: 0 | AJ9: 0 | AK9: 0 | AL9: 0 | AM9: 0 | AN9: 0 | AO9: 0 | AP9: 0 | AQ9: 0 | AR9: 0 | AS9: 0 | AT9: 0 | AU9: 0 | AV9: 0 | AW9: 0 | AX9: 0
C10: Kevin Armstrong | D10: 1983-11-15 | E10: 33 | F10: =IFERROR(VLOOKUP(C10,'Division Lookup'!$A$2:$D$251,4,FALSE),"Second") -> Second | G10: =VLOOKUP(C10,Dewsbury!$C$3:$L$46,7,FALSE) ->  | H10: =VLOOKUP($C10,Bradford!$C$3:$L$57,7,FALSE) ->  | I10: =VLOOKUP($C10,Keighley!$C$3:$N$42,9,FALSE) ->  | J10: =VLOOKUP($C10,'Bunny '!$C$3:$N$20,9,FALSE) ->  | K10: =VLOOKUP($C10,Liverpool!$C$3:$N$59,9,FALSE) ->  | L10: =VLOOKUP(C10,'VoY 10m'!$C$3:$N$40,9,FALSE) ->  | M10: =VLOOKUP(C10,Guisley!$C$3:$N$49,9,FALSE) ->  | N10: =VLOOKUP(C10,Odda!$C$3:$N$42,9,FALSE) ->  | O10: =VLOOKUP(C10,'Leeds half'!$C$4:$N$31,9,FALSE) ->  | P10: =VLOOKUP(C10,Ilkley!$C$3:$L$46,7,FALSE) ->  | Q10: =VLOOKUP(C10,Otley!$C$3:$L$46,9,FALSE) ->  | R10: =VLOOKUP(C10,Solstice!$C$3:$L$48,7,FALSE) ->  | S10: =VLOOKUP(C10,Eccup!$C$3:$L$46,9,FALSE) ->  | U10: =VLOOKUP(C10,Shakerr!$C$3:$L$46,7,FALSE) ->  | V10: =VLOOKUP(C10,VoY!$C$3:$L$46,9,FALSE) ->  | W10: =VLOOKUP(C10,Kirkstall!$C$3:$L$46,9,FALSE) ->  | X10: =VLOOKUP($C10,City!$C$3:$L$69,9,FALSE) ->  | Y10: =VLOOKUP(C10,'Guy Fawkes'!$C$3:$N$34,9,FALSE) ->  | Z10: =VLOOKUP(C10,Abbey!$C$3:$L$48,7,FALSE) ->  | AA10: =VLOOKUP(C10,Chevin!$C$3:$L$50,7,FALSE) ->  | AC10: 0 | AD10: 0 | AE10: 0 | AF10: 0 | AG10: 0 | AH10: 0 | AI10: 0 | AJ10: 0 | AK10: 0 | AL10: 0 | AM10: 0 | AN10: 0 | AO10: 0 | AP10: 0 | AQ10: 0 | AR10: 0 | AS10: 0 | AT10: 0 | AU10: 0 | AV10: 0 | AW10: 0 | AX10: 0
C11: Sara Atkinson | D11: 1962-06-23 | E11: 54 | F11: =IFERROR(VLOOKUP(C11,'Division Lookup'!$A$2:$D$251,4,FALSE),"Second") -> Second | G11: =VLOOKUP(C11,Dewsbury!$C$3:$L$46,7,FALSE) ->  | H11: =VLOOKUP($C11,Bradford!$C$3:$L$66,7,FALSE) ->  | I11: =VLOOKUP($C11,Keighley!$C$3:$N$42,9,FALSE) ->  | J11: =VLOOKUP($C11,'Bunny '!$C$3:$N$20,9,FALSE) ->  | K11: =VLOOKUP($C11,Liverpool!$C$3:$N$59,9,FALSE) ->  | L11: =VLOOKUP(C11,'VoY 10m'!$C$3:$N$40,9,FALSE) ->  | M11: =VLOOKUP(C11,Guisley!$C$3:$N$49,9,FALSE) ->  | N11: =VLOOKUP(C11,Odda!$C$3:$N$42,9,FALSE) ->  | O11: =VLOOKUP(C11,'Leeds half'!$C$4:$N$31,9,FALSE) ->  | P11: =VLOOKUP(C11,Ilkley!$C$3:$L$46,7,FALSE) ->  | Q11: =VLOOKUP(C11,Otley!$C$3:$L$46,9,FALSE) ->  | R11: =VLOOKUP(C11,Solstice!$C$3:$L$48,7,FALSE) ->  | S11: =VLOOKUP(C11,Eccup!$C$3:$L$46,9,FALSE) ->  | U11: =VLOOKUP(C11,Shakerr!$C$3:$L$46,7,FALSE) ->  | V11: =VLOOKUP(C11,VoY!$C$3:$L$46,9,FALSE) ->  | W11: =VLOOKUP(C11,Kirkstall!$C$3:$L$46,9,FALSE) ->  | X11: =VLOOKUP($C11,City!$C$3:$L$69,9,FALSE) ->  | Y11: =VLOOKUP(C11,'Guy Fawkes'!$C$3:$N$34,9,FALSE) ->  | Z11: =VLOOKUP(C11,Abbey!$C$3:$L$48,7,FALSE) ->  | AA11: =VLOOKUP(C11,Chevin!$C$3:$L$50,7,FALSE) ->  | AC11: 0 | AD11: 0 | AE11: 0 | AF11: 0 | AG11: 0 | AH11: 0 | AI11: 0 | AJ11: 0 | AK11: 0 | AL11: 0 | AM11: 0 | AN11: 0 | AO11: 0 | AP11: 0 | AQ11: 0 | AR11: 0 | AS11: 0 | AT11: 0 | AU11: 0 | AV11: 0 | AW11: 0 | AX11: 0
C12: Alexandra Ayling | D12: 1965-11-13 | E12: 51 | F12: =IFERROR(VLOOKUP(C12,'Division Lookup'!$A$2:$D$251,4,FALSE),"Second") -> Second | G12: =VLOOKUP(C12,Dewsbury!$C$3:$L$46,7,FALSE) -> 0.5702185792 | H12: =VLOOKUP($C12,Bradford!$C$3:$L$66,7,FALSE) -> 0.5532873807 | I12: =VLOOKUP($C12,Keighley!$C$3:$N$42,9,FALSE) ->  | J12: =VLOOKUP($C12,'Bunny '!$C$3:$N$20,9,FALSE) ->  | K12: =VLOOKUP($C12,Liverpool!$C$3:$N$59,9,FALSE) ->  | L12: =VLOOKUP(C12,'VoY 10m'!$C$3:$N$40,9,FALSE) ->  | M12: =VLOOKUP(C12,Guisley!$C$3:$N$49,9,FALSE) ->  | N12: =VLOOKUP(C12,Odda!$C$3:$N$42,9,FALSE) ->  | O12: =VLOOKUP(C12,'Leeds half'!$C$4:$N$31,9,FALSE) ->  | P12: =VLOOKUP(C12,Ilkley!$C$3:$L$46,7,FALSE) ->  | Q12: =VLOOKUP(C12,Otley!$C$3:$L$46,9,FALSE) ->  | R12: =VLOOKUP(C12,Solstice!$C$3:$L$48,7,FALSE) -> 0.4626285079 | S12: =VLOOKUP(C12,Eccup!$C$3:$L$46,9,FALSE) ->  | U12: =VLOOKUP(C12,Shakerr!$C$3:$L$46,7,FALSE) ->  | V12: =VLOOKUP(C12,VoY!$C$3:$L$46,9,FALSE) ->  | W12: =VLOOKUP(C12,Kirkstall!$C$3:$L$46,9,FALSE) ->  | X12: =VLOOKUP($C12,City!$C$3:$L$69,9,FALSE) ->  | Y12: =VLOOKUP(C12,'Guy Fawkes'!$C$3:$N$34,9,FALSE) -> 0.4392281106 | Z12: =VLOOKUP(C12,Abbey!$C$3:$L$48,7,FALSE) ->  | AA12: =VLOOKUP(C12,Chevin!$C$3:$L$50,7,FALSE) ->  | AC12: 5 | AD12: 15 | AE12: 0 | AF12: 0 | AG12: 0 | AH12: 0 | AI12: 0 | AJ12: 0 | AK12: 0 | AL12: 0 | AM12: 0 | AN12: 12 | AO12: 0 | AP12: 0 | AQ12: 0 | AR12: 0 | AS12: 0 | AT12: 0 | AU12: 7 | AV12: 0 | AW12: 0 | AX12: 4
C13: Caroline Bagdonavicius | D13: 1958-08-31 | E13: 58 | F13: =IFERROR(VLOOKUP(C13,'Division Lookup'!$A$2:$D$251,4,FALSE),"Second") -> Second | G13: =VLOOKUP(C13,Dewsbury!$C$3:$L$46,7,FALSE) ->  | H13: =VLOOKUP($C13,Bradford!$C$3:$L$66,7,FALSE) ->  | I13: =VLOOKUP($C13,Keighley!$C$3:$N$42,9,FALSE) ->  | J13: =VLOOKUP($C13,'Bunny '!$C$3:$N$20,9,FALSE) ->  | K13: =VLOOKUP($C13,Liverpool!$C$3:$N$59,9,FALSE) ->  | L13: =VLOOKUP(C13,'VoY 10m'!$C$3:$N$40,9,FALSE) ->  | M13: =VLOOKUP(C13,Guisley!$C$3:$N$49,9,FALSE) ->  | N13: =VLOOKUP(C13,Odda!$C$3:$N$42,9,FALSE) ->  | O13: =VLOOKUP(C13,'Leeds half'!$C$4:$N$31,9,FALSE) ->  | P13: =VLOOKUP(C13,Ilkley!$C$3:$L$46,7,FALSE) ->  | Q13: =VLOOKUP(C13,Otley!$C$3:$L$46,9,FALSE) ->  | R13: =VLOOKUP(C13,Solstice!$C$3:$L$48,7,FALSE) ->  | S13: =VLOOKUP(C13,Eccup!$C$3:$L$46,9,FALSE) ->  | U13: =VLOOKUP(C13,Shakerr!$C$3:$L$46,7,FALSE) ->  | V13: =VLOOKUP(C13,VoY!$C$3:$L$46,9,FALSE) ->  | W13: =VLOOKUP(C13,Kirkstall!$C$3:$L$46,9,FALSE) ->  | X13: =VLOOKUP($C13,City!$C$3:$L$69,9,FALSE) ->  | Y13: =VLOOKUP(C13,'Guy Fawkes'!$C$3:$N$34,9,FALSE) ->  | Z13: =VLOOKUP(C13,Abbey!$C$3:$L$48,7,FALSE) ->  | AA13: =VLOOKUP(C13,Chevin!$C$3:$L$50,7,FALSE) ->  | AC13: 0 | AD13: 0 | AE13: 0 | AF13: 0 | AG13: 0 | AH13: 0 | AI13: 0 | AJ13: 0 | AK13: 0 | AL13: 0 | AM13: 0 | AN13: 0 | AO13: 0 | AP13: 0 | AQ13: 0 | AR13: 0 | AS13: 0 | AT13: 0 | AU13: 0 | AV13: 0 | AW13: 0 | AX13: 0
C14: heidi bagdonavicius | D14: 1981-02-18 | E14: 35 | F14: =IFERROR(VLOOKUP(C14,'Division Lookup'!$A$2:$D$251,4,FALSE),"Second") -> Second | G14: =VLOOKUP(C14,Dewsbury!$C$3:$L$46,7,FALSE) ->  | H14: =VLOOKUP($C14,Bradford!$C$3:$L$66,7,FALSE) ->  | I14: =VLOOKUP($C14,Keighley!$C$3:$N$42,9,FALSE) ->  | J14: =VLOOKUP($C14,'Bunny '!$C$3:$N$20,9,FALSE) ->  | K14: =VLOOKUP($C14,Liverpool!$C$3:$N$59,9,FALSE) ->  | L14: =VLOOKUP(C14,'VoY 10m'!$C$3:$N$40,9,FALSE) ->  | M14: =VLOOKUP(C14,Guisley!$C$3:$N$49,9,FALSE) ->  | N14: =VLOOKUP(C14,Odda!$C$3:$N$42,9,FALSE) ->  | O14: =VLOOKUP(C14,'Leeds half'!$C$4:$N$31,9,FALSE) ->  | P14: =VLOOKUP(C14,Ilkley!$C$3:$L$46,7,FALSE) ->  | Q14: =VLOOKUP(C14,Otley!$C$3:$L$46,9,FALSE) ->  | R14: =VLOOKUP(C14,Solstice!$C$3:$L$48,7,FALSE) ->  | S14: =VLOOKUP(C14,Eccup!$C$3:$L$46,9,FALSE) ->  | U14: =VLOOKUP(C14,Shakerr!$C$3:$L$46,7,FALSE) ->  | V14: =VLOOKUP(C14,VoY!$C$3:$L$46,9,FALSE) ->  | W14: =VLOOKUP(C14,Kirkstall!$C$3:$L$46,9,FALSE) ->  | X14: =VLOOKUP($C14,City!$C$3:$L$69,9,FALSE) ->  | Y14: =VLOOKUP(C14,'Guy Fawkes'!$C$3:$N$34,9,FALSE) ->  | Z14: =VLOOKUP(C14,Abbey!$C$3:$L$48,7,FALSE) ->  | AA14: =VLOOKUP(C14,Chevin!$C$3:$L$50,7,FALSE) ->  | AC14: 0 | AD14: 0 | AE14: 0 | AF14: 0 | AG14: 0 | AH14: 0 | AI14: 0 | AJ14: 0 | AK14: 0 | AL14: 0 | AM14: 0 | AN14: 0 | AO14: 0 | AP14: 0 | AQ14: 0 | AR14: 0 | AS14: 0 | AT14: 0 | AU14: 0 | AV14: 0 | AW14: 0 | AX14: 0
C15: Joe Bainborough | D15: 1993-02-22 | E15: 23 | F15: =IFERROR(VLOOKUP(C15,'Division Lookup'!$A$2:$D$251,4,FALSE),"Second") -> Second | G15: =VLOOKUP(C15,Dewsbury!$C$3:$L$46,7,FALSE) ->  | H15: =VLOOKUP($C15,Bradford!$C$3:$L$66,7,FALSE) ->  | I15: =VLOOKUP($C15,Keighley!$C$3:$N$42,9,FALSE) ->  | J15: =VLOOKUP($C15,'Bunny '!$C$3:$N$20,9,FALSE) ->  | K15: =VLOOKUP($C15,Liverpool!$C$3:$N$59,9,FALSE) ->  | L15: =VLOOKUP(C15,'VoY 10m'!$C$3:$N$40,9,FALSE) ->  | M15: =VLOOKUP(C15,Guisley!$C$3:$N$49,9,FALSE) ->  | N15: =VLOOKUP(C15,Odda!$C$3:$N$42,9,FALSE) ->  | O15: =VLOOKUP(C15,'Leeds half'!$C$4:$N$31,9,FALSE) ->  | P15: =VLOOKUP(C15,Ilkley!$C$3:$L$46,7,FALSE) ->  | Q15: =VLOOKUP(C15,Otley!$C$3:$L$46,9,FALSE) ->  | R15: =VLOOKUP(C15,Solstice!$C$3:$L$48,7,FALSE) ->  | S15: =VLOOKUP(C15,Eccup!$C$3:$L$46,9,FALSE) ->  | U15: =VLOOKUP(C15,Shakerr!$C$3:$L$46,7,FALSE) ->  | V15: =VLOOKUP(C15,VoY!$C$3:$L$46,9,FALSE) ->  | W15: =VLOOKUP(C15,Kirkstall!$C$3:$L$46,9,FALSE) ->  | X15: =VLOOKUP($C15,City!$C$3:$L$69,9,FALSE) ->  | Y15: =VLOOKUP(C15,'Guy Fawkes'!$C$3:$N$34,9,FALSE) ->  | Z15: =VLOOKUP(C15,Abbey!$C$3:$L$48,7,FALSE) ->  | AA15: =VLOOKUP(C15,Chevin!$C$3:$L$50,7,FALSE) ->  | AC15: 0 | AD15: 0 | AE15: 0 | AF15: 0 | AG15: 0 | AH15: 0 | AI15: 0 | AJ15: 0 | AK15: 0 | AL15: 0 | AM15: 0 | AN15: 0 | AO15: 0 | AP15: 0 | AQ15: 0 | AR15: 0 | AS15: 0 | AT15: 0 | AU15: 0 | AV15: 0 | AW15: 0 | AX15: 0
C16: Victoria Baker | D16: 1992-08-04 | E16: 24 | F16: =IFERROR(VLOOKUP(C16,'Division Lookup'!$A$2:$D$251,4,FALSE),"Second") -> Second | G16: =VLOOKUP(C16,Dewsbury!$C$3:$L$46,7,FALSE) ->  | H16: =VLOOKUP($C16,Bradford!$C$3:$L$66,7,FALSE) ->  | I16: =VLOOKUP($C16,Keighley!$C$3:$N$42,9,FALSE) ->  | J16: =VLOOKUP($C16,'Bunny '!$C$3:$N$20,9,FALSE) ->  | K16: =VLOOKUP($C16,Liverpool!$C$3:$N$59,9,FALSE) ->  | L16: =VLOOKUP(C16,'VoY 10m'!$C$3:$N$40,9,FALSE) ->  | M16: =VLOOKUP(C16,Guisley!$C$3:$N$49,9,FALSE) ->  | N16: =VLOOKUP(C16,Odda!$C$3:$N$42,9,FALSE) ->  | O16: =VLOOKUP(C16,'Leeds half'!$C$4:$N$31,9,FALSE) ->  | P16: =VLOOKUP(C16,Ilkley!$C$3:$L$46,7,FALSE) ->  | Q16: =VLOOKUP(C16,Otley!$C$3:$L$46,9,FALSE) ->  | R16: =VLOOKUP(C16,Solstice!$C$3:$L$48,7,FALSE) ->  | S16: =VLOOKUP(C16,Eccup!$C$3:$L$46,9,FALSE) ->  | U16: =VLOOKUP(C16,Shakerr!$C$3:$L$46,7,FALSE) ->  | V16: =VLOOKUP(C16,VoY!$C$3:$L$46,9,FALSE) ->  | W16: =VLOOKUP(C16,Kirkstall!$C$3:$L$46,9,FALSE) ->  | X16: =VLOOKUP($C16,City!$C$3:$L$69,9,FALSE) ->  | Y16: =VLOOKUP(C16,'Guy Fawkes'!$C$3:$N$34,9,FALSE) ->  | Z16: =VLOOKUP(C16,Abbey!$C$3:$L$48,7,FALSE) ->  | AA16: =VLOOKUP(C16,Chevin!$C$3:$L$50,7,FALSE) ->  | AC16: 0 | AD16: 0 | AE16: 0 | AF16: 0 | AG16: 0 | AH16: 0 | AI16: 0 | AJ16: 0 | AK16: 0 | AL16: 0 | AM16: 0 | AN16: 0 | AO16: 0 | AP16: 0 | AQ16: 0 | AR16: 0 | AS16: 0 | AT16: 0 | AU16: 0 | AV16: 0 | AW16: 0 | AX16: 0
C17: Tim Baldwin | D17: 1987-10-01 | E17: 29 | F17: =IFERROR(VLOOKUP(C17,'Division Lookup'!$A$2:$D$251,4,FALSE),"Second") -> Second | G17: =VLOOKUP(C17,Dewsbury!$C$3:$L$46,7,FALSE) ->  | H17: =VLOOKUP($C17,Bradford!$C$3:$L$66,7,FALSE) ->  | I17: =VLOOKUP($C17,Keighley!$C$3:$N$42,9,FALSE) ->  | J17: =VLOOKUP($C17,'Bunny '!$C$3:$N$20,9,FALSE) ->  | K17: =VLOOKUP($C17,Liverpool!$C$3:$N$59,9,FALSE) ->  | L17: =VLOOKUP(C17,'VoY 10m'!$C$3:$N$40,9,FALSE) ->  | M17: =VLOOKUP(C17,Guisley!$C$3:$N$49,9,FALSE) ->  | N17: =VLOOKUP(C17,Odda!$C$3:$N$42,9,FALSE) ->  | O17: =VLOOKUP(C17,'Leeds half'!$C$4:$N$31,9,FALSE) -> 0.6815653175 | P17: =VLOOKUP(C17,Ilkley!$C$3:$L$46,7,FALSE) ->  | Q17: =VLOOKUP(C17,Otley!$C$3:$L$46,9,FALSE) ->  | R17: =VLOOKUP(C17,Solstice!$C$3:$L$48,7,FALSE) ->  | S17: =VLOOKUP(C17,Eccup!$C$3:$L$46,9,FALSE) ->  | U17: =VLOOKUP(C17,Shakerr!$C$3:$L$46,7,FALSE) ->  | V17: =VLOOKUP(C17,VoY!$C$3:$L$46,9,FALSE) ->  | W17: =VLOOKUP(C17,Kirkstall!$C$3:$L$46,9,FALSE) ->  | X17: =VLOOKUP($C17,City!$C$3:$L$69,9,FALSE) ->  | Y17: =VLOOKUP(C17,'Guy Fawkes'!$C$3:$N$34,9,FALSE) ->  | Z17: =VLOOKUP(C17,Abbey!$C$3:$L$48,7,FALSE) -> 0.7589453861 | AA17: =VLOOKUP(C17,Chevin!$C$3:$L$50,7,FALSE) ->  | AC17: 0 | AD17: 0 | AE17: 0 | AF17: 0 | AG17: 0 | AH17: 0 | AI17: 0 | AJ17: 0 | AK17: 1 | AL17: 0 | AM17: 0 | AN17: 0 | AO17: 0 | AP17: 0 | AQ17: 0 | AR17: 0 | AS17: 0 | AT17: 0 | AU17: 0 | AV17: 2 | AW17: 0 | AX17: 2
C18: Amy Barker | D18: 1990-08-30 | E18: 26 | F18: =IFERROR(VLOOKUP(C18,'Division Lookup'!$A$2:$D$251,4,FALSE),"Second") -> Second | G18: =VLOOKUP(C18,Dewsbury!$C$3:$L$46,7,FALSE) ->  | H18: =VLOOKUP($C18,Bradford!$C$3:$L$66,7,FALSE) ->  | I18: =VLOOKUP($C18,Keighley!$C$3:$N$42,9,FALSE) ->  | J18: =VLOOKUP($C18,'Bunny '!$C$3:$N$20,9,FALSE) ->  | K18: =VLOOKUP($C18,Liverpool!$C$3:$N$59,9,FALSE) ->  | L18: =VLOOKUP(C18,'VoY 10m'!$C$3:$N$40,9,FALSE) ->  | M18: =VLOOKUP(C18,Guisley!$C$3:$N$49,9,FALSE) ->  | N18: =VLOOKUP(C18,Odda!$C$3:$N$42,9,FALSE) ->  | O18: =VLOOKUP(C18,'Leeds half'!$C$4:$N$31,9,FALSE) ->  | P18: =VLOOKUP(C18,Ilkley!$C$3:$L$46,7,FALSE) ->  | Q18: =VLOOKUP(C18,Otley!$C$3:$L$46,9,FALSE) ->  | R18: =VLOOKUP(C18,Solstice!$C$3:$L$48,7,FALSE) ->  | S18: =VLOOKUP(C18,Eccup!$C$3:$L$46,9,FALSE) ->  | U18: =VLOOKUP(C18,Shakerr!$C$3:$L$46,7,FALSE) ->  | V18: =VLOOKUP(C18,VoY!$C$3:$L$46,9,FALSE) ->  | W18: =VLOOKUP(C18,Kirkstall!$C$3:$L$46,9,FALSE) ->  | X18: =VLOOKUP($C18,City!$C$3:$L$69,9,FALSE) ->  | Y18: =VLOOKUP(C18,'Guy Fawkes'!$C$3:$N$34,9,FALSE) ->  | Z18: =VLOOKUP(C18,Abbey!$C$3:$L$48,7,FALSE) ->  | AA18: =VLOOKUP(C18,Chevin!$C$3:$L$50,7,FALSE) ->  | AC18: 0 | AD18: 0 | AE18: 0 | AF18: 0 | AG18: 0 | AH18: 0 | AI18: 0 | AJ18: 0 | AK18: 0 | AL18: 0 | AM18: 0 | AN18: 0 | AO18: 0 | AP18: 0 | AQ18: 0 | AR18: 0 | AS18: 0 | AT18: 0 | AU18: 0 | AV18: 0 | AW18: 0 | AX18: 0
C19: Craig Barrow | D19: 1964-10-08 | E19: 52 | F19: =IFERROR(VLOOKUP(C19,'Division Lookup'!$A$2:$D$251,4,FALSE),"Second") -> Second | G19: =VLOOKUP(C19,Dewsbury!$C$3:$L$46,7,FALSE) ->  | H19: =VLOOKUP($C19,Bradford!$C$3:$L$66,7,FALSE) ->  | I19: =VLOOKUP($C19,Keighley!$C$3:$N$42,9,FALSE) ->  | J19: =VLOOKUP($C19,'Bunny '!$C$3:$N$20,9,FALSE) ->  | K19: =VLOOKUP($C19,Liverpool!$C$3:$N$59,9,FALSE) ->  | L19: =VLOOKUP(C19,'VoY 10m'!$C$3:$N$40,9,FALSE) ->  | M19: =VLOOKUP(C19,Guisley!$C$3:$N$49,9,FALSE) ->  | N19: =VLOOKUP(C19,Odda!$C$3:$N$42,9,FALSE) ->  | O19: =VLOOKUP(C19,'Leeds half'!$C$4:$N$31,9,FALSE) ->  | P19: =VLOOKUP(C19,Ilkley!$C$3:$L$46,7,FALSE) ->  | Q19: =VLOOKUP(C19,Otley!$C$3:$L$46,9,FALSE) ->  | R19: =VLOOKUP(C19,Solstice!$C$3:$L$48,7,FALSE) -> 0.3865349623 | S19: =VLOOKUP(C19,Eccup!$C$3:$L$46,9,FALSE) ->  | U19: =VLOOKUP(C19,Shakerr!$C$3:$L$46,7,FALSE) ->  | V19: =VLOOKUP(C19,VoY!$C$3:$L$46,9,FALSE) ->  | W19: =VLOOKUP(C19,Kirkstall!$C$3:$L$46,9,FALSE) ->  | X19: =VLOOKUP($C19,City!$C$3:$L$69,9,FALSE) ->  | Y19: =VLOOKUP(C19,'Guy Fawkes'!$C$3:$N$34,9,FALSE) ->  | Z19: =VLOOKUP(C19,Abbey!$C$3:$L$48,7,FALSE) ->  | AA19: =VLOOKUP(C19,Chevin!$C$3:$L$50,7,FALSE) ->  | AC19: 0 | AD19: 0 | AE19: 0 | AF19: 0 | AG19: 0 | AH19: 0 | AI19: 0 | AJ19: 0 | AK19: 0 | AL19: 0 | AM19: 0 | AN19: 15 | AO19: 0 | AP19: 0 | AQ19: 0 | AR19: 0 | AS19: 0 | AT19: 0 | AU19: 0 | AV19: 0 | AW19: 0 | AX19: 1
C20: Emma Barrow | D20: 1969-04-10 | E20: 47 | F20: =IFERROR(VLOOKUP(C20,'Division Lookup'!$A$2:$D$251,4,FALSE),"Second") -> Second | G20: =VLOOKUP(C20,Dewsbury!$C$3:$L$46,7,FALSE) ->  | H20: =VLOOKUP($C20,Bradford!$C$3:$L$66,7,FALSE) ->  | I20: =VLOOKUP($C20,Keighley!$C$3:$N$42,9,FALSE) ->  | J20: =VLOOKUP($C20,'Bunny '!$C$3:$N$20,9,FALSE) ->  | K20: =VLOOKUP($C20,Liverpool!$C$3:$N$59,9,FALSE) ->  | L20: =VLOOKUP(C20,'VoY 10m'!$C$3:$N$40,9,FALSE) ->  | M20: =VLOOKUP(C20,Guisley!$C$3:$N$49,9,FALSE) ->  | N20: =VLOOKUP(C20,Odda!$C$3:$N$42,9,FALSE) ->  | O20: =VLOOKUP(C20,'Leeds half'!$C$4:$N$31,9,FALSE) ->  | P20: =VLOOKUP(C20,Ilkley!$C$3:$L$46,7,FALSE) ->  | Q20: =VLOOKUP(C20,Otley!$C$3:$L$46,9,FALSE) ->  | R20: =VLOOKUP(C20,Solstice!$C$3:$L$48,7,FALSE) -> 0.3486178148 | S20: =VLOOKUP(C20,Eccup!$C$3:$L$46,9,FALSE) ->  | U20: =VLOOKUP(C20,Shakerr!$C$3:$L$46,7,FALSE) ->  | V20: =VLOOKUP(C20,VoY!$C$3:$L$46,9,FALSE) ->  | W20: =VLOOKUP(C20,Kirkstall!$C$3:$L$46,9,FALSE) ->  | X20: =VLOOKUP($C20,City!$C$3:$L$69,9,FALSE) ->  | Y20: =VLOOKUP(C20,'Guy Fawkes'!$C$3:$N$34,9,FALSE) ->  | Z20: =VLOOKUP(C20,Abbey!$C$3:$L$48,7,FALSE) ->  | AA20: =VLOOKUP(C20,Chevin!$C$3:$L$50,7,FALSE) ->  | AC20: 0 | AD20: 0 | AE20: 0 | AF20: 0 | AG20: 0 | AH20: 0 | AI20: 0 | AJ20: 0 | AK20: 0 | AL20: 0 | AM20: 0 | AN20: 17 | AO20: 0 | AP20: 0 | AQ20: 0 | AR20: 0 | AS20: 0 | AT20: 0 | AU20: 0 | AV20: 0 | AW20: 0 | AX20: 1
C21: Rhiannon Barrow | D21: 1996-08-29 | E21: 20 | F21: =IFERROR(VLOOKUP(C21,'Division Lookup'!$A$2:$D$251,4,FALSE),"Second") -> Second | G21: =VLOOKUP(C21,Dewsbury!$C$3:$L$46,7,FALSE) ->  | H21: =VLOOKUP($C21,Bradford!$C$3:$L$66,7,FALSE) ->  | I21: =VLOOKUP($C21,Keighley!$C$3:$N$42,9,FALSE) ->  | J21: =VLOOKUP($C21,'Bunny '!$C$3:$N$20,9,FALSE) ->  | K21: =VLOOKUP($C21,Liverpool!$C$3:$N$59,9,FALSE) ->  | L21: =VLOOKUP(C21,'VoY 10m'!$C$3:$N$40,9,FALSE) ->  | M21: =VLOOKUP(C21,Guisley!$C$3:$N$49,9,FALSE) ->  | N21: =VLOOKUP(C21,Odda!$C$3:$N$42,9,FALSE) ->  | O21: =VLOOKUP(C21,'Leeds half'!$C$4:$N$31,9,FALSE) ->  | P21: =VLOOKUP(C21,Ilkley!$C$3:$L$46,7,FALSE) ->  | Q21: =VLOOKUP(C21,Otley!$C$3:$L$46,9,FALSE) ->  | R21: =VLOOKUP(C21,Solstice!$C$3:$L$48,7,FALSE) ->  | S21: =VLOOKUP(C21,Eccup!$C$3:$L$46,9,FALSE) ->  | U21: =VLOOKUP(C21,Shakerr!$C$3:$L$46,7,FALSE) ->  | V21: =VLOOKUP(C21,VoY!$C$3:$L$46,9,FALSE) ->  | W21: =VLOOKUP(C21,Kirkstall!$C$3:$L$46,9,FALSE) ->  | X21: =VLOOKUP($C21,City!$C$3:$L$69,9,FALSE) ->  | Y21: =VLOOKUP(C21,'Guy Fawkes'!$C$3:$N$34,9,FALSE) ->  | Z21: =VLOOKUP(C21,Abbey!$C$3:$L$48,7,FALSE) ->  | AA21: =VLOOKUP(C21,Chevin!$C$3:$L$50,7,FALSE) ->  | AC21: 0 | AD21: 0 | AE21: 0 | AF21: 0 | AG21: 0 | AH21: 0 | AI21: 0 | AJ21: 0 | AK21: 0 | AL21: 0 | AM21: 0 | AN21: 0 | AO21: 0 | AP21: 0 | AQ21: 0 | AR21: 0 | AS21: 0 | AT21: 0 | AU21: 0 | AV21: 0 | AW21: 0 | AX21: 0
C22: jennifer bartlett | D22: 1975-04-23 | E22: 41 | F22: =IFERROR(VLOOKUP(C22,'Division Lookup'!$A$2:$D$251,4,FALSE),"Second") -> Second | G22: =VLOOKUP(C22,Dewsbury!$C$3:$L$46,7,FALSE) ->  | H22: =VLOOKUP($C22,Bradford!$C$3:$L$66,7,FALSE) ->  | I22: =VLOOKUP($C22,Keighley!$C$3:$N$42,9,FALSE) ->  | J22: =VLOOKUP($C22,'Bunny '!$C$3:$N$20,9,FALSE) ->  | K22: =VLOOKUP($C22,Liverpool!$C$3:$N$59,9,FALSE) ->  | L22: =VLOOKUP(C22,'VoY 10m'!$C$3:$N$40,9,FALSE) ->  | M22: =VLOOKUP(C22,Guisley!$C$3:$N$49,9,FALSE) ->  | N22: =VLOOKUP(C22,Odda!$C$3:$N$42,9,FALSE) ->  | O22: =VLOOKUP(C22,'Leeds half'!$C$4:$N$31,9,FALSE) ->  | P22: =VLOOKUP(C22,Ilkley!$C$3:$L$46,7,FALSE) ->  | Q22: =VLOOKUP(C22,Otley!$C$3:$L$46,9,FALSE) ->  | R22: =VLOOKUP(C22,Solstice!$C$3:$L$48,7,FALSE) -> 0.4822740339 | S22: =VLOOKUP(C22,Eccup!$C$3:$L$46,9,FALSE) ->  | U22: =VLOOKUP(C22,Shakerr!$C$3:$L$46,7,FALSE) ->  | V22: =VLOOKUP(C22,VoY!$C$3:$L$46,9,FALSE) ->  | W22: =VLOOKUP(C22,Kirkstall!$C$3:$L$46,9,FALSE) ->  | X22: =VLOOKUP($C22,City!$C$3:$L$69,9,FALSE) ->  | Y22: =VLOOKUP(C22,'Guy Fawkes'!$C$3:$N$34,9,FALSE) ->  | Z22: =VLOOKUP(C22,Abbey!$C$3:$L$48,7,FALSE) -> 0.5993421053 | AA22: =VLOOKUP(C22,Chevin!$C$3:$L$50,7,FALSE) ->  | AC22: 0 | AD22: 0 | AE22: 0 | AF22: 0 | AG22: 0 | AH22: 0 | AI22: 0 | AJ22: 0 | AK22: 0 | AL22: 0 | AM22: 0 | AN22: 10 | AO22: 0 | AP22: 0 | AQ22: 0 | AR22: 0 | AS22: 0 | AT22: 0 | AU22: 0 | AV22: 9 | AW22: 0 | AX22: 2
C23: rifat bashir | D23: 1974-11-26 | E23: 42 | F23: =IFERROR(VLOOKUP(C23,'Division Lookup'!$A$2:$D$251,4,FALSE),"Second") -> Second | G23: =VLOOKUP(C23,Dewsbury!$C$3:$L$46,7,FALSE) ->  | H23: =VLOOKUP($C23,Bradford!$C$3:$L$66,7,FALSE) ->  | I23: =VLOOKUP($C23,Keighley!$C$3:$N$42,9,FALSE) ->  | J23: =VLOOKUP($C23,'Bunny '!$C$3:$N$20,9,FALSE) ->  | K23: =VLOOKUP($C23,Liverpool!$C$3:$N$59,9,FALSE) ->  | L23: =VLOOKUP(C23,'VoY 10m'!$C$3:$N$40,9,FALSE) ->  | M23: =VLOOKUP(C23,Guisley!$C$3:$N$49,9,FALSE) ->  | N23: =VLOOKUP(C23,Odda!$C$3:$N$42,9,FALSE) ->  | O23: =VLOOKUP(C23,'Leeds half'!$C$4:$N$31,9,FALSE) ->  | P23: =VLOOKUP(C23,Ilkley!$C$3:$L$46,7,FALSE) ->  | Q23: =VLOOKUP(C23,Otley!$C$3:$L$46,9,FALSE) ->  | R23: =VLOOKUP(C23,Solstice!$C$3:$L$48,7,FALSE) ->  | S23: =VLOOKUP(C23,Eccup!$C$3:$L$46,9,FALSE) ->  | U23: =VLOOKUP(C23,Shakerr!$C$3:$L$46,7,FALSE) ->  | V23: =VLOOKUP(C23,VoY!$C$3:$L$46,9,FALSE) ->  | W23: =VLOOKUP(C23,Kirkstall!$C$3:$L$46,9,FALSE) ->  | X23: =VLOOKUP($C23,City!$C$3:$L$69,9,FALSE) ->  | Y23: =VLOOKUP(C23,'Guy Fawkes'!$C$3:$N$34,9,FALSE) ->  | Z23: =VLOOKUP(C23,Abbey!$C$3:$L$48,7,FALSE) ->  | AA23: =VLOOKUP(C23,Chevin!$C$3:$L$50,7,FALSE) ->  | AC23: 0 | AD23: 0 | AE23: 0 | AF23: 0 | AG23: 0 | AH23: 0 | AI23: 0 | AJ23: 0 | AK23: 0 | AL23: 0 | AM23: 0 | AN23: 0 | AO23: 0 | AP23: 0 | AQ23: 0 | AR23: 0 | AS23: 0 | AT23: 0 | AU23: 0 | AV23: 0 | AW23: 0 | AX23: 0
C24: Heather Bayliss | D24: 1979-10-05 | E24: 37 | F24: =IFERROR(VLOOKUP(C24,'Division Lookup'!$A$2:$D$251,4,FALSE),"Second") -> Second | G24: =VLOOKUP(C24,Dewsbury!$C$3:$L$46,7,FALSE) ->  | H24: =VLOOKUP($C24,Bradford!$C$3:$L$66,7,FALSE) -> 0.4580549369 | I24: =VLOOKUP($C24,Keighley!$C$3:$N$42,9,FALSE) -> 0.46159601 | J24: =VLOOKUP($C24,'Bunny '!$C$3:$N$20,9,FALSE) ->  | K24: =VLOOKUP($C24,Liverpool!$C$3:$N$59,9,FALSE) ->  | L24: =VLOOKUP(C24,'VoY 10m'!$C$3:$N$40,9,FALSE) ->  | M24: =VLOOKUP(C24,Guisley!$C$3:$N$49,9,FALSE) ->  | N24: =VLOOKUP(C24,Odda!$C$3:$N$42,9,FALSE) ->  | O24: =VLOOKUP(C24,'Leeds half'!$C$4:$N$31,9,FALSE) ->  | P24: =VLOOKUP(C24,Ilkley!$C$3:$L$46,7,FALSE) ->  | Q24: =VLOOKUP(C24,Otley!$C$3:$L$46,9,FALSE) ->  | R24: =VLOOKUP(C24,Solstice!$C$3:$L$48,7,FALSE) -> 0.4031113537 | S24: =VLOOKUP(C24,Eccup!$C$3:$L$46,9,FALSE) ->  | U24: =VLOOKUP(C24,Shakerr!$C$3:$L$46,7,FALSE) -> 0.3257655755 | V24: =VLOOKUP(C24,VoY!$C$3:$L$46,9,FALSE) ->  | W24: =VLOOKUP(C24,Kirkstall!$C$3:$L$46,9,FALSE) ->  | X24: =VLOOKUP($C24,City!$C$3:$L$69,9,FALSE) -> 0.4168482208 | Y24: =VLOOKUP(C24,'Guy Fawkes'!$C$3:$N$34,9,FALSE) ->  | Z24: =VLOOKUP(C24,Abbey!$C$3:$L$48,7,FALSE) ->  | AA24: =VLOOKUP(C24,Chevin!$C$3:$L$50,7,FALSE) ->  | AC24: 0 | AD24: 23 | AE24: 9 | AF24: 0 | AG24: 0 | AH24: 0 | AI24: 0 | AJ24: 0 | AK24: 0 | AL24: 0 | AM24: 0 | AN24: 13 | AO24: 0 | AP24: 0 | AQ24: 14 | AR24: 0 | AS24: 0 | AT24: 14 | AU24: 0 | AV24: 0 | AW24: 0 | AX24: 5
C25: Julia Beaumont | D25: 1960-04-22 | E25: 56 | F25: =IFERROR(VLOOKUP(C25,'Division Lookup'!$A$2:$D$251,4,FALSE),"Second") -> Second | G25: =VLOOKUP(C25,Dewsbury!$C$3:$L$46,7,FALSE) ->  | H25: =VLOOKUP($C25,Bradford!$C$3:$L$66,7,FALSE) -> 0.5613813965 | I25: =VLOOKUP($C25,Keighley!$C$3:$N$42,9,FALSE) -> 0.54066521 | J25: =VLOOKUP($C25,'Bunny '!$C$3:$N$20,9,FALSE) ->  | K25: =VLOOKUP($C25,Liverpool!$C$3:$N$59,9,FALSE) ->  | L25: =VLOOKUP(C25,'VoY 10m'!$C$3:$N$40,9,FALSE) ->  | M25: =VLOOKUP(C25,Guisley!$C$3:$N$49,9,FALSE) ->  | N25: =VLOOKUP(C25,Odda!$C$3:$N$42,9,FALSE) ->  | O25: =VLOOKUP(C25,'Leeds half'!$C$4:$N$31,9,FALSE) ->  | P25: =VLOOKUP(C25,Ilkley!$C$3:$L$46,7,FALSE) ->  | Q25: =VLOOKUP(C25,Otley!$C$3:$L$46,9,FALSE) ->  | R25: =VLOOKUP(C25,Solstice!$C$3:$L$48,7,FALSE) ->  | S25: =VLOOKUP(C25,Eccup!$C$3:$L$46,9,FALSE) ->  | U25: =VLOOKUP(C25,Shakerr!$C$3:$L$46,7,FALSE) ->  | V25: =VLOOKUP(C25,VoY!$C$3:$L$46,9,FALSE) ->  | W25: =VLOOKUP(C25,Kirkstall!$C$3:$L$46,9,FALSE) ->  | X25: =VLOOKUP($C25,City!$C$3:$L$69,9,FALSE) ->  | Y25: =VLOOKUP(C25,'Guy Fawkes'!$C$3:$N$34,9,FALSE) ->  | Z25: =VLOOKUP(C25,Abbey!$C$3:$L$48,7,FALSE) ->  | AA25: =VLOOKUP(C25,Chevin!$C$3:$L$50,7,FALSE) ->  | AC25: 0 | AD25: 13 | AE25: 8 | AF25: 0 | AG25: 0 | AH25: 0 | AI25: 0 | AJ25: 0 | AK25: 0 | AL25: 0 | AM25: 0 | AN25: 0 | AO25: 0 | AP25: 0 | AQ25: 0 | AR25: 0 | AS25: 0 | AT25: 0 | AU25: 0 | AV25: 0 | AW25: 0 | AX25: 2
C26: Frank Beecroft | D26: 1965-09-18 | E26: 51 | F26: =IFERROR(VLOOKUP(C26,'Division Lookup'!$A$2:$D$251,4,FALSE),"Second") -> Premier | G26: =VLOOKUP(C26,Dewsbury!$C$3:$L$46,7,FALSE) ->  | H26: =VLOOKUP($C26,Bradford!$C$3:$L$66,7,FALSE) -> 0.533774073 | I26: =VLOOKUP($C26,Keighley!$C$3:$N$42,9,FALSE) ->  | J26: =VLOOKUP($C26,'Bunny '!$C$3:$N$20,9,FALSE) ->  | K26: =VLOOKUP($C26,Liverpool!$C$3:$N$59,9,FALSE) -> 0.6073141487 | L26: =VLOOKUP(C26,'VoY 10m'!$C$3:$N$40,9,FALSE) ->  | M26: =VLOOKUP(C26,Guisley!$C$3:$N$49,9,FALSE) ->  | N26: =VLOOKUP(C26,Odda!$C$3:$N$42,9,FALSE) ->  | O26: =VLOOKUP(C26,'Leeds half'!$C$4:$N$31,9,FALSE) -> 0.5547645126 | P26: =VLOOKUP(C26,Ilkley!$C$3:$L$46,7,FALSE) ->  | Q26: =VLOOKUP(C26,Otley!$C$3:$L$46,9,FALSE) ->  | R26: =VLOOKUP(C26,Solstice!$C$3:$L$48,7,FALSE) ->  | S26: =VLOOKUP(C26,Eccup!$C$3:$L$46,9,FALSE) ->  | U26: =VLOOKUP(C26,Shakerr!$C$3:$L$46,7,FALSE) ->  | V26: =VLOOKUP(C26,VoY!$C$3:$L$46,9,FALSE) ->  | W26: =VLOOKUP(C26,Kirkstall!$C$3:$L$46,9,FALSE) ->  | X26: =VLOOKUP($C26,City!$C$3:$L$69,9,FALSE) -> 0.6195718654 | Y26: =VLOOKUP(C26,'Guy Fawkes'!$C$3:$N$34,9,FALSE) ->  | Z26: =VLOOKUP(C26,Abbey!$C$3:$L$48,7,FALSE) -> 0.6316326531 | AA26: =VLOOKUP(C26,Chevin!$C$3:$L$50,7,FALSE) ->  | AC26: 0 | AD26: 16 | AE26: 0 | AF26: 0 | AG26: 12 | AH26: 0 | AI26: 0 | AJ26: 0 | AK26: 5 | AL26: 0 | AM26: 0 | AN26: 0 | AO26: 0 | AP26: 0 | AQ26: 0 | AR26: 0 | AS26: 0 | AT26: 13 | AU26: 0 | AV26: 4 | AW26: 0 | AX26: 5
C27: Gemma Bell | D27: 1979-06-09 | E27: 37 | F27: =IFERROR(VLOOKUP(C27,'Division Lookup'!$A$2:$D$251,4,FALSE),"Second") -> Second | G27: =VLOOKUP(C27,Dewsbury!$C$3:$L$46,7,FALSE) ->  | H27: =VLOOKUP($C27,Bradford!$C$3:$L$66,7,FALSE) ->  | I27: =VLOOKUP($C27,Keighley!$C$3:$N$42,9,FALSE) ->  | J27: =VLOOKUP($C27,'Bunny '!$C$3:$N$20,9,FALSE) ->  | K27: =VLOOKUP($C27,Liverpool!$C$3:$N$59,9,FALSE) ->  | L27: =VLOOKUP(C27,'VoY 10m'!$C$3:$N$40,9,FALSE) ->  | M27: =VLOOKUP(C27,Guisley!$C$3:$N$49,9,FALSE) ->  | N27: =VLOOKUP(C27,Odda!$C$3:$N$42,9,FALSE) ->  | O27: =VLOOKUP(C27,'Leeds half'!$C$4:$N$31,9,FALSE) ->  | P27: =VLOOKUP(C27,Ilkley!$C$3:$L$46,7,FALSE) ->  | Q27: =VLOOKUP(C27,Otley!$C$3:$L$46,9,FALSE) ->  | R27: =VLOOKUP(C27,Solstice!$C$3:$L$48,7,FALSE) -> 0.5230169972 | S27: =VLOOKUP(C27,Eccup!$C$3:$L$46,9,FALSE) ->  | U27: =VLOOKUP(C27,Shakerr!$C$3:$L$46,7,FALSE) ->  | V27: =VLOOKUP(C27,VoY!$C$3:$L$46,9,FALSE) ->  | W27: =VLOOKUP(C27,Kirkstall!$C$3:$L$46,9,FALSE) ->  | X27: =VLOOKUP($C27,City!$C$3:$L$69,9,FALSE) ->  | Y27: =VLOOKUP(C27,'Guy Fawkes'!$C$3:$N$34,9,FALSE) ->  | Z27: =VLOOKUP(C27,Abbey!$C$3:$L$48,7,FALSE) ->  | AA27: =VLOOKUP(C27,Chevin!$C$3:$L$50,7,FALSE) ->  | AC27: 0 | AD27: 0 | AE27: 0 | AF27: 0 | AG27: 0 | AH27: 0 | AI27: 0 | AJ27: 0 | AK27: 0 | AL27: 0 | AM27: 0 | AN27: 5 | AO27: 0 | AP27: 0 | AQ27: 0 | AR27: 0 | AS27: 0 | AT27: 0 | AU27: 0 | AV27: 0 | AW27: 0 | AX27: 1
C28: Amanda Bellwood | D28: 1977-03-31 | E28: 39 | F28: =IFERROR(VLOOKUP(C28,'Division Lookup'!$A$2:$D$251,4,FALSE),"Second") -> Second | G28: =VLOOKUP(C28,Dewsbury!$C$3:$L$46,7,FALSE) ->  | H28: =VLOOKUP($C28,Bradford!$C$3:$L$66,7,FALSE) ->  | I28: =VLOOKUP($C28,Keighley!$C$3:$N$42,9,FALSE) ->  | J28: =VLOOKUP($C28,'Bunny '!$C$3:$N$20,9,FALSE) ->  | K28: =VLOOKUP($C28,Liverpool!$C$3:$N$59,9,FALSE) ->  | L28: =VLOOKUP(C28,'VoY 10m'!$C$3:$N$40,9,FALSE) ->  | M28: =VLOOKUP(C28,Guisley!$C$3:$N$49,9,FALSE) -> 0.5445767621 | N28: =VLOOKUP(C28,Odda!$C$3:$N$42,9,FALSE) ->  | O28: =VLOOKUP(C28,'Leeds half'!$C$4:$N$31,9,FALSE) ->  | P28: =VLOOKUP(C28,Ilkley!$C$3:$L$46,7,FALSE) ->  | Q28: =VLOOKUP(C28,Otley!$C$3:$L$46,9,FALSE) ->  | R28: =VLOOKUP(C28,Solstice!$C$3:$L$48,7,FALSE) ->  | S28: =VLOOKUP(C28,Eccup!$C$3:$L$46,9,FALSE) ->  | U28: =VLOOKUP(C28,Shakerr!$C$3:$L$46,7,FALSE) ->  | V28: =VLOOKUP(C28,VoY!$C$3:$L$46,9,FALSE) ->  | W28: =VLOOKUP(C28,Kirkstall!$C$3:$L$46,9,FALSE) ->  | X28: =VLOOKUP($C28,City!$C$3:$L$69,9,FALSE) ->  | Y28: =VLOOKUP(C28,'Guy Fawkes'!$C$3:$N$34,9,FALSE) ->  | Z28: =VLOOKUP(C28,Abbey!$C$3:$L$48,7,FALSE) ->  | AA28: =VLOOKUP(C28,Chevin!$C$3:$L$50,7,FALSE) ->  | AC28: 0 | AD28: 0 | AE28: 0 | AF28: 0 | AG28: 0 | AH28: 0 | AI28: 6 | AJ28: 0 | AK28: 0 | AL28: 0 | AM28: 0 | AN28: 0 | AO28: 0 | AP28: 0 | AQ28: 0 | AR28: 0 | AS28: 0 | AT28: 0 | AU28: 0 | AV28: 0 | AW28: 0 | AX28: 1
C29: tim bellwood | D29: 1976-10-29 | E29: 40 | F29: =IFERROR(VLOOKUP(C29,'Division Lookup'!$A$2:$D$251,4,FALSE),"Second") -> Second | G29: =VLOOKUP(C29,Dewsbury!$C$3:$L$46,7,FALSE) ->  | H29: =VLOOKUP($C29,Bradford!$C$3:$L$66,7,FALSE) ->  | I29: =VLOOKUP($C29,Keighley!$C$3:$N$42,9,FALSE) ->  | J29: =VLOOKUP($C29,'Bunny '!$C$3:$N$20,9,FALSE) ->  | K29: =VLOOKUP($C29,Liverpool!$C$3:$N$59,9,FALSE) ->  | L29: =VLOOKUP(C29,'VoY 10m'!$C$3:$N$40,9,FALSE) ->  | M29: =VLOOKUP(C29,Guisley!$C$3:$N$49,9,FALSE) -> 0.5466495672 | N29: =VLOOKUP(C29,Odda!$C$3:$N$42,9,FALSE) ->  | O29: =VLOOKUP(C29,'Leeds half'!$C$4:$N$31,9,FALSE) ->  | P29: =VLOOKUP(C29,Ilkley!$C$3:$L$46,7,FALSE) ->  | Q29: =VLOOKUP(C29,Otley!$C$3:$L$46,9,FALSE) ->  | R29: =VLOOKUP(C29,Solstice!$C$3:$L$48,7,FALSE) ->  | S29: =VLOOKUP(C29,Eccup!$C$3:$L$46,9,FALSE) ->  | U29: =VLOOKUP(C29,Shakerr!$C$3:$L$46,7,FALSE) ->  | V29: =VLOOKUP(C29,VoY!$C$3:$L$46,9,FALSE) ->  | W29: =VLOOKUP(C29,Kirkstall!$C$3:$L$46,9,FALSE) ->  | X29: =VLOOKUP($C29,City!$C$3:$L$69,9,FALSE) ->  | Y29: =VLOOKUP(C29,'Guy Fawkes'!$C$3:$N$34,9,FALSE) ->  | Z29: =VLOOKUP(C29,Abbey!$C$3:$L$48,7,FALSE) ->  | AA29: =VLOOKUP(C29,Chevin!$C$3:$L$50,7,FALSE) ->  | AC29: 0 | AD29: 0 | AE29: 0 | AF29: 0 | AG29: 0 | AH29: 0 | AI29: 5 | AJ29: 0 | AK29: 0 | AL29: 0 | AM29: 0 | AN29: 0 | AO29: 0 | AP29: 0 | AQ29: 0 | AR29: 0 | AS29: 0 | AT29: 0 | AU29: 0 | AV29: 0 | AW29: 0 | AX29: 1
C30: Catherine Berry | D30: 1978-04-12 | E30: 38 | F30: =IFERROR(VLOOKUP(C30,'Division Lookup'!$A$2:$D$251,4,FALSE),"Second") -> Second | G30: =VLOOKUP(C30,Dewsbury!$C$3:$L$46,7,FALSE) ->  | H30: =VLOOKUP($C30,Bradford!$C$3:$L$66,7,FALSE) ->  | I30: =VLOOKUP($C30,Keighley!$C$3:$N$42,9,FALSE) ->  | J30: =VLOOKUP($C30,'Bunny '!$C$3:$N$20,9,FALSE) ->  | K30: =VLOOKUP($C30,Liverpool!$C$3:$N$59,9,FALSE) ->  | L30: =VLOOKUP(C30,'VoY 10m'!$C$3:$N$40,9,FALSE) ->  | M30: =VLOOKUP(C30,Guisley!$C$3:$N$49,9,FALSE) ->  | N30: =VLOOKUP(C30,Odda!$C$3:$N$42,9,FALSE) ->  | O30: =VLOOKUP(C30,'Leeds half'!$C$4:$N$31,9,FALSE) ->  | P30: =VLOOKUP(C30,Ilkley!$C$3:$L$46,7,FALSE) ->  | Q30: =VLOOKUP(C30,Otley!$C$3:$L$46,9,FALSE) ->  | R30: =VLOOKUP(C30,Solstice!$C$3:$L$48,7,FALSE) ->  | S30: =VLOOKUP(C30,Eccup!$C$3:$L$46,9,FALSE) ->  | U30: =VLOOKUP(C30,Shakerr!$C$3:$L$46,7,FALSE) ->  | V30: =VLOOKUP(C30,VoY!$C$3:$L$46,9,FALSE) ->  | W30: =VLOOKUP(C30,Kirkstall!$C$3:$L$46,9,FALSE) ->  | X30: =VLOOKUP($C30,City!$C$3:$L$69,9,FALSE) ->  | Y30: =VLOOKUP(C30,'Guy Fawkes'!$C$3:$N$34,9,FALSE) ->  | Z30: =VLOOKUP(C30,Abbey!$C$3:$L$48,7,FALSE) -> 0.4998698256 | AA30: =VLOOKUP(C30,Chevin!$C$3:$L$50,7,FALSE) ->  | AC30: 0 | AD30: 0 | AE30: 0 | AF30: 0 | AG30: 0 | AH30: 0 | AI30: 0 | AJ30: 0 | AK30: 0 | AL30: 0 | AM30: 0 | AN30: 0 | AO30: 0 | AP30: 0 | AQ30: 0 | AR30: 0 | AS30: 0 | AT30: 0 | AU30: 0 | AV30: 20 | AW30: 0 | AX30: 1
C31: Craig Beza | D31: 1984-07-24 | E31: 32 | F31: =IFERROR(VLOOKUP(C31,'Division Lookup'!$A$2:$D$251,4,FALSE),"Second") -> Second | G31: =VLOOKUP(C31,Dewsbury!$C$3:$L$46,7,FALSE) ->  | H31: =VLOOKUP($C31,Bradford!$C$3:$L$66,7,FALSE) ->  | I31: =VLOOKUP($C31,Keighley!$C$3:$N$42,9,FALSE) ->  | J31: =VLOOKUP($C31,'Bunny '!$C$3:$N$20,9,FALSE) ->  | K31: =VLOOKUP($C31,Liverpool!$C$3:$N$59,9,FALSE) ->  | L31: =VLOOKUP(C31,'VoY 10m'!$C$3:$N$40,9,FALSE) ->  | M31: =VLOOKUP(C31,Guisley!$C$3:$N$49,9,FALSE) ->  | N31: =VLOOKUP(C31,Odda!$C$3:$N$42,9,FALSE) ->  | O31: =VLOOKUP(C31,'Leeds half'!$C$4:$N$31,9,FALSE) ->  | P31: =VLOOKUP(C31,Ilkley!$C$3:$L$46,7,FALSE) ->  | Q31: =VLOOKUP(C31,Otley!$C$3:$L$46,9,FALSE) ->  | R31: =VLOOKUP(C31,Solstice!$C$3:$L$48,7,FALSE) ->  | S31: =VLOOKUP(C31,Eccup!$C$3:$L$46,9,FALSE) ->  | U31: =VLOOKUP(C31,Shakerr!$C$3:$L$46,7,FALSE) ->  | V31: =VLOOKUP(C31,VoY!$C$3:$L$46,9,FALSE) -> 0.6019647696 | W31: =VLOOKUP(C31,Kirkstall!$C$3:$L$46,9,FALSE) ->  | X31: =VLOOKUP($C31,City!$C$3:$L$69,9,FALSE) -> 0.6068759342 | Y31: =VLOOKUP(C31,'Guy Fawkes'!$C$3:$N$34,9,FALSE) ->  | Z31: =VLOOKUP(C31,Abbey!$C$3:$L$48,7,FALSE) ->  | AA31: =VLOOKUP(C31,Chevin!$C$3:$L$50,7,FALSE) ->  | AC31: 0 | AD31: 0 | AE31: 0 | AF31: 0 | AG31: 0 | AH31: 0 | AI31: 0 | AJ31: 0 | AK31: 0 | AL31: 0 | AM31: 0 | AN31: 0 | AO31: 0 | AP31: 0 | AQ31: 0 | AR31: 2 | AS31: 0 | AT31: 2 | AU31: 0 | AV31: 0 | AW31: 0 | AX31: 2
C32: Philippa Bird | D32: 1981-01-01 | E32: 36 | F32: =IFERROR(VLOOKUP(C32,'Division Lookup'!$A$2:$D$251,4,FALSE),"Second") -> Second | G32: =VLOOKUP(C32,Dewsbury!$C$3:$L$46,7,FALSE) ->  | H32: =VLOOKUP($C32,Bradford!$C$3:$L$66,7,FALSE) ->  | I32: =VLOOKUP($C32,Keighley!$C$3:$N$42,9,FALSE) -> 0.570015456 | J32: =VLOOKUP($C32,'Bunny '!$C$3:$N$20,9,FALSE) -> 0.5408653846 | K32: =VLOOKUP($C32,Liverpool!$C$3:$N$59,9,FALSE) ->  | L32: =VLOOKUP(C32,'VoY 10m'!$C$3:$N$40,9,FALSE) ->  | M32: =VLOOKUP(C32,Guisley!$C$3:$N$49,9,FALSE) ->  | N32: =VLOOKUP(C32,Odda!$C$3:$N$42,9,FALSE) ->  | O32: =VLOOKUP(C32,'Leeds half'!$C$4:$N$31,9,FALSE) -> 0.5651744104 | P32: =VLOOKUP(C32,Ilkley!$C$3:$L$46,7,FALSE) -> 0.472094214 | Q32: =VLOOKUP(C32,Otley!$C$3:$L$46,9,FALSE) -> 0.4897037572 | R32: =VLOOKUP(C32,Solstice!$C$3:$L$48,7,FALSE) ->  | S32: =VLOOKUP(C32,Eccup!$C$3:$L$46,9,FALSE) -> 0.5025954765 | U32: =VLOOKUP(C32,Shakerr!$C$3:$L$46,7,FALSE) ->  | V32: =VLOOKUP(C32,VoY!$C$3:$L$46,9,FALSE) ->  | W32: =VLOOKUP(C32,Kirkstall!$C$3:$L$46,9,FALSE) -> 0.5329421179 | X32: =VLOOKUP($C32,City!$C$3:$L$69,9,FALSE) -> 0.5960264901 | Y32: =VLOOKUP(C32,'Guy Fawkes'!$C$3:$N$34,9,FALSE) -> 0.471150504 | Z32: =VLOOKUP(C32,Abbey!$C$3:$L$48,7,FALSE) ->  | AA32: =VLOOKUP(C32,Chevin!$C$3:$L$50,7,FALSE) ->  | AC32: 0 | AD32: 0 | AE32: 6 | AF32: 2 | AG32: 0 | AH32: 0 | AI32: 0 | AJ32: 0 | AK32: 6 | AL32: 3 | AM32: 3 | AN32: 0 | AO32: 3 | AP32: 0 | AQ32: 0 | AR32: 0 | AS32: 2 | AT32: 4 | AU32: 5 | AV32: 0 | AW32: 0 | AX32: 9
C33: David Blanchard | D33: 1961-12-01 | E33: 55 | F33: =IFERROR(VLOOKUP(C33,'Division Lookup'!$A$2:$D$251,4,FALSE),"Second") -> Second | G33: =VLOOKUP(C33,Dewsbury!$C$3:$L$46,7,FALSE) ->  | H33: =VLOOKUP($C33,Bradford!$C$3:$L$66,7,FALSE) ->  | I33: =VLOOKUP($C33,Keighley!$C$3:$N$42,9,FALSE) ->  | J33: =VLOOKUP($C33,'Bunny '!$C$3:$N$20,9,FALSE) ->  | K33: =VLOOKUP($C33,Liverpool!$C$3:$N$59,9,FALSE) ->  | L33: =VLOOKUP(C33,'VoY 10m'!$C$3:$N$40,9,FALSE) ->  | M33: =VLOOKUP(C33,Guisley!$C$3:$N$49,9,FALSE) ->  | N33: =VLOOKUP(C33,Odda!$C$3:$N$42,9,FALSE) ->  | O33: =VLOOKUP(C33,'Leeds half'!$C$4:$N$31,9,FALSE) ->  | P33: =VLOOKUP(C33,Ilkley!$C$3:$L$46,7,FALSE) ->  | Q33: =VLOOKUP(C33,Otley!$C$3:$L$46,9,FALSE) ->  | R33: =VLOOKUP(C33,Solstice!$C$3:$L$48,7,FALSE) ->  | S33: =VLOOKUP(C33,Eccup!$C$3:$L$46,9,FALSE) ->  | U33: =VLOOKUP(C33,Shakerr!$C$3:$L$46,7,FALSE) ->  | V33: =VLOOKUP(C33,VoY!$C$3:$L$46,9,FALSE) ->  | W33: =VLOOKUP(C33,Kirkstall!$C$3:$L$46,9,FALSE) ->  | X33: =VLOOKUP($C33,City!$C$3:$L$69,9,FALSE) ->  | Y33: =VLOOKUP(C33,'Guy Fawkes'!$C$3:$N$34,9,FALSE) ->  | Z33: =VLOOKUP(C33,Abbey!$C$3:$L$48,7,FALSE) ->  | AA33: =VLOOKUP(C33,Chevin!$C$3:$L$50,7,FALSE) ->  | AC33: 0 | AD33: 0 | AE33: 0 | AF33: 0 | AG33: 0 | AH33: 0 | AI33: 0 | AJ33: 0 | AK33: 0 | AL33: 0 | AM33: 0 | AN33: 0 | AO33: 0 | AP33: 0 | AQ33: 0 | AR33: 0 | AS33: 0 | AT33: 0 | AU33: 0 | AV33: 0 | AW33: 0 | AX33: 0
C34: Claire Bond | D34: 1970-02-28 | E34: 46 | F34: =IFERROR(VLOOKUP(C34,'Division Lookup'!$A$2:$D$251,4,FALSE),"Second") -> Second | G34: =VLOOKUP(C34,Dewsbury!$C$3:$L$46,7,FALSE) ->  | H34: =VLOOKUP($C34,Bradford!$C$3:$L$66,7,FALSE) ->  | I34: =VLOOKUP($C34,Keighley!$C$3:$N$42,9,FALSE) ->  | J34: =VLOOKUP($C34,'Bunny '!$C$3:$N$20,9,FALSE) ->  | K34: =VLOOKUP($C34,Liverpool!$C$3:$N$59,9,FALSE) ->  | L34: =VLOOKUP(C34,'VoY 10m'!$C$3:$N$40,9,FALSE) ->  | M34: =VLOOKUP(C34,Guisley!$C$3:$N$49,9,FALSE) ->  | N34: =VLOOKUP(C34,Odda!$C$3:$N$42,9,FALSE) ->  | O34: =VLOOKUP(C34,'Leeds half'!$C$4:$N$31,9,FALSE) ->  | P34: =VLOOKUP(C34,Ilkley!$C$3:$L$46,7,FALSE) ->  | Q34: =VLOOKUP(C34,Otley!$C$3:$L$46,9,FALSE) ->  | R34: =VLOOKUP(C34,Solstice!$C$3:$L$48,7,FALSE) ->  | S34: =VLOOKUP(C34,Eccup!$C$3:$L$46,9,FALSE) ->  | U34: =VLOOKUP(C34,Shakerr!$C$3:$L$46,7,FALSE) ->  | V34: =VLOOKUP(C34,VoY!$C$3:$L$46,9,FALSE) ->  | W34: =VLOOKUP(C34,Kirkstall!$C$3:$L$46,9,FALSE) ->  | X34: =VLOOKUP($C34,City!$C$3:$L$69,9,FALSE) ->  | Y34: =VLOOKUP(C34,'Guy Fawkes'!$C$3:$N$34,9,FALSE) ->  | Z34: =VLOOKUP(C34,Abbey!$C$3:$L$48,7,FALSE) ->  | AA34: =VLOOKUP(C34,Chevin!$C$3:$L$50,7,FALSE) ->  | AC34: 0 | AD34: 0 | AE34: 0 | AF34: 0 | AG34: 0 | AH34: 0 | AI34: 0 | AJ34: 0 | AK34: 0 | AL34: 0 | AM34: 0 | AN34: 0 | AO34: 0 | AP34: 0 | AQ34: 0 | AR34: 0 | AS34: 0 | AT34: 0 | AU34: 0 | AV34: 0 | AW34: 0 | AX34: 0
C35: Bernie Bowden | D35: 1970-06-30 | E35: 46 | F35: =IFERROR(VLOOKUP(C35,'Division Lookup'!$A$2:$D$251,4,FALSE),"Second") -> Second | G35: =VLOOKUP(C35,Dewsbury!$C$3:$L$46,7,FALSE) -> 0.7494296578 | H35: =VLOOKUP($C35,Bradford!$C$3:$L$66,7,FALSE) -> 0.7762898779 | I35: =VLOOKUP($C35,Keighley!$C$3:$N$42,9,FALSE) ->  | J35: =VLOOKUP($C35,'Bunny '!$C$3:$N$20,9,FALSE) ->  | K35: =VLOOKUP($C35,Liverpool!$C$3:$N$59,9,FALSE) ->  | L35: =VLOOKUP(C35,'VoY 10m'!$C$3:$N$40,9,FALSE) ->  | M35: =VLOOKUP(C35,Guisley!$C$3:$N$49,9,FALSE) ->  | N35: =VLOOKUP(C35,Odda!$C$3:$N$42,9,FALSE) ->  | O35: =VLOOKUP(C35,'Leeds half'!$C$4:$N$31,9,FALSE) ->  | P35: =VLOOKUP(C35,Ilkley!$C$3:$L$46,7,FALSE) -> 0.5887096774 | Q35: =VLOOKUP(C35,Otley!$C$3:$L$46,9,FALSE) ->  | R35: =VLOOKUP(C35,Solstice!$C$3:$L$48,7,FALSE) -> 0.6863001745 | S35: =VLOOKUP(C35,Eccup!$C$3:$L$46,9,FALSE) ->  | U35: =VLOOKUP(C35,Shakerr!$C$3:$L$46,7,FALSE) -> 0.5586734694 | V35: =VLOOKUP(C35,VoY!$C$3:$L$46,9,FALSE) ->  | W35: =VLOOKUP(C35,Kirkstall!$C$3:$L$46,9,FALSE) -> 0.7123966942 | X35: =VLOOKUP($C35,City!$C$3:$L$69,9,FALSE) ->  | Y35: =VLOOKUP(C35,'Guy Fawkes'!$C$3:$N$34,9,FALSE) ->  | Z35: =VLOOKUP(C35,Abbey!$C$3:$L$48,7,FALSE) ->  | AA35: =VLOOKUP(C35,Chevin!$C$3:$L$50,7,FALSE) ->  | AC35: 2 | AD35: 2 | AE35: 0 | AF35: 0 | AG35: 0 | AH35: 0 | AI35: 0 | AJ35: 0 | AK35: 0 | AL35: 1 | AM35: 0 | AN35: 1 | AO35: 0 | AP35: 0 | AQ35: 2 | AR35: 0 | AS35: 1 | AT35: 0 | AU35: 0 | AV35: 0 | AW35: 0 | AX35: 6
C36: Rachel Boyd | D36: 1988-06-12 | E36: 28 | F36: =IFERROR(VLOOKUP(C36,'Division Lookup'!$A$2:$D$251,4,FALSE),"Second") -> Second | G36: =VLOOKUP(C36,Dewsbury!$C$3:$L$46,7,FALSE) -> 0.7875378624 | H36: =VLOOKUP($C36,Bradford!$C$3:$L$66,7,FALSE) -> 0.7767819035 | I36: =VLOOKUP($C36,Keighley!$C$3:$N$42,9,FALSE) ->  | J36: =VLOOKUP($C36,'Bunny '!$C$3:$N$20,9,FALSE) ->  | K36: =VLOOKUP($C36,Liverpool!$C$3:$N$59,9,FALSE) -> 0.765207284 | L36: =VLOOKUP(C36,'VoY 10m'!$C$3:$N$40,9,FALSE) ->  | M36: =VLOOKUP(C36,Guisley!$C$3:$N$49,9,FALSE) ->  | N36: =VLOOKUP(C36,Odda!$C$3:$N$42,9,FALSE) ->  | O36: =VLOOKUP(C36,'Leeds half'!$C$4:$N$31,9,FALSE) ->  | P36: =VLOOKUP(C36,Ilkley!$C$3:$L$46,7,FALSE) ->  | Q36: =VLOOKUP(C36,Otley!$C$3:$L$46,9,FALSE) ->  | R36: =VLOOKUP(C36,Solstice!$C$3:$L$48,7,FALSE) ->  | S36: =VLOOKUP(C36,Eccup!$C$3:$L$46,9,FALSE) ->  | U36: =VLOOKUP(C36,Shakerr!$C$3:$L$46,7,FALSE) ->  | V36: =VLOOKUP(C36,VoY!$C$3:$L$46,9,FALSE) ->  | W36: =VLOOKUP(C36,Kirkstall!$C$3:$L$46,9,FALSE) ->  | X36: =VLOOKUP($C36,City!$C$3:$L$69,9,FALSE) ->  | Y36: =VLOOKUP(C36,'Guy Fawkes'!$C$3:$N$34,9,FALSE) ->  | Z36: =VLOOKUP(C36,Abbey!$C$3:$L$48,7,FALSE) ->  | AA36: =VLOOKUP(C36,Chevin!$C$3:$L$50,7,FALSE) ->  | AC36: 1 | AD36: 1 | AE36: 0 | AF36: 0 | AG36: 1 | AH36: 0 | AI36: 0 | AJ36: 0 | AK36: 0 | AL36: 0 | AM36: 0 | AN36: 0 | AO36: 0 | AP36: 0 | AQ36: 0 | AR36: 0 | AS36: 0 | AT36: 0 | AU36: 0 | AV36: 0 | AW36: 0 | AX36: 3
C37: Roy Bradshaw | D37: 1963-01-03 | E37: 53 | F37: =IFERROR(VLOOKUP(C37,'Division Lookup'!$A$2:$D$251,4,FALSE),"Second") -> Second | G37: =VLOOKUP(C37,Dewsbury!$C$3:$L$46,7,FALSE) ->  | H37: =VLOOKUP($C37,Bradford!$C$3:$L$66,7,FALSE) ->  | I37: =VLOOKUP($C37,Keighley!$C$3:$N$42,9,FALSE) ->  | J37: =VLOOKUP($C37,'Bunny '!$C$3:$N$20,9,FALSE) ->  | K37: =VLOOKUP($C37,Liverpool!$C$3:$N$59,9,FALSE) ->  | L37: =VLOOKUP(C37,'VoY 10m'!$C$3:$N$40,9,FALSE) ->  | M37: =VLOOKUP(C37,Guisley!$C$3:$N$49,9,FALSE) ->  | N37: =VLOOKUP(C37,Odda!$C$3:$N$42,9,FALSE) ->  | O37: =VLOOKUP(C37,'Leeds half'!$C$4:$N$31,9,FALSE) ->  | P37: =VLOOKUP(C37,Ilkley!$C$3:$L$46,7,FALSE) ->  | Q37: =VLOOKUP(C37,Otley!$C$3:$L$46,9,FALSE) ->  | R37: =VLOOKUP(C37,Solstice!$C$3:$L$48,7,FALSE) ->  | S37: =VLOOKUP(C37,Eccup!$C$3:$L$46,9,FALSE) ->  | U37: =VLOOKUP(C37,Shakerr!$C$3:$L$46,7,FALSE) ->  | V37: =VLOOKUP(C37,VoY!$C$3:$L$46,9,FALSE) ->  | W37: =VLOOKUP(C37,Kirkstall!$C$3:$L$46,9,FALSE) ->  | X37: =VLOOKUP($C37,City!$C$3:$L$69,9,FALSE) ->  | Y37: =VLOOKUP(C37,'Guy Fawkes'!$C$3:$N$34,9,FALSE) ->  | Z37: =VLOOKUP(C37,Abbey!$C$3:$L$48,7,FALSE) ->  | AA37: =VLOOKUP(C37,Chevin!$C$3:$L$50,7,FALSE) ->  | AC37: 0 | AD37: 0 | AE37: 0 | AF37: 0 | AG37: 0 | AH37: 0 | AI37: 0 | AJ37: 0 | AK37: 0 | AL37: 0 | AM37: 0 | AN37: 0 | AO37: 0 | AP37: 0 | AQ37: 0 | AR37: 0 | AS37: 0 | AT37: 0 | AU37: 0 | AV37: 0 | AW37: 0 | AX37: 0
C38: Helen Brant | D38: 1981-01-11 | E38: 35 | F38: =IFERROR(VLOOKUP(C38,'Division Lookup'!$A$2:$D$251,4,FALSE),"Second") -> Premier | G38: =VLOOKUP(C38,Dewsbury!$C$3:$L$46,7,FALSE) -> 0.6024254343 | H38: =VLOOKUP($C38,Bradford!$C$3:$L$66,7,FALSE) -> 0.6010464356 | I38: =VLOOKUP($C38,Keighley!$C$3:$N$42,9,FALSE) ->  | J38: =VLOOKUP($C38,'Bunny '!$C$3:$N$20,9,FALSE) ->  | K38: =VLOOKUP($C38,Liverpool!$C$3:$N$59,9,FALSE) ->  | L38: =VLOOKUP(C38,'VoY 10m'!$C$3:$N$40,9,FALSE) ->  | M38: =VLOOKUP(C38,Guisley!$C$3:$N$49,9,FALSE) -> 0.4488682847 | N38: =VLOOKUP(C38,Odda!$C$3:$N$42,9,FALSE) -> 0.4561926036 | O38: =VLOOKUP(C38,'Leeds half'!$C$4:$N$31,9,FALSE) ->  | P38: =VLOOKUP(C38,Ilkley!$C$3:$L$46,7,FALSE) ->  | Q38: =VLOOKUP(C38,Otley!$C$3:$L$46,9,FALSE) ->  | R38: =VLOOKUP(C38,Solstice!$C$3:$L$48,7,FALSE) -> 0.5323166304 | S38: =VLOOKUP(C38,Eccup!$C$3:$L$46,9,FALSE) ->  | U38: =VLOOKUP(C38,Shakerr!$C$3:$L$46,7,FALSE) -> 0.4210767468 | V38: =VLOOKUP(C38,VoY!$C$3:$L$46,9,FALSE) ->  | W38: =VLOOKUP(C38,Kirkstall!$C$3:$L$46,9,FALSE) ->  | X38: =VLOOKUP($C38,City!$C$3:$L$69,9,FALSE) -> 0.5893561104 | Y38: =VLOOKUP(C38,'Guy Fawkes'!$C$3:$N$34,9,FALSE) -> 0.4896476571 | Z38: =VLOOKUP(C38,Abbey!$C$3:$L$48,7,FALSE) ->  | AA38: =VLOOKUP(C38,Chevin!$C$3:$L$50,7,FALSE) ->  | AC38: 16 | AD38: 13 | AE38: 0 | AF38: 0 | AG38: 0 | AH38: 0 | AI38: 10 | AJ38: 10 | AK38: 0 | AL38: 0 | AM38: 0 | AN38: 11 | AO38: 0 | AP38: 0 | AQ38: 10 | AR38: 0 | AS38: 0 | AT38: 16 | AU38: 18 | AV38: 0 | AW38: 0 | AX38: 8
C39: Nick Breare | D39: 1949-11-07 | E39: 67 | F39: =IFERROR(VLOOKUP(C39,'Division Lookup'!$A$2:$D$251,4,FALSE),"Second") -> Second | G39: =VLOOKUP(C39,Dewsbury!$C$3:$L$46,7,FALSE) ->  | H39: =VLOOKUP($C39,Bradford!$C$3:$L$66,7,FALSE) -> 0.6245244366 | I39: =VLOOKUP($C39,Keighley!$C$3:$N$42,9,FALSE) -> 0.7041835358 | J39: =VLOOKUP($C39,'Bunny '!$C$3:$N$20,9,FALSE) ->  | K39: =VLOOKUP($C39,Liverpool!$C$3:$N$59,9,FALSE) ->  | L39: =VLOOKUP(C39,'VoY 10m'!$C$3:$N$40,9,FALSE) ->  | M39: =VLOOKUP(C39,Guisley!$C$3:$N$49,9,FALSE) -> 0.525356967 | N39: =VLOOKUP(C39,Odda!$C$3:$N$42,9,FALSE) ->  | O39: =VLOOKUP(C39,'Leeds half'!$C$4:$N$31,9,FALSE) ->  | P39: =VLOOKUP(C39,Ilkley!$C$3:$L$46,7,FALSE) ->  | Q39: =VLOOKUP(C39,Otley!$C$3:$L$46,9,FALSE) ->  | R39: =VLOOKUP(C39,Solstice!$C$3:$L$48,7,FALSE) ->  | S39: =VLOOKUP(C39,Eccup!$C$3:$L$46,9,FALSE) -> 0.5773010154 | U39: =VLOOKUP(C39,Shakerr!$C$3:$L$46,7,FALSE) -> 0.4474732648 | V39: =VLOOKUP(C39,VoY!$C$3:$L$46,9,FALSE) ->  | W39: =VLOOKUP(C39,Kirkstall!$C$3:$L$46,9,FALSE) ->  | X39: =VLOOKUP($C39,City!$C$3:$L$69,9,FALSE) ->  | Y39: =VLOOKUP(C39,'Guy Fawkes'!$C$3:$N$34,9,FALSE) ->  | Z39: =VLOOKUP(C39,Abbey!$C$3:$L$48,7,FALSE) ->  | AA39: =VLOOKUP(C39,Chevin!$C$3:$L$50,7,FALSE) ->  | AC39: 0 | AD39: 6 | AE39: 1 | AF39: 0 | AG39: 0 | AH39: 0 | AI39: 8 | AJ39: 0 | AK39: 0 | AL39: 0 | AM39: 0 | AN39: 0 | AO39: 1 | AP39: 0 | AQ39: 7 | AR39: 0 | AS39: 0 | AT39: 0 | AU39: 0 | AV39: 0 | AW39: 0 | AX39: 5
C40: Mick Brearley | D40: 1961-08-08 | E40: 55 | F40: =IFERROR(VLOOKUP(C40,'Division Lookup'!$A$2:$D$251,4,FALSE),"Second") -> Second | G40: =VLOOKUP(C40,Dewsbury!$C$3:$L$46,7,FALSE) ->  | H40: =VLOOKUP($C40,Bradford!$C$3:$L$66,7,FALSE) ->  | I40: =VLOOKUP($C40,Keighley!$C$3:$N$42,9,FALSE) ->  | J40: =VLOOKUP($C40,'Bunny '!$C$3:$N$20,9,FALSE) ->  | K40: =VLOOKUP($C40,Liverpool!$C$3:$N$59,9,FALSE) ->  | L40: =VLOOKUP(C40,'VoY 10m'!$C$3:$N$40,9,FALSE) ->  | M40: =VLOOKUP(C40,Guisley!$C$3:$N$49,9,FALSE) ->  | N40: =VLOOKUP(C40,Odda!$C$3:$N$42,9,FALSE) ->  | O40: =VLOOKUP(C40,'Leeds half'!$C$4:$N$31,9,FALSE) ->  | P40: =VLOOKUP(C40,Ilkley!$C$3:$L$46,7,FALSE) ->  | Q40: =VLOOKUP(C40,Otley!$C$3:$L$46,9,FALSE) ->  | R40: =VLOOKUP(C40,Solstice!$C$3:$L$48,7,FALSE) ->  | S40: =VLOOKUP(C40,Eccup!$C$3:$L$46,9,FALSE) ->  | U40: =VLOOKUP(C40,Shakerr!$C$3:$L$46,7,FALSE) ->  | V40: =VLOOKUP(C40,VoY!$C$3:$L$46,9,FALSE) ->  | W40: =VLOOKUP(C40,Kirkstall!$C$3:$L$46,9,FALSE) ->  | X40: =VLOOKUP($C40,City!$C$3:$L$69,9,FALSE) ->  | Y40: =VLOOKUP(C40,'Guy Fawkes'!$C$3:$N$34,9,FALSE) ->  | Z40: =VLOOKUP(C40,Abbey!$C$3:$L$48,7,FALSE) ->  | AA40: =VLOOKUP(C40,Chevin!$C$3:$L$50,7,FALSE) ->  | AC40: 0 | AD40: 0 | AE40: 0 | AF40: 0 | AG40: 0 | AH40: 0 | AI40: 0 | AJ40: 0 | AK40: 0 | AL40: 0 | AM40: 0 | AN40: 0 | AO40: 0 | AP40: 0 | AQ40: 0 | AR40: 0 | AS40: 0 | AT40: 0 | AU40: 0 | AV40: 0 | AW40: 0 | AX40: 0
C41: Josephine Briggs | D41: 1968-02-06 | E41: 48 | F41: =IFERROR(VLOOKUP(C41,'Division Lookup'!$A$2:$D$251,4,FALSE),"Second") -> Second | G41: =VLOOKUP(C41,Dewsbury!$C$3:$L$46,7,FALSE) -> 0.6065079843 | H41: =VLOOKUP($C41,Bradford!$C$3:$L$66,7,FALSE) ->  | I41: =VLOOKUP($C41,Keighley!$C$3:$N$42,9,FALSE) -> 0.5761305094 | J41: =VLOOKUP($C41,'Bunny '!$C$3:$N$20,9,FALSE) ->  | K41: =VLOOKUP($C41,Liverpool!$C$3:$N$59,9,FALSE) -> 0.5998901552 | L41: =VLOOKUP(C41,'VoY 10m'!$C$3:$N$40,9,FALSE) ->  | M41: =VLOOKUP(C41,Guisley!$C$3:$N$49,9,FALSE) ->  | N41: =VLOOKUP(C41,Odda!$C$3:$N$42,9,FALSE) ->  | O41: =VLOOKUP(C41,'Leeds half'!$C$4:$N$31,9,FALSE) ->  | P41: =VLOOKUP(C41,Ilkley!$C$3:$L$46,7,FALSE) ->  | Q41: =VLOOKUP(C41,Otley!$C$3:$L$46,9,FALSE) ->  | R41: =VLOOKUP(C41,Solstice!$C$3:$L$48,7,FALSE) ->  | S41: =VLOOKUP(C41,Eccup!$C$3:$L$46,9,FALSE) ->  | U41: =VLOOKUP(C41,Shakerr!$C$3:$L$46,7,FALSE) ->  | V41: =VLOOKUP(C41,VoY!$C$3:$L$46,9,FALSE) ->  | W41: =VLOOKUP(C41,Kirkstall!$C$3:$L$46,9,FALSE) ->  | X41: =VLOOKUP($C41,City!$C$3:$L$69,9,FALSE) -> 0.6063253012 | Y41: =VLOOKUP(C41,'Guy Fawkes'!$C$3:$N$34,9,FALSE) ->  | Z41: =VLOOKUP(C41,Abbey!$C$3:$L$48,7,FALSE) -> 0.5636025998 | AA41: =VLOOKUP(C41,Chevin!$C$3:$L$50,7,FALSE) ->  | AC41: 4 | AD41: 0 | AE41: 5 | AF41: 0 | AG41: 5 | AH41: 0 | AI41: 0 | AJ41: 0 | AK41: 0 | AL41: 0 | AM41: 0 | AN41: 0 | AO41: 0 | AP41: 0 | AQ41: 0 | AR41: 0 | AS41: 0 | AT41: 3 | AU41: 0 | AV41: 14 | AW41: 0 | AX41: 5
C42: Joseph Broadbent | D42: 1992-05-04 | E42: 24 | F42: =IFERROR(VLOOKUP(C42,'Division Lookup'!$A$2:$D$251,4,FALSE),"Second") -> Second | G42: =VLOOKUP(C42,Dewsbury!$C$3:$L$46,7,FALSE) ->  | H42: =VLOOKUP($C42,Bradford!$C$3:$L$66,7,FALSE) ->  | I42: =VLOOKUP($C42,Keighley!$C$3:$N$42,9,FALSE) ->  | J42: =VLOOKUP($C42,'Bunny '!$C$3:$N$20,9,FALSE) ->  | K42: =VLOOKUP($C42,Liverpool!$C$3:$N$59,9,FALSE) ->  | L42: =VLOOKUP(C42,'VoY 10m'!$C$3:$N$40,9,FALSE) ->  | M42: =VLOOKUP(C42,Guisley!$C$3:$N$49,9,FALSE) ->  | N42: =VLOOKUP(C42,Odda!$C$3:$N$42,9,FALSE) ->  | O42: =VLOOKUP(C42,'Leeds half'!$C$4:$N$31,9,FALSE) ->  | P42: =VLOOKUP(C42,Ilkley!$C$3:$L$46,7,FALSE) ->  | Q42: =VLOOKUP(C42,Otley!$C$3:$L$46,9,FALSE) ->  | R42: =VLOOKUP(C42,Solstice!$C$3:$L$48,7,FALSE) ->  | S42: =VLOOKUP(C42,Eccup!$C$3:$L$46,9,FALSE) ->  | U42: =VLOOKUP(C42,Shakerr!$C$3:$L$46,7,FALSE) ->  | V42: =VLOOKUP(C42,VoY!$C$3:$L$46,9,FALSE) ->  | W42: =VLOOKUP(C42,Kirkstall!$C$3:$L$46,9,FALSE) ->  | X42: =VLOOKUP($C42,City!$C$3:$L$69,9,FALSE) ->  | Y42: =VLOOKUP(C42,'Guy Fawkes'!$C$3:$N$34,9,FALSE) ->  | Z42: =VLOOKUP(C42,Abbey!$C$3:$L$48,7,FALSE) ->  | AA42: =VLOOKUP(C42,Chevin!$C$3:$L$50,7,FALSE) ->  | AC42: 0 | AD42: 0 | AE42: 0 | AF42: 0 | AG42: 0 | AH42: 0 | AI42: 0 | AJ42: 0 | AK42: 0 | AL42: 0 | AM42: 0 | AN42: 0 | AO42: 0 | AP42: 0 | AQ42: 0 | AR42: 0 | AS42: 0 | AT42: 0 | AU42: 0 | AV42: 0 | AW42: 0 | AX42: 0
C43: Andy Brown | D43: 1968-05-03 | E43: 48 | F43: =IFERROR(VLOOKUP(C43,'Division Lookup'!$A$2:$D$251,4,FALSE),"Second") -> Second | G43: =VLOOKUP(C43,Dewsbury!$C$3:$L$46,7,FALSE) ->  | H43: =VLOOKUP($C43,Bradford!$C$3:$L$66,7,FALSE) ->  | I43: =VLOOKUP($C43,Keighley!$C$3:$N$42,9,FALSE) ->  | J43: =VLOOKUP($C43,'Bunny '!$C$3:$N$20,9,FALSE) ->  | K43: =VLOOKUP($C43,Liverpool!$C$3:$N$59,9,FALSE) ->  | L43: =VLOOKUP(C43,'VoY 10m'!$C$3:$N$40,9,FALSE) ->  | M43: =VLOOKUP(C43,Guisley!$C$3:$N$49,9,FALSE) -> 0.7660377358 | N43: =VLOOKUP(C43,Odda!$C$3:$N$42,9,FALSE) ->  | O43: =VLOOKUP(C43,'Leeds half'!$C$4:$N$31,9,FALSE) ->  | P43: =VLOOKUP(C43,Ilkley!$C$3:$L$46,7,FALSE) ->  | Q43: =VLOOKUP(C43,Otley!$C$3:$L$46,9,FALSE) ->  | R43: =VLOOKUP(C43,Solstice!$C$3:$L$48,7,FALSE) ->  | S43: =VLOOKUP(C43,Eccup!$C$3:$L$46,9,FALSE) ->  | U43: =VLOOKUP(C43,Shakerr!$C$3:$L$46,7,FALSE) ->  | V43: =VLOOKUP(C43,VoY!$C$3:$L$46,9,FALSE) ->  | W43: =VLOOKUP(C43,Kirkstall!$C$3:$L$46,9,FALSE) ->  | X43: =VLOOKUP($C43,City!$C$3:$L$69,9,FALSE) ->  | Y43: =VLOOKUP(C43,'Guy Fawkes'!$C$3:$N$34,9,FALSE) ->  | Z43: =VLOOKUP(C43,Abbey!$C$3:$L$48,7,FALSE) ->  | AA43: =VLOOKUP(C43,Chevin!$C$3:$L$50,7,FALSE) ->  | AC43: 0 | AD43: 0 | AE43: 0 | AF43: 0 | AG43: 0 | AH43: 0 | AI43: 1 | AJ43: 0 | AK43: 0 | AL43: 0 | AM43: 0 | AN43: 0 | AO43: 0 | AP43: 0 | AQ43: 0 | AR43: 0 | AS43: 0 | AT43: 0 | AU43: 0 | AV43: 0 | AW43: 0 | AX43: 1
C44: Andrew Bruce | D44: 1971-08-29 | E44: 45 | F44: =IFERROR(VLOOKUP(C44,'Division Lookup'!$A$2:$D$251,4,FALSE),"Second") -> Second | G44: =VLOOKUP(C44,Dewsbury!$C$3:$L$46,7,FALSE) ->  | H44: =VLOOKUP($C44,Bradford!$C$3:$L$66,7,FALSE) ->  | I44: =VLOOKUP($C44,Keighley!$C$3:$N$42,9,FALSE) ->  | J44: =VLOOKUP($C44,'Bunny '!$C$3:$N$20,9,FALSE) ->  | K44: =VLOOKUP($C44,Liverpool!$C$3:$N$59,9,FALSE) ->  | L44: =VLOOKUP(C44,'VoY 10m'!$C$3:$N$40,9,FALSE) ->  | M44: =VLOOKUP(C44,Guisley!$C$3:$N$49,9,FALSE) ->  | N44: =VLOOKUP(C44,Odda!$C$3:$N$42,9,FALSE) ->  | O44: =VLOOKUP(C44,'Leeds half'!$C$4:$N$31,9,FALSE) ->  | P44: =VLOOKUP(C44,Ilkley!$C$3:$L$46,7,FALSE) ->  | Q44: =VLOOKUP(C44,Otley!$C$3:$L$46,9,FALSE) ->  | R44: =VLOOKUP(C44,Solstice!$C$3:$L$48,7,FALSE) ->  | S44: =VLOOKUP(C44,Eccup!$C$3:$L$46,9,FALSE) ->  | U44: =VLOOKUP(C44,Shakerr!$C$3:$L$46,7,FALSE) ->  | V44: =VLOOKUP(C44,VoY!$C$3:$L$46,9,FALSE) ->  | W44: =VLOOKUP(C44,Kirkstall!$C$3:$L$46,9,FALSE) ->  | X44: =VLOOKUP($C44,City!$C$3:$L$69,9,FALSE) ->  | Y44: =VLOOKUP(C44,'Guy Fawkes'!$C$3:$N$34,9,FALSE) ->  | Z44: =VLOOKUP(C44,Abbey!$C$3:$L$48,7,FALSE) ->  | AA44: =VLOOKUP(C44,Chevin!$C$3:$L$50,7,FALSE) ->  | AC44: 0 | AD44: 0 | AE44: 0 | AF44: 0 | AG44: 0 | AH44: 0 | AI44: 0 | AJ44: 0 | AK44: 0 | AL44: 0 | AM44: 0 | AN44: 0 | AO44: 0 | AP44: 0 | AQ44: 0 | AR44: 0 | AS44: 0 | AT44: 0 | AU44: 0 | AV44: 0 | AW44: 0 | AX44: 0
C45: Catherine Bruckner | D45: 1981-01-19 | E45: 35 | F45: =IFERROR(VLOOKUP(C45,'Division Lookup'!$A$2:$D$251,4,FALSE),"Second") -> Second | G45: =VLOOKUP(C45,Dewsbury!$C$3:$L$46,7,FALSE) ->  | H45: =VLOOKUP($C45,Bradford!$C$3:$L$66,7,FALSE) ->  | I45: =VLOOKUP($C45,Keighley!$C$3:$N$42,9,FALSE) ->  | J45: =VLOOKUP($C45,'Bunny '!$C$3:$N$20,9,FALSE) ->  | K45: =VLOOKUP($C45,Liverpool!$C$3:$N$59,9,FALSE) ->  | L45: =VLOOKUP(C45,'VoY 10m'!$C$3:$N$40,9,FALSE) ->  | M45: =VLOOKUP(C45,Guisley!$C$3:$N$49,9,FALSE) ->  | N45: =VLOOKUP(C45,Odda!$C$3:$N$42,9,FALSE) ->  | O45: =VLOOKUP(C45,'Leeds half'!$C$4:$N$31,9,FALSE) ->  | P45: =VLOOKUP(C45,Ilkley!$C$3:$L$46,7,FALSE) ->  | Q45: =VLOOKUP(C45,Otley!$C$3:$L$46,9,FALSE) ->  | R45: =VLOOKUP(C45,Solstice!$C$3:$L$48,7,FALSE) ->  | S45: =VLOOKUP(C45,Eccup!$C$3:$L$46,9,FALSE) ->  | U45: =VLOOKUP(C45,Shakerr!$C$3:$L$46,7,FALSE) ->  | V45: =VLOOKUP(C45,VoY!$C$3:$L$46,9,FALSE) ->  | W45: =VLOOKUP(C45,Kirkstall!$C$3:$L$46,9,FALSE) ->  | X45: =VLOOKUP($C45,City!$C$3:$L$69,9,FALSE) ->  | Y45: =VLOOKUP(C45,'Guy Fawkes'!$C$3:$N$34,9,FALSE) ->  | Z45: =VLOOKUP(C45,Abbey!$C$3:$L$48,7,FALSE) ->  | AA45: =VLOOKUP(C45,Chevin!$C$3:$L$50,7,FALSE) ->  | AC45: 0 | AD45: 0 | AE45: 0 | AF45: 0 | AG45: 0 | AH45: 0 | AI45: 0 | AJ45: 0 | AK45: 0 | AL45: 0 | AM45: 0 | AN45: 0 | AO45: 0 | AP45: 0 | AQ45: 0 | AR45: 0 | AS45: 0 | AT45: 0 | AU45: 0 | AV45: 0 | AW45: 0 | AX45: 0
C46: Sarah Bruckshaw | D46: 1971-04-09 | E46: 45 | F46: =IFERROR(VLOOKUP(C46,'Division Lookup'!$A$2:$D$251,4,FALSE),"Second") -> Second | G46: =VLOOKUP(C46,Dewsbury!$C$3:$L$46,7,FALSE) ->  | H46: =VLOOKUP($C46,Bradford!$C$3:$L$66,7,FALSE) ->  | I46: =VLOOKUP($C46,Keighley!$C$3:$N$42,9,FALSE) ->  | J46: =VLOOKUP($C46,'Bunny '!$C$3:$N$20,9,FALSE) ->  | K46: =VLOOKUP($C46,Liverpool!$C$3:$N$59,9,FALSE) ->  | L46: =VLOOKUP(C46,'VoY 10m'!$C$3:$N$40,9,FALSE) ->  | M46: =VLOOKUP(C46,Guisley!$C$3:$N$49,9,FALSE) ->  | N46: =VLOOKUP(C46,Odda!$C$3:$N$42,9,FALSE) ->  | O46: =VLOOKUP(C46,'Leeds half'!$C$4:$N$31,9,FALSE) ->  | P46: =VLOOKUP(C46,Ilkley!$C$3:$L$46,7,FALSE) ->  | Q46: =VLOOKUP(C46,Otley!$C$3:$L$46,9,FALSE) ->  | R46: =VLOOKUP(C46,Solstice!$C$3:$L$48,7,FALSE) ->  | S46: =VLOOKUP(C46,Eccup!$C$3:$L$46,9,FALSE) ->  | U46: =VLOOKUP(C46,Shakerr!$C$3:$L$46,7,FALSE) ->  | V46: =VLOOKUP(C46,VoY!$C$3:$L$46,9,FALSE) ->  | W46: =VLOOKUP(C46,Kirkstall!$C$3:$L$46,9,FALSE) ->  | X46: =VLOOKUP($C46,City!$C$3:$L$69,9,FALSE) ->  | Y46: =VLOOKUP(C46,'Guy Fawkes'!$C$3:$N$34,9,FALSE) ->  | Z46: =VLOOKUP(C46,Abbey!$C$3:$L$48,7,FALSE) ->  | AA46: =VLOOKUP(C46,Chevin!$C$3:$L$50,7,FALSE) ->  | AC46: 0 | AD46: 0 | AE46: 0 | AF46: 0 | AG46: 0 | AH46: 0 | AI46: 0 | AJ46: 0 | AK46: 0 | AL46: 0 | AM46: 0 | AN46: 0 | AO46: 0 | AP46: 0 | AQ46: 0 | AR46: 0 | AS46: 0 | AT46: 0 | AU46: 0 | AV46: 0 | AW46: 0 | AX46: 0
C47: Shiela Bugg | D47: 1972-07-13 | E47: 44 | F47: =IFERROR(VLOOKUP(C47,'Division Lookup'!$A$2:$D$251,4,FALSE),"Second") -> Second | G47: =VLOOKUP(C47,Dewsbury!$C$3:$L$46,7,FALSE) ->  | H47: =VLOOKUP($C47,Bradford!$C$3:$L$66,7,FALSE) -> 0.4994840041 | I47: =VLOOKUP($C47,Keighley!$C$3:$N$42,9,FALSE) ->  | J47: =VLOOKUP($C47,'Bunny '!$C$3:$N$20,9,FALSE) ->  | K47: =VLOOKUP($C47,Liverpool!$C$3:$N$59,9,FALSE) ->  | L47: =VLOOKUP(C47,'VoY 10m'!$C$3:$N$40,9,FALSE) ->  | M47: =VLOOKUP(C47,Guisley!$C$3:$N$49,9,FALSE) ->  | N47: =VLOOKUP(C47,Odda!$C$3:$N$42,9,FALSE) ->  | O47: =VLOOKUP(C47,'Leeds half'!$C$4:$N$31,9,FALSE) ->  | P47: =VLOOKUP(C47,Ilkley!$C$3:$L$46,7,FALSE) ->  | Q47: =VLOOKUP(C47,Otley!$C$3:$L$46,9,FALSE) ->  | R47: =VLOOKUP(C47,Solstice!$C$3:$L$48,7,FALSE) -> 0.4674538299 | S47: =VLOOKUP(C47,Eccup!$C$3:$L$46,9,FALSE) ->  | U47: =VLOOKUP(C47,Shakerr!$C$3:$L$46,7,FALSE) ->  | V47: =VLOOKUP(C47,VoY!$C$3:$L$46,9,FALSE) ->  | W47: =VLOOKUP(C47,Kirkstall!$C$3:$L$46,9,FALSE) ->  | X47: =VLOOKUP($C47,City!$C$3:$L$69,9,FALSE) ->  | Y47: =VLOOKUP(C47,'Guy Fawkes'!$C$3:$N$34,9,FALSE) ->  | Z47: =VLOOKUP(C47,Abbey!$C$3:$L$48,7,FALSE) ->  | AA47: =VLOOKUP(C47,Chevin!$C$3:$L$50,7,FALSE) ->  | AC47: 0 | AD47: 22 | AE47: 0 | AF47: 0 | AG47: 0 | AH47: 0 | AI47: 0 | AJ47: 0 | AK47: 0 | AL47: 0 | AM47: 0 | AN47: 11 | AO47: 0 | AP47: 0 | AQ47: 0 | AR47: 0 | AS47: 0 | AT47: 0 | AU47: 0 | AV47: 0 | AW47: 0 | AX47: 2
C48: Claire Burrill | D48: 1975-10-29 | E48: 41 | F48: =IFERROR(VLOOKUP(C48,'Division Lookup'!$A$2:$D$251,4,FALSE),"Second") -> Second | G48: =VLOOKUP(C48,Dewsbury!$C$3:$L$46,7,FALSE) ->  | H48: =VLOOKUP($C48,Bradford!$C$3:$L$66,7,FALSE) ->  | I48: =VLOOKUP($C48,Keighley!$C$3:$N$42,9,FALSE) ->  | J48: =VLOOKUP($C48,'Bunny '!$C$3:$N$20,9,FALSE) ->  | K48: =VLOOKUP($C48,Liverpool!$C$3:$N$59,9,FALSE) -> 0.5992995768 | L48: =VLOOKUP(C48,'VoY 10m'!$C$3:$N$40,9,FALSE) ->  | M48: =VLOOKUP(C48,Guisley!$C$3:$N$49,9,FALSE) ->  | N48: =VLOOKUP(C48,Odda!$C$3:$N$42,9,FALSE) ->  | O48: =VLOOKUP(C48,'Leeds half'!$C$4:$N$31,9,FALSE) ->  | P48: =VLOOKUP(C48,Ilkley!$C$3:$L$46,7,FALSE) ->  | Q48: =VLOOKUP(C48,Otley!$C$3:$L$46,9,FALSE) ->  | R48: =VLOOKUP(C48,Solstice!$C$3:$L$48,7,FALSE) -> 0.5255830143 | S48: =VLOOKUP(C48,Eccup!$C$3:$L$46,9,FALSE) ->  | U48: =VLOOKUP(C48,Shakerr!$C$3:$L$46,7,FALSE) ->  | V48: =VLOOKUP(C48,VoY!$C$3:$L$46,9,FALSE) ->  | W48: =VLOOKUP(C48,Kirkstall!$C$3:$L$46,9,FALSE) ->  | X48: =VLOOKUP($C48,City!$C$3:$L$69,9,FALSE) ->  | Y48: =VLOOKUP(C48,'Guy Fawkes'!$C$3:$N$34,9,FALSE) ->  | Z48: =VLOOKUP(C48,Abbey!$C$3:$L$48,7,FALSE) ->  | AA48: =VLOOKUP(C48,Chevin!$C$3:$L$50,7,FALSE) ->  | AC48: 0 | AD48: 0 | AE48: 0 | AF48: 0 | AG48: 6 | AH48: 0 | AI48: 0 | AJ48: 0 | AK48: 0 | AL48: 0 | AM48: 0 | AN48: 4 | AO48: 0 | AP48: 0 | AQ48: 0 | AR48: 0 | AS48: 0 | AT48: 0 | AU48: 0 | AV48: 0 | AW48: 0 | AX48: 2
C49: Adam Camp | D49: 1983-12-10 | E49: 33 | F49: =IFERROR(VLOOKUP(C49,'Division Lookup'!$A$2:$D$251,4,FALSE),"Second") -> Second | G49: =VLOOKUP(C49,Dewsbury!$C$3:$L$46,7,FALSE) ->  | H49: =VLOOKUP($C49,Bradford!$C$3:$L$66,7,FALSE) ->  | I49: =VLOOKUP($C49,Keighley!$C$3:$N$42,9,FALSE) ->  | J49: =VLOOKUP($C49,'Bunny '!$C$3:$N$20,9,FALSE) ->  | K49: =VLOOKUP($C49,Liverpool!$C$3:$N$59,9,FALSE) ->  | L49: =VLOOKUP(C49,'VoY 10m'!$C$3:$N$40,9,FALSE) ->  | M49: =VLOOKUP(C49,Guisley!$C$3:$N$49,9,FALSE) ->  | N49: =VLOOKUP(C49,Odda!$C$3:$N$42,9,FALSE) ->  | O49: =VLOOKUP(C49,'Leeds half'!$C$4:$N$31,9,FALSE) ->  | P49: =VLOOKUP(C49,Ilkley!$C$3:$L$46,7,FALSE) ->  | Q49: =VLOOKUP(C49,Otley!$C$3:$L$46,9,FALSE) ->  | R49: =VLOOKUP(C49,Solstice!$C$3:$L$48,7,FALSE) ->  | S49: =VLOOKUP(C49,Eccup!$C$3:$L$46,9,FALSE) ->  | U49: =VLOOKUP(C49,Shakerr!$C$3:$L$46,7,FALSE) -> 0.4617563739 | V49: =VLOOKUP(C49,VoY!$C$3:$L$46,9,FALSE) ->  | W49: =VLOOKUP(C49,Kirkstall!$C$3:$L$46,9,FALSE) ->  | X49: =VLOOKUP($C49,City!$C$3:$L$69,9,FALSE) ->  | Y49: =VLOOKUP(C49,'Guy Fawkes'!$C$3:$N$34,9,FALSE) ->  | Z49: =VLOOKUP(C49,Abbey!$C$3:$L$48,7,FALSE) -> 0.6569931479 | AA49: =VLOOKUP(C49,Chevin!$C$3:$L$50,7,FALSE) ->  | AC49: 0 | AD49: 0 | AE49: 0 | AF49: 0 | AG49: 0 | AH49: 0 | AI49: 0 | AJ49: 0 | AK49: 0 | AL49: 0 | AM49: 0 | AN49: 0 | AO49: 0 | AP49: 0 | AQ49: 5 | AR49: 0 | AS49: 0 | AT49: 0 | AU49: 0 | AV49: 6 | AW49: 0 | AX49: 2
C50: Rebecca Carden | D50: 1993-02-14 | E50: 23 | F50: =IFERROR(VLOOKUP(C50,'Division Lookup'!$A$2:$D$251,4,FALSE),"Second") -> Second | G50: =VLOOKUP(C50,Dewsbury!$C$3:$L$46,7,FALSE) ->  | H50: =VLOOKUP($C50,Bradford!$C$3:$L$66,7,FALSE) ->  | I50: =VLOOKUP($C50,Keighley!$C$3:$N$42,9,FALSE) ->  | J50: =VLOOKUP($C50,'Bunny '!$C$3:$N$20,9,FALSE) ->  | K50: =VLOOKUP($C50,Liverpool!$C$3:$N$59,9,FALSE) ->  | L50: =VLOOKUP(C50,'VoY 10m'!$C$3:$N$40,9,FALSE) ->  | M50: =VLOOKUP(C50,Guisley!$C$3:$N$49,9,FALSE) ->  | N50: =VLOOKUP(C50,Odda!$C$3:$N$42,9,FALSE) ->  | O50: =VLOOKUP(C50,'Leeds half'!$C$4:$N$31,9,FALSE) ->  | P50: =VLOOKUP(C50,Ilkley!$C$3:$L$46,7,FALSE) ->  | Q50: =VLOOKUP(C50,Otley!$C$3:$L$46,9,FALSE) ->  | R50: =VLOOKUP(C50,Solstice!$C$3:$L$48,7,FALSE) ->  | S50: =VLOOKUP(C50,Eccup!$C$3:$L$46,9,FALSE) ->  | U50: =VLOOKUP(C50,Shakerr!$C$3:$L$46,7,FALSE) ->  | V50: =VLOOKUP(C50,VoY!$C$3:$L$46,9,FALSE) ->  | W50: =VLOOKUP(C50,Kirkstall!$C$3:$L$46,9,FALSE) ->  | X50: =VLOOKUP($C50,City!$C$3:$L$69,9,FALSE) ->  | Y50: =VLOOKUP(C50,'Guy Fawkes'!$C$3:$N$34,9,FALSE) ->  | Z50: =VLOOKUP(C50,Abbey!$C$3:$L$48,7,FALSE) ->  | AA50: =VLOOKUP(C50,Chevin!$C$3:$L$50,7,FALSE) ->  | AC50: 0 | AD50: 0 | AE50: 0 | AF50: 0 | AG50: 0 | AH50: 0 | AI50: 0 | AJ50: 0 | AK50: 0 | AL50: 0 | AM50: 0 | AN50: 0 | AO50: 0 | AP50: 0 | AQ50: 0 | AR50: 0 | AS50: 0 | AT50: 0 | AU50: 0 | AV50: 0 | AW50: 0 | AX50: 0
C51: Richard Carden | D51: 1992-05-03 | E51: 24 | F51: =IFERROR(VLOOKUP(C51,'Division Lookup'!$A$2:$D$251,4,FALSE),"Second") -> Second | G51: =VLOOKUP(C51,Dewsbury!$C$3:$L$46,7,FALSE) ->  | H51: =VLOOKUP($C51,Bradford!$C$3:$L$66,7,FALSE) ->  | I51: =VLOOKUP($C51,Keighley!$C$3:$N$42,9,FALSE) ->  | J51: =VLOOKUP($C51,'Bunny '!$C$3:$N$20,9,FALSE) ->  | K51: =VLOOKUP($C51,Liverpool!$C$3:$N$59,9,FALSE) ->  | L51: =VLOOKUP(C51,'VoY 10m'!$C$3:$N$40,9,FALSE) ->  | M51: =VLOOKUP(C51,Guisley!$C$3:$N$49,9,FALSE) ->  | N51: =VLOOKUP(C51,Odda!$C$3:$N$42,9,FALSE) ->  | O51: =VLOOKUP(C51,'Leeds half'!$C$4:$N$31,9,FALSE) ->  | P51: =VLOOKUP(C51,Ilkley!$C$3:$L$46,7,FALSE) ->  | Q51: =VLOOKUP(C51,Otley!$C$3:$L$46,9,FALSE) ->  | R51: =VLOOKUP(C51,Solstice!$C$3:$L$48,7,FALSE) ->  | S51: =VLOOKUP(C51,Eccup!$C$3:$L$46,9,FALSE) ->  | U51: =VLOOKUP(C51,Shakerr!$C$3:$L$46,7,FALSE) ->  | V51: =VLOOKUP(C51,VoY!$C$3:$L$46,9,FALSE) ->  | W51: =VLOOKUP(C51,Kirkstall!$C$3:$L$46,9,FALSE) ->  | X51: =VLOOKUP($C51,City!$C$3:$L$69,9,FALSE) ->  | Y51: =VLOOKUP(C51,'Guy Fawkes'!$C$3:$N$34,9,FALSE) ->  | Z51: =VLOOKUP(C51,Abbey!$C$3:$L$48,7,FALSE) ->  | AA51: =VLOOKUP(C51,Chevin!$C$3:$L$50,7,FALSE) ->  | AC51: 0 | AD51: 0 | AE51: 0 | AF51: 0 | AG51: 0 | AH51: 0 | AI51: 0 | AJ51: 0 | AK51: 0 | AL51: 0 | AM51: 0 | AN51: 0 | AO51: 0 | AP51: 0 | AQ51: 0 | AR51: 0 | AS51: 0 | AT51: 0 | AU51: 0 | AV51: 0 | AW51: 0 | AX51: 0
C52: Emma Cartledge | D52: 1974-07-23 | E52: 42 | F52: =IFERROR(VLOOKUP(C52,'Division Lookup'!$A$2:$D$251,4,FALSE),"Second") -> First | G52: =VLOOKUP(C52,Dewsbury!$C$3:$L$46,7,FALSE) ->  | H52: =VLOOKUP($C52,Bradford!$C$3:$L$66,7,FALSE) ->  | I52: =VLOOKUP($C52,Keighley!$C$3:$N$42,9,FALSE) ->  | J52: =VLOOKUP($C52,'Bunny '!$C$3:$N$20,9,FALSE) ->  | K52: =VLOOKUP($C52,Liverpool!$C$3:$N$59,9,FALSE) ->  | L52: =VLOOKUP(C52,'VoY 10m'!$C$3:$N$40,9,FALSE) ->  | M52: =VLOOKUP(C52,Guisley!$C$3:$N$49,9,FALSE) ->  | N52: =VLOOKUP(C52,Odda!$C$3:$N$42,9,FALSE) ->  | O52: =VLOOKUP(C52,'Leeds half'!$C$4:$N$31,9,FALSE) ->  | P52: =VLOOKUP(C52,Ilkley!$C$3:$L$46,7,FALSE) ->  | Q52: =VLOOKUP(C52,Otley!$C$3:$L$46,9,FALSE) ->  | R52: =VLOOKUP(C52,Solstice!$C$3:$L$48,7,FALSE) ->  | S52: =VLOOKUP(C52,Eccup!$C$3:$L$46,9,FALSE) ->  | U52: =VLOOKUP(C52,Shakerr!$C$3:$L$46,7,FALSE) ->  | V52: =VLOOKUP(C52,VoY!$C$3:$L$46,9,FALSE) ->  | W52: =VLOOKUP(C52,Kirkstall!$C$3:$L$46,9,FALSE) ->  | X52: =VLOOKUP($C52,City!$C$3:$L$69,9,FALSE) ->  | Y52: =VLOOKUP(C52,'Guy Fawkes'!$C$3:$N$34,9,FALSE) ->  | Z52: =VLOOKUP(C52,Abbey!$C$3:$L$48,7,FALSE) ->  | AA52: =VLOOKUP(C52,Chevin!$C$3:$L$50,7,FALSE) ->  | AC52: 0 | AD52: 0 | AE52: 0 | AF52: 0 | AG52: 0 | AH52: 0 | AI52: 0 | AJ52: 0 | AK52: 0 | AL52: 0 | AM52: 0 | AN52: 0 | AO52: 0 | AP52: 0 | AQ52: 0 | AR52: 0 | AS52: 0 | AT52: 0 | AU52: 0 | AV52: 0 | AW52: 0 | AX52: 0
C53: Mick Chambers | D53: 1953-09-05 | E53: 63 | F53: =IFERROR(VLOOKUP(C53,'Division Lookup'!$A$2:$D$251,4,FALSE),"Second") -> Second | G53: =VLOOKUP(C53,Dewsbury!$C$3:$L$46,7,FALSE) ->  | H53: =VLOOKUP($C53,Bradford!$C$3:$L$66,7,FALSE) ->  | I53: =VLOOKUP($C53,Keighley!$C$3:$N$42,9,FALSE) ->  | J53: =VLOOKUP($C53,'Bunny '!$C$3:$N$20,9,FALSE) ->  | K53: =VLOOKUP($C53,Liverpool!$C$3:$N$59,9,FALSE) ->  | L53: =VLOOKUP(C53,'VoY 10m'!$C$3:$N$40,9,FALSE) ->  | M53: =VLOOKUP(C53,Guisley!$C$3:$N$49,9,FALSE) ->  | N53: =VLOOKUP(C53,Odda!$C$3:$N$42,9,FALSE) ->  | O53: =VLOOKUP(C53,'Leeds half'!$C$4:$N$31,9,FALSE) ->  | P53: =VLOOKUP(C53,Ilkley!$C$3:$L$46,7,FALSE) ->  | Q53: =VLOOKUP(C53,Otley!$C$3:$L$46,9,FALSE) ->  | R53: =VLOOKUP(C53,Solstice!$C$3:$L$48,7,FALSE) ->  | S53: =VLOOKUP(C53,Eccup!$C$3:$L$46,9,FALSE) ->  | U53: =VLOOKUP(C53,Shakerr!$C$3:$L$46,7,FALSE) ->  | V53: =VLOOKUP(C53,VoY!$C$3:$L$46,9,FALSE) ->  | W53: =VLOOKUP(C53,Kirkstall!$C$3:$L$46,9,FALSE) ->  | X53: =VLOOKUP($C53,City!$C$3:$L$69,9,FALSE) ->  | Y53: =VLOOKUP(C53,'Guy Fawkes'!$C$3:$N$34,9,FALSE) ->  | Z53: =VLOOKUP(C53,Abbey!$C$3:$L$48,7,FALSE) ->  | AA53: =VLOOKUP(C53,Chevin!$C$3:$L$50,7,FALSE) ->  | AC53: 0 | AD53: 0 | AE53: 0 | AF53: 0 | AG53: 0 | AH53: 0 | AI53: 0 | AJ53: 0 | AK53: 0 | AL53: 0 | AM53: 0 | AN53: 0 | AO53: 0 | AP53: 0 | AQ53: 0 | AR53: 0 | AS53: 0 | AT53: 0 | AU53: 0 | AV53: 0 | AW53: 0 | AX53: 0
C54: Claire Cockcroft | D54: 1974-04-05 | E54: 42 | F54: =IFERROR(VLOOKUP(C54,'Division Lookup'!$A$2:$D$251,4,FALSE),"Second") -> Second | G54: =VLOOKUP(C54,Dewsbury!$C$3:$L$46,7,FALSE) ->  | H54: =VLOOKUP($C54,Bradford!$C$3:$L$66,7,FALSE) ->  | I54: =VLOOKUP($C54,Keighley!$C$3:$N$42,9,FALSE) ->  | J54: =VLOOKUP($C54,'Bunny '!$C$3:$N$20,9,FALSE) ->  | K54: =VLOOKUP($C54,Liverpool!$C$3:$N$59,9,FALSE) ->  | L54: =VLOOKUP(C54,'VoY 10m'!$C$3:$N$40,9,FALSE) ->  | M54: =VLOOKUP(C54,Guisley!$C$3:$N$49,9,FALSE) ->  | N54: =VLOOKUP(C54,Odda!$C$3:$N$42,9,FALSE) ->  | O54: =VLOOKUP(C54,'Leeds half'!$C$4:$N$31,9,FALSE) ->  | P54: =VLOOKUP(C54,Ilkley!$C$3:$L$46,7,FALSE) ->  | Q54: =VLOOKUP(C54,Otley!$C$3:$L$46,9,FALSE) ->  | R54: =VLOOKUP(C54,Solstice!$C$3:$L$48,7,FALSE) ->  | S54: =VLOOKUP(C54,Eccup!$C$3:$L$46,9,FALSE) ->  | U54: =VLOOKUP(C54,Shakerr!$C$3:$L$46,7,FALSE) ->  | V54: =VLOOKUP(C54,VoY!$C$3:$L$46,9,FALSE) ->  | W54: =VLOOKUP(C54,Kirkstall!$C$3:$L$46,9,FALSE) ->  | X54: =VLOOKUP($C54,City!$C$3:$L$69,9,FALSE) ->  | Y54: =VLOOKUP(C54,'Guy Fawkes'!$C$3:$N$34,9,FALSE) ->  | Z54: =VLOOKUP(C54,Abbey!$C$3:$L$48,7,FALSE) ->  | AA54: =VLOOKUP(C54,Chevin!$C$3:$L$50,7,FALSE) ->  | AC54: 0 | AD54: 0 | AE54: 0 | AF54: 0 | AG54: 0 | AH54: 0 | AI54: 0 | AJ54: 0 | AK54: 0 | AL54: 0 | AM54: 0 | AN54: 0 | AO54: 0 | AP54: 0 | AQ54: 0 | AR54: 0 | AS54: 0 | AT54: 0 | AU54: 0 | AV54: 0 | AW54: 0 | AX54: 0
C55: Diane Collett | D55: 1963-09-12 | E55: 53 | F55: =IFERROR(VLOOKUP(C55,'Division Lookup'!$A$2:$D$251,4,FALSE),"Second") -> Second | G55: =VLOOKUP(C55,Dewsbury!$C$3:$L$46,7,FALSE) ->  | H55: =VLOOKUP($C55,Bradford!$C$3:$L$66,7,FALSE) ->  | I55: =VLOOKUP($C55,Keighley!$C$3:$N$42,9,FALSE) ->  | J55: =VLOOKUP($C55,'Bunny '!$C$3:$N$20,9,FALSE) ->  | K55: =VLOOKUP($C55,Liverpool!$C$3:$N$59,9,FALSE) ->  | L55: =VLOOKUP(C55,'VoY 10m'!$C$3:$N$40,9,FALSE) ->  | M55: =VLOOKUP(C55,Guisley!$C$3:$N$49,9,FALSE) ->  | N55: =VLOOKUP(C55,Odda!$C$3:$N$42,9,FALSE) ->  | O55: =VLOOKUP(C55,'Leeds half'!$C$4:$N$31,9,FALSE) ->  | P55: =VLOOKUP(C55,Ilkley!$C$3:$L$46,7,FALSE) ->  | Q55: =VLOOKUP(C55,Otley!$C$3:$L$46,9,FALSE) ->  | R55: =VLOOKUP(C55,Solstice!$C$3:$L$48,7,FALSE) ->  | S55: =VLOOKUP(C55,Eccup!$C$3:$L$46,9,FALSE) ->  | U55: =VLOOKUP(C55,Shakerr!$C$3:$L$46,7,FALSE) ->  | V55: =VLOOKUP(C55,VoY!$C$3:$L$46,9,FALSE) ->  | W55: =VLOOKUP(C55,Kirkstall!$C$3:$L$46,9,FALSE) ->  | X55: =VLOOKUP($C55,City!$C$3:$L$69,9,FALSE) ->  | Y55: =VLOOKUP(C55,'Guy Fawkes'!$C$3:$N$34,9,FALSE) ->  | Z55: =VLOOKUP(C55,Abbey!$C$3:$L$48,7,FALSE) ->  | AA55: =VLOOKUP(C55,Chevin!$C$3:$L$50,7,FALSE) ->  | AC55: 0 | AD55: 0 | AE55: 0 | AF55: 0 | AG55: 0 | AH55: 0 | AI55: 0 | AJ55: 0 | AK55: 0 | AL55: 0 | AM55: 0 | AN55: 0 | AO55: 0 | AP55: 0 | AQ55: 0 | AR55: 0 | AS55: 0 | AT55: 0 | AU55: 0 | AV55: 0 | AW55: 0 | AX55: 0
C56: William Collinson | D56: 1984-06-03 | E56: 32 | F56: =IFERROR(VLOOKUP(C56,'Division Lookup'!$A$2:$D$251,4,FALSE),"Second") -> Second | G56: =VLOOKUP(C56,Dewsbury!$C$3:$L$46,7,FALSE) ->  | H56: =VLOOKUP($C56,Bradford!$C$3:$L$66,7,FALSE) ->  | I56: =VLOOKUP($C56,Keighley!$C$3:$N$42,9,FALSE) ->  | J56: =VLOOKUP($C56,'Bunny '!$C$3:$N$20,9,FALSE) ->  | K56: =VLOOKUP($C56,Liverpool!$C$3:$N$59,9,FALSE) ->  | L56: =VLOOKUP(C56,'VoY 10m'!$C$3:$N$40,9,FALSE) ->  | M56: =VLOOKUP(C56,Guisley!$C$3:$N$49,9,FALSE) ->  | N56: =VLOOKUP(C56,Odda!$C$3:$N$42,9,FALSE) ->  | O56: =VLOOKUP(C56,'Leeds half'!$C$4:$N$31,9,FALSE) ->  | P56: =VLOOKUP(C56,Ilkley!$C$3:$L$46,7,FALSE) ->  | Q56: =VLOOKUP(C56,Otley!$C$3:$L$46,9,FALSE) ->  | R56: =VLOOKUP(C56,Solstice!$C$3:$L$48,7,FALSE) ->  | S56: =VLOOKUP(C56,Eccup!$C$3:$L$46,9,FALSE) ->  | U56: =VLOOKUP(C56,Shakerr!$C$3:$L$46,7,FALSE) ->  | V56: =VLOOKUP(C56,VoY!$C$3:$L$46,9,FALSE) ->  | W56: =VLOOKUP(C56,Kirkstall!$C$3:$L$46,9,FALSE) ->  | X56: =VLOOKUP($C56,City!$C$3:$L$69,9,FALSE) ->  | Y56: =VLOOKUP(C56,'Guy Fawkes'!$C$3:$N$34,9,FALSE) ->  | Z56: =VLOOKUP(C56,Abbey!$C$3:$L$48,7,FALSE) ->  | AA56: =VLOOKUP(C56,Chevin!$C$3:$L$50,7,FALSE) ->  | AC56: 0 | AD56: 0 | AE56: 0 | AF56: 0 | AG56: 0 | AH56: 0 | AI56: 0 | AJ56: 0 | AK56: 0 | AL56: 0 | AM56: 0 | AN56: 0 | AO56: 0 | AP56: 0 | AQ56: 0 | AR56: 0 | AS56: 0 | AT56: 0 | AU56: 0 | AV56: 0 | AW56: 0 | AX56: 0
C57: Jenny Colwell | D57: 1968-10-20 | E57: 48 | F57: =IFERROR(VLOOKUP(C57,'Division Lookup'!$A$2:$D$251,4,FALSE),"Second") -> First | G57: =VLOOKUP(C57,Dewsbury!$C$3:$L$46,7,FALSE) ->  | H57: =VLOOKUP($C57,Bradford!$C$3:$L$66,7,FALSE) -> 0.533669141 | I57: =VLOOKUP($C57,Keighley!$C$3:$N$42,9,FALSE) ->  | J57: =VLOOKUP($C57,'Bunny '!$C$3:$N$20,9,FALSE) ->  | K57: =VLOOKUP($C57,Liverpool!$C$3:$N$59,9,FALSE) ->  | L57: =VLOOKUP(C57,'VoY 10m'!$C$3:$N$40,9,FALSE) ->  | M57: =VLOOKUP(C57,Guisley!$C$3:$N$49,9,FALSE) ->  | N57: =VLOOKUP(C57,Odda!$C$3:$N$42,9,FALSE) ->  | O57: =VLOOKUP(C57,'Leeds half'!$C$4:$N$31,9,FALSE) ->  | P57: =VLOOKUP(C57,Ilkley!$C$3:$L$46,7,FALSE) ->  | Q57: =VLOOKUP(C57,Otley!$C$3:$L$46,9,FALSE) ->  | R57: =VLOOKUP(C57,Solstice!$C$3:$L$48,7,FALSE) -> 0.4962917182 | S57: =VLOOKUP(C57,Eccup!$C$3:$L$46,9,FALSE) ->  | U57: =VLOOKUP(C57,Shakerr!$C$3:$L$46,7,FALSE) ->  | V57: =VLOOKUP(C57,VoY!$C$3:$L$46,9,FALSE) ->  | W57: =VLOOKUP(C57,Kirkstall!$C$3:$L$46,9,FALSE) ->  | X57: =VLOOKUP($C57,City!$C$3:$L$69,9,FALSE) ->  | Y57: =VLOOKUP(C57,'Guy Fawkes'!$C$3:$N$34,9,FALSE) ->  | Z57: =VLOOKUP(C57,Abbey!$C$3:$L$48,7,FALSE) ->  | AA57: =VLOOKUP(C57,Chevin!$C$3:$L$50,7,FALSE) ->  | AC57: 0 | AD57: 13 | AE57: 0 | AF57: 0 | AG57: 0 | AH57: 0 | AI57: 0 | AJ57: 0 | AK57: 0 | AL57: 0 | AM57: 0 | AN57: 5 | AO57: 0 | AP57: 0 | AQ57: 0 | AR57: 0 | AS57: 0 | AT57: 0 | AU57: 0 | AV57: 0 | AW57: 0 | AX57: 2
C58: John Colwell | D58: 1956-08-16 | E58: 60 | F58: =IFERROR(VLOOKUP(C58,'Division Lookup'!$A$2:$D$251,4,FALSE),"Second") -> First | G58: =VLOOKUP(C58,Dewsbury!$C$3:$L$46,7,FALSE) ->  | H58: =VLOOKUP($C58,Bradford!$C$3:$L$66,7,FALSE) ->  | I58: =VLOOKUP($C58,Keighley!$C$3:$N$42,9,FALSE) ->  | J58: =VLOOKUP($C58,'Bunny '!$C$3:$N$20,9,FALSE) ->  | K58: =VLOOKUP($C58,Liverpool!$C$3:$N$59,9,FALSE) ->  | L58: =VLOOKUP(C58,'VoY 10m'!$C$3:$N$40,9,FALSE) ->  | M58: =VLOOKUP(C58,Guisley!$C$3:$N$49,9,FALSE) ->  | N58: =VLOOKUP(C58,Odda!$C$3:$N$42,9,FALSE) ->  | O58: =VLOOKUP(C58,'Leeds half'!$C$4:$N$31,9,FALSE) ->  | P58: =VLOOKUP(C58,Ilkley!$C$3:$L$46,7,FALSE) ->  | Q58: =VLOOKUP(C58,Otley!$C$3:$L$46,9,FALSE) ->  | R58: =VLOOKUP(C58,Solstice!$C$3:$L$48,7,FALSE) -> 0.542633015 | S58: =VLOOKUP(C58,Eccup!$C$3:$L$46,9,FALSE) ->  | U58: =VLOOKUP(C58,Shakerr!$C$3:$L$46,7,FALSE) ->  | V58: =VLOOKUP(C58,VoY!$C$3:$L$46,9,FALSE) ->  | W58: =VLOOKUP(C58,Kirkstall!$C$3:$L$46,9,FALSE) ->  | X58: =VLOOKUP($C58,City!$C$3:$L$69,9,FALSE) ->  | Y58: =VLOOKUP(C58,'Guy Fawkes'!$C$3:$N$34,9,FALSE) ->  | Z58: =VLOOKUP(C58,Abbey!$C$3:$L$48,7,FALSE) ->  | AA58: =VLOOKUP(C58,Chevin!$C$3:$L$50,7,FALSE) ->  | AC58: 0 | AD58: 0 | AE58: 0 | AF58: 0 | AG58: 0 | AH58: 0 | AI58: 0 | AJ58: 0 | AK58: 0 | AL58: 0 | AM58: 0 | AN58: 4 | AO58: 0 | AP58: 0 | AQ58: 0 | AR58: 0 | AS58: 0 | AT58: 0 | AU58: 0 | AV58: 0 | AW58: 0 | AX58: 1
C59: Bernadette Cook | D59: 1968-09-22 | E59: 48 | F59: =IFERROR(VLOOKUP(C59,'Division Lookup'!$A$2:$D$251,4,FALSE),"Second") -> First | G59: =VLOOKUP(C59,Dewsbury!$C$3:$L$46,7,FALSE) ->  | H59: =VLOOKUP($C59,Bradford!$C$3:$L$66,7,FALSE) ->  | I59: =VLOOKUP($C59,Keighley!$C$3:$N$42,9,FALSE) ->  | J59: =VLOOKUP($C59,'Bunny '!$C$3:$N$20,9,FALSE) ->  | K59: =VLOOKUP($C59,Liverpool!$C$3:$N$59,9,FALSE) ->  | L59: =VLOOKUP(C59,'VoY 10m'!$C$3:$N$40,9,FALSE) ->  | M59: =VLOOKUP(C59,Guisley!$C$3:$N$49,9,FALSE) ->  | N59: =VLOOKUP(C59,Odda!$C$3:$N$42,9,FALSE) ->  | O59: =VLOOKUP(C59,'Leeds half'!$C$4:$N$31,9,FALSE) ->  | P59: =VLOOKUP(C59,Ilkley!$C$3:$L$46,7,FALSE) ->  | Q59: =VLOOKUP(C59,Otley!$C$3:$L$46,9,FALSE) ->  | R59: =VLOOKUP(C59,Solstice!$C$3:$L$48,7,FALSE) ->  | S59: =VLOOKUP(C59,Eccup!$C$3:$L$46,9,FALSE) ->  | U59: =VLOOKUP(C59,Shakerr!$C$3:$L$46,7,FALSE) ->  | V59: =VLOOKUP(C59,VoY!$C$3:$L$46,9,FALSE) ->  | W59: =VLOOKUP(C59,Kirkstall!$C$3:$L$46,9,FALSE) ->  | X59: =VLOOKUP($C59,City!$C$3:$L$69,9,FALSE) ->  | Y59: =VLOOKUP(C59,'Guy Fawkes'!$C$3:$N$34,9,FALSE) ->  | Z59: =VLOOKUP(C59,Abbey!$C$3:$L$48,7,FALSE) ->  | AA59: =VLOOKUP(C59,Chevin!$C$3:$L$50,7,FALSE) ->  | AC59: 0 | AD59: 0 | AE59: 0 | AF59: 0 | AG59: 0 | AH59: 0 | AI59: 0 | AJ59: 0 | AK59: 0 | AL59: 0 | AM59: 0 | AN59: 0 | AO59: 0 | AP59: 0 | AQ59: 0 | AR59: 0 | AS59: 0 | AT59: 0 | AU59: 0 | AV59: 0 | AW59: 0 | AX59: 0
C60: Graham Corbett | D60: 1979-09-13 | E60: 37 | F60: =IFERROR(VLOOKUP(C60,'Division Lookup'!$A$2:$D$251,4,FALSE),"Second") -> Premier | G60: =VLOOKUP(C60,Dewsbury!$C$3:$L$46,7,FALSE) -> 0.7930542341 | H60: =VLOOKUP($C60,Bradford!$C$3:$L$66,7,FALSE) ->  | I60: =VLOOKUP($C60,Keighley!$C$3:$N$42,9,FALSE) ->  | J60: =VLOOKUP($C60,'Bunny '!$C$3:$N$20,9,FALSE) ->  | K60: =VLOOKUP($C60,Liverpool!$C$3:$N$59,9,FALSE) ->  | L60: =VLOOKUP(C60,'VoY 10m'!$C$3:$N$40,9,FALSE) ->  | M60: =VLOOKUP(C60,Guisley!$C$3:$N$49,9,FALSE) ->  | N60: =VLOOKUP(C60,Odda!$C$3:$N$42,9,FALSE) ->  | O60: =VLOOKUP(C60,'Leeds half'!$C$4:$N$31,9,FALSE) ->  | P60: =VLOOKUP(C60,Ilkley!$C$3:$L$46,7,FALSE) ->  | Q60: =VLOOKUP(C60,Otley!$C$3:$L$46,9,FALSE) ->  | R60: =VLOOKUP(C60,Solstice!$C$3:$L$48,7,FALSE) ->  | S60: =VLOOKUP(C60,Eccup!$C$3:$L$46,9,FALSE) ->  | U60: =VLOOKUP(C60,Shakerr!$C$3:$L$46,7,FALSE) ->  | V60: =VLOOKUP(C60,VoY!$C$3:$L$46,9,FALSE) ->  | W60: =VLOOKUP(C60,Kirkstall!$C$3:$L$46,9,FALSE) ->  | X60: =VLOOKUP($C60,City!$C$3:$L$69,9,FALSE) ->  | Y60: =VLOOKUP(C60,'Guy Fawkes'!$C$3:$N$34,9,FALSE) ->  | Z60: =VLOOKUP(C60,Abbey!$C$3:$L$48,7,FALSE) ->  | AA60: =VLOOKUP(C60,Chevin!$C$3:$L$50,7,FALSE) ->  | AC60: 1 | AD60: 0 | AE60: 0 | AF60: 0 | AG60: 0 | AH60: 0 | AI60: 0 | AJ60: 0 | AK60: 0 | AL60: 0 | AM60: 0 | AN60: 0 | AO60: 0 | AP60: 0 | AQ60: 0 | AR60: 0 | AS60: 0 | AT60: 0 | AU60: 0 | AV60: 0 | AW60: 0 | AX60: 1
C61: julie Cowan-Clark | D61: 1964-05-08 | E61: 52 | F61: =IFERROR(VLOOKUP(C61,'Division Lookup'!$A$2:$D$251,4,FALSE),"Second") -> Second | G61: =VLOOKUP(C61,Dewsbury!$C$3:$L$46,7,FALSE) ->  | H61: =VLOOKUP($C61,Bradford!$C$3:$L$66,7,FALSE) ->  | I61: =VLOOKUP($C61,Keighley!$C$3:$N$42,9,FALSE) ->  | J61: =VLOOKUP($C61,'Bunny '!$C$3:$N$20,9,FALSE) ->  | K61: =VLOOKUP($C61,Liverpool!$C$3:$N$59,9,FALSE) ->  | L61: =VLOOKUP(C61,'VoY 10m'!$C$3:$N$40,9,FALSE) ->  | M61: =VLOOKUP(C61,Guisley!$C$3:$N$49,9,FALSE) ->  | N61: =VLOOKUP(C61,Odda!$C$3:$N$42,9,FALSE) ->  | O61: =VLOOKUP(C61,'Leeds half'!$C$4:$N$31,9,FALSE) ->  | P61: =VLOOKUP(C61,Ilkley!$C$3:$L$46,7,FALSE) ->  | Q61: =VLOOKUP(C61,Otley!$C$3:$L$46,9,FALSE) ->  | R61: =VLOOKUP(C61,Solstice!$C$3:$L$48,7,FALSE) ->  | S61: =VLOOKUP(C61,Eccup!$C$3:$L$46,9,FALSE) ->  | U61: =VLOOKUP(C61,Shakerr!$C$3:$L$46,7,FALSE) ->  | V61: =VLOOKUP(C61,VoY!$C$3:$L$46,9,FALSE) ->  | W61: =VLOOKUP(C61,Kirkstall!$C$3:$L$46,9,FALSE) ->  | X61: =VLOOKUP($C61,City!$C$3:$L$69,9,FALSE) ->  | Y61: =VLOOKUP(C61,'Guy Fawkes'!$C$3:$N$34,9,FALSE) ->  | Z61: =VLOOKUP(C61,Abbey!$C$3:$L$48,7,FALSE) ->  | AA61: =VLOOKUP(C61,Chevin!$C$3:$L$50,7,FALSE) ->  | AC61: 0 | AD61: 0 | AE61: 0 | AF61: 0 | AG61: 0 | AH61: 0 | AI61: 0 | AJ61: 0 | AK61: 0 | AL61: 0 | AM61: 0 | AN61: 0 | AO61: 0 | AP61: 0 | AQ61: 0 | AR61: 0 | AS61: 0 | AT61: 0 | AU61: 0 | AV61: 0 | AW61: 0 | AX61: 0
C62: Duane Craven | D62: 1972-04-22 | E62: 44 | F62: =IFERROR(VLOOKUP(C62,'Division Lookup'!$A$2:$D$251,4,FALSE),"Second") -> First | G62: =VLOOKUP(C62,Dewsbury!$C$3:$L$46,7,FALSE) ->  | H62: =VLOOKUP($C62,Bradford!$C$3:$L$66,7,FALSE) -> 0.673696319 | I62: =VLOOKUP($C62,Keighley!$C$3:$N$42,9,FALSE) ->  | J62: =VLOOKUP($C62,'Bunny '!$C$3:$N$20,9,FALSE) ->  | K62: =VLOOKUP($C62,Liverpool!$C$3:$N$59,9,FALSE) ->  | L62: =VLOOKUP(C62,'VoY 10m'!$C$3:$N$40,9,FALSE) ->  | M62: =VLOOKUP(C62,Guisley!$C$3:$N$49,9,FALSE) ->  | N62: =VLOOKUP(C62,Odda!$C$3:$N$42,9,FALSE) ->  | O62: =VLOOKUP(C62,'Leeds half'!$C$4:$N$31,9,FALSE) -> 0.6183465459 | P62: =VLOOKUP(C62,Ilkley!$C$3:$L$46,7,FALSE) ->  | Q62: =VLOOKUP(C62,Otley!$C$3:$L$46,9,FALSE) ->  | R62: =VLOOKUP(C62,Solstice!$C$3:$L$48,7,FALSE) ->  | S62: =VLOOKUP(C62,Eccup!$C$3:$L$46,9,FALSE) ->  | U62: =VLOOKUP(C62,Shakerr!$C$3:$L$46,7,FALSE) ->  | V62: =VLOOKUP(C62,VoY!$C$3:$L$46,9,FALSE) ->  | W62: =VLOOKUP(C62,Kirkstall!$C$3:$L$46,9,FALSE) ->  | X62: =VLOOKUP($C62,City!$C$3:$L$69,9,FALSE) ->  | Y62: =VLOOKUP(C62,'Guy Fawkes'!$C$3:$N$34,9,FALSE) ->  | Z62: =VLOOKUP(C62,Abbey!$C$3:$L$48,7,FALSE) ->  | AA62: =VLOOKUP(C62,Chevin!$C$3:$L$50,7,FALSE) ->  | AC62: 0 | AD62: 3 | AE62: 0 | AF62: 0 | AG62: 0 | AH62: 0 | AI62: 0 | AJ62: 0 | AK62: 1 | AL62: 0 | AM62: 0 | AN62: 0 | AO62: 0 | AP62: 0 | AQ62: 0 | AR62: 0 | AS62: 0 | AT62: 0 | AU62: 0 | AV62: 0 | AW62: 0 | AX62: 2
C63: Patricia Craven | D63: 1957-03-30 | E63: 59 | F63: =IFERROR(VLOOKUP(C63,'Division Lookup'!$A$2:$D$251,4,FALSE),"Second") -> Second | G63: =VLOOKUP(C63,Dewsbury!$C$3:$L$46,7,FALSE) ->  | H63: =VLOOKUP($C63,Bradford!$C$3:$L$66,7,FALSE) ->  | I63: =VLOOKUP($C63,Keighley!$C$3:$N$42,9,FALSE) ->  | J63: =VLOOKUP($C63,'Bunny '!$C$3:$N$20,9,FALSE) ->  | K63: =VLOOKUP($C63,Liverpool!$C$3:$N$59,9,FALSE) ->  | L63: =VLOOKUP(C63,'VoY 10m'!$C$3:$N$40,9,FALSE) ->  | M63: =VLOOKUP(C63,Guisley!$C$3:$N$49,9,FALSE) ->  | N63: =VLOOKUP(C63,Odda!$C$3:$N$42,9,FALSE) ->  | O63: =VLOOKUP(C63,'Leeds half'!$C$4:$N$31,9,FALSE) ->  | P63: =VLOOKUP(C63,Ilkley!$C$3:$L$46,7,FALSE) ->  | Q63: =VLOOKUP(C63,Otley!$C$3:$L$46,9,FALSE) ->  | R63: =VLOOKUP(C63,Solstice!$C$3:$L$48,7,FALSE) ->  | S63: =VLOOKUP(C63,Eccup!$C$3:$L$46,9,FALSE) ->  | U63: =VLOOKUP(C63,Shakerr!$C$3:$L$46,7,FALSE) ->  | V63: =VLOOKUP(C63,VoY!$C$3:$L$46,9,FALSE) ->  | W63: =VLOOKUP(C63,Kirkstall!$C$3:$L$46,9,FALSE) ->  | X63: =VLOOKUP($C63,City!$C$3:$L$69,9,FALSE) ->  | Y63: =VLOOKUP(C63,'Guy Fawkes'!$C$3:$N$34,9,FALSE) ->  | Z63: =VLOOKUP(C63,Abbey!$C$3:$L$48,7,FALSE) ->  | AA63: =VLOOKUP(C63,Chevin!$C$3:$L$50,7,FALSE) ->  | AC63: 0 | AD63: 0 | AE63: 0 | AF63: 0 | AG63: 0 | AH63: 0 | AI63: 0 | AJ63: 0 | AK63: 0 | AL63: 0 | AM63: 0 | AN63: 0 | AO63: 0 | AP63: 0 | AQ63: 0 | AR63: 0 | AS63: 0 | AT63: 0 | AU63: 0 | AV63: 0 | AW63: 0 | AX63: 0
C64: Paula Cutter | D64: 1978-01-02 | E64: 38 | F64: =IFERROR(VLOOKUP(C64,'Division Lookup'!$A$2:$D$251,4,FALSE),"Second") -> Second | G64: =VLOOKUP(C64,Dewsbury!$C$3:$L$46,7,FALSE) ->  | H64: =VLOOKUP($C64,Bradford!$C$3:$L$66,7,FALSE) ->  | I64: =VLOOKUP($C64,Keighley!$C$3:$N$42,9,FALSE) ->  | J64: =VLOOKUP($C64,'Bunny '!$C$3:$N$20,9,FALSE) ->  | K64: =VLOOKUP($C64,Liverpool!$C$3:$N$59,9,FALSE) ->  | L64: =VLOOKUP(C64,'VoY 10m'!$C$3:$N$40,9,FALSE) ->  | M64: =VLOOKUP(C64,Guisley!$C$3:$N$49,9,FALSE) ->  | N64: =VLOOKUP(C64,Odda!$C$3:$N$42,9,FALSE) ->  | O64: =VLOOKUP(C64,'Leeds half'!$C$4:$N$31,9,FALSE) ->  | P64: =VLOOKUP(C64,Ilkley!$C$3:$L$46,7,FALSE) ->  | Q64: =VLOOKUP(C64,Otley!$C$3:$L$46,9,FALSE) ->  | R64: =VLOOKUP(C64,Solstice!$C$3:$L$48,7,FALSE) ->  | S64: =VLOOKUP(C64,Eccup!$C$3:$L$46,9,FALSE) ->  | U64: =VLOOKUP(C64,Shakerr!$C$3:$L$46,7,FALSE) ->  | V64: =VLOOKUP(C64,VoY!$C$3:$L$46,9,FALSE) ->  | W64: =VLOOKUP(C64,Kirkstall!$C$3:$L$46,9,FALSE) ->  | X64: =VLOOKUP($C64,City!$C$3:$L$69,9,FALSE) ->  | Y64: =VLOOKUP(C64,'Guy Fawkes'!$C$3:$N$34,9,FALSE) ->  | Z64: =VLOOKUP(C64,Abbey!$C$3:$L$48,7,FALSE) ->  | AA64: =VLOOKUP(C64,Chevin!$C$3:$L$50,7,FALSE) ->  | AC64: 0 | AD64: 0 | AE64: 0 | AF64: 0 | AG64: 0 | AH64: 0 | AI64: 0 | AJ64: 0 | AK64: 0 | AL64: 0 | AM64: 0 | AN64: 0 | AO64: 0 | AP64: 0 | AQ64: 0 | AR64: 0 | AS64: 0 | AT64: 0 | AU64: 0 | AV64: 0 | AW64: 0 | AX64: 0
C65: Denise Davis | D65: 1968-04-26 | E65: 48 | F65: =IFERROR(VLOOKUP(C65,'Division Lookup'!$A$2:$D$251,4,FALSE),"Second") -> Premier | G65: =VLOOKUP(C65,Dewsbury!$C$3:$L$46,7,FALSE) -> 0.6142813549 | H65: =VLOOKUP($C65,Bradford!$C$3:$L$66,7,FALSE) ->  | I65: =VLOOKUP($C65,Keighley!$C$3:$N$42,9,FALSE) -> 0.5851744186 | J65: =VLOOKUP($C65,'Bunny '!$C$3:$N$20,9,FALSE) ->  | K65: =VLOOKUP($C65,Liverpool!$C$3:$N$59,9,FALSE) -> 0.573962165 | L65: =VLOOKUP(C65,'VoY 10m'!$C$3:$N$40,9,FALSE) ->  | M65: =VLOOKUP(C65,Guisley!$C$3:$N$49,9,FALSE) ->  | N65: =VLOOKUP(C65,Odda!$C$3:$N$42,9,FALSE) -> 0.4829654511 | O65: =VLOOKUP(C65,'Leeds half'!$C$4:$N$31,9,FALSE) ->  | P65: =VLOOKUP(C65,Ilkley!$C$3:$L$46,7,FALSE) ->  | Q65: =VLOOKUP(C65,Otley!$C$3:$L$46,9,FALSE) ->  | R65: =VLOOKUP(C65,Solstice!$C$3:$L$48,7,FALSE) -> 0.5231270358 | S65: =VLOOKUP(C65,Eccup!$C$3:$L$46,9,FALSE) ->  | U65: =VLOOKUP(C65,Shakerr!$C$3:$L$46,7,FALSE) ->  | V65: =VLOOKUP(C65,VoY!$C$3:$L$46,9,FALSE) ->  | W65: =VLOOKUP(C65,Kirkstall!$C$3:$L$46,9,FALSE) ->  | X65: =VLOOKUP($C65,City!$C$3:$L$69,9,FALSE) ->  | Y65: =VLOOKUP(C65,'Guy Fawkes'!$C$3:$N$34,9,FALSE) -> 0.505868345 | Z65: =VLOOKUP(C65,Abbey!$C$3:$L$48,7,FALSE) ->  | AA65: =VLOOKUP(C65,Chevin!$C$3:$L$50,7,FALSE) ->  | AC65: 13 | AD65: 0 | AE65: 8 | AF65: 0 | AG65: 17 | AH65: 0 | AI65: 0 | AJ65: 8 | AK65: 0 | AL65: 0 | AM65: 0 | AN65: 14 | AO65: 0 | AP65: 0 | AQ65: 0 | AR65: 0 | AS65: 0 | AT65: 0 | AU65: 15 | AV65: 0 | AW65: 0 | AX65: 6
C66: Mark Davis | D66: 1975-06-06 | E66: 41 | F66: =IFERROR(VLOOKUP(C66,'Division Lookup'!$A$2:$D$251,4,FALSE),"Second") -> Second | G66: =VLOOKUP(C66,Dewsbury!$C$3:$L$46,7,FALSE) ->  | H66: =VLOOKUP($C66,Bradford!$C$3:$L$66,7,FALSE) ->  | I66: =VLOOKUP($C66,Keighley!$C$3:$N$42,9,FALSE) ->  | J66: =VLOOKUP($C66,'Bunny '!$C$3:$N$20,9,FALSE) ->  | K66: =VLOOKUP($C66,Liverpool!$C$3:$N$59,9,FALSE) ->  | L66: =VLOOKUP(C66,'VoY 10m'!$C$3:$N$40,9,FALSE) ->  | M66: =VLOOKUP(C66,Guisley!$C$3:$N$49,9,FALSE) ->  | N66: =VLOOKUP(C66,Odda!$C$3:$N$42,9,FALSE) ->  | O66: =VLOOKUP(C66,'Leeds half'!$C$4:$N$31,9,FALSE) ->  | P66: =VLOOKUP(C66,Ilkley!$C$3:$L$46,7,FALSE) ->  | Q66: =VLOOKUP(C66,Otley!$C$3:$L$46,9,FALSE) ->  | R66: =VLOOKUP(C66,Solstice!$C$3:$L$48,7,FALSE) ->  | S66: =VLOOKUP(C66,Eccup!$C$3:$L$46,9,FALSE) ->  | U66: =VLOOKUP(C66,Shakerr!$C$3:$L$46,7,FALSE) ->  | V66: =VLOOKUP(C66,VoY!$C$3:$L$46,9,FALSE) ->  | W66: =VLOOKUP(C66,Kirkstall!$C$3:$L$46,9,FALSE) ->  | X66: =VLOOKUP($C66,City!$C$3:$L$69,9,FALSE) ->  | Y66: =VLOOKUP(C66,'Guy Fawkes'!$C$3:$N$34,9,FALSE) ->  | Z66: =VLOOKUP(C66,Abbey!$C$3:$L$48,7,FALSE) ->  | AA66: =VLOOKUP(C66,Chevin!$C$3:$L$50,7,FALSE) ->  | AC66: 0 | AD66: 0 | AE66: 0 | AF66: 0 | AG66: 0 | AH66: 0 | AI66: 0 | AJ66: 0 | AK66: 0 | AL66: 0 | AM66: 0 | AN66: 0 | AO66: 0 | AP66: 0 | AQ66: 0 | AR66: 0 | AS66: 0 | AT66: 0 | AU66: 0 | AV66: 0 | AW66: 0 | AX66: 0
C67: Liz Dearden | D67: 1968-10-16 | E67: 48 | F67: =IFERROR(VLOOKUP(C67,'Division Lookup'!$A$2:$D$251,4,FALSE),"Second") -> Second | G67: =VLOOKUP(C67,Dewsbury!$C$3:$L$46,7,FALSE) ->  | H67: =VLOOKUP($C67,Bradford!$C$3:$L$66,7,FALSE) -> 0.5386673803 | I67: =VLOOKUP($C67,Keighley!$C$3:$N$42,9,FALSE) ->  | J67: =VLOOKUP($C67,'Bunny '!$C$3:$N$20,9,FALSE) ->  | K67: =VLOOKUP($C67,Liverpool!$C$3:$N$59,9,FALSE) ->  | L67: =VLOOKUP(C67,'VoY 10m'!$C$3:$N$40,9,FALSE) ->  | M67: =VLOOKUP(C67,Guisley!$C$3:$N$49,9,FALSE) ->  | N67: =VLOOKUP(C67,Odda!$C$3:$N$42,9,FALSE) ->  | O67: =VLOOKUP(C67,'Leeds half'!$C$4:$N$31,9,FALSE) ->  | P67: =VLOOKUP(C67,Ilkley!$C$3:$L$46,7,FALSE) ->  | Q67: =VLOOKUP(C67,Otley!$C$3:$L$46,9,FALSE) ->  | R67: =VLOOKUP(C67,Solstice!$C$3:$L$48,7,FALSE) ->  | S67: =VLOOKUP(C67,Eccup!$C$3:$L$46,9,FALSE) ->  | U67: =VLOOKUP(C67,Shakerr!$C$3:$L$46,7,FALSE) ->  | V67: =VLOOKUP(C67,VoY!$C$3:$L$46,9,FALSE) ->  | W67: =VLOOKUP(C67,Kirkstall!$C$3:$L$46,9,FALSE) ->  | X67: =VLOOKUP($C67,City!$C$3:$L$69,9,FALSE) ->  | Y67: =VLOOKUP(C67,'Guy Fawkes'!$C$3:$N$34,9,FALSE) ->  | Z67: =VLOOKUP(C67,Abbey!$C$3:$L$48,7,FALSE) -> 0.5347901093 | AA67: =VLOOKUP(C67,Chevin!$C$3:$L$50,7,FALSE) ->  | AC67: =IF(ISNA(G67),0,1+COUNTIFS($F$3:$F$399,$F67,G$3:G$399,">"&G67)) -> 0 | AD67: =IF(ISNA(H67),0,1+COUNTIFS($F$3:$F$399,$F67,H$3:H$399,">"&H67)) -> 19 | AE67: =IF(ISNA(I67),0,1+COUNTIFS($F$3:$F$399,$F67,I$3:I$399,">"&I67)) -> 0 | AF67: =IF(ISNA(J67),0,1+COUNTIFS($F$3:$F$399,$F67,J$3:J$399,">"&J67)) -> 0 | AG67: =IF(ISNA(K67),0,1+COUNTIFS($F$3:$F$399,$F67,K$3:K$399,">"&K67)) -> 0 | AH67: =IF(ISNA(L67),0,1+COUNTIFS($F$3:$F$399,$F67,L$3:L$399,">"&L67)) -> 0 | AI67: =IF(ISNA(M67),0,1+COUNTIFS($F$3:$F$399,$F67,M$3:M$399,">"&M67)) -> 0 | AJ67: =IF(ISNA(N67),0,1+COUNTIFS($F$3:$F$399,$F67,N$3:N$399,">"&N67)) -> 0 | AK67: 0 | AL67: 0 | AM67: 0 | AN67: 0 | AO67: 0 | AP67: 0 | AQ67: 0 | AR67: 0 | AS67: 0 | AT67: 0 | AU67: 0 | AV67: 16 | AW67: 0 | AX67: 2
C68: Loris Dell'Amico | D68: 1974-07-11 | E68: =DATEDIF(D68,$E$1,"Y") -> 42 | F68: =IFERROR(VLOOKUP(C68,'Division Lookup'!$A$2:$D$251,4,FALSE),"Second") -> First | G68: =VLOOKUP(C68,Dewsbury!$C$3:$L$46,7,FALSE) ->  | H68: =VLOOKUP($C68,Bradford!$C$3:$L$66,7,FALSE) ->  | I68: =VLOOKUP($C68,Keighley!$C$3:$N$42,9,FALSE) ->  | J68: =VLOOKUP($C68,'Bunny '!$C$3:$N$20,9,FALSE) ->  | K68: =VLOOKUP($C68,Liverpool!$C$3:$N$59,9,FALSE) ->  | L68: =VLOOKUP(C68,'VoY 10m'!$C$3:$N$40,9,FALSE) ->  | M68: =VLOOKUP(C68,Guisley!$C$3:$N$49,9,FALSE) ->  | N68: =VLOOKUP(C68,Odda!$C$3:$N$42,9,FALSE) ->  | O68: =VLOOKUP(C68,'Leeds half'!$C$4:$N$31,9,FALSE) ->  | P68: =VLOOKUP(C68,Ilkley!$C$3:$L$46,7,FALSE) ->  | Q68: =VLOOKUP(C68,Otley!$C$3:$L$46,9,FALSE) ->  | R68: =VLOOKUP(C68,Solstice!$C$3:$L$48,7,FALSE) ->  | S68: =VLOOKUP(C68,Eccup!$C$3:$L$46,9,FALSE) ->  | U68: =VLOOKUP(C68,Shakerr!$C$3:$L$46,7,FALSE) -> 0.4232933692 | V68: =VLOOKUP(C68,VoY!$C$3:$L$46,9,FALSE) ->  | W68: =VLOOKUP(C68,Kirkstall!$C$3:$L$46,9,FALSE) ->  | X68: =VLOOKUP($C68,City!$C$3:$L$69,9,FALSE) ->  | Y68: =VLOOKUP(C68,'Guy Fawkes'!$C$3:$N$34,9,FALSE) -> 0.6028504573 | Z68: =VLOOKUP(C68,Abbey!$C$3:$L$48,7,FALSE) ->  | AA68: =VLOOKUP(C68,Chevin!$C$3:$L$50,7,FALSE) ->  | AC68: 0 | AD68: 0 | AE68: 0 | AF68: 0 | AG68: 0 | AH68: 0 | AI68: 0 | AJ68: 0 | AK68: =IF(ISNA(O68),0,1+COUNTIFS($F$3:$F$399,$F68,O$3:O$399,">"&O68)) -> 0 | AL68: =IF(ISNA(P68),0,1+COUNTIFS($F$3:$F$399,$F68,P$3:P$399,">"&P68)) -> 0 | AM68: =IF(ISNA(Q68),0,1+COUNTIFS($F$3:$F$399,$F68,Q$3:Q$399,">"&Q68)) -> 0 | AN68: =IF(ISNA(R68),0,1+COUNTIFS($F$3:$F$399,$F68,R$3:R$399,">"&R68)) -> 0 | AO68: =IF(ISNA(S68),0,1+COUNTIFS($F$3:$F$399,$F68,S$3:S$399,">"&S68)) -> 0 | AP68: 0 | AQ68: =IF(ISNA(U68),0,1+COUNTIFS($F$3:$F$399,$F68,U$3:U$399,">"&U68)) -> 6 | AR68: =IF(ISNA(V68),0,1+COUNTIFS($F$3:$F$399,$F68,V$3:V$399,">"&V68)) -> 0 | AS68: =IF(ISNA(W68),0,1+COUNTIFS($F$3:$F$399,$F68,W$3:W$399,">"&W68)) -> 0 | AT68: =IF(ISNA(X68),0,1+COUNTIFS($F$3:$F$399,$F68,X$3:X$399,">"&X68)) -> 0 | AU68: =IF(ISNA(Y68),0,1+COUNTIFS($F$3:$F$399,$F68,Y$3:Y$399,">"&Y68)) -> 1 | AV68: =IF(ISNA(Z68),0,1+COUNTIFS($F$3:$F$399,$F68,Z$3:Z$399,">"&Z68)) -> 0 | AW68: =IF(ISNA(AA68),0,1+COUNTIFS($F$3:$F$399,$F68,AA$3:AA$399,">"&AA68)) -> 0 | AX68: =COUNTIF(AC68:AW68,">0") -> 2
C69: Louise Dell'Amico | D69: 1975-04-30 | E69: 41 | F69: =IFERROR(VLOOKUP(C69,'Division Lookup'!$A$2:$D$251,4,FALSE),"Second") -> Premier | G69: =VLOOKUP(C69,Dewsbury!$C$3:$L$46,7,FALSE) ->  | H69: =VLOOKUP($C69,Bradford!$C$3:$L$66,7,FALSE) ->  | I69: =VLOOKUP($C69,Keighley!$C$3:$N$42,9,FALSE) -> 0.5099730458 | J69: =VLOOKUP($C69,'Bunny '!$C$3:$N$20,9,FALSE) ->  | K69: =VLOOKUP($C69,Liverpool!$C$3:$N$59,9,FALSE) -> 0.5146616541 | L69: =VLOOKUP(C69,'VoY 10m'!$C$3:$N$40,9,FALSE) ->  | M69: =VLOOKUP(C69,Guisley!$C$3:$N$49,9,FALSE) ->  | N69: =VLOOKUP(C69,Odda!$C$3:$N$42,9,FALSE) ->  | O69: =VLOOKUP(C69,'Leeds half'!$C$4:$N$31,9,FALSE) -> 0.4978785307 | P69: =VLOOKUP(C69,Ilkley!$C$3:$L$46,7,FALSE) ->  | Q69: =VLOOKUP(C69,Otley!$C$3:$L$46,9,FALSE) ->  | R69: =VLOOKUP(C69,Solstice!$C$3:$L$48,7,FALSE) ->  | S69: =VLOOKUP(C69,Eccup!$C$3:$L$46,9,FALSE) ->  | U69: =VLOOKUP(C69,Shakerr!$C$3:$L$46,7,FALSE) -> 0.2618685121 | V69: =VLOOKUP(C69,VoY!$C$3:$L$46,9,FALSE) ->  | W69: =VLOOKUP(C69,Kirkstall!$C$3:$L$46,9,FALSE) ->  | X69: =VLOOKUP($C69,City!$C$3:$L$69,9,FALSE) ->  | Y69: =VLOOKUP(C69,'Guy Fawkes'!$C$3:$N$34,9,FALSE) ->  | Z69: =VLOOKUP(C69,Abbey!$C$3:$L$48,7,FALSE) ->  | AA69: =VLOOKUP(C69,Chevin!$C$3:$L$50,7,FALSE) ->  | AC69: 0 | AD69: 0 | AE69: 11 | AF69: 0 | AG69: 18 | AH69: 0 | AI69: 0 | AJ69: 0 | AK69: 6 | AL69: 0 | AM69: 0 | AN69: 0 | AO69: 0 | AP69: 0 | AQ69: 14 | AR69: 0 | AS69: 0 | AT69: 0 | AU69: 0 | AV69: 0 | AW69: 0 | AX69: 4
C70: Zanna Dennis | D70: 1989-08-21 | E70: 27 | F70: =IFERROR(VLOOKUP(C70,'Division Lookup'!$A$2:$D$251,4,FALSE),"Second") -> Second | G70: =VLOOKUP(C70,Dewsbury!$C$3:$L$46,7,FALSE) ->  | H70: =VLOOKUP($C70,Bradford!$C$3:$L$66,7,FALSE) ->  | I70: =VLOOKUP($C70,Keighley!$C$3:$N$42,9,FALSE) ->  | J70: =VLOOKUP($C70,'Bunny '!$C$3:$N$20,9,FALSE) ->  | K70: =VLOOKUP($C70,Liverpool!$C$3:$N$59,9,FALSE) ->  | L70: =VLOOKUP(C70,'VoY 10m'!$C$3:$N$40,9,FALSE) ->  | M70: =VLOOKUP(C70,Guisley!$C$3:$N$49,9,FALSE) ->  | N70: =VLOOKUP(C70,Odda!$C$3:$N$42,9,FALSE) ->  | O70: =VLOOKUP(C70,'Leeds half'!$C$4:$N$31,9,FALSE) ->  | P70: =VLOOKUP(C70,Ilkley!$C$3:$L$46,7,FALSE) ->  | Q70: =VLOOKUP(C70,Otley!$C$3:$L$46,9,FALSE) ->  | R70: =VLOOKUP(C70,Solstice!$C$3:$L$48,7,FALSE) ->  | S70: =VLOOKUP(C70,Eccup!$C$3:$L$46,9,FALSE) ->  | U70: =VLOOKUP(C70,Shakerr!$C$3:$L$46,7,FALSE) ->  | V70: =VLOOKUP(C70,VoY!$C$3:$L$46,9,FALSE) ->  | W70: =VLOOKUP(C70,Kirkstall!$C$3:$L$46,9,FALSE) ->  | X70: =VLOOKUP($C70,City!$C$3:$L$69,9,FALSE) ->  | Y70: =VLOOKUP(C70,'Guy Fawkes'!$C$3:$N$34,9,FALSE) ->  | Z70: =VLOOKUP(C70,Abbey!$C$3:$L$48,7,FALSE) ->  | AA70: =VLOOKUP(C70,Chevin!$C$3:$L$50,7,FALSE) ->  | AC70: 0 | AD70: 0 | AE70: 0 | AF70: 0 | AG70: 0 | AH70: 0 | AI70: 0 | AJ70: 0 | AK70: 0 | AL70: 0 | AM70: 0 | AN70: 0 | AO70: 0 | AP70: 0 | AQ70: 0 | AR70: 0 | AS70: 0 | AT70: 0 | AU70: 0 | AV70: 0 | AW70: 0 | AX70: 0
C71: Ian Dickinson | D71: 1970-07-13 | E71: 46 | F71: =IFERROR(VLOOKUP(C71,'Division Lookup'!$A$2:$D$251,4,FALSE),"Second") -> First | G71: =VLOOKUP(C71,Dewsbury!$C$3:$L$46,7,FALSE) ->  | H71: =VLOOKUP($C71,Bradford!$C$3:$L$66,7,FALSE) -> 0.4937724882 | I71: =VLOOKUP($C71,Keighley!$C$3:$N$42,9,FALSE) ->  | J71: =VLOOKUP($C71,'Bunny '!$C$3:$N$20,9,FALSE) ->  | K71: =VLOOKUP($C71,Liverpool!$C$3:$N$59,9,FALSE) ->  | L71: =VLOOKUP(C71,'VoY 10m'!$C$3:$N$40,9,FALSE) ->  | M71: =VLOOKUP(C71,Guisley!$C$3:$N$49,9,FALSE) ->  | N71: =VLOOKUP(C71,Odda!$C$3:$N$42,9,FALSE) ->  | O71: =VLOOKUP(C71,'Leeds half'!$C$4:$N$31,9,FALSE) ->  | P71: =VLOOKUP(C71,Ilkley!$C$3:$L$46,7,FALSE) ->  | Q71: =VLOOKUP(C71,Otley!$C$3:$L$46,9,FALSE) ->  | R71: =VLOOKUP(C71,Solstice!$C$3:$L$48,7,FALSE) ->  | S71: =VLOOKUP(C71,Eccup!$C$3:$L$46,9,FALSE) ->  | U71: =VLOOKUP(C71,Shakerr!$C$3:$L$46,7,FALSE) ->  | V71: =VLOOKUP(C71,VoY!$C$3:$L$46,9,FALSE) ->  | W71: =VLOOKUP(C71,Kirkstall!$C$3:$L$46,9,FALSE) ->  | X71: =VLOOKUP($C71,City!$C$3:$L$69,9,FALSE) -> 0.5247058824 | Y71: =VLOOKUP(C71,'Guy Fawkes'!$C$3:$N$34,9,FALSE) ->  | Z71: =VLOOKUP(C71,Abbey!$C$3:$L$48,7,FALSE) ->  | AA71: =VLOOKUP(C71,Chevin!$C$3:$L$50,7,FALSE) ->  | AC71: 0 | AD71: 14 | AE71: 0 | AF71: 0 | AG71: 0 | AH71: 0 | AI71: 0 | AJ71: 0 | AK71: 0 | AL71: 0 | AM71: 0 | AN71: 0 | AO71: 0 | AP71: 0 | AQ71: 0 | AR71: 0 | AS71: 0 | AT71: 5 | AU71: 0 | AV71: 0 | AW71: 0 | AX71: 2
C72: Paul Disney | D72: 1968-04-22 | E72: 48 | F72: =IFERROR(VLOOKUP(C72,'Division Lookup'!$A$2:$D$251,4,FALSE),"Second") -> Premier | G72: =VLOOKUP(C72,Dewsbury!$C$3:$L$46,7,FALSE) ->  | H72: =VLOOKUP($C72,Bradford!$C$3:$L$66,7,FALSE) ->  | I72: =VLOOKUP($C72,Keighley!$C$3:$N$42,9,FALSE) ->  | J72: =VLOOKUP($C72,'Bunny '!$C$3:$N$20,9,FALSE) ->  | K72: =VLOOKUP($C72,Liverpool!$C$3:$N$59,9,FALSE) ->  | L72: =VLOOKUP(C72,'VoY 10m'!$C$3:$N$40,9,FALSE) ->  | M72: =VLOOKUP(C72,Guisley!$C$3:$N$49,9,FALSE) ->  | N72: =VLOOKUP(C72,Odda!$C$3:$N$42,9,FALSE) ->  | O72: =VLOOKUP(C72,'Leeds half'!$C$4:$N$31,9,FALSE) ->  | P72: =VLOOKUP(C72,Ilkley!$C$3:$L$46,7,FALSE) ->  | Q72: =VLOOKUP(C72,Otley!$C$3:$L$46,9,FALSE) ->  | R72: =VLOOKUP(C72,Solstice!$C$3:$L$48,7,FALSE) ->  | S72: =VLOOKUP(C72,Eccup!$C$3:$L$46,9,FALSE) ->  | U72: =VLOOKUP(C72,Shakerr!$C$3:$L$46,7,FALSE) ->  | V72: =VLOOKUP(C72,VoY!$C$3:$L$46,9,FALSE) ->  | W72: =VLOOKUP(C72,Kirkstall!$C$3:$L$46,9,FALSE) ->  | X72: =VLOOKUP($C72,City!$C$3:$L$69,9,FALSE) ->  | Y72: =VLOOKUP(C72,'Guy Fawkes'!$C$3:$N$34,9,FALSE) ->  | Z72: =VLOOKUP(C72,Abbey!$C$3:$L$48,7,FALSE) ->  | AA72: =VLOOKUP(C72,Chevin!$C$3:$L$50,7,FALSE) ->  | AC72: 0 | AD72: 0 | AE72: 0 | AF72: 0 | AG72: 0 | AH72: 0 | AI72: 0 | AJ72: 0 | AK72: 0 | AL72: 0 | AM72: 0 | AN72: 0 | AO72: 0 | AP72: 0 | AQ72: 0 | AR72: 0 | AS72: 0 | AT72: 0 | AU72: 0 | AV72: 0 | AW72: 0 | AX72: 0
C73: Robert Burrell Donkin | D73: 1972-10-21 | E73: 44 | F73: =IFERROR(VLOOKUP(C73,'Division Lookup'!$A$2:$D$251,4,FALSE),"Second") -> Second | G73: =VLOOKUP(C73,Dewsbury!$C$3:$L$46,7,FALSE) ->  | H73: =VLOOKUP($C73,Bradford!$C$3:$L$66,7,FALSE) ->  | I73: =VLOOKUP($C73,Keighley!$C$3:$N$42,9,FALSE) ->  | J73: =VLOOKUP($C73,'Bunny '!$C$3:$N$20,9,FALSE) ->  | K73: =VLOOKUP($C73,Liverpool!$C$3:$N$59,9,FALSE) ->  | L73: =VLOOKUP(C73,'VoY 10m'!$C$3:$N$40,9,FALSE) ->  | M73: =VLOOKUP(C73,Guisley!$C$3:$N$49,9,FALSE) ->  | N73: =VLOOKUP(C73,Odda!$C$3:$N$42,9,FALSE) -> 0.5998634346 | O73: =VLOOKUP(C73,'Leeds half'!$C$4:$N$31,9,FALSE) ->  | P73: =VLOOKUP(C73,Ilkley!$C$3:$L$46,7,FALSE) ->  | Q73: =VLOOKUP(C73,Otley!$C$3:$L$46,9,FALSE) ->  | R73: =VLOOKUP(C73,Solstice!$C$3:$L$48,7,FALSE) ->  | S73: =VLOOKUP(C73,Eccup!$C$3:$L$46,9,FALSE) ->  | U73: =VLOOKUP(C73,Shakerr!$C$3:$L$46,7,FALSE) ->  | V73: =VLOOKUP(C73,VoY!$C$3:$L$46,9,FALSE) ->  | W73: =VLOOKUP(C73,Kirkstall!$C$3:$L$46,9,FALSE) ->  | X73: =VLOOKUP($C73,City!$C$3:$L$69,9,FALSE) ->  | Y73: =VLOOKUP(C73,'Guy Fawkes'!$C$3:$N$34,9,FALSE) ->  | Z73: =VLOOKUP(C73,Abbey!$C$3:$L$48,7,FALSE) ->  | AA73: =VLOOKUP(C73,Chevin!$C$3:$L$50,7,FALSE) ->  | AC73: 0 | AD73: 0 | AE73: 0 | AF73: 0 | AG73: 0 | AH73: 0 | AI73: 0 | AJ73: 1 | AK73: 0 | AL73: 0 | AM73: 0 | AN73: 0 | AO73: 0 | AP73: 0 | AQ73: 0 | AR73: 0 | AS73: 0 | AT73: 0 | AU73: 0 | AV73: 0 | AW73: 0 | AX73: 1
C74: Alan Douglas | D74: 1969-06-22 | E74: 47 | F74: =IFERROR(VLOOKUP(C74,'Division Lookup'!$A$2:$D$251,4,FALSE),"Second") -> Premier | G74: =VLOOKUP(C74,Dewsbury!$C$3:$L$46,7,FALSE) ->  | H74: =VLOOKUP($C74,Bradford!$C$3:$L$66,7,FALSE) -> 0.6686500558 | I74: =VLOOKUP($C74,Keighley!$C$3:$N$42,9,FALSE) ->  | J74: =VLOOKUP($C74,'Bunny '!$C$3:$N$20,9,FALSE) ->  | K74: =VLOOKUP($C74,Liverpool!$C$3:$N$59,9,FALSE) ->  | L74: =VLOOKUP(C74,'VoY 10m'!$C$3:$N$40,9,FALSE) ->  | M74: =VLOOKUP(C74,Guisley!$C$3:$N$49,9,FALSE) -> 0.576836702 | N74: =VLOOKUP(C74,Odda!$C$3:$N$42,9,FALSE) ->  | O74: =VLOOKUP(C74,'Leeds half'!$C$4:$N$31,9,FALSE) ->  | P74: =VLOOKUP(C74,Ilkley!$C$3:$L$46,7,FALSE) -> 0.5086280057 | Q74: =VLOOKUP(C74,Otley!$C$3:$L$46,9,FALSE) -> 0.6175423906 | R74: =VLOOKUP(C74,Solstice!$C$3:$L$48,7,FALSE) -> 0.5797160243 | S74: =VLOOKUP(C74,Eccup!$C$3:$L$46,9,FALSE) -> 0.6134331462 | U74: =VLOOKUP(C74,Shakerr!$C$3:$L$46,7,FALSE) -> 0.4744063325 | V74: =VLOOKUP(C74,VoY!$C$3:$L$46,9,FALSE) -> 0.6510970745 | W74: =VLOOKUP(C74,Kirkstall!$C$3:$L$46,9,FALSE) -> 0.6542168675 | X74: =VLOOKUP($C74,City!$C$3:$L$69,9,FALSE) -> 0.6223387353 | Y74: =VLOOKUP(C74,'Guy Fawkes'!$C$3:$N$34,9,FALSE) -> 0.6095041322 | Z74: =VLOOKUP(C74,Abbey!$C$3:$L$48,7,FALSE) ->  | AA74: =VLOOKUP(C74,Chevin!$C$3:$L$50,7,FALSE) -> 0.6046770601 | AC74: 0 | AD74: 7 | AE74: 0 | AF74: 0 | AG74: 0 | AH74: 0 | AI74: 5 | AJ74: 0 | AK74: 0 | AL74: 5 | AM74: 8 | AN74: 8 | AO74: 3 | AP74: 0 | AQ74: 7 | AR74: 4 | AS74: 4 | AT74: 12 | AU74: 8 | AV74: 0 | AW74: 4 | AX74: 12
C75: Stuart Dunbar | D75: 1962-05-30 | E75: 54 | F75: =IFERROR(VLOOKUP(C75,'Division Lookup'!$A$2:$D$251,4,FALSE),"Second") -> Premier | G75: =VLOOKUP(C75,Dewsbury!$C$3:$L$46,7,FALSE) ->  | H75: =VLOOKUP($C75,Bradford!$C$3:$L$66,7,FALSE) -> 0.8335523434 | I75: =VLOOKUP($C75,Keighley!$C$3:$N$42,9,FALSE) ->  | J75: =VLOOKUP($C75,'Bunny '!$C$3:$N$20,9,FALSE) -> 0.7674223342 | K75: =VLOOKUP($C75,Liverpool!$C$3:$N$59,9,FALSE) ->  | L75: =VLOOKUP(C75,'VoY 10m'!$C$3:$N$40,9,FALSE) ->  | M75: =VLOOKUP(C75,Guisley!$C$3:$N$49,9,FALSE) -> 0.7682680662 | N75: =VLOOKUP(C75,Odda!$C$3:$N$42,9,FALSE) ->  | O75: =VLOOKUP(C75,'Leeds half'!$C$4:$N$31,9,FALSE) ->  | P75: =VLOOKUP(C75,Ilkley!$C$3:$L$46,7,FALSE) -> 0.6626044568 | Q75: =VLOOKUP(C75,Otley!$C$3:$L$46,9,FALSE) -> 0.8023076923 | R75: =VLOOKUP(C75,Solstice!$C$3:$L$48,7,FALSE) -> 0.7488855869 | S75: =VLOOKUP(C75,Eccup!$C$3:$L$46,9,FALSE) ->  | U75: =VLOOKUP(C75,Shakerr!$C$3:$L$46,7,FALSE) ->  | V75: =VLOOKUP(C75,VoY!$C$3:$L$46,9,FALSE) -> 0.8515561016 | W75: =VLOOKUP(C75,Kirkstall!$C$3:$L$46,9,FALSE) ->  | X75: =VLOOKUP($C75,City!$C$3:$L$69,9,FALSE) -> 0.8284860558 | Y75: =VLOOKUP(C75,'Guy Fawkes'!$C$3:$N$34,9,FALSE) -> 0.8120944718 | Z75: =VLOOKUP(C75,Abbey!$C$3:$L$48,7,FALSE) ->  | AA75: =VLOOKUP(C75,Chevin!$C$3:$L$50,7,FALSE) ->  | AC75: 0 | AD75: 1 | AE75: 0 | AF75: 2 | AG75: 0 | AH75: 0 | AI75: 1 | AJ75: 0 | AK75: 0 | AL75: 1 | AM75: 1 | AN75: 1 | AO75: 0 | AP75: 0 | AQ75: 0 | AR75: 1 | AS75: 0 | AT75: 1 | AU75: 1 | AV75: 0 | AW75: 0 | AX75: 9
C76: Lee East | D76: 1977-01-25 | E76: 39 | F76: =IFERROR(VLOOKUP(C76,'Division Lookup'!$A$2:$D$251,4,FALSE),"Second") -> Second | G76: =VLOOKUP(C76,Dewsbury!$C$3:$L$46,7,FALSE) ->  | H76: =VLOOKUP($C76,Bradford!$C$3:$L$66,7,FALSE) ->  | I76: =VLOOKUP($C76,Keighley!$C$3:$N$42,9,FALSE) ->  | J76: =VLOOKUP($C76,'Bunny '!$C$3:$N$20,9,FALSE) ->  | K76: =VLOOKUP($C76,Liverpool!$C$3:$N$59,9,FALSE) ->  | L76: =VLOOKUP(C76,'VoY 10m'!$C$3:$N$40,9,FALSE) ->  | M76: =VLOOKUP(C76,Guisley!$C$3:$N$49,9,FALSE) ->  | N76: =VLOOKUP(C76,Odda!$C$3:$N$42,9,FALSE) ->  | O76: =VLOOKUP(C76,'Leeds half'!$C$4:$N$31,9,FALSE) ->  | P76: =VLOOKUP(C76,Ilkley!$C$3:$L$46,7,FALSE) ->  | Q76: =VLOOKUP(C76,Otley!$C$3:$L$46,9,FALSE) ->  | R76: =VLOOKUP(C76,Solstice!$C$3:$L$48,7,FALSE) ->  | S76: =VLOOKUP(C76,Eccup!$C$3:$L$46,9,FALSE) ->  | U76: =VLOOKUP(C76,Shakerr!$C$3:$L$46,7,FALSE) ->  | V76: =VLOOKUP(C76,VoY!$C$3:$L$46,9,FALSE) ->  | W76: =VLOOKUP(C76,Kirkstall!$C$3:$L$46,9,FALSE) ->  | X76: =VLOOKUP($C76,City!$C$3:$L$69,9,FALSE) ->  | Y76: =VLOOKUP(C76,'Guy Fawkes'!$C$3:$N$34,9,FALSE) ->  | Z76: =VLOOKUP(C76,Abbey!$C$3:$L$48,7,FALSE) ->  | AA76: =VLOOKUP(C76,Chevin!$C$3:$L$50,7,FALSE) ->  | AC76: 0 | AD76: 0 | AE76: 0 | AF76: 0 | AG76: 0 | AH76: 0 | AI76: 0 | AJ76: 0 | AK76: 0 | AL76: 0 | AM76: 0 | AN76: 0 | AO76: 0 | AP76: 0 | AQ76: 0 | AR76: 0 | AS76: 0 | AT76: 0 | AU76: 0 | AV76: 0 | AW76: 0 | AX76: 0
C77: Craig Elliott | D77: 1973-11-03 | E77: 43 | F77: =IFERROR(VLOOKUP(C77,'Division Lookup'!$A$2:$D$251,4,FALSE),"Second") -> Second | G77: =VLOOKUP(C77,Dewsbury!$C$3:$L$46,7,FALSE) ->  | H77: =VLOOKUP($C77,Bradford!$C$3:$L$66,7,FALSE) -> 0.5868102288 | I77: =VLOOKUP($C77,Keighley!$C$3:$N$42,9,FALSE) ->  | J77: =VLOOKUP($C77,'Bunny '!$C$3:$N$20,9,FALSE) ->  | K77: =VLOOKUP($C77,Liverpool!$C$3:$N$59,9,FALSE) ->  | L77: =VLOOKUP(C77,'VoY 10m'!$C$3:$N$40,9,FALSE) ->  | M77: =VLOOKUP(C77,Guisley!$C$3:$N$49,9,FALSE) ->  | N77: =VLOOKUP(C77,Odda!$C$3:$N$42,9,FALSE) ->  | O77: =VLOOKUP(C77,'Leeds half'!$C$4:$N$31,9,FALSE) -> 0.5788670026 | P77: =VLOOKUP(C77,Ilkley!$C$3:$L$46,7,FALSE) ->  | Q77: =VLOOKUP(C77,Otley!$C$3:$L$46,9,FALSE) -> 0.5736947791 | R77: =VLOOKUP(C77,Solstice!$C$3:$L$48,7,FALSE) ->  | S77: =VLOOKUP(C77,Eccup!$C$3:$L$46,9,FALSE) ->  | U77: =VLOOKUP(C77,Shakerr!$C$3:$L$46,7,FALSE) -> 0.4515794925 | V77: =VLOOKUP(C77,VoY!$C$3:$L$46,9,FALSE) ->  | W77: =VLOOKUP(C77,Kirkstall!$C$3:$L$46,9,FALSE) ->  | X77: =VLOOKUP($C77,City!$C$3:$L$69,9,FALSE) ->  | Y77: =VLOOKUP(C77,'Guy Fawkes'!$C$3:$N$34,9,FALSE) ->  | Z77: =VLOOKUP(C77,Abbey!$C$3:$L$48,7,FALSE) ->  | AA77: =VLOOKUP(C77,Chevin!$C$3:$L$50,7,FALSE) -> 0.5175805262 | AC77: 0 | AD77: 9 | AE77: 0 | AF77: 0 | AG77: 0 | AH77: 0 | AI77: 0 | AJ77: 0 | AK77: 5 | AL77: 0 | AM77: 2 | AN77: 0 | AO77: 0 | AP77: 0 | AQ77: 6 | AR77: 0 | AS77: 0 | AT77: 0 | AU77: 0 | AV77: 0 | AW77: 5 | AX77: 5
C78: Hannah Elliott | D78: 1988-03-19 | E78: 28 | F78: =IFERROR(VLOOKUP(C78,'Division Lookup'!$A$2:$D$251,4,FALSE),"Second") -> Second | G78: =VLOOKUP(C78,Dewsbury!$C$3:$L$46,7,FALSE) ->  | H78: =VLOOKUP($C78,Bradford!$C$3:$L$66,7,FALSE) ->  | I78: =VLOOKUP($C78,Keighley!$C$3:$N$42,9,FALSE) ->  | J78: =VLOOKUP($C78,'Bunny '!$C$3:$N$20,9,FALSE) ->  | K78: =VLOOKUP($C78,Liverpool!$C$3:$N$59,9,FALSE) -> 0.6441617743 | L78: =VLOOKUP(C78,'VoY 10m'!$C$3:$N$40,9,FALSE) -> 0.5227990179 | M78: =VLOOKUP(C78,Guisley!$C$3:$N$49,9,FALSE) ->  | N78: =VLOOKUP(C78,Odda!$C$3:$N$42,9,FALSE) ->  | O78: =VLOOKUP(C78,'Leeds half'!$C$4:$N$31,9,FALSE) ->  | P78: =VLOOKUP(C78,Ilkley!$C$3:$L$46,7,FALSE) ->  | Q78: =VLOOKUP(C78,Otley!$C$3:$L$46,9,FALSE) ->  | R78: =VLOOKUP(C78,Solstice!$C$3:$L$48,7,FALSE) ->  | S78: =VLOOKUP(C78,Eccup!$C$3:$L$46,9,FALSE) ->  | U78: =VLOOKUP(C78,Shakerr!$C$3:$L$46,7,FALSE) ->  | V78: =VLOOKUP(C78,VoY!$C$3:$L$46,9,FALSE) ->  | W78: =VLOOKUP(C78,Kirkstall!$C$3:$L$46,9,FALSE) ->  | X78: =VLOOKUP($C78,City!$C$3:$L$69,9,FALSE) ->  | Y78: =VLOOKUP(C78,'Guy Fawkes'!$C$3:$N$34,9,FALSE) ->  | Z78: =VLOOKUP(C78,Abbey!$C$3:$L$48,7,FALSE) ->  | AA78: =VLOOKUP(C78,Chevin!$C$3:$L$50,7,FALSE) ->  | AC78: 0 | AD78: 0 | AE78: 0 | AF78: 0 | AG78: 2 | AH78: 2 | AI78: 0 | AJ78: 0 | AK78: 0 | AL78: 0 | AM78: 0 | AN78: 0 | AO78: 0 | AP78: 0 | AQ78: 0 | AR78: 0 | AS78: 0 | AT78: 0 | AU78: 0 | AV78: 0 | AW78: 0 | AX78: 2
C79: Natalie Ellis | D79: 1986-04-29 | E79: 30 | F79: =IFERROR(VLOOKUP(C79,'Division Lookup'!$A$2:$D$251,4,FALSE),"Second") -> Second | G79: =VLOOKUP(C79,Dewsbury!$C$3:$L$46,7,FALSE) ->  | H79: =VLOOKUP($C79,Bradford!$C$3:$L$66,7,FALSE) ->  | I79: =VLOOKUP($C79,Keighley!$C$3:$N$42,9,FALSE) ->  | J79: =VLOOKUP($C79,'Bunny '!$C$3:$N$20,9,FALSE) ->  | K79: =VLOOKUP($C79,Liverpool!$C$3:$N$59,9,FALSE) ->  | L79: =VLOOKUP(C79,'VoY 10m'!$C$3:$N$40,9,FALSE) ->  | M79: =VLOOKUP(C79,Guisley!$C$3:$N$49,9,FALSE) ->  | N79: =VLOOKUP(C79,Odda!$C$3:$N$42,9,FALSE) ->  | O79: =VLOOKUP(C79,'Leeds half'!$C$4:$N$31,9,FALSE) ->  | P79: =VLOOKUP(C79,Ilkley!$C$3:$L$46,7,FALSE) ->  | Q79: =VLOOKUP(C79,Otley!$C$3:$L$46,9,FALSE) ->  | R79: =VLOOKUP(C79,Solstice!$C$3:$L$48,7,FALSE) -> 0.3882352941 | S79: =VLOOKUP(C79,Eccup!$C$3:$L$46,9,FALSE) ->  | U79: =VLOOKUP(C79,Shakerr!$C$3:$L$46,7,FALSE) ->  | V79: =VLOOKUP(C79,VoY!$C$3:$L$46,9,FALSE) ->  | W79: =VLOOKUP(C79,Kirkstall!$C$3:$L$46,9,FALSE) ->  | X79: =VLOOKUP($C79,City!$C$3:$L$69,9,FALSE) ->  | Y79: =VLOOKUP(C79,'Guy Fawkes'!$C$3:$N$34,9,FALSE) ->  | Z79: =VLOOKUP(C79,Abbey!$C$3:$L$48,7,FALSE) ->  | AA79: =VLOOKUP(C79,Chevin!$C$3:$L$50,7,FALSE) ->  | AC79: 0 | AD79: 0 | AE79: 0 | AF79: 0 | AG79: 0 | AH79: 0 | AI79: 0 | AJ79: 0 | AK79: 0 | AL79: 0 | AM79: 0 | AN79: 14 | AO79: 0 | AP79: 0 | AQ79: 0 | AR79: 0 | AS79: 0 | AT79: 0 | AU79: 0 | AV79: 0 | AW79: 0 | AX79: 1
C80: Michelle Eyres | D80: 1961-03-13 | E80: 55 | F80: =IFERROR(VLOOKUP(C80,'Division Lookup'!$A$2:$D$251,4,FALSE),"Second") -> Second | G80: =VLOOKUP(C80,Dewsbury!$C$3:$L$46,7,FALSE) ->  | H80: =VLOOKUP($C80,Bradford!$C$3:$L$66,7,FALSE) ->  | I80: =VLOOKUP($C80,Keighley!$C$3:$N$42,9,FALSE) ->  | J80: =VLOOKUP($C80,'Bunny '!$C$3:$N$20,9,FALSE) ->  | K80: =VLOOKUP($C80,Liverpool!$C$3:$N$59,9,FALSE) ->  | L80: =VLOOKUP(C80,'VoY 10m'!$C$3:$N$40,9,FALSE) ->  | M80: =VLOOKUP(C80,Guisley!$C$3:$N$49,9,FALSE) ->  | N80: =VLOOKUP(C80,Odda!$C$3:$N$42,9,FALSE) ->  | O80: =VLOOKUP(C80,'Leeds half'!$C$4:$N$31,9,FALSE) ->  | P80: =VLOOKUP(C80,Ilkley!$C$3:$L$46,7,FALSE) ->  | Q80: =VLOOKUP(C80,Otley!$C$3:$L$46,9,FALSE) ->  | R80: =VLOOKUP(C80,Solstice!$C$3:$L$48,7,FALSE) ->  | S80: =VLOOKUP(C80,Eccup!$C$3:$L$46,9,FALSE) ->  | U80: =VLOOKUP(C80,Shakerr!$C$3:$L$46,7,FALSE) ->  | V80: =VLOOKUP(C80,VoY!$C$3:$L$46,9,FALSE) ->  | W80: =VLOOKUP(C80,Kirkstall!$C$3:$L$46,9,FALSE) ->  | X80: =VLOOKUP($C80,City!$C$3:$L$69,9,FALSE) ->  | Y80: =VLOOKUP(C80,'Guy Fawkes'!$C$3:$N$34,9,FALSE) ->  | Z80: =VLOOKUP(C80,Abbey!$C$3:$L$48,7,FALSE) ->  | AA80: =VLOOKUP(C80,Chevin!$C$3:$L$50,7,FALSE) ->  | AC80: 0 | AD80: 0 | AE80: 0 | AF80: 0 | AG80: 0 | AH80: 0 | AI80: 0 | AJ80: 0 | AK80: 0 | AL80: 0 | AM80: 0 | AN80: 0 | AO80: 0 | AP80: 0 | AQ80: 0 | AR80: 0 | AS80: 0 | AT80: 0 | AU80: 0 | AV80: 0 | AW80: 0 | AX80: 0
C81: Fiona Farquhar | D81: 1968-12-09 | E81: 48 | F81: =IFERROR(VLOOKUP(C81,'Division Lookup'!$A$2:$D$251,4,FALSE),"Second") -> Premier | G81: =VLOOKUP(C81,Dewsbury!$C$3:$L$46,7,FALSE) -> 0.6007162041 | H81: =VLOOKUP($C81,Bradford!$C$3:$L$66,7,FALSE) ->  | I81: =VLOOKUP($C81,Keighley!$C$3:$N$42,9,FALSE) -> 0.6410828025 | J81: =VLOOKUP($C81,'Bunny '!$C$3:$N$20,9,FALSE) ->  | K81: =VLOOKUP($C81,Liverpool!$C$3:$N$59,9,FALSE) ->  | L81: =VLOOKUP(C81,'VoY 10m'!$C$3:$N$40,9,FALSE) ->  | M81: =VLOOKUP(C81,Guisley!$C$3:$N$49,9,FALSE) ->  | N81: =VLOOKUP(C81,Odda!$C$3:$N$42,9,FALSE) -> 0.4805442826 | O81: =VLOOKUP(C81,'Leeds half'!$C$4:$N$31,9,FALSE) -> 0.4898531225 | P81: =VLOOKUP(C81,Ilkley!$C$3:$L$46,7,FALSE) ->  | Q81: =VLOOKUP(C81,Otley!$C$3:$L$46,9,FALSE) ->  | R81: =VLOOKUP(C81,Solstice!$C$3:$L$48,7,FALSE) -> 0.4731879788 | S81: =VLOOKUP(C81,Eccup!$C$3:$L$46,9,FALSE) ->  | U81: =VLOOKUP(C81,Shakerr!$C$3:$L$46,7,FALSE) ->  | V81: =VLOOKUP(C81,VoY!$C$3:$L$46,9,FALSE) ->  | W81: =VLOOKUP(C81,Kirkstall!$C$3:$L$46,9,FALSE) ->  | X81: =VLOOKUP($C81,City!$C$3:$L$69,9,FALSE) ->  | Y81: =VLOOKUP(C81,'Guy Fawkes'!$C$3:$N$34,9,FALSE) ->  | Z81: =VLOOKUP(C81,Abbey!$C$3:$L$48,7,FALSE) ->  | AA81: =VLOOKUP(C81,Chevin!$C$3:$L$50,7,FALSE) ->  | AC81: 17 | AD81: 0 | AE81: 5 | AF81: 0 | AG81: 0 | AH81: 0 | AI81: 0 | AJ81: 9 | AK81: 7 | AL81: 0 | AM81: 0 | AN81: 16 | AO81: 0 | AP81: 0 | AQ81: 0 | AR81: 0 | AS81: 0 | AT81: 0 | AU81: 0 | AV81: 0 | AW81: 0 | AX81: 5
C82: Martin Fillingham | D82: 1971-05-20 | E82: 45 | F82: =IFERROR(VLOOKUP(C82,'Division Lookup'!$A$2:$D$251,4,FALSE),"Second") -> Premier | G82: =VLOOKUP(C82,Dewsbury!$C$3:$L$46,7,FALSE) ->  | H82: =VLOOKUP($C82,Bradford!$C$3:$L$66,7,FALSE) -> 0.7577250336 | I82: =VLOOKUP($C82,Keighley!$C$3:$N$42,9,FALSE) -> 0.7640207075 | J82: =VLOOKUP($C82,'Bunny '!$C$3:$N$20,9,FALSE) -> 0.7393570808 | K82: =VLOOKUP($C82,Liverpool!$C$3:$N$59,9,FALSE) -> 0.7918207974 | L82: =VLOOKUP(C82,'VoY 10m'!$C$3:$N$40,9,FALSE) ->  | M82: =VLOOKUP(C82,Guisley!$C$3:$N$49,9,FALSE) ->  | N82: =VLOOKUP(C82,Odda!$C$3:$N$42,9,FALSE) ->  | O82: =VLOOKUP(C82,'Leeds half'!$C$4:$N$31,9,FALSE) ->  | P82: =VLOOKUP(C82,Ilkley!$C$3:$L$46,7,FALSE) ->  | Q82: =VLOOKUP(C82,Otley!$C$3:$L$46,9,FALSE) ->  | R82: =VLOOKUP(C82,Solstice!$C$3:$L$48,7,FALSE) -> 0.7167600611 | S82: =VLOOKUP(C82,Eccup!$C$3:$L$46,9,FALSE) ->  | U82: =VLOOKUP(C82,Shakerr!$C$3:$L$46,7,FALSE) -> 0.5692703311 | V82: =VLOOKUP(C82,VoY!$C$3:$L$46,9,FALSE) ->  | W82: =VLOOKUP(C82,Kirkstall!$C$3:$L$46,9,FALSE) ->  | X82: =VLOOKUP($C82,City!$C$3:$L$69,9,FALSE) -> 0.8031746032 | Y82: =VLOOKUP(C82,'Guy Fawkes'!$C$3:$N$34,9,FALSE) ->  | Z82: =VLOOKUP(C82,Abbey!$C$3:$L$48,7,FALSE) -> 0.8357715904 | AA82: =VLOOKUP(C82,Chevin!$C$3:$L$50,7,FALSE) ->  | AC82: 0 | AD82: 3 | AE82: 1 | AF82: 3 | AG82: 2 | AH82: 0 | AI82: 0 | AJ82: 0 | AK82: 0 | AL82: 0 | AM82: 0 | AN82: 3 | AO82: 0 | AP82: 0 | AQ82: 2 | AR82: 0 | AS82: 0 | AT82: 2 | AU82: 0 | AV82: 1 | AW82: 0 | AX82: 8
C83: Julie Firth | D83: 1964-06-24 | E83: 52 | F83: =IFERROR(VLOOKUP(C83,'Division Lookup'!$A$2:$D$251,4,FALSE),"Second") -> Premier | G83: =VLOOKUP(C83,Dewsbury!$C$3:$L$46,7,FALSE) ->  | H83: =VLOOKUP($C83,Bradford!$C$3:$L$66,7,FALSE) ->  | I83: =VLOOKUP($C83,Keighley!$C$3:$N$42,9,FALSE) ->  | J83: =VLOOKUP($C83,'Bunny '!$C$3:$N$20,9,FALSE) ->  | K83: =VLOOKUP($C83,Liverpool!$C$3:$N$59,9,FALSE) ->  | L83: =VLOOKUP(C83,'VoY 10m'!$C$3:$N$40,9,FALSE) ->  | M83: =VLOOKUP(C83,Guisley!$C$3:$N$49,9,FALSE) ->  | N83: =VLOOKUP(C83,Odda!$C$3:$N$42,9,FALSE) ->  | O83: =VLOOKUP(C83,'Leeds half'!$C$4:$N$31,9,FALSE) ->  | P83: =VLOOKUP(C83,Ilkley!$C$3:$L$46,7,FALSE) ->  | Q83: =VLOOKUP(C83,Otley!$C$3:$L$46,9,FALSE) ->  | R83: =VLOOKUP(C83,Solstice!$C$3:$L$48,7,FALSE) ->  | S83: =VLOOKUP(C83,Eccup!$C$3:$L$46,9,FALSE) ->  | U83: =VLOOKUP(C83,Shakerr!$C$3:$L$46,7,FALSE) ->  | V83: =VLOOKUP(C83,VoY!$C$3:$L$46,9,FALSE) ->  | W83: =VLOOKUP(C83,Kirkstall!$C$3:$L$46,9,FALSE) ->  | X83: =VLOOKUP($C83,City!$C$3:$L$69,9,FALSE) ->  | Y83: =VLOOKUP(C83,'Guy Fawkes'!$C$3:$N$34,9,FALSE) ->  | Z83: =VLOOKUP(C83,Abbey!$C$3:$L$48,7,FALSE) ->  | AA83: =VLOOKUP(C83,Chevin!$C$3:$L$50,7,FALSE) ->  | AC83: 0 | AD83: 0 | AE83: 0 | AF83: 0 | AG83: 0 | AH83: 0 | AI83: 0 | AJ83: 0 | AK83: 0 | AL83: 0 | AM83: 0 | AN83: 0 | AO83: 0 | AP83: 0 | AQ83: 0 | AR83: 0 | AS83: 0 | AT83: 0 | AU83: 0 | AV83: 0 | AW83: 0 | AX83: 0
C84: Clair Fitzpatrick | D84: 1972-02-15 | E84: 44 | F84: =IFERROR(VLOOKUP(C84,'Division Lookup'!$A$2:$D$251,4,FALSE),"Second") -> First | G84: =VLOOKUP(C84,Dewsbury!$C$3:$L$46,7,FALSE) ->  | H84: =VLOOKUP($C84,Bradford!$C$3:$L$66,7,FALSE) -> 0.4212358573 | I84: =VLOOKUP($C84,Keighley!$C$3:$N$42,9,FALSE) ->  | J84: =VLOOKUP($C84,'Bunny '!$C$3:$N$20,9,FALSE) ->  | K84: =VLOOKUP($C84,Liverpool!$C$3:$N$59,9,FALSE) -> 0.4184481394 | L84: =VLOOKUP(C84,'VoY 10m'!$C$3:$N$40,9,FALSE) ->  | M84: =VLOOKUP(C84,Guisley!$C$3:$N$49,9,FALSE) ->  | N84: =VLOOKUP(C84,Odda!$C$3:$N$42,9,FALSE) ->  | O84: =VLOOKUP(C84,'Leeds half'!$C$4:$N$31,9,FALSE) ->  | P84: =VLOOKUP(C84,Ilkley!$C$3:$L$46,7,FALSE) ->  | Q84: =VLOOKUP(C84,Otley!$C$3:$L$46,9,FALSE) ->  | R84: =VLOOKUP(C84,Solstice!$C$3:$L$48,7,FALSE) ->  | S84: =VLOOKUP(C84,Eccup!$C$3:$L$46,9,FALSE) ->  | U84: =VLOOKUP(C84,Shakerr!$C$3:$L$46,7,FALSE) ->  | V84: =VLOOKUP(C84,VoY!$C$3:$L$46,9,FALSE) ->  | W84: =VLOOKUP(C84,Kirkstall!$C$3:$L$46,9,FALSE) ->  | X84: =VLOOKUP($C84,City!$C$3:$L$69,9,FALSE) ->  | Y84: =VLOOKUP(C84,'Guy Fawkes'!$C$3:$N$34,9,FALSE) ->  | Z84: =VLOOKUP(C84,Abbey!$C$3:$L$48,7,FALSE) -> 0.4460125448 | AA84: =VLOOKUP(C84,Chevin!$C$3:$L$50,7,FALSE) ->  | AC84: 0 | AD84: 15 | AE84: 0 | AF84: 0 | AG84: 7 | AH84: 0 | AI84: 0 | AJ84: 0 | AK84: 0 | AL84: 0 | AM84: 0 | AN84: 0 | AO84: 0 | AP84: 0 | AQ84: 0 | AR84: 0 | AS84: 0 | AT84: 0 | AU84: 0 | AV84: 3 | AW84: 0 | AX84: 3
C85: Noel Fitzpatrick | D85: 1969-09-05 | E85: 47 | F85: =IFERROR(VLOOKUP(C85,'Division Lookup'!$A$2:$D$251,4,FALSE),"Second") -> Premier | G85: =VLOOKUP(C85,Dewsbury!$C$3:$L$46,7,FALSE) ->  | H85: =VLOOKUP($C85,Bradford!$C$3:$L$66,7,FALSE) -> 0.6117727118 | I85: =VLOOKUP($C85,Keighley!$C$3:$N$42,9,FALSE) ->  | J85: =VLOOKUP($C85,'Bunny '!$C$3:$N$20,9,FALSE) ->  | K85: =VLOOKUP($C85,Liverpool!$C$3:$N$59,9,FALSE) -> 0.6142386702 | L85: =VLOOKUP(C85,'VoY 10m'!$C$3:$N$40,9,FALSE) ->  | M85: =VLOOKUP(C85,Guisley!$C$3:$N$49,9,FALSE) ->  | N85: =VLOOKUP(C85,Odda!$C$3:$N$42,9,FALSE) ->  | O85: =VLOOKUP(C85,'Leeds half'!$C$4:$N$31,9,FALSE) -> 0.5847141364 | P85: =VLOOKUP(C85,Ilkley!$C$3:$L$46,7,FALSE) ->  | Q85: =VLOOKUP(C85,Otley!$C$3:$L$46,9,FALSE) ->  | R85: =VLOOKUP(C85,Solstice!$C$3:$L$48,7,FALSE) -> 0.5269174041 | S85: =VLOOKUP(C85,Eccup!$C$3:$L$46,9,FALSE) ->  | U85: =VLOOKUP(C85,Shakerr!$C$3:$L$46,7,FALSE) ->  | V85: =VLOOKUP(C85,VoY!$C$3:$L$46,9,FALSE) ->  | W85: =VLOOKUP(C85,Kirkstall!$C$3:$L$46,9,FALSE) ->  | X85: =VLOOKUP($C85,City!$C$3:$L$69,9,FALSE) -> 0.6404744255 | Y85: =VLOOKUP(C85,'Guy Fawkes'!$C$3:$N$34,9,FALSE) ->  | Z85: =VLOOKUP(C85,Abbey!$C$3:$L$48,7,FALSE) -> 0.6380411639 | AA85: =VLOOKUP(C85,Chevin!$C$3:$L$50,7,FALSE) ->  | AC85: 0 | AD85: 10 | AE85: 0 | AF85: 0 | AG85: 11 | AH85: 0 | AI85: 0 | AJ85: 0 | AK85: 3 | AL85: 0 | AM85: 0 | AN85: 13 | AO85: 0 | AP85: 0 | AQ85: 0 | AR85: 0 | AS85: 0 | AT85: 9 | AU85: 0 | AV85: 3 | AW85: 0 | AX85: 6
C86: Harriet Fletcher | D86: 1972-11-08 | E86: 44 | F86: =IFERROR(VLOOKUP(C86,'Division Lookup'!$A$2:$D$251,4,FALSE),"Second") -> Second | G86: =VLOOKUP(C86,Dewsbury!$C$3:$L$46,7,FALSE) ->  | H86: =VLOOKUP($C86,Bradford!$C$3:$L$66,7,FALSE) ->  | I86: =VLOOKUP($C86,Keighley!$C$3:$N$42,9,FALSE) ->  | J86: =VLOOKUP($C86,'Bunny '!$C$3:$N$20,9,FALSE) ->  | K86: =VLOOKUP($C86,Liverpool!$C$3:$N$59,9,FALSE) ->  | L86: =VLOOKUP(C86,'VoY 10m'!$C$3:$N$40,9,FALSE) ->  | M86: =VLOOKUP(C86,Guisley!$C$3:$N$49,9,FALSE) ->  | N86: =VLOOKUP(C86,Odda!$C$3:$N$42,9,FALSE) ->  | O86: =VLOOKUP(C86,'Leeds half'!$C$4:$N$31,9,FALSE) ->  | P86: =VLOOKUP(C86,Ilkley!$C$3:$L$46,7,FALSE) ->  | Q86: =VLOOKUP(C86,Otley!$C$3:$L$46,9,FALSE) ->  | R86: =VLOOKUP(C86,Solstice!$C$3:$L$48,7,FALSE) ->  | S86: =VLOOKUP(C86,Eccup!$C$3:$L$46,9,FALSE) ->  | U86: =VLOOKUP(C86,Shakerr!$C$3:$L$46,7,FALSE) -> 0.4319500223 | V86: =VLOOKUP(C86,VoY!$C$3:$L$46,9,FALSE) ->  | W86: =VLOOKUP(C86,Kirkstall!$C$3:$L$46,9,FALSE) ->  | X86: =VLOOKUP($C86,City!$C$3:$L$69,9,FALSE) ->  | Y86: =VLOOKUP(C86,'Guy Fawkes'!$C$3:$N$34,9,FALSE) ->  | Z86: =VLOOKUP(C86,Abbey!$C$3:$L$48,7,FALSE) -> 0.5554542692 | AA86: =VLOOKUP(C86,Chevin!$C$3:$L$50,7,FALSE) ->  | AC86: 0 | AD86: 0 | AE86: 0 | AF86: 0 | AG86: 0 | AH86: 0 | AI86: 0 | AJ86: 0 | AK86: 0 | AL86: 0 | AM86: 0 | AN86: 0 | AO86: 0 | AP86: 0 | AQ86: 9 | AR86: 0 | AS86: 0 | AT86: 0 | AU86: 0 | AV86: 15 | AW86: 0 | AX86: 2
C87: Anne Forster | D87: 1957-03-22 | E87: 59 | F87: =IFERROR(VLOOKUP(C87,'Division Lookup'!$A$2:$D$251,4,FALSE),"Second") -> Second | G87: =VLOOKUP(C87,Dewsbury!$C$3:$L$46,7,FALSE) ->  | H87: =VLOOKUP($C87,Bradford!$C$3:$L$66,7,FALSE) ->  | I87: =VLOOKUP($C87,Keighley!$C$3:$N$42,9,FALSE) ->  | J87: =VLOOKUP($C87,'Bunny '!$C$3:$N$20,9,FALSE) ->  | K87: =VLOOKUP($C87,Liverpool!$C$3:$N$59,9,FALSE) ->  | L87: =VLOOKUP(C87,'VoY 10m'!$C$3:$N$40,9,FALSE) ->  | M87: =VLOOKUP(C87,Guisley!$C$3:$N$49,9,FALSE) ->  | N87: =VLOOKUP(C87,Odda!$C$3:$N$42,9,FALSE) ->  | O87: =VLOOKUP(C87,'Leeds half'!$C$4:$N$31,9,FALSE) ->  | P87: =VLOOKUP(C87,Ilkley!$C$3:$L$46,7,FALSE) ->  | Q87: =VLOOKUP(C87,Otley!$C$3:$L$46,9,FALSE) ->  | R87: =VLOOKUP(C87,Solstice!$C$3:$L$48,7,FALSE) ->  | S87: =VLOOKUP(C87,Eccup!$C$3:$L$46,9,FALSE) ->  | U87: =VLOOKUP(C87,Shakerr!$C$3:$L$46,7,FALSE) ->  | V87: =VLOOKUP(C87,VoY!$C$3:$L$46,9,FALSE) ->  | W87: =VLOOKUP(C87,Kirkstall!$C$3:$L$46,9,FALSE) ->  | X87: =VLOOKUP($C87,City!$C$3:$L$69,9,FALSE) ->  | Y87: =VLOOKUP(C87,'Guy Fawkes'!$C$3:$N$34,9,FALSE) ->  | Z87: =VLOOKUP(C87,Abbey!$C$3:$L$48,7,FALSE) -> 0.5041300293 | AA87: =VLOOKUP(C87,Chevin!$C$3:$L$50,7,FALSE) ->  | AC87: 0 | AD87: 0 | AE87: 0 | AF87: 0 | AG87: 0 | AH87: 0 | AI87: 0 | AJ87: 0 | AK87: 0 | AL87: 0 | AM87: 0 | AN87: 0 | AO87: 0 | AP87: 0 | AQ87: 0 | AR87: 0 | AS87: 0 | AT87: 0 | AU87: 0 | AV87: 18 | AW87: 0 | AX87: 1
C88: Timothy Forster | D88: 1990-07-12 | E88: 26 | F88: =IFERROR(VLOOKUP(C88,'Division Lookup'!$A$2:$D$251,4,FALSE),"Second") -> Second | G88: =VLOOKUP(C88,Dewsbury!$C$3:$L$46,7,FALSE) ->  | H88: =VLOOKUP($C88,Bradford!$C$3:$L$66,7,FALSE) ->  | I88: =VLOOKUP($C88,Keighley!$C$3:$N$42,9,FALSE) ->  | J88: =VLOOKUP($C88,'Bunny '!$C$3:$N$20,9,FALSE) ->  | K88: =VLOOKUP($C88,Liverpool!$C$3:$N$59,9,FALSE) ->  | L88: =VLOOKUP(C88,'VoY 10m'!$C$3:$N$40,9,FALSE) ->  | M88: =VLOOKUP(C88,Guisley!$C$3:$N$49,9,FALSE) ->  | N88: =VLOOKUP(C88,Odda!$C$3:$N$42,9,FALSE) ->  | O88: =VLOOKUP(C88,'Leeds half'!$C$4:$N$31,9,FALSE) ->  | P88: =VLOOKUP(C88,Ilkley!$C$3:$L$46,7,FALSE) ->  | Q88: =VLOOKUP(C88,Otley!$C$3:$L$46,9,FALSE) ->  | R88: =VLOOKUP(C88,Solstice!$C$3:$L$48,7,FALSE) ->  | S88: =VLOOKUP(C88,Eccup!$C$3:$L$46,9,FALSE) ->  | U88: =VLOOKUP(C88,Shakerr!$C$3:$L$46,7,FALSE) ->  | V88: =VLOOKUP(C88,VoY!$C$3:$L$46,9,FALSE) ->  | W88: =VLOOKUP(C88,Kirkstall!$C$3:$L$46,9,FALSE) ->  | X88: =VLOOKUP($C88,City!$C$3:$L$69,9,FALSE) ->  | Y88: =VLOOKUP(C88,'Guy Fawkes'!$C$3:$N$34,9,FALSE) ->  | Z88: =VLOOKUP(C88,Abbey!$C$3:$L$48,7,FALSE) ->  | AA88: =VLOOKUP(C88,Chevin!$C$3:$L$50,7,FALSE) -> 0.6309831824 | AC88: 0 | AD88: 0 | AE88: 0 | AF88: 0 | AG88: 0 | AH88: 0 | AI88: 0 | AJ88: 0 | AK88: 0 | AL88: 0 | AM88: 0 | AN88: 0 | AO88: 0 | AP88: 0 | AQ88: 0 | AR88: 0 | AS88: 0 | AT88: 0 | AU88: 0 | AV88: 0 | AW88: 2 | AX88: 1
C89: Victoria Foster | D89: 1967-05-30 | E89: 49 | F89: =IFERROR(VLOOKUP(C89,'Division Lookup'!$A$2:$D$251,4,FALSE),"Second") -> Second | G89: =VLOOKUP(C89,Dewsbury!$C$3:$L$46,7,FALSE) ->  | H89: =VLOOKUP($C89,Bradford!$C$3:$L$66,7,FALSE) ->  | I89: =VLOOKUP($C89,Keighley!$C$3:$N$42,9,FALSE) ->  | J89: =VLOOKUP($C89,'Bunny '!$C$3:$N$20,9,FALSE) ->  | K89: =VLOOKUP($C89,Liverpool!$C$3:$N$59,9,FALSE) ->  | L89: =VLOOKUP(C89,'VoY 10m'!$C$3:$N$40,9,FALSE) ->  | M89: =VLOOKUP(C89,Guisley!$C$3:$N$49,9,FALSE) ->  | N89: =VLOOKUP(C89,Odda!$C$3:$N$42,9,FALSE) ->  | O89: =VLOOKUP(C89,'Leeds half'!$C$4:$N$31,9,FALSE) ->  | P89: =VLOOKUP(C89,Ilkley!$C$3:$L$46,7,FALSE) ->  | Q89: =VLOOKUP(C89,Otley!$C$3:$L$46,9,FALSE) ->  | R89: =VLOOKUP(C89,Solstice!$C$3:$L$48,7,FALSE) ->  | S89: =VLOOKUP(C89,Eccup!$C$3:$L$46,9,FALSE) ->  | U89: =VLOOKUP(C89,Shakerr!$C$3:$L$46,7,FALSE) ->  | V89: =VLOOKUP(C89,VoY!$C$3:$L$46,9,FALSE) ->  | W89: =VLOOKUP(C89,Kirkstall!$C$3:$L$46,9,FALSE) ->  | X89: =VLOOKUP($C89,City!$C$3:$L$69,9,FALSE) ->  | Y89: =VLOOKUP(C89,'Guy Fawkes'!$C$3:$N$34,9,FALSE) ->  | Z89: =VLOOKUP(C89,Abbey!$C$3:$L$48,7,FALSE) ->  | AA89: =VLOOKUP(C89,Chevin!$C$3:$L$50,7,FALSE) ->  | AC89: 0 | AD89: 0 | AE89: 0 | AF89: 0 | AG89: 0 | AH89: 0 | AI89: 0 | AJ89: 0 | AK89: 0 | AL89: 0 | AM89: 0 | AN89: 0 | AO89: 0 | AP89: 0 | AQ89: 0 | AR89: 0 | AS89: 0 | AT89: 0 | AU89: 0 | AV89: 0 | AW89: 0 | AX89: 0
C90: Steven Fowler | D90: 1972-12-29 | E90: 44 | F90: =IFERROR(VLOOKUP(C90,'Division Lookup'!$A$2:$D$251,4,FALSE),"Second") -> Second | G90: =VLOOKUP(C90,Dewsbury!$C$3:$L$46,7,FALSE) ->  | H90: =VLOOKUP($C90,Bradford!$C$3:$L$66,7,FALSE) ->  | I90: =VLOOKUP($C90,Keighley!$C$3:$N$42,9,FALSE) ->  | J90: =VLOOKUP($C90,'Bunny '!$C$3:$N$20,9,FALSE) ->  | K90: =VLOOKUP($C90,Liverpool!$C$3:$N$59,9,FALSE) ->  | L90: =VLOOKUP(C90,'VoY 10m'!$C$3:$N$40,9,FALSE) ->  | M90: =VLOOKUP(C90,Guisley!$C$3:$N$49,9,FALSE) ->  | N90: =VLOOKUP(C90,Odda!$C$3:$N$42,9,FALSE) ->  | O90: =VLOOKUP(C90,'Leeds half'!$C$4:$N$31,9,FALSE) ->  | P90: =VLOOKUP(C90,Ilkley!$C$3:$L$46,7,FALSE) ->  | Q90: =VLOOKUP(C90,Otley!$C$3:$L$46,9,FALSE) ->  | R90: =VLOOKUP(C90,Solstice!$C$3:$L$48,7,FALSE) ->  | S90: =VLOOKUP(C90,Eccup!$C$3:$L$46,9,FALSE) ->  | U90: =VLOOKUP(C90,Shakerr!$C$3:$L$46,7,FALSE) -> 0.5817880795 | V90: =VLOOKUP(C90,VoY!$C$3:$L$46,9,FALSE) ->  | W90: =VLOOKUP(C90,Kirkstall!$C$3:$L$46,9,FALSE) ->  | X90: =VLOOKUP($C90,City!$C$3:$L$69,9,FALSE) ->  | Y90: =VLOOKUP(C90,'Guy Fawkes'!$C$3:$N$34,9,FALSE) ->  | Z90: =VLOOKUP(C90,Abbey!$C$3:$L$48,7,FALSE) ->  | AA90: =VLOOKUP(C90,Chevin!$C$3:$L$50,7,FALSE) ->  | AC90: 0 | AD90: 0 | AE90: 0 | AF90: 0 | AG90: 0 | AH90: 0 | AI90: 0 | AJ90: 0 | AK90: 0 | AL90: 0 | AM90: 0 | AN90: 0 | AO90: 0 | AP90: 0 | AQ90: 1 | AR90: 0 | AS90: 0 | AT90: 0 | AU90: 0 | AV90: 0 | AW90: 0 | AX90: 1
C91: Malcolm Foy | D91: 1963-04-03 | E91: 53 | F91: =IFERROR(VLOOKUP(C91,'Division Lookup'!$A$2:$D$251,4,FALSE),"Second") -> Second | G91: =VLOOKUP(C91,Dewsbury!$C$3:$L$46,7,FALSE) ->  | H91: =VLOOKUP($C91,Bradford!$C$3:$L$66,7,FALSE) ->  | I91: =VLOOKUP($C91,Keighley!$C$3:$N$42,9,FALSE) ->  | J91: =VLOOKUP($C91,'Bunny '!$C$3:$N$20,9,FALSE) ->  | K91: =VLOOKUP($C91,Liverpool!$C$3:$N$59,9,FALSE) ->  | L91: =VLOOKUP(C91,'VoY 10m'!$C$3:$N$40,9,FALSE) ->  | M91: =VLOOKUP(C91,Guisley!$C$3:$N$49,9,FALSE) -> 0.5611061552 | N91: =VLOOKUP(C91,Odda!$C$3:$N$42,9,FALSE) -> 0.4677739217 | O91: =VLOOKUP(C91,'Leeds half'!$C$4:$N$31,9,FALSE) ->  | P91: =VLOOKUP(C91,Ilkley!$C$3:$L$46,7,FALSE) ->  | Q91: =VLOOKUP(C91,Otley!$C$3:$L$46,9,FALSE) ->  | R91: =VLOOKUP(C91,Solstice!$C$3:$L$48,7,FALSE) ->  | S91: =VLOOKUP(C91,Eccup!$C$3:$L$46,9,FALSE) ->  | U91: =VLOOKUP(C91,Shakerr!$C$3:$L$46,7,FALSE) ->  | V91: =VLOOKUP(C91,VoY!$C$3:$L$46,9,FALSE) ->  | W91: =VLOOKUP(C91,Kirkstall!$C$3:$L$46,9,FALSE) ->  | X91: =VLOOKUP($C91,City!$C$3:$L$69,9,FALSE) ->  | Y91: =VLOOKUP(C91,'Guy Fawkes'!$C$3:$N$34,9,FALSE) ->  | Z91: =VLOOKUP(C91,Abbey!$C$3:$L$48,7,FALSE) ->  | AA91: =VLOOKUP(C91,Chevin!$C$3:$L$50,7,FALSE) ->  | AC91: 0 | AD91: 0 | AE91: 0 | AF91: 0 | AG91: 0 | AH91: 0 | AI91: 4 | AJ91: 4 | AK91: 0 | AL91: 0 | AM91: 0 | AN91: 0 | AO91: 0 | AP91: 0 | AQ91: 0 | AR91: 0 | AS91: 0 | AT91: 0 | AU91: 0 | AV91: 0 | AW91: 0 | AX91: 2
C92: Tracy Foy | D92: 1970-02-15 | E92: 46 | F92: =IFERROR(VLOOKUP(C92,'Division Lookup'!$A$2:$D$251,4,FALSE),"Second") -> Premier | G92: =VLOOKUP(C92,Dewsbury!$C$3:$L$46,7,FALSE) -> 0.6872384937 | H92: =VLOOKUP($C92,Bradford!$C$3:$L$66,7,FALSE) ->  | I92: =VLOOKUP($C92,Keighley!$C$3:$N$42,9,FALSE) -> 0.6616314199 | J92: =VLOOKUP($C92,'Bunny '!$C$3:$N$20,9,FALSE) -> 0.6119592875 | K92: =VLOOKUP($C92,Liverpool!$C$3:$N$59,9,FALSE) -> 0.6863971768 | L92: =VLOOKUP(C92,'VoY 10m'!$C$3:$N$40,9,FALSE) ->  | M92: =VLOOKUP(C92,Guisley!$C$3:$N$49,9,FALSE) -> 0.5521510368 | N92: =VLOOKUP(C92,Odda!$C$3:$N$42,9,FALSE) -> 0.566053992 | O92: =VLOOKUP(C92,'Leeds half'!$C$4:$N$31,9,FALSE) -> 0.6453023677 | P92: =VLOOKUP(C92,Ilkley!$C$3:$L$46,7,FALSE) ->  | Q92: =VLOOKUP(C92,Otley!$C$3:$L$46,9,FALSE) ->  | R92: =VLOOKUP(C92,Solstice!$C$3:$L$48,7,FALSE) -> 0.5951570185 | S92: =VLOOKUP(C92,Eccup!$C$3:$L$46,9,FALSE) ->  | U92: =VLOOKUP(C92,Shakerr!$C$3:$L$46,7,FALSE) ->  | V92: =VLOOKUP(C92,VoY!$C$3:$L$46,9,FALSE) ->  | W92: =VLOOKUP(C92,Kirkstall!$C$3:$L$46,9,FALSE) ->  | X92: =VLOOKUP($C92,City!$C$3:$L$69,9,FALSE) ->  | Y92: =VLOOKUP(C92,'Guy Fawkes'!$C$3:$N$34,9,FALSE) -> 0.5779182303 | Z92: =VLOOKUP(C92,Abbey!$C$3:$L$48,7,FALSE) ->  | AA92: =VLOOKUP(C92,Chevin!$C$3:$L$50,7,FALSE) ->  | AC92: 6 | AD92: 0 | AE92: 4 | AF92: 7 | AG92: 8 | AH92: 0 | AI92: 6 | AJ92: 5 | AK92: 2 | AL92: 0 | AM92: 0 | AN92: 7 | AO92: 0 | AP92: 0 | AQ92: 0 | AR92: 0 | AS92: 0 | AT92: 0 | AU92: 9 | AV92: 0 | AW92: 0 | AX92: 9
C93: Elaine Frazer | D93: 1972-02-21 | E93: 44 | F93: =IFERROR(VLOOKUP(C93,'Division Lookup'!$A$2:$D$251,4,FALSE),"Second") -> Second | G93: =VLOOKUP(C93,Dewsbury!$C$3:$L$46,7,FALSE) ->  | H93: =VLOOKUP($C93,Bradford!$C$3:$L$66,7,FALSE) ->  | I93: =VLOOKUP($C93,Keighley!$C$3:$N$42,9,FALSE) ->  | J93: =VLOOKUP($C93,'Bunny '!$C$3:$N$20,9,FALSE) ->  | K93: =VLOOKUP($C93,Liverpool!$C$3:$N$59,9,FALSE) -> 0.5609560689 | L93: =VLOOKUP(C93,'VoY 10m'!$C$3:$N$40,9,FALSE) ->  | M93: =VLOOKUP(C93,Guisley!$C$3:$N$49,9,FALSE) ->  | N93: =VLOOKUP(C93,Odda!$C$3:$N$42,9,FALSE) ->  | O93: =VLOOKUP(C93,'Leeds half'!$C$4:$N$31,9,FALSE) ->  | P93: =VLOOKUP(C93,Ilkley!$C$3:$L$46,7,FALSE) ->  | Q93: =VLOOKUP(C93,Otley!$C$3:$L$46,9,FALSE) ->  | R93: =VLOOKUP(C93,Solstice!$C$3:$L$48,7,FALSE) ->  | S93: =VLOOKUP(C93,Eccup!$C$3:$L$46,9,FALSE) ->  | U93: =VLOOKUP(C93,Shakerr!$C$3:$L$46,7,FALSE) ->  | V93: =VLOOKUP(C93,VoY!$C$3:$L$46,9,FALSE) ->  | W93: =VLOOKUP(C93,Kirkstall!$C$3:$L$46,9,FALSE) ->  | X93: =VLOOKUP($C93,City!$C$3:$L$69,9,FALSE) ->  | Y93: =VLOOKUP(C93,'Guy Fawkes'!$C$3:$N$34,9,FALSE) ->  | Z93: =VLOOKUP(C93,Abbey!$C$3:$L$48,7,FALSE) ->  | AA93: =VLOOKUP(C93,Chevin!$C$3:$L$50,7,FALSE) ->  | AC93: 0 | AD93: 0 | AE93: 0 | AF93: 0 | AG93: 11 | AH93: 0 | AI93: 0 | AJ93: 0 | AK93: 0 | AL93: 0 | AM93: 0 | AN93: 0 | AO93: 0 | AP93: 0 | AQ93: 0 | AR93: 0 | AS93: 0 | AT93: 0 | AU93: 0 | AV93: 0 | AW93: 0 | AX93: 1
C94: Simon Frazer | D94: 1974-07-09 | E94: 42 | F94: =IFERROR(VLOOKUP(C94,'Division Lookup'!$A$2:$D$251,4,FALSE),"Second") -> Premier | G94: =VLOOKUP(C94,Dewsbury!$C$3:$L$46,7,FALSE) ->  | H94: =VLOOKUP($C94,Bradford!$C$3:$L$66,7,FALSE) -> 0.7299578059 | I94: =VLOOKUP($C94,Keighley!$C$3:$N$42,9,FALSE) ->  | J94: =VLOOKUP($C94,'Bunny '!$C$3:$N$20,9,FALSE) ->  | K94: =VLOOKUP($C94,Liverpool!$C$3:$N$59,9,FALSE) -> 0.7196708764 | L94: =VLOOKUP(C94,'VoY 10m'!$C$3:$N$40,9,FALSE) ->  | M94: =VLOOKUP(C94,Guisley!$C$3:$N$49,9,FALSE) ->  | N94: =VLOOKUP(C94,Odda!$C$3:$N$42,9,FALSE) -> 0.6290909091 | O94: =VLOOKUP(C94,'Leeds half'!$C$4:$N$31,9,FALSE) -> 0.7054961546 | P94: =VLOOKUP(C94,Ilkley!$C$3:$L$46,7,FALSE) ->  | Q94: =VLOOKUP(C94,Otley!$C$3:$L$46,9,FALSE) ->  | R94: =VLOOKUP(C94,Solstice!$C$3:$L$48,7,FALSE) ->  | S94: =VLOOKUP(C94,Eccup!$C$3:$L$46,9,FALSE) -> 0.6932485323 | U94: =VLOOKUP(C94,Shakerr!$C$3:$L$46,7,FALSE) ->  | V94: =VLOOKUP(C94,VoY!$C$3:$L$46,9,FALSE) ->  | W94: =VLOOKUP(C94,Kirkstall!$C$3:$L$46,9,FALSE) ->  | X94: =VLOOKUP($C94,City!$C$3:$L$69,9,FALSE) ->  | Y94: =VLOOKUP(C94,'Guy Fawkes'!$C$3:$N$34,9,FALSE) ->  | Z94: =VLOOKUP(C94,Abbey!$C$3:$L$48,7,FALSE) ->  | AA94: =VLOOKUP(C94,Chevin!$C$3:$L$50,7,FALSE) ->  | AC94: 0 | AD94: 4 | AE94: 0 | AF94: 0 | AG94: 5 | AH94: 0 | AI94: 0 | AJ94: 3 | AK94: 1 | AL94: 0 | AM94: 0 | AN94: 0 | AO94: 1 | AP94: 0 | AQ94: 0 | AR94: 0 | AS94: 0 | AT94: 0 | AU94: 0 | AV94: 0 | AW94: 0 | AX94: 5
C95: Simon Furlong | D95: 1987-07-20 | E95: 29 | F95: =IFERROR(VLOOKUP(C95,'Division Lookup'!$A$2:$D$251,4,FALSE),"Second") -> Second | G95: =VLOOKUP(C95,Dewsbury!$C$3:$L$46,7,FALSE) ->  | H95: =VLOOKUP($C95,Bradford!$C$3:$L$66,7,FALSE) -> 0.5874635569 | I95: =VLOOKUP($C95,Keighley!$C$3:$N$42,9,FALSE) ->  | J95: =VLOOKUP($C95,'Bunny '!$C$3:$N$20,9,FALSE) ->  | K95: =VLOOKUP($C95,Liverpool!$C$3:$N$59,9,FALSE) -> 0.5624505303 | L95: =VLOOKUP(C95,'VoY 10m'!$C$3:$N$40,9,FALSE) ->  | M95: =VLOOKUP(C95,Guisley!$C$3:$N$49,9,FALSE) ->  | N95: =VLOOKUP(C95,Odda!$C$3:$N$42,9,FALSE) ->  | O95: =VLOOKUP(C95,'Leeds half'!$C$4:$N$31,9,FALSE) ->  | P95: =VLOOKUP(C95,Ilkley!$C$3:$L$46,7,FALSE) ->  | Q95: =VLOOKUP(C95,Otley!$C$3:$L$46,9,FALSE) ->  | R95: =VLOOKUP(C95,Solstice!$C$3:$L$48,7,FALSE) ->  | S95: =VLOOKUP(C95,Eccup!$C$3:$L$46,9,FALSE) ->  | U95: =VLOOKUP(C95,Shakerr!$C$3:$L$46,7,FALSE) ->  | V95: =VLOOKUP(C95,VoY!$C$3:$L$46,9,FALSE) ->  | W95: =VLOOKUP(C95,Kirkstall!$C$3:$L$46,9,FALSE) ->  | X95: =VLOOKUP($C95,City!$C$3:$L$69,9,FALSE) ->  | Y95: =VLOOKUP(C95,'Guy Fawkes'!$C$3:$N$34,9,FALSE) ->  | Z95: =VLOOKUP(C95,Abbey!$C$3:$L$48,7,FALSE) ->  | AA95: =VLOOKUP(C95,Chevin!$C$3:$L$50,7,FALSE) ->  | AC95: 0 | AD95: 7 | AE95: 0 | AF95: 0 | AG95: 10 | AH95: 0 | AI95: 0 | AJ95: 0 | AK95: 0 | AL95: 0 | AM95: 0 | AN95: 0 | AO95: 0 | AP95: 0 | AQ95: 0 | AR95: 0 | AS95: 0 | AT95: 0 | AU95: 0 | AV95: 0 | AW95: 0 | AX95: 2
C96: James Gardner | D96: 1988-12-22 | E96: 28 | F96: =IFERROR(VLOOKUP(C96,'Division Lookup'!$A$2:$D$251,4,FALSE),"Second") -> Second | G96: =VLOOKUP(C96,Dewsbury!$C$3:$L$46,7,FALSE) ->  | H96: =VLOOKUP($C96,Bradford!$C$3:$L$66,7,FALSE) ->  | I96: =VLOOKUP($C96,Keighley!$C$3:$N$42,9,FALSE) -> 0.609073724 | J96: =VLOOKUP($C96,'Bunny '!$C$3:$N$20,9,FALSE) ->  | K96: =VLOOKUP($C96,Liverpool!$C$3:$N$59,9,FALSE) ->  | L96: =VLOOKUP(C96,'VoY 10m'!$C$3:$N$40,9,FALSE) ->  | M96: =VLOOKUP(C96,Guisley!$C$3:$N$49,9,FALSE) ->  | N96: =VLOOKUP(C96,Odda!$C$3:$N$42,9,FALSE) ->  | O96: =VLOOKUP(C96,'Leeds half'!$C$4:$N$31,9,FALSE) -> 0.6494242369 | P96: =VLOOKUP(C96,Ilkley!$C$3:$L$46,7,FALSE) ->  | Q96: =VLOOKUP(C96,Otley!$C$3:$L$46,9,FALSE) ->  | R96: =VLOOKUP(C96,Solstice!$C$3:$L$48,7,FALSE) ->  | S96: =VLOOKUP(C96,Eccup!$C$3:$L$46,9,FALSE) ->  | U96: =VLOOKUP(C96,Shakerr!$C$3:$L$46,7,FALSE) -> 0.4371777476 | V96: =VLOOKUP(C96,VoY!$C$3:$L$46,9,FALSE) ->  | W96: =VLOOKUP(C96,Kirkstall!$C$3:$L$46,9,FALSE) ->  | X96: =VLOOKUP($C96,City!$C$3:$L$69,9,FALSE) ->  | Y96: =VLOOKUP(C96,'Guy Fawkes'!$C$3:$N$34,9,FALSE) ->  | Z96: =VLOOKUP(C96,Abbey!$C$3:$L$48,7,FALSE) ->  | AA96: =VLOOKUP(C96,Chevin!$C$3:$L$50,7,FALSE) ->  | AC96: 0 | AD96: 0 | AE96: 3 | AF96: 0 | AG96: 0 | AH96: 0 | AI96: 0 | AJ96: 0 | AK96: 3 | AL96: 0 | AM96: 0 | AN96: 0 | AO96: 0 | AP96: 0 | AQ96: 8 | AR96: 0 | AS96: 0 | AT96: 0 | AU96: 0 | AV96: 0 | AW96: 0 | AX96: 3
C97: Ewan Gibb | D97: 1987-11-16 | E97: 29 | F97: =IFERROR(VLOOKUP(C97,'Division Lookup'!$A$2:$D$251,4,FALSE),"Second") -> First | G97: =VLOOKUP(C97,Dewsbury!$C$3:$L$46,7,FALSE) -> 0.601043997 | H97: =VLOOKUP($C97,Bradford!$C$3:$L$66,7,FALSE) -> 0.6414643852 | I97: =VLOOKUP($C97,Keighley!$C$3:$N$42,9,FALSE) ->  | J97: =VLOOKUP($C97,'Bunny '!$C$3:$N$20,9,FALSE) ->  | K97: =VLOOKUP($C97,Liverpool!$C$3:$N$59,9,FALSE) -> 0.6465161447 | L97: =VLOOKUP(C97,'VoY 10m'!$C$3:$N$40,9,FALSE) ->  | M97: =VLOOKUP(C97,Guisley!$C$3:$N$49,9,FALSE) ->  | N97: =VLOOKUP(C97,Odda!$C$3:$N$42,9,FALSE) ->  | O97: =VLOOKUP(C97,'Leeds half'!$C$4:$N$31,9,FALSE) -> 0.6133264284 | P97: =VLOOKUP(C97,Ilkley!$C$3:$L$46,7,FALSE) ->  | Q97: =VLOOKUP(C97,Otley!$C$3:$L$46,9,FALSE) ->  | R97: =VLOOKUP(C97,Solstice!$C$3:$L$48,7,FALSE) -> 0.5960912052 | S97: =VLOOKUP(C97,Eccup!$C$3:$L$46,9,FALSE) ->  | U97: =VLOOKUP(C97,Shakerr!$C$3:$L$46,7,FALSE) -> 0.4741176471 | V97: =VLOOKUP(C97,VoY!$C$3:$L$46,9,FALSE) -> 0.6244288225 | W97: =VLOOKUP(C97,Kirkstall!$C$3:$L$46,9,FALSE) ->  | X97: =VLOOKUP($C97,City!$C$3:$L$69,9,FALSE) -> 0.657336726 | Y97: =VLOOKUP(C97,'Guy Fawkes'!$C$3:$N$34,9,FALSE) ->  | Z97: =VLOOKUP(C97,Abbey!$C$3:$L$48,7,FALSE) ->  | AA97: =VLOOKUP(C97,Chevin!$C$3:$L$50,7,FALSE) ->  | AC97: 3 | AD97: 5 | AE97: 0 | AF97: 0 | AG97: 2 | AH97: 0 | AI97: 0 | AJ97: 0 | AK97: 2 | AL97: 0 | AM97: 0 | AN97: 2 | AO97: 0 | AP97: 0 | AQ97: 4 | AR97: 2 | AS97: 0 | AT97: 3 | AU97: 0 | AV97: 0 | AW97: 0 | AX97: 8
C98: James Goodall | D98: 1989-03-16 | E98: 27 | F98: =IFERROR(VLOOKUP(C98,'Division Lookup'!$A$2:$D$251,4,FALSE),"Second") -> Second | G98: =VLOOKUP(C98,Dewsbury!$C$3:$L$46,7,FALSE) ->  | H98: =VLOOKUP($C98,Bradford!$C$3:$L$66,7,FALSE) ->  | I98: =VLOOKUP($C98,Keighley!$C$3:$N$42,9,FALSE) ->  | J98: =VLOOKUP($C98,'Bunny '!$C$3:$N$20,9,FALSE) ->  | K98: =VLOOKUP($C98,Liverpool!$C$3:$N$59,9,FALSE) -> 0.6345776031 | L98: =VLOOKUP(C98,'VoY 10m'!$C$3:$N$40,9,FALSE) ->  | M98: =VLOOKUP(C98,Guisley!$C$3:$N$49,9,FALSE) ->  | N98: =VLOOKUP(C98,Odda!$C$3:$N$42,9,FALSE) ->  | O98: =VLOOKUP(C98,'Leeds half'!$C$4:$N$31,9,FALSE) ->  | P98: =VLOOKUP(C98,Ilkley!$C$3:$L$46,7,FALSE) ->  | Q98: =VLOOKUP(C98,Otley!$C$3:$L$46,9,FALSE) ->  | R98: =VLOOKUP(C98,Solstice!$C$3:$L$48,7,FALSE) ->  | S98: =VLOOKUP(C98,Eccup!$C$3:$L$46,9,FALSE) ->  | U98: =VLOOKUP(C98,Shakerr!$C$3:$L$46,7,FALSE) -> 0.4880339291 | V98: =VLOOKUP(C98,VoY!$C$3:$L$46,9,FALSE) ->  | W98: =VLOOKUP(C98,Kirkstall!$C$3:$L$46,9,FALSE) ->  | X98: =VLOOKUP($C98,City!$C$3:$L$69,9,FALSE) ->  | Y98: =VLOOKUP(C98,'Guy Fawkes'!$C$3:$N$34,9,FALSE) ->  | Z98: =VLOOKUP(C98,Abbey!$C$3:$L$48,7,FALSE) ->  | AA98: =VLOOKUP(C98,Chevin!$C$3:$L$50,7,FALSE) ->  | AC98: 0 | AD98: 0 | AE98: 0 | AF98: 0 | AG98: 3 | AH98: 0 | AI98: 0 | AJ98: 0 | AK98: 0 | AL98: 0 | AM98: 0 | AN98: 0 | AO98: 0 | AP98: 0 | AQ98: 3 | AR98: 0 | AS98: 0 | AT98: 0 | AU98: 0 | AV98: 0 | AW98: 0 | AX98: 2
C99: Laura Goodyear | D99: 1982-01-29 | E99: 34 | F99: =IFERROR(VLOOKUP(C99,'Division Lookup'!$A$2:$D$251,4,FALSE),"Second") -> Second | G99: =VLOOKUP(C99,Dewsbury!$C$3:$L$46,7,FALSE) ->  | H99: =VLOOKUP($C99,Bradford!$C$3:$L$66,7,FALSE) ->  | I99: =VLOOKUP($C99,Keighley!$C$3:$N$42,9,FALSE) ->  | J99: =VLOOKUP($C99,'Bunny '!$C$3:$N$20,9,FALSE) ->  | K99: =VLOOKUP($C99,Liverpool!$C$3:$N$59,9,FALSE) ->  | L99: =VLOOKUP(C99,'VoY 10m'!$C$3:$N$40,9,FALSE) ->  | M99: =VLOOKUP(C99,Guisley!$C$3:$N$49,9,FALSE) ->  | N99: =VLOOKUP(C99,Odda!$C$3:$N$42,9,FALSE) ->  | O99: =VLOOKUP(C99,'Leeds half'!$C$4:$N$31,9,FALSE) ->  | P99: =VLOOKUP(C99,Ilkley!$C$3:$L$46,7,FALSE) ->  | Q99: =VLOOKUP(C99,Otley!$C$3:$L$46,9,FALSE) ->  | R99: =VLOOKUP(C99,Solstice!$C$3:$L$48,7,FALSE) ->  | S99: =VLOOKUP(C99,Eccup!$C$3:$L$46,9,FALSE) ->  | U99: =VLOOKUP(C99,Shakerr!$C$3:$L$46,7,FALSE) ->  | V99: =VLOOKUP(C99,VoY!$C$3:$L$46,9,FALSE) ->  | W99: =VLOOKUP(C99,Kirkstall!$C$3:$L$46,9,FALSE) ->  | X99: =VLOOKUP($C99,City!$C$3:$L$69,9,FALSE) ->  | Y99: =VLOOKUP(C99,'Guy Fawkes'!$C$3:$N$34,9,FALSE) ->  | Z99: =VLOOKUP(C99,Abbey!$C$3:$L$48,7,FALSE) ->  | AA99: =VLOOKUP(C99,Chevin!$C$3:$L$50,7,FALSE) ->  | AC99: 0 | AD99: 0 | AE99: 0 | AF99: 0 | AG99: 0 | AH99: 0 | AI99: 0 | AJ99: 0 | AK99: 0 | AL99: 0 | AM99: 0 | AN99: 0 | AO99: 0 | AP99: 0 | AQ99: 0 | AR99: 0 | AS99: 0 | AT99: 0 | AU99: 0 | AV99: 0 | AW99: 0 | AX99: 0
C100: Rowan Grant | D100: 1982-06-17 | E100: 34 | F100: =IFERROR(VLOOKUP(C100,'Division Lookup'!$A$2:$D$251,4,FALSE),"Second") -> Second | G100: =VLOOKUP(C100,Dewsbury!$C$3:$L$46,7,FALSE) ->  | H100: =VLOOKUP($C100,Bradford!$C$3:$L$66,7,FALSE) ->  | I100: =VLOOKUP($C100,Keighley!$C$3:$N$42,9,FALSE) ->  | J100: =VLOOKUP($C100,'Bunny '!$C$3:$N$20,9,FALSE) ->  | K100: =VLOOKUP($C100,Liverpool!$C$3:$N$59,9,FALSE) ->  | L100: =VLOOKUP(C100,'VoY 10m'!$C$3:$N$40,9,FALSE) ->  | M100: =VLOOKUP(C100,Guisley!$C$3:$N$49,9,FALSE) ->  | N100: =VLOOKUP(C100,Odda!$C$3:$N$42,9,FALSE) ->  | O100: =VLOOKUP(C100,'Leeds half'!$C$4:$N$31,9,FALSE) ->  | P100: =VLOOKUP(C100,Ilkley!$C$3:$L$46,7,FALSE) ->  | Q100: =VLOOKUP(C100,Otley!$C$3:$L$46,9,FALSE) ->  | R100: =VLOOKUP(C100,Solstice!$C$3:$L$48,7,FALSE) ->  | S100: =VLOOKUP(C100,Eccup!$C$3:$L$46,9,FALSE) ->  | U100: =VLOOKUP(C100,Shakerr!$C$3:$L$46,7,FALSE) ->  | V100: =VLOOKUP(C100,VoY!$C$3:$L$46,9,FALSE) ->  | W100: =VLOOKUP(C100,Kirkstall!$C$3:$L$46,9,FALSE) ->  | X100: =VLOOKUP($C100,City!$C$3:$L$69,9,FALSE) ->  | Y100: =VLOOKUP(C100,'Guy Fawkes'!$C$3:$N$34,9,FALSE) ->  | Z100: =VLOOKUP(C100,Abbey!$C$3:$L$48,7,FALSE) ->  | AA100: =VLOOKUP(C100,Chevin!$C$3:$L$50,7,FALSE) ->  | AC100: 0 | AD100: 0 | AE100: 0 | AF100: 0 | AG100: 0 | AH100: 0 | AI100: 0 | AJ100: 0 | AK100: 0 | AL100: 0 | AM100: 0 | AN100: 0 | AO100: 0 | AP100: 0 | AQ100: 0 | AR100: 0 | AS100: 0 | AT100: 0 | AU100: 0 | AV100: 0 | AW100: 0 | AX100: 0
C101: Olivia Gregory | D101: 1991-01-08 | E101: 25 | F101: =IFERROR(VLOOKUP(C101,'Division Lookup'!$A$2:$D$251,4,FALSE),"Second") -> Second | G101: =VLOOKUP(C101,Dewsbury!$C$3:$L$46,7,FALSE) ->  | H101: =VLOOKUP($C101,Bradford!$C$3:$L$66,7,FALSE) ->  | I101: =VLOOKUP($C101,Keighley!$C$3:$N$42,9,FALSE) ->  | J101: =VLOOKUP($C101,'Bunny '!$C$3:$N$20,9,FALSE) ->  | K101: =VLOOKUP($C101,Liverpool!$C$3:$N$59,9,FALSE) ->  | L101: =VLOOKUP(C101,'VoY 10m'!$C$3:$N$40,9,FALSE) ->  | M101: =VLOOKUP(C101,Guisley!$C$3:$N$49,9,FALSE) ->  | N101: =VLOOKUP(C101,Odda!$C$3:$N$42,9,FALSE) ->  | O101: =VLOOKUP(C101,'Leeds half'!$C$4:$N$31,9,FALSE) ->  | P101: =VLOOKUP(C101,Ilkley!$C$3:$L$46,7,FALSE) ->  | Q101: =VLOOKUP(C101,Otley!$C$3:$L$46,9,FALSE) ->  | R101: =VLOOKUP(C101,Solstice!$C$3:$L$48,7,FALSE) ->  | S101: =VLOOKUP(C101,Eccup!$C$3:$L$46,9,FALSE) ->  | U101: =VLOOKUP(C101,Shakerr!$C$3:$L$46,7,FALSE) ->  | V101: =VLOOKUP(C101,VoY!$C$3:$L$46,9,FALSE) ->  | W101: =VLOOKUP(C101,Kirkstall!$C$3:$L$46,9,FALSE) ->  | X101: =VLOOKUP($C101,City!$C$3:$L$69,9,FALSE) ->  | Y101: =VLOOKUP(C101,'Guy Fawkes'!$C$3:$N$34,9,FALSE) ->  | Z101: =VLOOKUP(C101,Abbey!$C$3:$L$48,7,FALSE) ->  | AA101: =VLOOKUP(C101,Chevin!$C$3:$L$50,7,FALSE) ->  | AC101: 0 | AD101: 0 | AE101: 0 | AF101: 0 | AG101: 0 | AH101: 0 | AI101: 0 | AJ101: 0 | AK101: 0 | AL101: 0 | AM101: 0 | AN101: 0 | AO101: 0 | AP101: 0 | AQ101: 0 | AR101: 0 | AS101: 0 | AT101: 0 | AU101: 0 | AV101: 0 | AW101: 0 | AX101: 0
C102: Alun Griffiths | D102: 1957-07-19 | E102: 59 | F102: =IFERROR(VLOOKUP(C102,'Division Lookup'!$A$2:$D$251,4,FALSE),"Second") -> Premier | G102: =VLOOKUP(C102,Dewsbury!$C$3:$L$46,7,FALSE) -> 0.6785104202 | H102: =VLOOKUP($C102,Bradford!$C$3:$L$66,7,FALSE) -> 0.6655495979 | I102: =VLOOKUP($C102,Keighley!$C$3:$N$42,9,FALSE) -> 0.6181139122 | J102: =VLOOKUP($C102,'Bunny '!$C$3:$N$20,9,FALSE) -> 0.6202860858 | K102: =VLOOKUP($C102,Liverpool!$C$3:$N$59,9,FALSE) ->  | L102: =VLOOKUP(C102,'VoY 10m'!$C$3:$N$40,9,FALSE) ->  | M102: =VLOOKUP(C102,Guisley!$C$3:$N$49,9,FALSE) ->  | N102: =VLOOKUP(C102,Odda!$C$3:$N$42,9,FALSE) ->  | O102: =VLOOKUP(C102,'Leeds half'!$C$4:$N$31,9,FALSE) ->  | P102: =VLOOKUP(C102,Ilkley!$C$3:$L$46,7,FALSE) -> 0.5098844673 | Q102: =VLOOKUP(C102,Otley!$C$3:$L$46,9,FALSE) ->  | R102: =VLOOKUP(C102,Solstice!$C$3:$L$48,7,FALSE) -> 0.602750191 | S102: =VLOOKUP(C102,Eccup!$C$3:$L$46,9,FALSE) ->  | U102: =VLOOKUP(C102,Shakerr!$C$3:$L$46,7,FALSE) ->  | V102: =VLOOKUP(C102,VoY!$C$3:$L$46,9,FALSE) ->  | W102: =VLOOKUP(C102,Kirkstall!$C$3:$L$46,9,FALSE) ->  | X102: =VLOOKUP($C102,City!$C$3:$L$69,9,FALSE) -> 0.6723044397 | Y102: =VLOOKUP(C102,'Guy Fawkes'!$C$3:$N$34,9,FALSE) -> 0.641428011 | Z102: =VLOOKUP(C102,Abbey!$C$3:$L$48,7,FALSE) ->  | AA102: =VLOOKUP(C102,Chevin!$C$3:$L$50,7,FALSE) ->  | AC102: 7 | AD102: 8 | AE102: 7 | AF102: 5 | AG102: 0 | AH102: 0 | AI102: 0 | AJ102: 0 | AK102: 0 | AL102: 4 | AM102: 0 | AN102: 6 | AO102: 0 | AP102: 0 | AQ102: 0 | AR102: 0 | AS102: 0 | AT102: 7 | AU102: 4 | AV102: 0 | AW102: 0 | AX102: 8
C103: Ambrose Griffiths | D103: 1979-01-17 | E103: 37 | F103: =IFERROR(VLOOKUP(C103,'Division Lookup'!$A$2:$D$251,4,FALSE),"Second") -> Second | G103: =VLOOKUP(C103,Dewsbury!$C$3:$L$46,7,FALSE) ->  | H103: =VLOOKUP($C103,Bradford!$C$3:$L$66,7,FALSE) -> 0.5782171349 | I103: =VLOOKUP($C103,Keighley!$C$3:$N$42,9,FALSE) ->  | J103: =VLOOKUP($C103,'Bunny '!$C$3:$N$20,9,FALSE) ->  | K103: =VLOOKUP($C103,Liverpool!$C$3:$N$59,9,FALSE) ->  | L103: =VLOOKUP(C103,'VoY 10m'!$C$3:$N$40,9,FALSE) ->  | M103: =VLOOKUP(C103,Guisley!$C$3:$N$49,9,FALSE) ->  | N103: =VLOOKUP(C103,Odda!$C$3:$N$42,9,FALSE) ->  | O103: =VLOOKUP(C103,'Leeds half'!$C$4:$N$31,9,FALSE) ->  | P103: =VLOOKUP(C103,Ilkley!$C$3:$L$46,7,FALSE) ->  | Q103: =VLOOKUP(C103,Otley!$C$3:$L$46,9,FALSE) ->  | R103: =VLOOKUP(C103,Solstice!$C$3:$L$48,7,FALSE) ->  | S103: =VLOOKUP(C103,Eccup!$C$3:$L$46,9,FALSE) ->  | U103: =VLOOKUP(C103,Shakerr!$C$3:$L$46,7,FALSE) -> 0.372763864 | V103: =VLOOKUP(C103,VoY!$C$3:$L$46,9,FALSE) ->  | W103: =VLOOKUP(C103,Kirkstall!$C$3:$L$46,9,FALSE) ->  | X103: =VLOOKUP($C103,City!$C$3:$L$69,9,FALSE) ->  | Y103: =VLOOKUP(C103,'Guy Fawkes'!$C$3:$N$34,9,FALSE) ->  | Z103: =VLOOKUP(C103,Abbey!$C$3:$L$48,7,FALSE) ->  | AA103: =VLOOKUP(C103,Chevin!$C$3:$L$50,7,FALSE) ->  | AC103: 0 | AD103: 11 | AE103: 0 | AF103: 0 | AG103: 0 | AH103: 0 | AI103: 0 | AJ103: 0 | AK103: 0 | AL103: 0 | AM103: 0 | AN103: 0 | AO103: 0 | AP103: 0 | AQ103: 13 | AR103: 0 | AS103: 0 | AT103: 0 | AU103: 0 | AV103: 0 | AW103: 0 | AX103: 2
C104: Frances Guy | D104: 1967-03-28 | E104: 49 | F104: =IFERROR(VLOOKUP(C104,'Division Lookup'!$A$2:$D$251,4,FALSE),"Second") -> Second | G104: =VLOOKUP(C104,Dewsbury!$C$3:$L$46,7,FALSE) ->  | H104: =VLOOKUP($C104,Bradford!$C$3:$L$66,7,FALSE) ->  | I104: =VLOOKUP($C104,Keighley!$C$3:$N$42,9,FALSE) ->  | J104: =VLOOKUP($C104,'Bunny '!$C$3:$N$20,9,FALSE) ->  | K104: =VLOOKUP($C104,Liverpool!$C$3:$N$59,9,FALSE) ->  | L104: =VLOOKUP(C104,'VoY 10m'!$C$3:$N$40,9,FALSE) ->  | M104: =VLOOKUP(C104,Guisley!$C$3:$N$49,9,FALSE) ->  | N104: =VLOOKUP(C104,Odda!$C$3:$N$42,9,FALSE) ->  | O104: =VLOOKUP(C104,'Leeds half'!$C$4:$N$31,9,FALSE) ->  | P104: =VLOOKUP(C104,Ilkley!$C$3:$L$46,7,FALSE) ->  | Q104: =VLOOKUP(C104,Otley!$C$3:$L$46,9,FALSE) ->  | R104: =VLOOKUP(C104,Solstice!$C$3:$L$48,7,FALSE) ->  | S104: =VLOOKUP(C104,Eccup!$C$3:$L$46,9,FALSE) ->  | U104: =VLOOKUP(C104,Shakerr!$C$3:$L$46,7,FALSE) ->  | V104: =VLOOKUP(C104,VoY!$C$3:$L$46,9,FALSE) ->  | W104: =VLOOKUP(C104,Kirkstall!$C$3:$L$46,9,FALSE) ->  | X104: =VLOOKUP($C104,City!$C$3:$L$69,9,FALSE) -> 0.58640553 | Y104: =VLOOKUP(C104,'Guy Fawkes'!$C$3:$N$34,9,FALSE) ->  | Z104: =VLOOKUP(C104,Abbey!$C$3:$L$48,7,FALSE) ->  | AA104: =VLOOKUP(C104,Chevin!$C$3:$L$50,7,FALSE) ->  | AC104: 0 | AD104: 0 | AE104: 0 | AF104: 0 | AG104: 0 | AH104: 0 | AI104: 0 | AJ104: 0 | AK104: 0 | AL104: 0 | AM104: 0 | AN104: 0 | AO104: 0 | AP104: 0 | AQ104: 0 | AR104: 0 | AS104: 0 | AT104: 6 | AU104: 0 | AV104: 0 | AW104: 0 | AX104: 1
C105: Robert Hague | D105: 1963-12-11 | E105: 53 | F105: =IFERROR(VLOOKUP(C105,'Division Lookup'!$A$2:$D$251,4,FALSE),"Second") -> First | G105: =VLOOKUP(C105,Dewsbury!$C$3:$L$46,7,FALSE) ->  | H105: =VLOOKUP($C105,Bradford!$C$3:$L$66,7,FALSE) ->  | I105: =VLOOKUP($C105,Keighley!$C$3:$N$42,9,FALSE) ->  | J105: =VLOOKUP($C105,'Bunny '!$C$3:$N$20,9,FALSE) ->  | K105: =VLOOKUP($C105,Liverpool!$C$3:$N$59,9,FALSE) ->  | L105: =VLOOKUP(C105,'VoY 10m'!$C$3:$N$40,9,FALSE) ->  | M105: =VLOOKUP(C105,Guisley!$C$3:$N$49,9,FALSE) ->  | N105: =VLOOKUP(C105,Odda!$C$3:$N$42,9,FALSE) ->  | O105: =VLOOKUP(C105,'Leeds half'!$C$4:$N$31,9,FALSE) ->  | P105: =VLOOKUP(C105,Ilkley!$C$3:$L$46,7,FALSE) ->  | Q105: =VLOOKUP(C105,Otley!$C$3:$L$46,9,FALSE) ->  | R105: =VLOOKUP(C105,Solstice!$C$3:$L$48,7,FALSE) ->  | S105: =VLOOKUP(C105,Eccup!$C$3:$L$46,9,FALSE) ->  | U105: =VLOOKUP(C105,Shakerr!$C$3:$L$46,7,FALSE) ->  | V105: =VLOOKUP(C105,VoY!$C$3:$L$46,9,FALSE) ->  | W105: =VLOOKUP(C105,Kirkstall!$C$3:$L$46,9,FALSE) ->  | X105: =VLOOKUP($C105,City!$C$3:$L$69,9,FALSE) ->  | Y105: =VLOOKUP(C105,'Guy Fawkes'!$C$3:$N$34,9,FALSE) ->  | Z105: =VLOOKUP(C105,Abbey!$C$3:$L$48,7,FALSE) ->  | AA105: =VLOOKUP(C105,Chevin!$C$3:$L$50,7,FALSE) ->  | AC105: 0 | AD105: 0 | AE105: 0 | AF105: 0 | AG105: 0 | AH105: 0 | AI105: 0 | AJ105: 0 | AK105: 0 | AL105: 0 | AM105: 0 | AN105: 0 | AO105: 0 | AP105: 0 | AQ105: 0 | AR105: 0 | AS105: 0 | AT105: 0 | AU105: 0 | AV105: 0 | AW105: 0 | AX105: 0
C106: Suzanne Hague | D106: 1965-02-19 | E106: 51 | F106: =IFERROR(VLOOKUP(C106,'Division Lookup'!$A$2:$D$251,4,FALSE),"Second") -> Premier | G106: =VLOOKUP(C106,Dewsbury!$C$3:$L$46,7,FALSE) -> 0.6194716533 | H106: =VLOOKUP($C106,Bradford!$C$3:$L$66,7,FALSE) ->  | I106: =VLOOKUP($C106,Keighley!$C$3:$N$42,9,FALSE) -> 0.5773167358 | J106: =VLOOKUP($C106,'Bunny '!$C$3:$N$20,9,FALSE) ->  | K106: =VLOOKUP($C106,Liverpool!$C$3:$N$59,9,FALSE) -> 0.5920794667 | L106: =VLOOKUP(C106,'VoY 10m'!$C$3:$N$40,9,FALSE) ->  | M106: =VLOOKUP(C106,Guisley!$C$3:$N$49,9,FALSE) ->  | N106: =VLOOKUP(C106,Odda!$C$3:$N$42,9,FALSE) ->  | O106: =VLOOKUP(C106,'Leeds half'!$C$4:$N$31,9,FALSE) ->  | P106: =VLOOKUP(C106,Ilkley!$C$3:$L$46,7,FALSE) ->  | Q106: =VLOOKUP(C106,Otley!$C$3:$L$46,9,FALSE) ->  | R106: =VLOOKUP(C106,Solstice!$C$3:$L$48,7,FALSE) ->  | S106: =VLOOKUP(C106,Eccup!$C$3:$L$46,9,FALSE) ->  | U106: =VLOOKUP(C106,Shakerr!$C$3:$L$46,7,FALSE) ->  | V106: =VLOOKUP(C106,VoY!$C$3:$L$46,9,FALSE) ->  | W106: =VLOOKUP(C106,Kirkstall!$C$3:$L$46,9,FALSE) ->  | X106: =VLOOKUP($C106,City!$C$3:$L$69,9,FALSE) -> 0.5925610449 | Y106: =VLOOKUP(C106,'Guy Fawkes'!$C$3:$N$34,9,FALSE) ->  | Z106: =VLOOKUP(C106,Abbey!$C$3:$L$48,7,FALSE) -> 0.5382118619 | AA106: =VLOOKUP(C106,Chevin!$C$3:$L$50,7,FALSE) ->  | AC106: 12 | AD106: 0 | AE106: 10 | AF106: 0 | AG106: 16 | AH106: 0 | AI106: 0 | AJ106: 0 | AK106: 0 | AL106: 0 | AM106: 0 | AN106: 0 | AO106: 0 | AP106: 0 | AQ106: 0 | AR106: 0 | AS106: 0 | AT106: 15 | AU106: 0 | AV106: 7 | AW106: 0 | AX106: 5
C107: Liz Halfpenny | D107: 1981-03-11 | E107: 35 | F107: =IFERROR(VLOOKUP(C107,'Division Lookup'!$A$2:$D$251,4,FALSE),"Second") -> Second | G107: =VLOOKUP(C107,Dewsbury!$C$3:$L$46,7,FALSE) ->  | H107: =VLOOKUP($C107,Bradford!$C$3:$L$66,7,FALSE) ->  | I107: =VLOOKUP($C107,Keighley!$C$3:$N$42,9,FALSE) ->  | J107: =VLOOKUP($C107,'Bunny '!$C$3:$N$20,9,FALSE) ->  | K107: =VLOOKUP($C107,Liverpool!$C$3:$N$59,9,FALSE) ->  | L107: =VLOOKUP(C107,'VoY 10m'!$C$3:$N$40,9,FALSE) ->  | M107: =VLOOKUP(C107,Guisley!$C$3:$N$49,9,FALSE) ->  | N107: =VLOOKUP(C107,Odda!$C$3:$N$42,9,FALSE) ->  | O107: =VLOOKUP(C107,'Leeds half'!$C$4:$N$31,9,FALSE) ->  | P107: =VLOOKUP(C107,Ilkley!$C$3:$L$46,7,FALSE) ->  | Q107: =VLOOKUP(C107,Otley!$C$3:$L$46,9,FALSE) ->  | R107: =VLOOKUP(C107,Solstice!$C$3:$L$48,7,FALSE) ->  | S107: =VLOOKUP(C107,Eccup!$C$3:$L$46,9,FALSE) ->  | U107: =VLOOKUP(C107,Shakerr!$C$3:$L$46,7,FALSE) ->  | V107: =VLOOKUP(C107,VoY!$C$3:$L$46,9,FALSE) ->  | W107: =VLOOKUP(C107,Kirkstall!$C$3:$L$46,9,FALSE) ->  | X107: =VLOOKUP($C107,City!$C$3:$L$69,9,FALSE) ->  | Y107: =VLOOKUP(C107,'Guy Fawkes'!$C$3:$N$34,9,FALSE) ->  | Z107: =VLOOKUP(C107,Abbey!$C$3:$L$48,7,FALSE) ->  | AA107: =VLOOKUP(C107,Chevin!$C$3:$L$50,7,FALSE) ->  | AC107: 0 | AD107: 0 | AE107: 0 | AF107: 0 | AG107: 0 | AH107: 0 | AI107: 0 | AJ107: 0 | AK107: 0 | AL107: 0 | AM107: 0 | AN107: 0 | AO107: 0 | AP107: 0 | AQ107: 0 | AR107: 0 | AS107: 0 | AT107: 0 | AU107: 0 | AV107: 0 | AW107: 0 | AX107: 0
C108: Emma Hall | D108: 1988-05-24 | E108: 28 | F108: =IFERROR(VLOOKUP(C108,'Division Lookup'!$A$2:$D$251,4,FALSE),"Second") -> Second | G108: =VLOOKUP(C108,Dewsbury!$C$3:$L$46,7,FALSE) ->  | H108: =VLOOKUP($C108,Bradford!$C$3:$L$66,7,FALSE) ->  | I108: =VLOOKUP($C108,Keighley!$C$3:$N$42,9,FALSE) ->  | J108: =VLOOKUP($C108,'Bunny '!$C$3:$N$20,9,FALSE) ->  | K108: =VLOOKUP($C108,Liverpool!$C$3:$N$59,9,FALSE) ->  | L108: =VLOOKUP(C108,'VoY 10m'!$C$3:$N$40,9,FALSE) ->  | M108: =VLOOKUP(C108,Guisley!$C$3:$N$49,9,FALSE) ->  | N108: =VLOOKUP(C108,Odda!$C$3:$N$42,9,FALSE) ->  | O108: =VLOOKUP(C108,'Leeds half'!$C$4:$N$31,9,FALSE) ->  | P108: =VLOOKUP(C108,Ilkley!$C$3:$L$46,7,FALSE) ->  | Q108: =VLOOKUP(C108,Otley!$C$3:$L$46,9,FALSE) ->  | R108: =VLOOKUP(C108,Solstice!$C$3:$L$48,7,FALSE) ->  | S108: =VLOOKUP(C108,Eccup!$C$3:$L$46,9,FALSE) ->  | U108: =VLOOKUP(C108,Shakerr!$C$3:$L$46,7,FALSE) ->  | V108: =VLOOKUP(C108,VoY!$C$3:$L$46,9,FALSE) ->  | W108: =VLOOKUP(C108,Kirkstall!$C$3:$L$46,9,FALSE) ->  | X108: =VLOOKUP($C108,City!$C$3:$L$69,9,FALSE) ->  | Y108: =VLOOKUP(C108,'Guy Fawkes'!$C$3:$N$34,9,FALSE) ->  | Z108: =VLOOKUP(C108,Abbey!$C$3:$L$48,7,FALSE) ->  | AA108: =VLOOKUP(C108,Chevin!$C$3:$L$50,7,FALSE) ->  | AC108: 0 | AD108: 0 | AE108: 0 | AF108: 0 | AG108: 0 | AH108: 0 | AI108: 0 | AJ108: 0 | AK108: 0 | AL108: 0 | AM108: 0 | AN108: 0 | AO108: 0 | AP108: 0 | AQ108: 0 | AR108: 0 | AS108: 0 | AT108: 0 | AU108: 0 | AV108: 0 | AW108: 0 | AX108: 0
C109: Gavin Hamilton | D109: 1976-09-24 | E109: 40 | F109: =IFERROR(VLOOKUP(C109,'Division Lookup'!$A$2:$D$251,4,FALSE),"Second") -> First | G109: =VLOOKUP(C109,Dewsbury!$C$3:$L$46,7,FALSE) ->  | H109: =VLOOKUP($C109,Bradford!$C$3:$L$66,7,FALSE) -> 0.5823087432 | I109: =VLOOKUP($C109,Keighley!$C$3:$N$42,9,FALSE) ->  | J109: =VLOOKUP($C109,'Bunny '!$C$3:$N$20,9,FALSE) ->  | K109: =VLOOKUP($C109,Liverpool!$C$3:$N$59,9,FALSE) -> 0.5637471439 | L109: =VLOOKUP(C109,'VoY 10m'!$C$3:$N$40,9,FALSE) ->  | M109: =VLOOKUP(C109,Guisley!$C$3:$N$49,9,FALSE) ->  | N109: =VLOOKUP(C109,Odda!$C$3:$N$42,9,FALSE) ->  | O109: =VLOOKUP(C109,'Leeds half'!$C$4:$N$31,9,FALSE) -> 0.5489469 | P109: =VLOOKUP(C109,Ilkley!$C$3:$L$46,7,FALSE) ->  | Q109: =VLOOKUP(C109,Otley!$C$3:$L$46,9,FALSE) ->  | R109: =VLOOKUP(C109,Solstice!$C$3:$L$48,7,FALSE) ->  | S109: =VLOOKUP(C109,Eccup!$C$3:$L$46,9,FALSE) -> 0.5423630004 | U109: =VLOOKUP(C109,Shakerr!$C$3:$L$46,7,FALSE) ->  | V109: =VLOOKUP(C109,VoY!$C$3:$L$46,9,FALSE) ->  | W109: =VLOOKUP(C109,Kirkstall!$C$3:$L$46,9,FALSE) ->  | X109: =VLOOKUP($C109,City!$C$3:$L$69,9,FALSE) ->  | Y109: =VLOOKUP(C109,'Guy Fawkes'!$C$3:$N$34,9,FALSE) ->  | Z109: =VLOOKUP(C109,Abbey!$C$3:$L$48,7,FALSE) ->  | AA109: =VLOOKUP(C109,Chevin!$C$3:$L$50,7,FALSE) ->  | AC109: 0 | AD109: 8 | AE109: 0 | AF109: 0 | AG109: 6 | AH109: 0 | AI109: 0 | AJ109: 0 | AK109: 5 | AL109: 0 | AM109: 0 | AN109: 0 | AO109: 1 | AP109: 0 | AQ109: 0 | AR109: 0 | AS109: 0 | AT109: 0 | AU109: 0 | AV109: 0 | AW109: 0 | AX109: 4
C110: Liz Hamilton | D110: 1975-10-29 | E110: 41 | F110: =IFERROR(VLOOKUP(C110,'Division Lookup'!$A$2:$D$251,4,FALSE),"Second") -> First | G110: =VLOOKUP(C110,Dewsbury!$C$3:$L$46,7,FALSE) ->  | H110: =VLOOKUP($C110,Bradford!$C$3:$L$66,7,FALSE) -> 0.549042368 | I110: =VLOOKUP($C110,Keighley!$C$3:$N$42,9,FALSE) ->  | J110: =VLOOKUP($C110,'Bunny '!$C$3:$N$20,9,FALSE) ->  | K110: =VLOOKUP($C110,Liverpool!$C$3:$N$59,9,FALSE) ->  | L110: =VLOOKUP(C110,'VoY 10m'!$C$3:$N$40,9,FALSE) ->  | M110: =VLOOKUP(C110,Guisley!$C$3:$N$49,9,FALSE) ->  | N110: =VLOOKUP(C110,Odda!$C$3:$N$42,9,FALSE) ->  | O110: =VLOOKUP(C110,'Leeds half'!$C$4:$N$31,9,FALSE) ->  | P110: =VLOOKUP(C110,Ilkley!$C$3:$L$46,7,FALSE) ->  | Q110: =VLOOKUP(C110,Otley!$C$3:$L$46,9,FALSE) ->  | R110: =VLOOKUP(C110,Solstice!$C$3:$L$48,7,FALSE) -> 0.4643296433 | S110: =VLOOKUP(C110,Eccup!$C$3:$L$46,9,FALSE) ->  | U110: =VLOOKUP(C110,Shakerr!$C$3:$L$46,7,FALSE) ->  | V110: =VLOOKUP(C110,VoY!$C$3:$L$46,9,FALSE) ->  | W110: =VLOOKUP(C110,Kirkstall!$C$3:$L$46,9,FALSE) ->  | X110: =VLOOKUP($C110,City!$C$3:$L$69,9,FALSE) ->  | Y110: =VLOOKUP(C110,'Guy Fawkes'!$C$3:$N$34,9,FALSE) -> 0.4470588235 | Z110: =VLOOKUP(C110,Abbey!$C$3:$L$48,7,FALSE) ->  | AA110: =VLOOKUP(C110,Chevin!$C$3:$L$50,7,FALSE) ->  | AC110: 0 | AD110: 10 | AE110: 0 | AF110: 0 | AG110: 0 | AH110: 0 | AI110: 0 | AJ110: 0 | AK110: 0 | AL110: 0 | AM110: 0 | AN110: 7 | AO110: 0 | AP110: 0 | AQ110: 0 | AR110: 0 | AS110: 0 | AT110: 0 | AU110: 3 | AV110: 0 | AW110: 0 | AX110: 3
C111: Abby Hanson | D111: 1975-05-10 | E111: 41 | F111: =IFERROR(VLOOKUP(C111,'Division Lookup'!$A$2:$D$251,4,FALSE),"Second") -> Second | G111: =VLOOKUP(C111,Dewsbury!$C$3:$L$46,7,FALSE) ->  | H111: =VLOOKUP($C111,Bradford!$C$3:$L$66,7,FALSE) ->  | I111: =VLOOKUP($C111,Keighley!$C$3:$N$42,9,FALSE) ->  | J111: =VLOOKUP($C111,'Bunny '!$C$3:$N$20,9,FALSE) ->  | K111: =VLOOKUP($C111,Liverpool!$C$3:$N$59,9,FALSE) ->  | L111: =VLOOKUP(C111,'VoY 10m'!$C$3:$N$40,9,FALSE) ->  | M111: =VLOOKUP(C111,Guisley!$C$3:$N$49,9,FALSE) ->  | N111: =VLOOKUP(C111,Odda!$C$3:$N$42,9,FALSE) ->  | O111: =VLOOKUP(C111,'Leeds half'!$C$4:$N$31,9,FALSE) ->  | P111: =VLOOKUP(C111,Ilkley!$C$3:$L$46,7,FALSE) ->  | Q111: =VLOOKUP(C111,Otley!$C$3:$L$46,9,FALSE) ->  | R111: =VLOOKUP(C111,Solstice!$C$3:$L$48,7,FALSE) ->  | S111: =VLOOKUP(C111,Eccup!$C$3:$L$46,9,FALSE) ->  | U111: =VLOOKUP(C111,Shakerr!$C$3:$L$46,7,FALSE) ->  | V111: =VLOOKUP(C111,VoY!$C$3:$L$46,9,FALSE) ->  | W111: =VLOOKUP(C111,Kirkstall!$C$3:$L$46,9,FALSE) ->  | X111: =VLOOKUP($C111,City!$C$3:$L$69,9,FALSE) ->  | Y111: =VLOOKUP(C111,'Guy Fawkes'!$C$3:$N$34,9,FALSE) ->  | Z111: =VLOOKUP(C111,Abbey!$C$3:$L$48,7,FALSE) ->  | AA111: =VLOOKUP(C111,Chevin!$C$3:$L$50,7,FALSE) ->  | AC111: 0 | AD111: 0 | AE111: 0 | AF111: 0 | AG111: 0 | AH111: 0 | AI111: 0 | AJ111: 0 | AK111: 0 | AL111: 0 | AM111: 0 | AN111: 0 | AO111: 0 | AP111: 0 | AQ111: 0 | AR111: 0 | AS111: 0 | AT111: 0 | AU111: 0 | AV111: 0 | AW111: 0 | AX111: 0
C112: lynsey hardiman | D112: 1975-04-22 | E112: 41 | F112: =IFERROR(VLOOKUP(C112,'Division Lookup'!$A$2:$D$251,4,FALSE),"Second") -> Second | G112: =VLOOKUP(C112,Dewsbury!$C$3:$L$46,7,FALSE) ->  | H112: =VLOOKUP($C112,Bradford!$C$3:$L$66,7,FALSE) ->  | I112: =VLOOKUP($C112,Keighley!$C$3:$N$42,9,FALSE) ->  | J112: =VLOOKUP($C112,'Bunny '!$C$3:$N$20,9,FALSE) ->  | K112: =VLOOKUP($C112,Liverpool!$C$3:$N$59,9,FALSE) ->  | L112: =VLOOKUP(C112,'VoY 10m'!$C$3:$N$40,9,FALSE) ->  | M112: =VLOOKUP(C112,Guisley!$C$3:$N$49,9,FALSE) ->  | N112: =VLOOKUP(C112,Odda!$C$3:$N$42,9,FALSE) ->  | O112: =VLOOKUP(C112,'Leeds half'!$C$4:$N$31,9,FALSE) ->  | P112: =VLOOKUP(C112,Ilkley!$C$3:$L$46,7,FALSE) ->  | Q112: =VLOOKUP(C112,Otley!$C$3:$L$46,9,FALSE) ->  | R112: =VLOOKUP(C112,Solstice!$C$3:$L$48,7,FALSE) ->  | S112: =VLOOKUP(C112,Eccup!$C$3:$L$46,9,FALSE) ->  | U112: =VLOOKUP(C112,Shakerr!$C$3:$L$46,7,FALSE) ->  | V112: =VLOOKUP(C112,VoY!$C$3:$L$46,9,FALSE) ->  | W112: =VLOOKUP(C112,Kirkstall!$C$3:$L$46,9,FALSE) ->  | X112: =VLOOKUP($C112,City!$C$3:$L$69,9,FALSE) ->  | Y112: =VLOOKUP(C112,'Guy Fawkes'!$C$3:$N$34,9,FALSE) ->  | Z112: =VLOOKUP(C112,Abbey!$C$3:$L$48,7,FALSE) ->  | AA112: =VLOOKUP(C112,Chevin!$C$3:$L$50,7,FALSE) ->  | AC112: 0 | AD112: 0 | AE112: 0 | AF112: 0 | AG112: 0 | AH112: 0 | AI112: 0 | AJ112: 0 | AK112: 0 | AL112: 0 | AM112: 0 | AN112: 0 | AO112: 0 | AP112: 0 | AQ112: 0 | AR112: 0 | AS112: 0 | AT112: 0 | AU112: 0 | AV112: 0 | AW112: 0 | AX112: 0
C113: Anna Harding | D113: 1987-09-03 | E113: 29 | F113: =IFERROR(VLOOKUP(C113,'Division Lookup'!$A$2:$D$251,4,FALSE),"Second") -> Second | G113: =VLOOKUP(C113,Dewsbury!$C$3:$L$46,7,FALSE) ->  | H113: =VLOOKUP($C113,Bradford!$C$3:$L$66,7,FALSE) ->  | I113: =VLOOKUP($C113,Keighley!$C$3:$N$42,9,FALSE) ->  | J113: =VLOOKUP($C113,'Bunny '!$C$3:$N$20,9,FALSE) ->  | K113: =VLOOKUP($C113,Liverpool!$C$3:$N$59,9,FALSE) ->  | L113: =VLOOKUP(C113,'VoY 10m'!$C$3:$N$40,9,FALSE) ->  | M113: =VLOOKUP(C113,Guisley!$C$3:$N$49,9,FALSE) ->  | N113: =VLOOKUP(C113,Odda!$C$3:$N$42,9,FALSE) ->  | O113: =VLOOKUP(C113,'Leeds half'!$C$4:$N$31,9,FALSE) ->  | P113: =VLOOKUP(C113,Ilkley!$C$3:$L$46,7,FALSE) ->  | Q113: =VLOOKUP(C113,Otley!$C$3:$L$46,9,FALSE) ->  | R113: =VLOOKUP(C113,Solstice!$C$3:$L$48,7,FALSE) ->  | S113: =VLOOKUP(C113,Eccup!$C$3:$L$46,9,FALSE) ->  | U113: =VLOOKUP(C113,Shakerr!$C$3:$L$46,7,FALSE) ->  | V113: =VLOOKUP(C113,VoY!$C$3:$L$46,9,FALSE) ->  | W113: =VLOOKUP(C113,Kirkstall!$C$3:$L$46,9,FALSE) ->  | X113: =VLOOKUP($C113,City!$C$3:$L$69,9,FALSE) ->  | Y113: =VLOOKUP(C113,'Guy Fawkes'!$C$3:$N$34,9,FALSE) ->  | Z113: =VLOOKUP(C113,Abbey!$C$3:$L$48,7,FALSE) ->  | AA113: =VLOOKUP(C113,Chevin!$C$3:$L$50,7,FALSE) ->  | AC113: 0 | AD113: 0 | AE113: 0 | AF113: 0 | AG113: 0 | AH113: 0 | AI113: 0 | AJ113: 0 | AK113: 0 | AL113: 0 | AM113: 0 | AN113: 0 | AO113: 0 | AP113: 0 | AQ113: 0 | AR113: 0 | AS113: 0 | AT113: 0 | AU113: 0 | AV113: 0 | AW113: 0 | AX113: 0
C114: Jane Hart | D114: 1957-12-17 | E114: 59 | F114: =IFERROR(VLOOKUP(C114,'Division Lookup'!$A$2:$D$251,4,FALSE),"Second") -> First | G114: =VLOOKUP(C114,Dewsbury!$C$3:$L$46,7,FALSE) ->  | H114: =VLOOKUP($C114,Bradford!$C$3:$L$66,7,FALSE) ->  | I114: =VLOOKUP($C114,Keighley!$C$3:$N$42,9,FALSE) ->  | J114: =VLOOKUP($C114,'Bunny '!$C$3:$N$20,9,FALSE) ->  | K114: =VLOOKUP($C114,Liverpool!$C$3:$N$59,9,FALSE) ->  | L114: =VLOOKUP(C114,'VoY 10m'!$C$3:$N$40,9,FALSE) ->  | M114: =VLOOKUP(C114,Guisley!$C$3:$N$49,9,FALSE) ->  | N114: =VLOOKUP(C114,Odda!$C$3:$N$42,9,FALSE) ->  | O114: =VLOOKUP(C114,'Leeds half'!$C$4:$N$31,9,FALSE) ->  | P114: =VLOOKUP(C114,Ilkley!$C$3:$L$46,7,FALSE) ->  | Q114: =VLOOKUP(C114,Otley!$C$3:$L$46,9,FALSE) ->  | R114: =VLOOKUP(C114,Solstice!$C$3:$L$48,7,FALSE) ->  | S114: =VLOOKUP(C114,Eccup!$C$3:$L$46,9,FALSE) ->  | U114: =VLOOKUP(C114,Shakerr!$C$3:$L$46,7,FALSE) ->  | V114: =VLOOKUP(C114,VoY!$C$3:$L$46,9,FALSE) ->  | W114: =VLOOKUP(C114,Kirkstall!$C$3:$L$46,9,FALSE) ->  | X114: =VLOOKUP($C114,City!$C$3:$L$69,9,FALSE) ->  | Y114: =VLOOKUP(C114,'Guy Fawkes'!$C$3:$N$34,9,FALSE) ->  | Z114: =VLOOKUP(C114,Abbey!$C$3:$L$48,7,FALSE) ->  | AA114: =VLOOKUP(C114,Chevin!$C$3:$L$50,7,FALSE) ->  | AC114: 0 | AD114: 0 | AE114: 0 | AF114: 0 | AG114: 0 | AH114: 0 | AI114: 0 | AJ114: 0 | AK114: 0 | AL114: 0 | AM114: 0 | AN114: 0 | AO114: 0 | AP114: 0 | AQ114: 0 | AR114: 0 | AS114: 0 | AT114: 0 | AU114: 0 | AV114: 0 | AW114: 0 | AX114: 0
C115: Tony Hart | D115: 1960-11-20 | E115: 56 | F115: =IFERROR(VLOOKUP(C115,'Division Lookup'!$A$2:$D$251,4,FALSE),"Second") -> First | G115: =VLOOKUP(C115,Dewsbury!$C$3:$L$46,7,FALSE) ->  | H115: =VLOOKUP($C115,Bradford!$C$3:$L$66,7,FALSE) ->  | I115: =VLOOKUP($C115,Keighley!$C$3:$N$42,9,FALSE) ->  | J115: =VLOOKUP($C115,'Bunny '!$C$3:$N$20,9,FALSE) ->  | K115: =VLOOKUP($C115,Liverpool!$C$3:$N$59,9,FALSE) ->  | L115: =VLOOKUP(C115,'VoY 10m'!$C$3:$N$40,9,FALSE) ->  | M115: =VLOOKUP(C115,Guisley!$C$3:$N$49,9,FALSE) ->  | N115: =VLOOKUP(C115,Odda!$C$3:$N$42,9,FALSE) ->  | O115: =VLOOKUP(C115,'Leeds half'!$C$4:$N$31,9,FALSE) ->  | P115: =VLOOKUP(C115,Ilkley!$C$3:$L$46,7,FALSE) ->  | Q115: =VLOOKUP(C115,Otley!$C$3:$L$46,9,FALSE) ->  | R115: =VLOOKUP(C115,Solstice!$C$3:$L$48,7,FALSE) ->  | S115: =VLOOKUP(C115,Eccup!$C$3:$L$46,9,FALSE) ->  | U115: =VLOOKUP(C115,Shakerr!$C$3:$L$46,7,FALSE) ->  | V115: =VLOOKUP(C115,VoY!$C$3:$L$46,9,FALSE) ->  | W115: =VLOOKUP(C115,Kirkstall!$C$3:$L$46,9,FALSE) ->  | X115: =VLOOKUP($C115,City!$C$3:$L$69,9,FALSE) ->  | Y115: =VLOOKUP(C115,'Guy Fawkes'!$C$3:$N$34,9,FALSE) ->  | Z115: =VLOOKUP(C115,Abbey!$C$3:$L$48,7,FALSE) ->  | AA115: =VLOOKUP(C115,Chevin!$C$3:$L$50,7,FALSE) ->  | AC115: 0 | AD115: 0 | AE115: 0 | AF115: 0 | AG115: 0 | AH115: 0 | AI115: 0 | AJ115: 0 | AK115: 0 | AL115: 0 | AM115: 0 | AN115: 0 | AO115: 0 | AP115: 0 | AQ115: 0 | AR115: 0 | AS115: 0 | AT115: 0 | AU115: 0 | AV115: 0 | AW115: 0 | AX115: 0
C116: Louise Hawksworth | D116: 1982-10-11 | E116: 34 | F116: =IFERROR(VLOOKUP(C116,'Division Lookup'!$A$2:$D$251,4,FALSE),"Second") -> Second | G116: =VLOOKUP(C116,Dewsbury!$C$3:$L$46,7,FALSE) ->  | H116: =VLOOKUP($C116,Bradford!$C$3:$L$66,7,FALSE) ->  | I116: =VLOOKUP($C116,Keighley!$C$3:$N$42,9,FALSE) ->  | J116: =VLOOKUP($C116,'Bunny '!$C$3:$N$20,9,FALSE) ->  | K116: =VLOOKUP($C116,Liverpool!$C$3:$N$59,9,FALSE) ->  | L116: =VLOOKUP(C116,'VoY 10m'!$C$3:$N$40,9,FALSE) ->  | M116: =VLOOKUP(C116,Guisley!$C$3:$N$49,9,FALSE) ->  | N116: =VLOOKUP(C116,Odda!$C$3:$N$42,9,FALSE) ->  | O116: =VLOOKUP(C116,'Leeds half'!$C$4:$N$31,9,FALSE) ->  | P116: =VLOOKUP(C116,Ilkley!$C$3:$L$46,7,FALSE) ->  | Q116: =VLOOKUP(C116,Otley!$C$3:$L$46,9,FALSE) ->  | R116: =VLOOKUP(C116,Solstice!$C$3:$L$48,7,FALSE) ->  | S116: =VLOOKUP(C116,Eccup!$C$3:$L$46,9,FALSE) ->  | U116: =VLOOKUP(C116,Shakerr!$C$3:$L$46,7,FALSE) ->  | V116: =VLOOKUP(C116,VoY!$C$3:$L$46,9,FALSE) ->  | W116: =VLOOKUP(C116,Kirkstall!$C$3:$L$46,9,FALSE) ->  | X116: =VLOOKUP($C116,City!$C$3:$L$69,9,FALSE) ->  | Y116: =VLOOKUP(C116,'Guy Fawkes'!$C$3:$N$34,9,FALSE) ->  | Z116: =VLOOKUP(C116,Abbey!$C$3:$L$48,7,FALSE) ->  | AA116: =VLOOKUP(C116,Chevin!$C$3:$L$50,7,FALSE) ->  | AC116: 0 | AD116: 0 | AE116: 0 | AF116: 0 | AG116: 0 | AH116: 0 | AI116: 0 | AJ116: 0 | AK116: 0 | AL116: 0 | AM116: 0 | AN116: 0 | AO116: 0 | AP116: 0 | AQ116: 0 | AR116: 0 | AS116: 0 | AT116: 0 | AU116: 0 | AV116: 0 | AW116: 0 | AX116: 0
C117: Dalvinder Hellawell | D117: 1968-09-30 | E117: 48 | F117: =IFERROR(VLOOKUP(C117,'Division Lookup'!$A$2:$D$251,4,FALSE),"Second") -> Second | G117: =VLOOKUP(C117,Dewsbury!$C$3:$L$46,7,FALSE) ->  | H117: =VLOOKUP($C117,Bradford!$C$3:$L$66,7,FALSE) ->  | I117: =VLOOKUP($C117,Keighley!$C$3:$N$42,9,FALSE) ->  | J117: =VLOOKUP($C117,'Bunny '!$C$3:$N$20,9,FALSE) ->  | K117: =VLOOKUP($C117,Liverpool!$C$3:$N$59,9,FALSE) ->  | L117: =VLOOKUP(C117,'VoY 10m'!$C$3:$N$40,9,FALSE) ->  | M117: =VLOOKUP(C117,Guisley!$C$3:$N$49,9,FALSE) ->  | N117: =VLOOKUP(C117,Odda!$C$3:$N$42,9,FALSE) ->  | O117: =VLOOKUP(C117,'Leeds half'!$C$4:$N$31,9,FALSE) ->  | P117: =VLOOKUP(C117,Ilkley!$C$3:$L$46,7,FALSE) ->  | Q117: =VLOOKUP(C117,Otley!$C$3:$L$46,9,FALSE) ->  | R117: =VLOOKUP(C117,Solstice!$C$3:$L$48,7,FALSE) ->  | S117: =VLOOKUP(C117,Eccup!$C$3:$L$46,9,FALSE) ->  | U117: =VLOOKUP(C117,Shakerr!$C$3:$L$46,7,FALSE) ->  | V117: =VLOOKUP(C117,VoY!$C$3:$L$46,9,FALSE) ->  | W117: =VLOOKUP(C117,Kirkstall!$C$3:$L$46,9,FALSE) ->  | X117: =VLOOKUP($C117,City!$C$3:$L$69,9,FALSE) ->  | Y117: =VLOOKUP(C117,'Guy Fawkes'!$C$3:$N$34,9,FALSE) ->  | Z117: =VLOOKUP(C117,Abbey!$C$3:$L$48,7,FALSE) ->  | AA117: =VLOOKUP(C117,Chevin!$C$3:$L$50,7,FALSE) ->  | AC117: 0 | AD117: 0 | AE117: 0 | AF117: 0 | AG117: 0 | AH117: 0 | AI117: 0 | AJ117: 0 | AK117: 0 | AL117: 0 | AM117: 0 | AN117: 0 | AO117: 0 | AP117: 0 | AQ117: 0 | AR117: 0 | AS117: 0 | AT117: 0 | AU117: 0 | AV117: 0 | AW117: 0 | AX117: 0
C118: Rachel Herar | D118: 1981-10-14 | E118: 35 | F118: =IFERROR(VLOOKUP(C118,'Division Lookup'!$A$2:$D$251,4,FALSE),"Second") -> Second | G118: =VLOOKUP(C118,Dewsbury!$C$3:$L$46,7,FALSE) ->  | H118: =VLOOKUP($C118,Bradford!$C$3:$L$66,7,FALSE) ->  | I118: =VLOOKUP($C118,Keighley!$C$3:$N$42,9,FALSE) ->  | J118: =VLOOKUP($C118,'Bunny '!$C$3:$N$20,9,FALSE) ->  | K118: =VLOOKUP($C118,Liverpool!$C$3:$N$59,9,FALSE) ->  | L118: =VLOOKUP(C118,'VoY 10m'!$C$3:$N$40,9,FALSE) ->  | M118: =VLOOKUP(C118,Guisley!$C$3:$N$49,9,FALSE) ->  | N118: =VLOOKUP(C118,Odda!$C$3:$N$42,9,FALSE) ->  | O118: =VLOOKUP(C118,'Leeds half'!$C$4:$N$31,9,FALSE) ->  | P118: =VLOOKUP(C118,Ilkley!$C$3:$L$46,7,FALSE) ->  | Q118: =VLOOKUP(C118,Otley!$C$3:$L$46,9,FALSE) ->  | R118: =VLOOKUP(C118,Solstice!$C$3:$L$48,7,FALSE) ->  | S118: =VLOOKUP(C118,Eccup!$C$3:$L$46,9,FALSE) ->  | U118: =VLOOKUP(C118,Shakerr!$C$3:$L$46,7,FALSE) ->  | V118: =VLOOKUP(C118,VoY!$C$3:$L$46,9,FALSE) ->  | W118: =VLOOKUP(C118,Kirkstall!$C$3:$L$46,9,FALSE) ->  | X118: =VLOOKUP($C118,City!$C$3:$L$69,9,FALSE) ->  | Y118: =VLOOKUP(C118,'Guy Fawkes'!$C$3:$N$34,9,FALSE) ->  | Z118: =VLOOKUP(C118,Abbey!$C$3:$L$48,7,FALSE) ->  | AA118: =VLOOKUP(C118,Chevin!$C$3:$L$50,7,FALSE) ->  | AC118: 0 | AD118: 0 | AE118: 0 | AF118: 0 | AG118: 0 | AH118: 0 | AI118: 0 | AJ118: 0 | AK118: 0 | AL118: 0 | AM118: 0 | AN118: 0 | AO118: 0 | AP118: 0 | AQ118: 0 | AR118: 0 | AS118: 0 | AT118: 0 | AU118: 0 | AV118: 0 | AW118: 0 | AX118: 0
C119: Stephen Hetherington | D119: 1959-10-20 | E119: 57 | F119: =IFERROR(VLOOKUP(C119,'Division Lookup'!$A$2:$D$251,4,FALSE),"Second") -> First | G119: =VLOOKUP(C119,Dewsbury!$C$3:$L$46,7,FALSE) ->  | H119: =VLOOKUP($C119,Bradford!$C$3:$L$66,7,FALSE) ->  | I119: =VLOOKUP($C119,Keighley!$C$3:$N$42,9,FALSE) -> 0.7267311988 | J119: =VLOOKUP($C119,'Bunny '!$C$3:$N$20,9,FALSE) ->  | K119: =VLOOKUP($C119,Liverpool!$C$3:$N$59,9,FALSE) ->  | L119: =VLOOKUP(C119,'VoY 10m'!$C$3:$N$40,9,FALSE) ->  | M119: =VLOOKUP(C119,Guisley!$C$3:$N$49,9,FALSE) ->  | N119: =VLOOKUP(C119,Odda!$C$3:$N$42,9,FALSE) ->  | O119: =VLOOKUP(C119,'Leeds half'!$C$4:$N$31,9,FALSE) ->  | P119: =VLOOKUP(C119,Ilkley!$C$3:$L$46,7,FALSE) ->  | Q119: =VLOOKUP(C119,Otley!$C$3:$L$46,9,FALSE) -> 0.6790697674 | R119: =VLOOKUP(C119,Solstice!$C$3:$L$48,7,FALSE) ->  | S119: =VLOOKUP(C119,Eccup!$C$3:$L$46,9,FALSE) ->  | U119: =VLOOKUP(C119,Shakerr!$C$3:$L$46,7,FALSE) ->  | V119: =VLOOKUP(C119,VoY!$C$3:$L$46,9,FALSE) ->  | W119: =VLOOKUP(C119,Kirkstall!$C$3:$L$46,9,FALSE) ->  | X119: =VLOOKUP($C119,City!$C$3:$L$69,9,FALSE) -> 0.7280865349 | Y119: =VLOOKUP(C119,'Guy Fawkes'!$C$3:$N$34,9,FALSE) ->  | Z119: =VLOOKUP(C119,Abbey!$C$3:$L$48,7,FALSE) ->  | AA119: =VLOOKUP(C119,Chevin!$C$3:$L$50,7,FALSE) ->  | AC119: 0 | AD119: 0 | AE119: 2 | AF119: 0 | AG119: 0 | AH119: 0 | AI119: 0 | AJ119: 0 | AK119: 0 | AL119: 0 | AM119: 1 | AN119: 0 | AO119: 0 | AP119: 0 | AQ119: 0 | AR119: 0 | AS119: 0 | AT119: 2 | AU119: 0 | AV119: 0 | AW119: 0 | AX119: 3
C120: Wendy Hey | D120: 1969-02-06 | E120: 47 | F120: =IFERROR(VLOOKUP(C120,'Division Lookup'!$A$2:$D$251,4,FALSE),"Second") -> Second | G120: =VLOOKUP(C120,Dewsbury!$C$3:$L$46,7,FALSE) ->  | H120: =VLOOKUP($C120,Bradford!$C$3:$L$66,7,FALSE) ->  | I120: =VLOOKUP($C120,Keighley!$C$3:$N$42,9,FALSE) ->  | J120: =VLOOKUP($C120,'Bunny '!$C$3:$N$20,9,FALSE) ->  | K120: =VLOOKUP($C120,Liverpool!$C$3:$N$59,9,FALSE) ->  | L120: =VLOOKUP(C120,'VoY 10m'!$C$3:$N$40,9,FALSE) ->  | M120: =VLOOKUP(C120,Guisley!$C$3:$N$49,9,FALSE) ->  | N120: =VLOOKUP(C120,Odda!$C$3:$N$42,9,FALSE) ->  | O120: =VLOOKUP(C120,'Leeds half'!$C$4:$N$31,9,FALSE) ->  | P120: =VLOOKUP(C120,Ilkley!$C$3:$L$46,7,FALSE) ->  | Q120: =VLOOKUP(C120,Otley!$C$3:$L$46,9,FALSE) ->  | R120: =VLOOKUP(C120,Solstice!$C$3:$L$48,7,FALSE) ->  | S120: =VLOOKUP(C120,Eccup!$C$3:$L$46,9,FALSE) ->  | U120: =VLOOKUP(C120,Shakerr!$C$3:$L$46,7,FALSE) -> 0.4620561615 | V120: =VLOOKUP(C120,VoY!$C$3:$L$46,9,FALSE) ->  | W120: =VLOOKUP(C120,Kirkstall!$C$3:$L$46,9,FALSE) ->  | X120: =VLOOKUP($C120,City!$C$3:$L$69,9,FALSE) ->  | Y120: =VLOOKUP(C120,'Guy Fawkes'!$C$3:$N$34,9,FALSE) ->  | Z120: =VLOOKUP(C120,Abbey!$C$3:$L$48,7,FALSE) ->  | AA120: =VLOOKUP(C120,Chevin!$C$3:$L$50,7,FALSE) ->  | AC120: 0 | AD120: 0 | AE120: 0 | AF120: 0 | AG120: 0 | AH120: 0 | AI120: 0 | AJ120: 0 | AK120: 0 | AL120: 0 | AM120: 0 | AN120: 0 | AO120: 0 | AP120: 0 | AQ120: 4 | AR120: 0 | AS120: 0 | AT120: 0 | AU120: 0 | AV120: 0 | AW120: 0 | AX120: 1
C121: Kirstie Holmes | D121: 1974-03-16 | E121: 42 | F121: =IFERROR(VLOOKUP(C121,'Division Lookup'!$A$2:$D$251,4,FALSE),"Second") -> Second | G121: =VLOOKUP(C121,Dewsbury!$C$3:$L$46,7,FALSE) ->  | H121: =VLOOKUP($C121,Bradford!$C$3:$L$66,7,FALSE) ->  | I121: =VLOOKUP($C121,Keighley!$C$3:$N$42,9,FALSE) ->  | J121: =VLOOKUP($C121,'Bunny '!$C$3:$N$20,9,FALSE) ->  | K121: =VLOOKUP($C121,Liverpool!$C$3:$N$59,9,FALSE) ->  | L121: =VLOOKUP(C121,'VoY 10m'!$C$3:$N$40,9,FALSE) ->  | M121: =VLOOKUP(C121,Guisley!$C$3:$N$49,9,FALSE) ->  | N121: =VLOOKUP(C121,Odda!$C$3:$N$42,9,FALSE) ->  | O121: =VLOOKUP(C121,'Leeds half'!$C$4:$N$31,9,FALSE) ->  | P121: =VLOOKUP(C121,Ilkley!$C$3:$L$46,7,FALSE) ->  | Q121: =VLOOKUP(C121,Otley!$C$3:$L$46,9,FALSE) ->  | R121: =VLOOKUP(C121,Solstice!$C$3:$L$48,7,FALSE) -> 0.5207262761 | S121: =VLOOKUP(C121,Eccup!$C$3:$L$46,9,FALSE) ->  | U121: =VLOOKUP(C121,Shakerr!$C$3:$L$46,7,FALSE) ->  | V121: =VLOOKUP(C121,VoY!$C$3:$L$46,9,FALSE) ->  | W121: =VLOOKUP(C121,Kirkstall!$C$3:$L$46,9,FALSE) ->  | X121: =VLOOKUP($C121,City!$C$3:$L$69,9,FALSE) ->  | Y121: =VLOOKUP(C121,'Guy Fawkes'!$C$3:$N$34,9,FALSE) ->  | Z121: =VLOOKUP(C121,Abbey!$C$3:$L$48,7,FALSE) ->  | AA121: =VLOOKUP(C121,Chevin!$C$3:$L$50,7,FALSE) ->  | AC121: 0 | AD121: 0 | AE121: 0 | AF121: 0 | AG121: 0 | AH121: 0 | AI121: 0 | AJ121: 0 | AK121: 0 | AL121: 0 | AM121: 0 | AN121: 7 | AO121: 0 | AP121: 0 | AQ121: 0 | AR121: 0 | AS121: 0 | AT121: 0 | AU121: 0 | AV121: 0 | AW121: 0 | AX121: 1
C122: Peter Hopson | D122: 1986-08-11 | E122: 30 | F122: =IFERROR(VLOOKUP(C122,'Division Lookup'!$A$2:$D$251,4,FALSE),"Second") -> Second | G122: =VLOOKUP(C122,Dewsbury!$C$3:$L$46,7,FALSE) ->  | H122: =VLOOKUP($C122,Bradford!$C$3:$L$66,7,FALSE) ->  | I122: =VLOOKUP($C122,Keighley!$C$3:$N$42,9,FALSE) ->  | J122: =VLOOKUP($C122,'Bunny '!$C$3:$N$20,9,FALSE) ->  | K122: =VLOOKUP($C122,Liverpool!$C$3:$N$59,9,FALSE) ->  | L122: =VLOOKUP(C122,'VoY 10m'!$C$3:$N$40,9,FALSE) ->  | M122: =VLOOKUP(C122,Guisley!$C$3:$N$49,9,FALSE) ->  | N122: =VLOOKUP(C122,Odda!$C$3:$N$42,9,FALSE) ->  | O122: =VLOOKUP(C122,'Leeds half'!$C$4:$N$31,9,FALSE) ->  | P122: =VLOOKUP(C122,Ilkley!$C$3:$L$46,7,FALSE) ->  | Q122: =VLOOKUP(C122,Otley!$C$3:$L$46,9,FALSE) ->  | R122: =VLOOKUP(C122,Solstice!$C$3:$L$48,7,FALSE) ->  | S122: =VLOOKUP(C122,Eccup!$C$3:$L$46,9,FALSE) ->  | U122: =VLOOKUP(C122,Shakerr!$C$3:$L$46,7,FALSE) ->  | V122: =VLOOKUP(C122,VoY!$C$3:$L$46,9,FALSE) ->  | W122: =VLOOKUP(C122,Kirkstall!$C$3:$L$46,9,FALSE) ->  | X122: =VLOOKUP($C122,City!$C$3:$L$69,9,FALSE) ->  | Y122: =VLOOKUP(C122,'Guy Fawkes'!$C$3:$N$34,9,FALSE) ->  | Z122: =VLOOKUP(C122,Abbey!$C$3:$L$48,7,FALSE) -> 0.7940019666 | AA122: =VLOOKUP(C122,Chevin!$C$3:$L$50,7,FALSE) ->  | AC122: 0 | AD122: 0 | AE122: 0 | AF122: 0 | AG122: 0 | AH122: 0 | AI122: 0 | AJ122: 0 | AK122: 0 | AL122: 0 | AM122: 0 | AN122: 0 | AO122: 0 | AP122: 0 | AQ122: 0 | AR122: 0 | AS122: 0 | AT122: 0 | AU122: 0 | AV122: 1 | AW122: 0 | AX122: 1
C123: Claire Horton | D123: 1992-10-20 | E123: 24 | F123: =IFERROR(VLOOKUP(C123,'Division Lookup'!$A$2:$D$251,4,FALSE),"Second") -> Second | G123: =VLOOKUP(C123,Dewsbury!$C$3:$L$46,7,FALSE) ->  | H123: =VLOOKUP($C123,Bradford!$C$3:$L$66,7,FALSE) ->  | I123: =VLOOKUP($C123,Keighley!$C$3:$N$42,9,FALSE) ->  | J123: =VLOOKUP($C123,'Bunny '!$C$3:$N$20,9,FALSE) ->  | K123: =VLOOKUP($C123,Liverpool!$C$3:$N$59,9,FALSE) ->  | L123: =VLOOKUP(C123,'VoY 10m'!$C$3:$N$40,9,FALSE) ->  | M123: =VLOOKUP(C123,Guisley!$C$3:$N$49,9,FALSE) ->  | N123: =VLOOKUP(C123,Odda!$C$3:$N$42,9,FALSE) ->  | O123: =VLOOKUP(C123,'Leeds half'!$C$4:$N$31,9,FALSE) ->  | P123: =VLOOKUP(C123,Ilkley!$C$3:$L$46,7,FALSE) ->  | Q123: =VLOOKUP(C123,Otley!$C$3:$L$46,9,FALSE) ->  | R123: =VLOOKUP(C123,Solstice!$C$3:$L$48,7,FALSE) ->  | S123: =VLOOKUP(C123,Eccup!$C$3:$L$46,9,FALSE) ->  | U123: =VLOOKUP(C123,Shakerr!$C$3:$L$46,7,FALSE) ->  | V123: =VLOOKUP(C123,VoY!$C$3:$L$46,9,FALSE) ->  | W123: =VLOOKUP(C123,Kirkstall!$C$3:$L$46,9,FALSE) ->  | X123: =VLOOKUP($C123,City!$C$3:$L$69,9,FALSE) ->  | Y123: =VLOOKUP(C123,'Guy Fawkes'!$C$3:$N$34,9,FALSE) ->  | Z123: =VLOOKUP(C123,Abbey!$C$3:$L$48,7,FALSE) ->  | AA123: =VLOOKUP(C123,Chevin!$C$3:$L$50,7,FALSE) ->  | AC123: 0 | AD123: 0 | AE123: 0 | AF123: 0 | AG123: 0 | AH123: 0 | AI123: 0 | AJ123: 0 | AK123: 0 | AL123: 0 | AM123: 0 | AN123: 0 | AO123: 0 | AP123: 0 | AQ123: 0 | AR123: 0 | AS123: 0 | AT123: 0 | AU123: 0 | AV123: 0 | AW123: 0 | AX123: 0
C124: Peter Huby | D124: 1961-11-28 | E124: 55 | F124: =IFERROR(VLOOKUP(C124,'Division Lookup'!$A$2:$D$251,4,FALSE),"Second") -> First | G124: =VLOOKUP(C124,Dewsbury!$C$3:$L$46,7,FALSE) ->  | H124: =VLOOKUP($C124,Bradford!$C$3:$L$66,7,FALSE) ->  | I124: =VLOOKUP($C124,Keighley!$C$3:$N$42,9,FALSE) ->  | J124: =VLOOKUP($C124,'Bunny '!$C$3:$N$20,9,FALSE) ->  | K124: =VLOOKUP($C124,Liverpool!$C$3:$N$59,9,FALSE) ->  | L124: =VLOOKUP(C124,'VoY 10m'!$C$3:$N$40,9,FALSE) ->  | M124: =VLOOKUP(C124,Guisley!$C$3:$N$49,9,FALSE) ->  | N124: =VLOOKUP(C124,Odda!$C$3:$N$42,9,FALSE) ->  | O124: =VLOOKUP(C124,'Leeds half'!$C$4:$N$31,9,FALSE) ->  | P124: =VLOOKUP(C124,Ilkley!$C$3:$L$46,7,FALSE) ->  | Q124: =VLOOKUP(C124,Otley!$C$3:$L$46,9,FALSE) ->  | R124: =VLOOKUP(C124,Solstice!$C$3:$L$48,7,FALSE) ->  | S124: =VLOOKUP(C124,Eccup!$C$3:$L$46,9,FALSE) ->  | U124: =VLOOKUP(C124,Shakerr!$C$3:$L$46,7,FALSE) ->  | V124: =VLOOKUP(C124,VoY!$C$3:$L$46,9,FALSE) ->  | W124: =VLOOKUP(C124,Kirkstall!$C$3:$L$46,9,FALSE) -> 0.560115886 | X124: =VLOOKUP($C124,City!$C$3:$L$69,9,FALSE) ->  | Y124: =VLOOKUP(C124,'Guy Fawkes'!$C$3:$N$34,9,FALSE) ->  | Z124: =VLOOKUP(C124,Abbey!$C$3:$L$48,7,FALSE) ->  | AA124: =VLOOKUP(C124,Chevin!$C$3:$L$50,7,FALSE) ->  | AC124: 0 | AD124: 0 | AE124: 0 | AF124: 0 | AG124: 0 | AH124: 0 | AI124: 0 | AJ124: 0 | AK124: 0 | AL124: 0 | AM124: 0 | AN124: 0 | AO124: 0 | AP124: 0 | AQ124: 0 | AR124: 0 | AS124: 3 | AT124: 0 | AU124: 0 | AV124: 0 | AW124: 0 | AX124: 1
C125: Ellie Hughes | D125: 1991-05-03 | E125: 25 | F125: =IFERROR(VLOOKUP(C125,'Division Lookup'!$A$2:$D$251,4,FALSE),"Second") -> Second | G125: =VLOOKUP(C125,Dewsbury!$C$3:$L$46,7,FALSE) ->  | H125: =VLOOKUP($C125,Bradford!$C$3:$L$66,7,FALSE) ->  | I125: =VLOOKUP($C125,Keighley!$C$3:$N$42,9,FALSE) ->  | J125: =VLOOKUP($C125,'Bunny '!$C$3:$N$20,9,FALSE) ->  | K125: =VLOOKUP($C125,Liverpool!$C$3:$N$59,9,FALSE) ->  | L125: =VLOOKUP(C125,'VoY 10m'!$C$3:$N$40,9,FALSE) ->  | M125: =VLOOKUP(C125,Guisley!$C$3:$N$49,9,FALSE) ->  | N125: =VLOOKUP(C125,Odda!$C$3:$N$42,9,FALSE) ->  | O125: =VLOOKUP(C125,'Leeds half'!$C$4:$N$31,9,FALSE) ->  | P125: =VLOOKUP(C125,Ilkley!$C$3:$L$46,7,FALSE) ->  | Q125: =VLOOKUP(C125,Otley!$C$3:$L$46,9,FALSE) ->  | R125: =VLOOKUP(C125,Solstice!$C$3:$L$48,7,FALSE) ->  | S125: =VLOOKUP(C125,Eccup!$C$3:$L$46,9,FALSE) ->  | U125: =VLOOKUP(C125,Shakerr!$C$3:$L$46,7,FALSE) ->  | V125: =VLOOKUP(C125,VoY!$C$3:$L$46,9,FALSE) ->  | W125: =VLOOKUP(C125,Kirkstall!$C$3:$L$46,9,FALSE) ->  | X125: =VLOOKUP($C125,City!$C$3:$L$69,9,FALSE) -> 0.4326123128 | Y125: =VLOOKUP(C125,'Guy Fawkes'!$C$3:$N$34,9,FALSE) ->  | Z125: =VLOOKUP(C125,Abbey!$C$3:$L$48,7,FALSE) ->  | AA125: =VLOOKUP(C125,Chevin!$C$3:$L$50,7,FALSE) ->  | AC125: 0 | AD125: 0 | AE125: 0 | AF125: 0 | AG125: 0 | AH125: 0 | AI125: 0 | AJ125: 0 | AK125: 0 | AL125: 0 | AM125: 0 | AN125: 0 | AO125: 0 | AP125: 0 | AQ125: 0 | AR125: 0 | AS125: 0 | AT125: 13 | AU125: 0 | AV125: 0 | AW125: 0 | AX125: 1
C126: Greg Hull | D126: 1965-08-16 | E126: 51 | F126: =IFERROR(VLOOKUP(C126,'Division Lookup'!$A$2:$D$251,4,FALSE),"Second") -> Second | G126: =VLOOKUP(C126,Dewsbury!$C$3:$L$46,7,FALSE) ->  | H126: =VLOOKUP($C126,Bradford!$C$3:$L$66,7,FALSE) ->  | I126: =VLOOKUP($C126,Keighley!$C$3:$N$42,9,FALSE) ->  | J126: =VLOOKUP($C126,'Bunny '!$C$3:$N$20,9,FALSE) ->  | K126: =VLOOKUP($C126,Liverpool!$C$3:$N$59,9,FALSE) ->  | L126: =VLOOKUP(C126,'VoY 10m'!$C$3:$N$40,9,FALSE) ->  | M126: =VLOOKUP(C126,Guisley!$C$3:$N$49,9,FALSE) ->  | N126: =VLOOKUP(C126,Odda!$C$3:$N$42,9,FALSE) ->  | O126: =VLOOKUP(C126,'Leeds half'!$C$4:$N$31,9,FALSE) ->  | P126: =VLOOKUP(C126,Ilkley!$C$3:$L$46,7,FALSE) ->  | Q126: =VLOOKUP(C126,Otley!$C$3:$L$46,9,FALSE) ->  | R126: =VLOOKUP(C126,Solstice!$C$3:$L$48,7,FALSE) ->  | S126: =VLOOKUP(C126,Eccup!$C$3:$L$46,9,FALSE) ->  | U126: =VLOOKUP(C126,Shakerr!$C$3:$L$46,7,FALSE) ->  | V126: =VLOOKUP(C126,VoY!$C$3:$L$46,9,FALSE) ->  | W126: =VLOOKUP(C126,Kirkstall!$C$3:$L$46,9,FALSE) ->  | X126: =VLOOKUP($C126,City!$C$3:$L$69,9,FALSE) ->  | Y126: =VLOOKUP(C126,'Guy Fawkes'!$C$3:$N$34,9,FALSE) ->  | Z126: =VLOOKUP(C126,Abbey!$C$3:$L$48,7,FALSE) ->  | AA126: =VLOOKUP(C126,Chevin!$C$3:$L$50,7,FALSE) ->  | AC126: 0 | AD126: 0 | AE126: 0 | AF126: 0 | AG126: 0 | AH126: 0 | AI126: 0 | AJ126: 0 | AK126: 0 | AL126: 0 | AM126: 0 | AN126: 0 | AO126: 0 | AP126: 0 | AQ126: 0 | AR126: 0 | AS126: 0 | AT126: 0 | AU126: 0 | AV126: 0 | AW126: 0 | AX126: 0
C127: John Hunt | D127: 1968-07-17 | E127: 48 | F127: =IFERROR(VLOOKUP(C127,'Division Lookup'!$A$2:$D$251,4,FALSE),"Second") -> Second | G127: =VLOOKUP(C127,Dewsbury!$C$3:$L$46,7,FALSE) ->  | H127: =VLOOKUP($C127,Bradford!$C$3:$L$66,7,FALSE) ->  | I127: =VLOOKUP($C127,Keighley!$C$3:$N$42,9,FALSE) ->  | J127: =VLOOKUP($C127,'Bunny '!$C$3:$N$20,9,FALSE) ->  | K127: =VLOOKUP($C127,Liverpool!$C$3:$N$59,9,FALSE) ->  | L127: =VLOOKUP(C127,'VoY 10m'!$C$3:$N$40,9,FALSE) ->  | M127: =VLOOKUP(C127,Guisley!$C$3:$N$49,9,FALSE) ->  | N127: =VLOOKUP(C127,Odda!$C$3:$N$42,9,FALSE) ->  | O127: =VLOOKUP(C127,'Leeds half'!$C$4:$N$31,9,FALSE) ->  | P127: =VLOOKUP(C127,Ilkley!$C$3:$L$46,7,FALSE) ->  | Q127: =VLOOKUP(C127,Otley!$C$3:$L$46,9,FALSE) ->  | R127: =VLOOKUP(C127,Solstice!$C$3:$L$48,7,FALSE) ->  | S127: =VLOOKUP(C127,Eccup!$C$3:$L$46,9,FALSE) ->  | U127: =VLOOKUP(C127,Shakerr!$C$3:$L$46,7,FALSE) ->  | V127: =VLOOKUP(C127,VoY!$C$3:$L$46,9,FALSE) ->  | W127: =VLOOKUP(C127,Kirkstall!$C$3:$L$46,9,FALSE) ->  | X127: =VLOOKUP($C127,City!$C$3:$L$69,9,FALSE) ->  | Y127: =VLOOKUP(C127,'Guy Fawkes'!$C$3:$N$34,9,FALSE) ->  | Z127: =VLOOKUP(C127,Abbey!$C$3:$L$48,7,FALSE) ->  | AA127: =VLOOKUP(C127,Chevin!$C$3:$L$50,7,FALSE) ->  | AC127: 0 | AD127: 0 | AE127: 0 | AF127: 0 | AG127: 0 | AH127: 0 | AI127: 0 | AJ127: 0 | AK127: 0 | AL127: 0 | AM127: 0 | AN127: 0 | AO127: 0 | AP127: 0 | AQ127: 0 | AR127: 0 | AS127: 0 | AT127: 0 | AU127: 0 | AV127: 0 | AW127: 0 | AX127: 0
C128: Andrew Hutchinson | D128: 1975-01-22 | E128: 41 | F128: =IFERROR(VLOOKUP(C128,'Division Lookup'!$A$2:$D$251,4,FALSE),"Second") -> Second | G128: =VLOOKUP(C128,Dewsbury!$C$3:$L$46,7,FALSE) ->  | H128: =VLOOKUP($C128,Bradford!$C$3:$L$66,7,FALSE) ->  | I128: =VLOOKUP($C128,Keighley!$C$3:$N$42,9,FALSE) ->  | J128: =VLOOKUP($C128,'Bunny '!$C$3:$N$20,9,FALSE) ->  | K128: =VLOOKUP($C128,Liverpool!$C$3:$N$59,9,FALSE) ->  | L128: =VLOOKUP(C128,'VoY 10m'!$C$3:$N$40,9,FALSE) ->  | M128: =VLOOKUP(C128,Guisley!$C$3:$N$49,9,FALSE) ->  | N128: =VLOOKUP(C128,Odda!$C$3:$N$42,9,FALSE) ->  | O128: =VLOOKUP(C128,'Leeds half'!$C$4:$N$31,9,FALSE) -> 0.6527291812 | P128: =VLOOKUP(C128,Ilkley!$C$3:$L$46,7,FALSE) ->  | Q128: =VLOOKUP(C128,Otley!$C$3:$L$46,9,FALSE) ->  | R128: =VLOOKUP(C128,Solstice!$C$3:$L$48,7,FALSE) ->  | S128: =VLOOKUP(C128,Eccup!$C$3:$L$46,9,FALSE) ->  | U128: =VLOOKUP(C128,Shakerr!$C$3:$L$46,7,FALSE) ->  | V128: =VLOOKUP(C128,VoY!$C$3:$L$46,9,FALSE) ->  | W128: =VLOOKUP(C128,Kirkstall!$C$3:$L$46,9,FALSE) ->  | X128: =VLOOKUP($C128,City!$C$3:$L$69,9,FALSE) ->  | Y128: =VLOOKUP(C128,'Guy Fawkes'!$C$3:$N$34,9,FALSE) ->  | Z128: =VLOOKUP(C128,Abbey!$C$3:$L$48,7,FALSE) ->  | AA128: =VLOOKUP(C128,Chevin!$C$3:$L$50,7,FALSE) ->  | AC128: 0 | AD128: 0 | AE128: 0 | AF128: 0 | AG128: 0 | AH128: 0 | AI128: 0 | AJ128: 0 | AK128: 2 | AL128: 0 | AM128: 0 | AN128: 0 | AO128: 0 | AP128: 0 | AQ128: 0 | AR128: 0 | AS128: 0 | AT128: 0 | AU128: 0 | AV128: 0 | AW128: 0 | AX128: 1
C129: Gillian Hyde | D129: 1965-04-21 | E129: 51 | F129: =IFERROR(VLOOKUP(C129,'Division Lookup'!$A$2:$D$251,4,FALSE),"Second") -> Premier | G129: =VLOOKUP(C129,Dewsbury!$C$3:$L$46,7,FALSE) -> 0.6343465046 | H129: =VLOOKUP($C129,Bradford!$C$3:$L$66,7,FALSE) ->  | I129: =VLOOKUP($C129,Keighley!$C$3:$N$42,9,FALSE) ->  | J129: =VLOOKUP($C129,'Bunny '!$C$3:$N$20,9,FALSE) -> 0.577424844 | K129: =VLOOKUP($C129,Liverpool!$C$3:$N$59,9,FALSE) -> 0.6036780384 | L129: =VLOOKUP(C129,'VoY 10m'!$C$3:$N$40,9,FALSE) ->  | M129: =VLOOKUP(C129,Guisley!$C$3:$N$49,9,FALSE) ->  | N129: =VLOOKUP(C129,Odda!$C$3:$N$42,9,FALSE) ->  | O129: =VLOOKUP(C129,'Leeds half'!$C$4:$N$31,9,FALSE) ->  | P129: =VLOOKUP(C129,Ilkley!$C$3:$L$46,7,FALSE) ->  | Q129: =VLOOKUP(C129,Otley!$C$3:$L$46,9,FALSE) ->  | R129: =VLOOKUP(C129,Solstice!$C$3:$L$48,7,FALSE) ->  | S129: =VLOOKUP(C129,Eccup!$C$3:$L$46,9,FALSE) ->  | U129: =VLOOKUP(C129,Shakerr!$C$3:$L$46,7,FALSE) ->  | V129: =VLOOKUP(C129,VoY!$C$3:$L$46,9,FALSE) ->  | W129: =VLOOKUP(C129,Kirkstall!$C$3:$L$46,9,FALSE) ->  | X129: =VLOOKUP($C129,City!$C$3:$L$69,9,FALSE) ->  | Y129: =VLOOKUP(C129,'Guy Fawkes'!$C$3:$N$34,9,FALSE) -> 0.4922530665 | Z129: =VLOOKUP(C129,Abbey!$C$3:$L$48,7,FALSE) ->  | AA129: =VLOOKUP(C129,Chevin!$C$3:$L$50,7,FALSE) ->  | AC129: 11 | AD129: 0 | AE129: 0 | AF129: 9 | AG129: 13 | AH129: 0 | AI129: 0 | AJ129: 0 | AK129: 0 | AL129: 0 | AM129: 0 | AN129: 0 | AO129: 0 | AP129: 0 | AQ129: 0 | AR129: 0 | AS129: 0 | AT129: 0 | AU129: 17 | AV129: 0 | AW129: 0 | AX129: 4
C130: Justin Ions | D130: 1970-01-02 | E130: 46 | F130: =IFERROR(VLOOKUP(C130,'Division Lookup'!$A$2:$D$251,4,FALSE),"Second") -> Second | G130: =VLOOKUP(C130,Dewsbury!$C$3:$L$46,7,FALSE) ->  | H130: =VLOOKUP($C130,Bradford!$C$3:$L$66,7,FALSE) ->  | I130: =VLOOKUP($C130,Keighley!$C$3:$N$42,9,FALSE) ->  | J130: =VLOOKUP($C130,'Bunny '!$C$3:$N$20,9,FALSE) ->  | K130: =VLOOKUP($C130,Liverpool!$C$3:$N$59,9,FALSE) ->  | L130: =VLOOKUP(C130,'VoY 10m'!$C$3:$N$40,9,FALSE) ->  | M130: =VLOOKUP(C130,Guisley!$C$3:$N$49,9,FALSE) ->  | N130: =VLOOKUP(C130,Odda!$C$3:$N$42,9,FALSE) ->  | O130: =VLOOKUP(C130,'Leeds half'!$C$4:$N$31,9,FALSE) ->  | P130: =VLOOKUP(C130,Ilkley!$C$3:$L$46,7,FALSE) ->  | Q130: =VLOOKUP(C130,Otley!$C$3:$L$46,9,FALSE) ->  | R130: =VLOOKUP(C130,Solstice!$C$3:$L$48,7,FALSE) ->  | S130: =VLOOKUP(C130,Eccup!$C$3:$L$46,9,FALSE) ->  | U130: =VLOOKUP(C130,Shakerr!$C$3:$L$46,7,FALSE) ->  | V130: =VLOOKUP(C130,VoY!$C$3:$L$46,9,FALSE) ->  | W130: =VLOOKUP(C130,Kirkstall!$C$3:$L$46,9,FALSE) ->  | X130: =VLOOKUP($C130,City!$C$3:$L$69,9,FALSE) ->  | Y130: =VLOOKUP(C130,'Guy Fawkes'!$C$3:$N$34,9,FALSE) ->  | Z130: =VLOOKUP(C130,Abbey!$C$3:$L$48,7,FALSE) ->  | AA130: =VLOOKUP(C130,Chevin!$C$3:$L$50,7,FALSE) ->  | AC130: 0 | AD130: 0 | AE130: 0 | AF130: 0 | AG130: 0 | AH130: 0 | AI130: 0 | AJ130: 0 | AK130: 0 | AL130: 0 | AM130: 0 | AN130: 0 | AO130: 0 | AP130: 0 | AQ130: 0 | AR130: 0 | AS130: 0 | AT130: 0 | AU130: 0 | AV130: 0 | AW130: 0 | AX130: 0
C131: Stuart James | D131: 1974-12-20 | E131: 42 | F131: =IFERROR(VLOOKUP(C131,'Division Lookup'!$A$2:$D$251,4,FALSE),"Second") -> Second | G131: =VLOOKUP(C131,Dewsbury!$C$3:$L$46,7,FALSE) ->  | H131: =VLOOKUP($C131,Bradford!$C$3:$L$66,7,FALSE) ->  | I131: =VLOOKUP($C131,Keighley!$C$3:$N$42,9,FALSE) ->  | J131: =VLOOKUP($C131,'Bunny '!$C$3:$N$20,9,FALSE) ->  | K131: =VLOOKUP($C131,Liverpool!$C$3:$N$59,9,FALSE) ->  | L131: =VLOOKUP(C131,'VoY 10m'!$C$3:$N$40,9,FALSE) ->  | M131: =VLOOKUP(C131,Guisley!$C$3:$N$49,9,FALSE) ->  | N131: =VLOOKUP(C131,Odda!$C$3:$N$42,9,FALSE) ->  | O131: =VLOOKUP(C131,'Leeds half'!$C$4:$N$31,9,FALSE) ->  | P131: =VLOOKUP(C131,Ilkley!$C$3:$L$46,7,FALSE) ->  | Q131: =VLOOKUP(C131,Otley!$C$3:$L$46,9,FALSE) ->  | R131: =VLOOKUP(C131,Solstice!$C$3:$L$48,7,FALSE) ->  | S131: =VLOOKUP(C131,Eccup!$C$3:$L$46,9,FALSE) ->  | U131: =VLOOKUP(C131,Shakerr!$C$3:$L$46,7,FALSE) ->  | V131: =VLOOKUP(C131,VoY!$C$3:$L$46,9,FALSE) ->  | W131: =VLOOKUP(C131,Kirkstall!$C$3:$L$46,9,FALSE) ->  | X131: =VLOOKUP($C131,City!$C$3:$L$69,9,FALSE) ->  | Y131: =VLOOKUP(C131,'Guy Fawkes'!$C$3:$N$34,9,FALSE) ->  | Z131: =VLOOKUP(C131,Abbey!$C$3:$L$48,7,FALSE) ->  | AA131: =VLOOKUP(C131,Chevin!$C$3:$L$50,7,FALSE) ->  | AC131: =IF(ISNA(G131),0,1+COUNTIFS($F$3:$F$399,$F131,G$3:G$399,">"&G131)) -> 0 | AD131: =IF(ISNA(H131),0,1+COUNTIFS($F$3:$F$399,$F131,H$3:H$399,">"&H131)) -> 0 | AE131: =IF(ISNA(I131),0,1+COUNTIFS($F$3:$F$399,$F131,I$3:I$399,">"&I131)) -> 0 | AF131: =IF(ISNA(J131),0,1+COUNTIFS($F$3:$F$399,$F131,J$3:J$399,">"&J131)) -> 0 | AG131: =IF(ISNA(K131),0,1+COUNTIFS($F$3:$F$399,$F131,K$3:K$399,">"&K131)) -> 0 | AH131: =IF(ISNA(L131),0,1+COUNTIFS($F$3:$F$399,$F131,L$3:L$399,">"&L131)) -> 0 | AI131: =IF(ISNA(M131),0,1+COUNTIFS($F$3:$F$399,$F131,M$3:M$399,">"&M131)) -> 0 | AJ131: =IF(ISNA(N131),0,1+COUNTIFS($F$3:$F$399,$F131,N$3:N$399,">"&N131)) -> 0 | AK131: 0 | AL131: 0 | AM131: 0 | AN131: 0 | AO131: 0 | AP131: 0 | AQ131: 0 | AR131: 0 | AS131: 0 | AT131: 0 | AU131: 0 | AV131: 0 | AW131: 0 | AX131: 0
C132: Ian Jenkins | D132: 1970-04-01 | E132: =DATEDIF(D132,$E$1,"Y") -> 46 | F132: =IFERROR(VLOOKUP(C132,'Division Lookup'!$A$2:$D$251,4,FALSE),"Second") -> First | G132: =VLOOKUP(C132,Dewsbury!$C$3:$L$46,7,FALSE) -> 0.7164658635 | H132: =VLOOKUP($C132,Bradford!$C$3:$L$66,7,FALSE) -> 0.7029156816 | I132: =VLOOKUP($C132,Keighley!$C$3:$N$42,9,FALSE) -> 0.6659201194 | J132: =VLOOKUP($C132,'Bunny '!$C$3:$N$20,9,FALSE) ->  | K132: =VLOOKUP($C132,Liverpool!$C$3:$N$59,9,FALSE) ->  | L132: =VLOOKUP(C132,'VoY 10m'!$C$3:$N$40,9,FALSE) ->  | M132: =VLOOKUP(C132,Guisley!$C$3:$N$49,9,FALSE) -> 0.6351014596 | N132: =VLOOKUP(C132,Odda!$C$3:$N$42,9,FALSE) -> 0.5620667927 | O132: =VLOOKUP(C132,'Leeds half'!$C$4:$N$31,9,FALSE) ->  | P132: =VLOOKUP(C132,Ilkley!$C$3:$L$46,7,FALSE) ->  | Q132: =VLOOKUP(C132,Otley!$C$3:$L$46,9,FALSE) -> 0.6636425493 | R132: =VLOOKUP(C132,Solstice!$C$3:$L$48,7,FALSE) ->  | S132: =VLOOKUP(C132,Eccup!$C$3:$L$46,9,FALSE) ->  | U132: =VLOOKUP(C132,Shakerr!$C$3:$L$46,7,FALSE) -> 0.5038124823 | V132: =VLOOKUP(C132,VoY!$C$3:$L$46,9,FALSE) -> 0.697737069 | W132: =VLOOKUP(C132,Kirkstall!$C$3:$L$46,9,FALSE) ->  | X132: =VLOOKUP($C132,City!$C$3:$L$69,9,FALSE) ->  | Y132: =VLOOKUP(C132,'Guy Fawkes'!$C$3:$N$34,9,FALSE) ->  | Z132: =VLOOKUP(C132,Abbey!$C$3:$L$48,7,FALSE) -> 0.7377998346 | AA132: =VLOOKUP(C132,Chevin!$C$3:$L$50,7,FALSE) -> 0.6508607671 | AC132: 2 | AD132: 2 | AE132: 3 | AF132: 0 | AG132: 0 | AH132: 0 | AI132: 1 | AJ132: 2 | AK132: =IF(ISNA(O132),0,1+COUNTIFS($F$3:$F$399,$F132,O$3:O$399,">"&O132)) -> 0 | AL132: =IF(ISNA(P132),0,1+COUNTIFS($F$3:$F$399,$F132,P$3:P$399,">"&P132)) -> 0 | AM132: =IF(ISNA(Q132),0,1+COUNTIFS($F$3:$F$399,$F132,Q$3:Q$399,">"&Q132)) -> 2 | AN132: =IF(ISNA(R132),0,1+COUNTIFS($F$3:$F$399,$F132,R$3:R$399,">"&R132)) -> 0 | AO132: =IF(ISNA(S132),0,1+COUNTIFS($F$3:$F$399,$F132,S$3:S$399,">"&S132)) -> 0 | AP132: 0 | AQ132: =IF(ISNA(U132),0,1+COUNTIFS($F$3:$F$399,$F132,U$3:U$399,">"&U132)) -> 3 | AR132: =IF(ISNA(V132),0,1+COUNTIFS($F$3:$F$399,$F132,V$3:V$399,">"&V132)) -> 1 | AS132: =IF(ISNA(W132),0,1+COUNTIFS($F$3:$F$399,$F132,W$3:W$399,">"&W132)) -> 0 | AT132: =IF(ISNA(X132),0,1+COUNTIFS($F$3:$F$399,$F132,X$3:X$399,">"&X132)) -> 0 | AU132: =IF(ISNA(Y132),0,1+COUNTIFS($F$3:$F$399,$F132,Y$3:Y$399,">"&Y132)) -> 0 | AV132: =IF(ISNA(Z132),0,1+COUNTIFS($F$3:$F$399,$F132,Z$3:Z$399,">"&Z132)) -> 1 | AW132: =IF(ISNA(AA132),0,1+COUNTIFS($F$3:$F$399,$F132,AA$3:AA$399,">"&AA132)) -> 2 | AX132: =COUNTIF(AC132:AW132,">0") -> 10
C133: Lucy Johnston | D133: 1985-09-05 | E133: 31 | F133: =IFERROR(VLOOKUP(C133,'Division Lookup'!$A$2:$D$251,4,FALSE),"Second") -> Second | G133: =VLOOKUP(C133,Dewsbury!$C$3:$L$46,7,FALSE) ->  | H133: =VLOOKUP($C133,Bradford!$C$3:$L$66,7,FALSE) ->  | I133: =VLOOKUP($C133,Keighley!$C$3:$N$42,9,FALSE) ->  | J133: =VLOOKUP($C133,'Bunny '!$C$3:$N$20,9,FALSE) ->  | K133: =VLOOKUP($C133,Liverpool!$C$3:$N$59,9,FALSE) -> 0.5565095004 | L133: =VLOOKUP(C133,'VoY 10m'!$C$3:$N$40,9,FALSE) ->  | M133: =VLOOKUP(C133,Guisley!$C$3:$N$49,9,FALSE) ->  | N133: =VLOOKUP(C133,Odda!$C$3:$N$42,9,FALSE) ->  | O133: =VLOOKUP(C133,'Leeds half'!$C$4:$N$31,9,FALSE) ->  | P133: =VLOOKUP(C133,Ilkley!$C$3:$L$46,7,FALSE) ->  | Q133: =VLOOKUP(C133,Otley!$C$3:$L$46,9,FALSE) ->  | R133: =VLOOKUP(C133,Solstice!$C$3:$L$48,7,FALSE) ->  | S133: =VLOOKUP(C133,Eccup!$C$3:$L$46,9,FALSE) -> 0.471097755 | U133: =VLOOKUP(C133,Shakerr!$C$3:$L$46,7,FALSE) ->  | V133: =VLOOKUP(C133,VoY!$C$3:$L$46,9,FALSE) ->  | W133: =VLOOKUP(C133,Kirkstall!$C$3:$L$46,9,FALSE) ->  | X133: =VLOOKUP($C133,City!$C$3:$L$69,9,FALSE) ->  | Y133: =VLOOKUP(C133,'Guy Fawkes'!$C$3:$N$34,9,FALSE) ->  | Z133: =VLOOKUP(C133,Abbey!$C$3:$L$48,7,FALSE) ->  | AA133: =VLOOKUP(C133,Chevin!$C$3:$L$50,7,FALSE) ->  | AC133: 0 | AD133: 0 | AE133: 0 | AF133: 0 | AG133: 12 | AH133: 0 | AI133: 0 | AJ133: 0 | AK133: 0 | AL133: 0 | AM133: 0 | AN133: 0 | AO133: 4 | AP133: 0 | AQ133: 0 | AR133: 0 | AS133: 0 | AT133: 0 | AU133: 0 | AV133: 0 | AW133: 0 | AX133: 2
C134: Vicki Johnston | D134: 1976-01-23 | E134: 40 | F134: =IFERROR(VLOOKUP(C134,'Division Lookup'!$A$2:$D$251,4,FALSE),"Second") -> First | G134: =VLOOKUP(C134,Dewsbury!$C$3:$L$46,7,FALSE) ->  | H134: =VLOOKUP($C134,Bradford!$C$3:$L$66,7,FALSE) ->  | I134: =VLOOKUP($C134,Keighley!$C$3:$N$42,9,FALSE) ->  | J134: =VLOOKUP($C134,'Bunny '!$C$3:$N$20,9,FALSE) ->  | K134: =VLOOKUP($C134,Liverpool!$C$3:$N$59,9,FALSE) ->  | L134: =VLOOKUP(C134,'VoY 10m'!$C$3:$N$40,9,FALSE) ->  | M134: =VLOOKUP(C134,Guisley!$C$3:$N$49,9,FALSE) ->  | N134: =VLOOKUP(C134,Odda!$C$3:$N$42,9,FALSE) ->  | O134: =VLOOKUP(C134,'Leeds half'!$C$4:$N$31,9,FALSE) ->  | P134: =VLOOKUP(C134,Ilkley!$C$3:$L$46,7,FALSE) ->  | Q134: =VLOOKUP(C134,Otley!$C$3:$L$46,9,FALSE) ->  | R134: =VLOOKUP(C134,Solstice!$C$3:$L$48,7,FALSE) ->  | S134: =VLOOKUP(C134,Eccup!$C$3:$L$46,9,FALSE) -> 0.5228550019 | U134: =VLOOKUP(C134,Shakerr!$C$3:$L$46,7,FALSE) ->  | V134: =VLOOKUP(C134,VoY!$C$3:$L$46,9,FALSE) ->  | W134: =VLOOKUP(C134,Kirkstall!$C$3:$L$46,9,FALSE) ->  | X134: =VLOOKUP($C134,City!$C$3:$L$69,9,FALSE) ->  | Y134: =VLOOKUP(C134,'Guy Fawkes'!$C$3:$N$34,9,FALSE) ->  | Z134: =VLOOKUP(C134,Abbey!$C$3:$L$48,7,FALSE) ->  | AA134: =VLOOKUP(C134,Chevin!$C$3:$L$50,7,FALSE) ->  | AC134: 0 | AD134: 0 | AE134: 0 | AF134: 0 | AG134: 0 | AH134: 0 | AI134: 0 | AJ134: 0 | AK134: 0 | AL134: 0 | AM134: 0 | AN134: 0 | AO134: 2 | AP134: 0 | AQ134: 0 | AR134: 0 | AS134: 0 | AT134: 0 | AU134: 0 | AV134: 0 | AW134: 0 | AX134: 1
C135: Chris Jones | D135: 1986-08-12 | E135: 30 | F135: =IFERROR(VLOOKUP(C135,'Division Lookup'!$A$2:$D$251,4,FALSE),"Second") -> Premier | G135: =VLOOKUP(C135,Dewsbury!$C$3:$L$46,7,FALSE) ->  | H135: =VLOOKUP($C135,Bradford!$C$3:$L$66,7,FALSE) ->  | I135: =VLOOKUP($C135,Keighley!$C$3:$N$42,9,FALSE) ->  | J135: =VLOOKUP($C135,'Bunny '!$C$3:$N$20,9,FALSE) ->  | K135: =VLOOKUP($C135,Liverpool!$C$3:$N$59,9,FALSE) ->  | L135: =VLOOKUP(C135,'VoY 10m'!$C$3:$N$40,9,FALSE) ->  | M135: =VLOOKUP(C135,Guisley!$C$3:$N$49,9,FALSE) ->  | N135: =VLOOKUP(C135,Odda!$C$3:$N$42,9,FALSE) ->  | O135: =VLOOKUP(C135,'Leeds half'!$C$4:$N$31,9,FALSE) ->  | P135: =VLOOKUP(C135,Ilkley!$C$3:$L$46,7,FALSE) ->  | Q135: =VLOOKUP(C135,Otley!$C$3:$L$46,9,FALSE) ->  | R135: =VLOOKUP(C135,Solstice!$C$3:$L$48,7,FALSE) ->  | S135: =VLOOKUP(C135,Eccup!$C$3:$L$46,9,FALSE) ->  | U135: =VLOOKUP(C135,Shakerr!$C$3:$L$46,7,FALSE) ->  | V135: =VLOOKUP(C135,VoY!$C$3:$L$46,9,FALSE) ->  | W135: =VLOOKUP(C135,Kirkstall!$C$3:$L$46,9,FALSE) ->  | X135: =VLOOKUP($C135,City!$C$3:$L$69,9,FALSE) ->  | Y135: =VLOOKUP(C135,'Guy Fawkes'!$C$3:$N$34,9,FALSE) ->  | Z135: =VLOOKUP(C135,Abbey!$C$3:$L$48,7,FALSE) ->  | AA135: =VLOOKUP(C135,Chevin!$C$3:$L$50,7,FALSE) ->  | AC135: 0 | AD135: 0 | AE135: 0 | AF135: 0 | AG135: 0 | AH135: 0 | AI135: 0 | AJ135: 0 | AK135: 0 | AL135: 0 | AM135: 0 | AN135: 0 | AO135: 0 | AP135: 0 | AQ135: 0 | AR135: 0 | AS135: 0 | AT135: 0 | AU135: 0 | AV135: 0 | AW135: 0 | AX135: 0
C136: Mick Jones | D136: 1957-05-21 | E136: 59 | F136: =IFERROR(VLOOKUP(C136,'Division Lookup'!$A$2:$D$251,4,FALSE),"Second") -> Second | G136: =VLOOKUP(C136,Dewsbury!$C$3:$L$46,7,FALSE) ->  | H136: =VLOOKUP($C136,Bradford!$C$3:$L$66,7,FALSE) ->  | I136: =VLOOKUP($C136,Keighley!$C$3:$N$42,9,FALSE) ->  | J136: =VLOOKUP($C136,'Bunny '!$C$3:$N$20,9,FALSE) ->  | K136: =VLOOKUP($C136,Liverpool!$C$3:$N$59,9,FALSE) ->  | L136: =VLOOKUP(C136,'VoY 10m'!$C$3:$N$40,9,FALSE) ->  | M136: =VLOOKUP(C136,Guisley!$C$3:$N$49,9,FALSE) ->  | N136: =VLOOKUP(C136,Odda!$C$3:$N$42,9,FALSE) ->  | O136: =VLOOKUP(C136,'Leeds half'!$C$4:$N$31,9,FALSE) ->  | P136: =VLOOKUP(C136,Ilkley!$C$3:$L$46,7,FALSE) ->  | Q136: =VLOOKUP(C136,Otley!$C$3:$L$46,9,FALSE) ->  | R136: =VLOOKUP(C136,Solstice!$C$3:$L$48,7,FALSE) ->  | S136: =VLOOKUP(C136,Eccup!$C$3:$L$46,9,FALSE) ->  | U136: =VLOOKUP(C136,Shakerr!$C$3:$L$46,7,FALSE) ->  | V136: =VLOOKUP(C136,VoY!$C$3:$L$46,9,FALSE) ->  | W136: =VLOOKUP(C136,Kirkstall!$C$3:$L$46,9,FALSE) ->  | X136: =VLOOKUP($C136,City!$C$3:$L$69,9,FALSE) ->  | Y136: =VLOOKUP(C136,'Guy Fawkes'!$C$3:$N$34,9,FALSE) ->  | Z136: =VLOOKUP(C136,Abbey!$C$3:$L$48,7,FALSE) ->  | AA136: =VLOOKUP(C136,Chevin!$C$3:$L$50,7,FALSE) ->  | AC136: 0 | AD136: 0 | AE136: 0 | AF136: 0 | AG136: 0 | AH136: 0 | AI136: 0 | AJ136: 0 | AK136: 0 | AL136: 0 | AM136: 0 | AN136: 0 | AO136: 0 | AP136: 0 | AQ136: 0 | AR136: 0 | AS136: 0 | AT136: 0 | AU136: 0 | AV136: 0 | AW136: 0 | AX136: 0
C137: Rita Jordan | E137: 117 | F137: =IFERROR(VLOOKUP(C137,'Division Lookup'!$A$2:$D$251,4,FALSE),"Second") -> Second | G137: =VLOOKUP(C137,Dewsbury!$C$3:$L$46,7,FALSE) ->  | H137: =VLOOKUP($C137,Bradford!$C$3:$L$66,7,FALSE) ->  | I137: =VLOOKUP($C137,Keighley!$C$3:$N$42,9,FALSE) ->  | J137: =VLOOKUP($C137,'Bunny '!$C$3:$N$20,9,FALSE) ->  | K137: =VLOOKUP($C137,Liverpool!$C$3:$N$59,9,FALSE) ->  | L137: =VLOOKUP(C137,'VoY 10m'!$C$3:$N$40,9,FALSE) ->  | M137: =VLOOKUP(C137,Guisley!$C$3:$N$49,9,FALSE) ->  | N137: =VLOOKUP(C137,Odda!$C$3:$N$42,9,FALSE) ->  | O137: =VLOOKUP(C137,'Leeds half'!$C$4:$N$31,9,FALSE) ->  | P137: =VLOOKUP(C137,Ilkley!$C$3:$L$46,7,FALSE) ->  | Q137: =VLOOKUP(C137,Otley!$C$3:$L$46,9,FALSE) ->  | R137: =VLOOKUP(C137,Solstice!$C$3:$L$48,7,FALSE) ->  | S137: =VLOOKUP(C137,Eccup!$C$3:$L$46,9,FALSE) ->  | U137: =VLOOKUP(C137,Shakerr!$C$3:$L$46,7,FALSE) ->  | V137: =VLOOKUP(C137,VoY!$C$3:$L$46,9,FALSE) ->  | W137: =VLOOKUP(C137,Kirkstall!$C$3:$L$46,9,FALSE) ->  | X137: =VLOOKUP($C137,City!$C$3:$L$69,9,FALSE) ->  | Y137: =VLOOKUP(C137,'Guy Fawkes'!$C$3:$N$34,9,FALSE) ->  | Z137: =VLOOKUP(C137,Abbey!$C$3:$L$48,7,FALSE) ->  | AA137: =VLOOKUP(C137,Chevin!$C$3:$L$50,7,FALSE) ->  | AC137: 0 | AD137: 0 | AE137: 0 | AF137: 0 | AG137: 0 | AH137: 0 | AI137: 0 | AJ137: 0 | AK137: 0 | AL137: 0 | AM137: 0 | AN137: 0 | AO137: 0 | AP137: 0 | AQ137: 0 | AR137: 0 | AS137: 0 | AT137: 0 | AU137: 0 | AV137: 0 | AW137: 0 | AX137: 0
C138: Keith Jump | D138: 1947-10-17 | E138: 69 | F138: =IFERROR(VLOOKUP(C138,'Division Lookup'!$A$2:$D$251,4,FALSE),"Second") -> Second | G138: =VLOOKUP(C138,Dewsbury!$C$3:$L$46,7,FALSE) ->  | H138: =VLOOKUP($C138,Bradford!$C$3:$L$66,7,FALSE) ->  | I138: =VLOOKUP($C138,Keighley!$C$3:$N$42,9,FALSE) ->  | J138: =VLOOKUP($C138,'Bunny '!$C$3:$N$20,9,FALSE) ->  | K138: =VLOOKUP($C138,Liverpool!$C$3:$N$59,9,FALSE) -> 0.5227570161 | L138: =VLOOKUP(C138,'VoY 10m'!$C$3:$N$40,9,FALSE) ->  | M138: =VLOOKUP(C138,Guisley!$C$3:$N$49,9,FALSE) ->  | N138: =VLOOKUP(C138,Odda!$C$3:$N$42,9,FALSE) ->  | O138: =VLOOKUP(C138,'Leeds half'!$C$4:$N$31,9,FALSE) ->  | P138: =VLOOKUP(C138,Ilkley!$C$3:$L$46,7,FALSE) ->  | Q138: =VLOOKUP(C138,Otley!$C$3:$L$46,9,FALSE) ->  | R138: =VLOOKUP(C138,Solstice!$C$3:$L$48,7,FALSE) ->  | S138: =VLOOKUP(C138,Eccup!$C$3:$L$46,9,FALSE) ->  | U138: =VLOOKUP(C138,Shakerr!$C$3:$L$46,7,FALSE) ->  | V138: =VLOOKUP(C138,VoY!$C$3:$L$46,9,FALSE) ->  | W138: =VLOOKUP(C138,Kirkstall!$C$3:$L$46,9,FALSE) ->  | X138: =VLOOKUP($C138,City!$C$3:$L$69,9,FALSE) ->  | Y138: =VLOOKUP(C138,'Guy Fawkes'!$C$3:$N$34,9,FALSE) ->  | Z138: =VLOOKUP(C138,Abbey!$C$3:$L$48,7,FALSE) ->  | AA138: =VLOOKUP(C138,Chevin!$C$3:$L$50,7,FALSE) ->  | AC138: 0 | AD138: 0 | AE138: 0 | AF138: 0 | AG138: 14 | AH138: 0 | AI138: 0 | AJ138: 0 | AK138: 0 | AL138: 0 | AM138: 0 | AN138: 0 | AO138: 0 | AP138: 0 | AQ138: 0 | AR138: 0 | AS138: 0 | AT138: 0 | AU138: 0 | AV138: 0 | AW138: 0 | AX138: 1
C139: Kanwaldeep Kaur | D139: 1986-10-02 | E139: 30 | F139: =IFERROR(VLOOKUP(C139,'Division Lookup'!$A$2:$D$251,4,FALSE),"Second") -> Second | G139: =VLOOKUP(C139,Dewsbury!$C$3:$L$46,7,FALSE) ->  | H139: =VLOOKUP($C139,Bradford!$C$3:$L$66,7,FALSE) -> 0.4088459811 | I139: =VLOOKUP($C139,Keighley!$C$3:$N$42,9,FALSE) ->  | J139: =VLOOKUP($C139,'Bunny '!$C$3:$N$20,9,FALSE) ->  | K139: =VLOOKUP($C139,Liverpool!$C$3:$N$59,9,FALSE) ->  | L139: =VLOOKUP(C139,'VoY 10m'!$C$3:$N$40,9,FALSE) ->  | M139: =VLOOKUP(C139,Guisley!$C$3:$N$49,9,FALSE) ->  | N139: =VLOOKUP(C139,Odda!$C$3:$N$42,9,FALSE) ->  | O139: =VLOOKUP(C139,'Leeds half'!$C$4:$N$31,9,FALSE) ->  | P139: =VLOOKUP(C139,Ilkley!$C$3:$L$46,7,FALSE) ->  | Q139: =VLOOKUP(C139,Otley!$C$3:$L$46,9,FALSE) ->  | R139: =VLOOKUP(C139,Solstice!$C$3:$L$48,7,FALSE) ->  | S139: =VLOOKUP(C139,Eccup!$C$3:$L$46,9,FALSE) ->  | U139: =VLOOKUP(C139,Shakerr!$C$3:$L$46,7,FALSE) ->  | V139: =VLOOKUP(C139,VoY!$C$3:$L$46,9,FALSE) ->  | W139: =VLOOKUP(C139,Kirkstall!$C$3:$L$46,9,FALSE) ->  | X139: =VLOOKUP($C139,City!$C$3:$L$69,9,FALSE) ->  | Y139: =VLOOKUP(C139,'Guy Fawkes'!$C$3:$N$34,9,FALSE) ->  | Z139: =VLOOKUP(C139,Abbey!$C$3:$L$48,7,FALSE) ->  | AA139: =VLOOKUP(C139,Chevin!$C$3:$L$50,7,FALSE) ->  | AC139: 0 | AD139: 24 | AE139: 0 | AF139: 0 | AG139: 0 | AH139: 0 | AI139: 0 | AJ139: 0 | AK139: 0 | AL139: 0 | AM139: 0 | AN139: 0 | AO139: 0 | AP139: 0 | AQ139: 0 | AR139: 0 | AS139: 0 | AT139: 0 | AU139: 0 | AV139: 0 | AW139: 0 | AX139: 1
C140: Paul Keeling | D140: 1963-05-22 | E140: 53 | F140: =IFERROR(VLOOKUP(C140,'Division Lookup'!$A$2:$D$251,4,FALSE),"Second") -> Second | G140: =VLOOKUP(C140,Dewsbury!$C$3:$L$46,7,FALSE) ->  | H140: =VLOOKUP($C140,Bradford!$C$3:$L$66,7,FALSE) ->  | I140: =VLOOKUP($C140,Keighley!$C$3:$N$42,9,FALSE) ->  | J140: =VLOOKUP($C140,'Bunny '!$C$3:$N$20,9,FALSE) ->  | K140: =VLOOKUP($C140,Liverpool!$C$3:$N$59,9,FALSE) ->  | L140: =VLOOKUP(C140,'VoY 10m'!$C$3:$N$40,9,FALSE) ->  | M140: =VLOOKUP(C140,Guisley!$C$3:$N$49,9,FALSE) ->  | N140: =VLOOKUP(C140,Odda!$C$3:$N$42,9,FALSE) ->  | O140: =VLOOKUP(C140,'Leeds half'!$C$4:$N$31,9,FALSE) ->  | P140: =VLOOKUP(C140,Ilkley!$C$3:$L$46,7,FALSE) ->  | Q140: =VLOOKUP(C140,Otley!$C$3:$L$46,9,FALSE) ->  | R140: =VLOOKUP(C140,Solstice!$C$3:$L$48,7,FALSE) ->  | S140: =VLOOKUP(C140,Eccup!$C$3:$L$46,9,FALSE) ->  | U140: =VLOOKUP(C140,Shakerr!$C$3:$L$46,7,FALSE) ->  | V140: =VLOOKUP(C140,VoY!$C$3:$L$46,9,FALSE) ->  | W140: =VLOOKUP(C140,Kirkstall!$C$3:$L$46,9,FALSE) ->  | X140: =VLOOKUP($C140,City!$C$3:$L$69,9,FALSE) ->  | Y140: =VLOOKUP(C140,'Guy Fawkes'!$C$3:$N$34,9,FALSE) ->  | Z140: =VLOOKUP(C140,Abbey!$C$3:$L$48,7,FALSE) ->  | AA140: =VLOOKUP(C140,Chevin!$C$3:$L$50,7,FALSE) ->  | AC140: 0 | AD140: 0 | AE140: 0 | AF140: 0 | AG140: 0 | AH140: 0 | AI140: 0 | AJ140: 0 | AK140: 0 | AL140: 0 | AM140: 0 | AN140: 0 | AO140: 0 | AP140: 0 | AQ140: 0 | AR140: 0 | AS140: 0 | AT140: 0 | AU140: 0 | AV140: 0 | AW140: 0 | AX140: 0
C141: Camille Kendall | D141: 1982-03-30 | E141: 34 | F141: =IFERROR(VLOOKUP(C141,'Division Lookup'!$A$2:$D$251,4,FALSE),"Second") -> Second | G141: =VLOOKUP(C141,Dewsbury!$C$3:$L$46,7,FALSE) ->  | H141: =VLOOKUP($C141,Bradford!$C$3:$L$66,7,FALSE) ->  | I141: =VLOOKUP($C141,Keighley!$C$3:$N$42,9,FALSE) ->  | J141: =VLOOKUP($C141,'Bunny '!$C$3:$N$20,9,FALSE) ->  | K141: =VLOOKUP($C141,Liverpool!$C$3:$N$59,9,FALSE) ->  | L141: =VLOOKUP(C141,'VoY 10m'!$C$3:$N$40,9,FALSE) ->  | M141: =VLOOKUP(C141,Guisley!$C$3:$N$49,9,FALSE) ->  | N141: =VLOOKUP(C141,Odda!$C$3:$N$42,9,FALSE) ->  | O141: =VLOOKUP(C141,'Leeds half'!$C$4:$N$31,9,FALSE) ->  | P141: =VLOOKUP(C141,Ilkley!$C$3:$L$46,7,FALSE) ->  | Q141: =VLOOKUP(C141,Otley!$C$3:$L$46,9,FALSE) ->  | R141: =VLOOKUP(C141,Solstice!$C$3:$L$48,7,FALSE) ->  | S141: =VLOOKUP(C141,Eccup!$C$3:$L$46,9,FALSE) ->  | U141: =VLOOKUP(C141,Shakerr!$C$3:$L$46,7,FALSE) ->  | V141: =VLOOKUP(C141,VoY!$C$3:$L$46,9,FALSE) ->  | W141: =VLOOKUP(C141,Kirkstall!$C$3:$L$46,9,FALSE) ->  | X141: =VLOOKUP($C141,City!$C$3:$L$69,9,FALSE) ->  | Y141: =VLOOKUP(C141,'Guy Fawkes'!$C$3:$N$34,9,FALSE) ->  | Z141: =VLOOKUP(C141,Abbey!$C$3:$L$48,7,FALSE) ->  | AA141: =VLOOKUP(C141,Chevin!$C$3:$L$50,7,FALSE) ->  | AC141: 0 | AD141: 0 | AE141: 0 | AF141: 0 | AG141: 0 | AH141: 0 | AI141: 0 | AJ141: 0 | AK141: 0 | AL141: 0 | AM141: 0 | AN141: 0 | AO141: 0 | AP141: 0 | AQ141: 0 | AR141: 0 | AS141: 0 | AT141: 0 | AU141: 0 | AV141: 0 | AW141: 0 | AX141: 0
C142: Carl Kernick | D142: 1977-08-05 | E142: 39 | F142: =IFERROR(VLOOKUP(C142,'Division Lookup'!$A$2:$D$251,4,FALSE),"Second") -> Second | G142: =VLOOKUP(C142,Dewsbury!$C$3:$L$46,7,FALSE) ->  | H142: =VLOOKUP($C142,Bradford!$C$3:$L$66,7,FALSE) ->  | I142: =VLOOKUP($C142,Keighley!$C$3:$N$42,9,FALSE) ->  | J142: =VLOOKUP($C142,'Bunny '!$C$3:$N$20,9,FALSE) ->  | K142: =VLOOKUP($C142,Liverpool!$C$3:$N$59,9,FALSE) ->  | L142: =VLOOKUP(C142,'VoY 10m'!$C$3:$N$40,9,FALSE) ->  | M142: =VLOOKUP(C142,Guisley!$C$3:$N$49,9,FALSE) ->  | N142: =VLOOKUP(C142,Odda!$C$3:$N$42,9,FALSE) ->  | O142: =VLOOKUP(C142,'Leeds half'!$C$4:$N$31,9,FALSE) ->  | P142: =VLOOKUP(C142,Ilkley!$C$3:$L$46,7,FALSE) ->  | Q142: =VLOOKUP(C142,Otley!$C$3:$L$46,9,FALSE) -> 0.7313787639 | R142: =VLOOKUP(C142,Solstice!$C$3:$L$48,7,FALSE) ->  | S142: =VLOOKUP(C142,Eccup!$C$3:$L$46,9,FALSE) ->  | U142: =VLOOKUP(C142,Shakerr!$C$3:$L$46,7,FALSE) ->  | V142: =VLOOKUP(C142,VoY!$C$3:$L$46,9,FALSE) ->  | W142: =VLOOKUP(C142,Kirkstall!$C$3:$L$46,9,FALSE) ->  | X142: =VLOOKUP($C142,City!$C$3:$L$69,9,FALSE) ->  | Y142: =VLOOKUP(C142,'Guy Fawkes'!$C$3:$N$34,9,FALSE) ->  | Z142: =VLOOKUP(C142,Abbey!$C$3:$L$48,7,FALSE) ->  | AA142: =VLOOKUP(C142,Chevin!$C$3:$L$50,7,FALSE) ->  | AC142: 0 | AD142: 0 | AE142: 0 | AF142: 0 | AG142: 0 | AH142: 0 | AI142: 0 | AJ142: 0 | AK142: 0 | AL142: 0 | AM142: 1 | AN142: 0 | AO142: 0 | AP142: 0 | AQ142: 0 | AR142: 0 | AS142: 0 | AT142: 0 | AU142: 0 | AV142: 0 | AW142: 0 | AX142: 1
C143: Will Kerr | D143: 1976-04-29 | E143: 40 | F143: =IFERROR(VLOOKUP(C143,'Division Lookup'!$A$2:$D$251,4,FALSE),"Second") -> Premier | G143: =VLOOKUP(C143,Dewsbury!$C$3:$L$46,7,FALSE) ->  | H143: =VLOOKUP($C143,Bradford!$C$3:$L$66,7,FALSE) ->  | I143: =VLOOKUP($C143,Keighley!$C$3:$N$42,9,FALSE) ->  | J143: =VLOOKUP($C143,'Bunny '!$C$3:$N$20,9,FALSE) -> 0.8053097345 | K143: =VLOOKUP($C143,Liverpool!$C$3:$N$59,9,FALSE) -> 0.8204389271 | L143: =VLOOKUP(C143,'VoY 10m'!$C$3:$N$40,9,FALSE) -> 0.7965182648 | M143: =VLOOKUP(C143,Guisley!$C$3:$N$49,9,FALSE) ->  | N143: =VLOOKUP(C143,Odda!$C$3:$N$42,9,FALSE) -> 0.7154846832 | O143: =VLOOKUP(C143,'Leeds half'!$C$4:$N$31,9,FALSE) ->  | P143: =VLOOKUP(C143,Ilkley!$C$3:$L$46,7,FALSE) ->  | Q143: =VLOOKUP(C143,Otley!$C$3:$L$46,9,FALSE) -> 0.8004014913 | R143: =VLOOKUP(C143,Solstice!$C$3:$L$48,7,FALSE) -> 0.7472406181 | S143: =VLOOKUP(C143,Eccup!$C$3:$L$46,9,FALSE) ->  | U143: =VLOOKUP(C143,Shakerr!$C$3:$L$46,7,FALSE) -> 0.6122082585 | V143: =VLOOKUP(C143,VoY!$C$3:$L$46,9,FALSE) -> 0.8198936642 | W143: =VLOOKUP(C143,Kirkstall!$C$3:$L$46,9,FALSE) ->  | X143: =VLOOKUP($C143,City!$C$3:$L$69,9,FALSE) -> 0.7649855312 | Y143: =VLOOKUP(C143,'Guy Fawkes'!$C$3:$N$34,9,FALSE) ->  | Z143: =VLOOKUP(C143,Abbey!$C$3:$L$48,7,FALSE) ->  | AA143: =VLOOKUP(C143,Chevin!$C$3:$L$50,7,FALSE) -> 0.7727272727 | AC143: 0 | AD143: 0 | AE143: 0 | AF143: 1 | AG143: 1 | AH143: 1 | AI143: 0 | AJ143: 1 | AK143: 0 | AL143: 0 | AM143: 2 | AN143: 2 | AO143: 0 | AP143: 0 | AQ143: 1 | AR143: 2 | AS143: 0 | AT143: 3 | AU143: 0 | AV143: 0 | AW143: 1 | AX143: 10
C144: Sikander Khan | D144: 1981-01-23 | E144: 35 | F144: =IFERROR(VLOOKUP(C144,'Division Lookup'!$A$2:$D$251,4,FALSE),"Second") -> Second | G144: =VLOOKUP(C144,Dewsbury!$C$3:$L$46,7,FALSE) ->  | H144: =VLOOKUP($C144,Bradford!$C$3:$L$66,7,FALSE) -> 0.5484838387 | I144: =VLOOKUP($C144,Keighley!$C$3:$N$42,9,FALSE) ->  | J144: =VLOOKUP($C144,'Bunny '!$C$3:$N$20,9,FALSE) ->  | K144: =VLOOKUP($C144,Liverpool!$C$3:$N$59,9,FALSE) ->  | L144: =VLOOKUP(C144,'VoY 10m'!$C$3:$N$40,9,FALSE) ->  | M144: =VLOOKUP(C144,Guisley!$C$3:$N$49,9,FALSE) ->  | N144: =VLOOKUP(C144,Odda!$C$3:$N$42,9,FALSE) ->  | O144: =VLOOKUP(C144,'Leeds half'!$C$4:$N$31,9,FALSE) ->  | P144: =VLOOKUP(C144,Ilkley!$C$3:$L$46,7,FALSE) ->  | Q144: =VLOOKUP(C144,Otley!$C$3:$L$46,9,FALSE) ->  | R144: =VLOOKUP(C144,Solstice!$C$3:$L$48,7,FALSE) ->  | S144: =VLOOKUP(C144,Eccup!$C$3:$L$46,9,FALSE) ->  | U144: =VLOOKUP(C144,Shakerr!$C$3:$L$46,7,FALSE) ->  | V144: =VLOOKUP(C144,VoY!$C$3:$L$46,9,FALSE) ->  | W144: =VLOOKUP(C144,Kirkstall!$C$3:$L$46,9,FALSE) ->  | X144: =VLOOKUP($C144,City!$C$3:$L$69,9,FALSE) ->  | Y144: =VLOOKUP(C144,'Guy Fawkes'!$C$3:$N$34,9,FALSE) ->  | Z144: =VLOOKUP(C144,Abbey!$C$3:$L$48,7,FALSE) ->  | AA144: =VLOOKUP(C144,Chevin!$C$3:$L$50,7,FALSE) ->  | AC144: 0 | AD144: 17 | AE144: 0 | AF144: 0 | AG144: 0 | AH144: 0 | AI144: 0 | AJ144: 0 | AK144: 0 | AL144: 0 | AM144: 0 | AN144: 0 | AO144: 0 | AP144: 0 | AQ144: 0 | AR144: 0 | AS144: 0 | AT144: 0 | AU144: 0 | AV144: 0 | AW144: 0 | AX144: 1
C145: Simon Kingsnorth | D145: 1965-09-06 | E145: 51 | F145: =IFERROR(VLOOKUP(C145,'Division Lookup'!$A$2:$D$251,4,FALSE),"Second") -> Premier | G145: =VLOOKUP(C145,Dewsbury!$C$3:$L$46,7,FALSE) ->  | H145: =VLOOKUP($C145,Bradford!$C$3:$L$66,7,FALSE) ->  | I145: =VLOOKUP($C145,Keighley!$C$3:$N$42,9,FALSE) ->  | J145: =VLOOKUP($C145,'Bunny '!$C$3:$N$20,9,FALSE) ->  | K145: =VLOOKUP($C145,Liverpool!$C$3:$N$59,9,FALSE) ->  | L145: =VLOOKUP(C145,'VoY 10m'!$C$3:$N$40,9,FALSE) ->  | M145: =VLOOKUP(C145,Guisley!$C$3:$N$49,9,FALSE) ->  | N145: =VLOOKUP(C145,Odda!$C$3:$N$42,9,FALSE) ->  | O145: =VLOOKUP(C145,'Leeds half'!$C$4:$N$31,9,FALSE) ->  | P145: =VLOOKUP(C145,Ilkley!$C$3:$L$46,7,FALSE) ->  | Q145: =VLOOKUP(C145,Otley!$C$3:$L$46,9,FALSE) ->  | R145: =VLOOKUP(C145,Solstice!$C$3:$L$48,7,FALSE) ->  | S145: =VLOOKUP(C145,Eccup!$C$3:$L$46,9,FALSE) ->  | U145: =VLOOKUP(C145,Shakerr!$C$3:$L$46,7,FALSE) ->  | V145: =VLOOKUP(C145,VoY!$C$3:$L$46,9,FALSE) ->  | W145: =VLOOKUP(C145,Kirkstall!$C$3:$L$46,9,FALSE) ->  | X145: =VLOOKUP($C145,City!$C$3:$L$69,9,FALSE) ->  | Y145: =VLOOKUP(C145,'Guy Fawkes'!$C$3:$N$34,9,FALSE) ->  | Z145: =VLOOKUP(C145,Abbey!$C$3:$L$48,7,FALSE) -> 0.5073770492 | AA145: =VLOOKUP(C145,Chevin!$C$3:$L$50,7,FALSE) -> 0.3704988437 | AC145: 0 | AD145: 0 | AE145: 0 | AF145: 0 | AG145: 0 | AH145: 0 | AI145: 0 | AJ145: 0 | AK145: 0 | AL145: 0 | AM145: 0 | AN145: 0 | AO145: 0 | AP145: 0 | AQ145: 0 | AR145: 0 | AS145: 0 | AT145: 0 | AU145: 0 | AV145: 8 | AW145: 7 | AX145: 2
C146: Simon Latimer | D146: 1965-03-15 | E146: 51 | F146: =IFERROR(VLOOKUP(C146,'Division Lookup'!$A$2:$D$251,4,FALSE),"Second") -> Second | G146: =VLOOKUP(C146,Dewsbury!$C$3:$L$46,7,FALSE) ->  | H146: =VLOOKUP($C146,Bradford!$C$3:$L$66,7,FALSE) ->  | I146: =VLOOKUP($C146,Keighley!$C$3:$N$42,9,FALSE) ->  | J146: =VLOOKUP($C146,'Bunny '!$C$3:$N$20,9,FALSE) ->  | K146: =VLOOKUP($C146,Liverpool!$C$3:$N$59,9,FALSE) ->  | L146: =VLOOKUP(C146,'VoY 10m'!$C$3:$N$40,9,FALSE) ->  | M146: =VLOOKUP(C146,Guisley!$C$3:$N$49,9,FALSE) ->  | N146: =VLOOKUP(C146,Odda!$C$3:$N$42,9,FALSE) ->  | O146: =VLOOKUP(C146,'Leeds half'!$C$4:$N$31,9,FALSE) ->  | P146: =VLOOKUP(C146,Ilkley!$C$3:$L$46,7,FALSE) ->  | Q146: =VLOOKUP(C146,Otley!$C$3:$L$46,9,FALSE) ->  | R146: =VLOOKUP(C146,Solstice!$C$3:$L$48,7,FALSE) ->  | S146: =VLOOKUP(C146,Eccup!$C$3:$L$46,9,FALSE) ->  | U146: =VLOOKUP(C146,Shakerr!$C$3:$L$46,7,FALSE) ->  | V146: =VLOOKUP(C146,VoY!$C$3:$L$46,9,FALSE) ->  | W146: =VLOOKUP(C146,Kirkstall!$C$3:$L$46,9,FALSE) ->  | X146: =VLOOKUP($C146,City!$C$3:$L$69,9,FALSE) ->  | Y146: =VLOOKUP(C146,'Guy Fawkes'!$C$3:$N$34,9,FALSE) ->  | Z146: =VLOOKUP(C146,Abbey!$C$3:$L$48,7,FALSE) ->  | AA146: =VLOOKUP(C146,Chevin!$C$3:$L$50,7,FALSE) ->  | AC146: 0 | AD146: 0 | AE146: 0 | AF146: 0 | AG146: 0 | AH146: 0 | AI146: 0 | AJ146: 0 | AK146: 0 | AL146: 0 | AM146: 0 | AN146: 0 | AO146: 0 | AP146: 0 | AQ146: 0 | AR146: 0 | AS146: 0 | AT146: 0 | AU146: 0 | AV146: 0 | AW146: 0 | AX146: 0
C147: Matthew Lawson | D147: 1989-03-01 | E147: 27 | F147: =IFERROR(VLOOKUP(C147,'Division Lookup'!$A$2:$D$251,4,FALSE),"Second") -> Second | G147: =VLOOKUP(C147,Dewsbury!$C$3:$L$46,7,FALSE) ->  | H147: =VLOOKUP($C147,Bradford!$C$3:$L$66,7,FALSE) ->  | I147: =VLOOKUP($C147,Keighley!$C$3:$N$42,9,FALSE) ->  | J147: =VLOOKUP($C147,'Bunny '!$C$3:$N$20,9,FALSE) ->  | K147: =VLOOKUP($C147,Liverpool!$C$3:$N$59,9,FALSE) ->  | L147: =VLOOKUP(C147,'VoY 10m'!$C$3:$N$40,9,FALSE) ->  | M147: =VLOOKUP(C147,Guisley!$C$3:$N$49,9,FALSE) ->  | N147: =VLOOKUP(C147,Odda!$C$3:$N$42,9,FALSE) ->  | O147: =VLOOKUP(C147,'Leeds half'!$C$4:$N$31,9,FALSE) ->  | P147: =VLOOKUP(C147,Ilkley!$C$3:$L$46,7,FALSE) ->  | Q147: =VLOOKUP(C147,Otley!$C$3:$L$46,9,FALSE) ->  | R147: =VLOOKUP(C147,Solstice!$C$3:$L$48,7,FALSE) ->  | S147: =VLOOKUP(C147,Eccup!$C$3:$L$46,9,FALSE) ->  | U147: =VLOOKUP(C147,Shakerr!$C$3:$L$46,7,FALSE) ->  | V147: =VLOOKUP(C147,VoY!$C$3:$L$46,9,FALSE) ->  | W147: =VLOOKUP(C147,Kirkstall!$C$3:$L$46,9,FALSE) ->  | X147: =VLOOKUP($C147,City!$C$3:$L$69,9,FALSE) ->  | Y147: =VLOOKUP(C147,'Guy Fawkes'!$C$3:$N$34,9,FALSE) ->  | Z147: =VLOOKUP(C147,Abbey!$C$3:$L$48,7,FALSE) ->  | AA147: =VLOOKUP(C147,Chevin!$C$3:$L$50,7,FALSE) ->  | AC147: 0 | AD147: 0 | AE147: 0 | AF147: 0 | AG147: 0 | AH147: 0 | AI147: 0 | AJ147: 0 | AK147: 0 | AL147: 0 | AM147: 0 | AN147: 0 | AO147: 0 | AP147: 0 | AQ147: 0 | AR147: 0 | AS147: 0 | AT147: 0 | AU147: 0 | AV147: 0 | AW147: 0 | AX147: 0
C148: Tom Lee | D148: 1987-10-31 | E148: 29 | F148: =IFERROR(VLOOKUP(C148,'Division Lookup'!$A$2:$D$251,4,FALSE),"Second") -> Second | G148: =VLOOKUP(C148,Dewsbury!$C$3:$L$46,7,FALSE) ->  | H148: =VLOOKUP($C148,Bradford!$C$3:$L$66,7,FALSE) ->  | I148: =VLOOKUP($C148,Keighley!$C$3:$N$42,9,FALSE) ->  | J148: =VLOOKUP($C148,'Bunny '!$C$3:$N$20,9,FALSE) ->  | K148: =VLOOKUP($C148,Liverpool!$C$3:$N$59,9,FALSE) ->  | L148: =VLOOKUP(C148,'VoY 10m'!$C$3:$N$40,9,FALSE) ->  | M148: =VLOOKUP(C148,Guisley!$C$3:$N$49,9,FALSE) ->  | N148: =VLOOKUP(C148,Odda!$C$3:$N$42,9,FALSE) ->  | O148: =VLOOKUP(C148,'Leeds half'!$C$4:$N$31,9,FALSE) ->  | P148: =VLOOKUP(C148,Ilkley!$C$3:$L$46,7,FALSE) ->  | Q148: =VLOOKUP(C148,Otley!$C$3:$L$46,9,FALSE) ->  | R148: =VLOOKUP(C148,Solstice!$C$3:$L$48,7,FALSE) ->  | S148: =VLOOKUP(C148,Eccup!$C$3:$L$46,9,FALSE) ->  | U148: =VLOOKUP(C148,Shakerr!$C$3:$L$46,7,FALSE) ->  | V148: =VLOOKUP(C148,VoY!$C$3:$L$46,9,FALSE) ->  | W148: =VLOOKUP(C148,Kirkstall!$C$3:$L$46,9,FALSE) ->  | X148: =VLOOKUP($C148,City!$C$3:$L$69,9,FALSE) ->  | Y148: =VLOOKUP(C148,'Guy Fawkes'!$C$3:$N$34,9,FALSE) ->  | Z148: =VLOOKUP(C148,Abbey!$C$3:$L$48,7,FALSE) -> 0.7313974592 | AA148: =VLOOKUP(C148,Chevin!$C$3:$L$50,7,FALSE) -> 0.7348399247 | AC148: 0 | AD148: 0 | AE148: 0 | AF148: 0 | AG148: 0 | AH148: 0 | AI148: 0 | AJ148: 0 | AK148: 0 | AL148: 0 | AM148: 0 | AN148: 0 | AO148: 0 | AP148: 0 | AQ148: 0 | AR148: 0 | AS148: 0 | AT148: 0 | AU148: 0 | AV148: 3 | AW148: 1 | AX148: 2
C149: helen leetham | D149: 1986-05-31 | E149: 30 | F149: =IFERROR(VLOOKUP(C149,'Division Lookup'!$A$2:$D$251,4,FALSE),"Second") -> Second | G149: =VLOOKUP(C149,Dewsbury!$C$3:$L$46,7,FALSE) ->  | H149: =VLOOKUP($C149,Bradford!$C$3:$L$66,7,FALSE) ->  | I149: =VLOOKUP($C149,Keighley!$C$3:$N$42,9,FALSE) ->  | J149: =VLOOKUP($C149,'Bunny '!$C$3:$N$20,9,FALSE) ->  | K149: =VLOOKUP($C149,Liverpool!$C$3:$N$59,9,FALSE) ->  | L149: =VLOOKUP(C149,'VoY 10m'!$C$3:$N$40,9,FALSE) ->  | M149: =VLOOKUP(C149,Guisley!$C$3:$N$49,9,FALSE) ->  | N149: =VLOOKUP(C149,Odda!$C$3:$N$42,9,FALSE) ->  | O149: =VLOOKUP(C149,'Leeds half'!$C$4:$N$31,9,FALSE) ->  | P149: =VLOOKUP(C149,Ilkley!$C$3:$L$46,7,FALSE) ->  | Q149: =VLOOKUP(C149,Otley!$C$3:$L$46,9,FALSE) ->  | R149: =VLOOKUP(C149,Solstice!$C$3:$L$48,7,FALSE) ->  | S149: =VLOOKUP(C149,Eccup!$C$3:$L$46,9,FALSE) ->  | U149: =VLOOKUP(C149,Shakerr!$C$3:$L$46,7,FALSE) ->  | V149: =VLOOKUP(C149,VoY!$C$3:$L$46,9,FALSE) ->  | W149: =VLOOKUP(C149,Kirkstall!$C$3:$L$46,9,FALSE) ->  | X149: =VLOOKUP($C149,City!$C$3:$L$69,9,FALSE) ->  | Y149: =VLOOKUP(C149,'Guy Fawkes'!$C$3:$N$34,9,FALSE) ->  | Z149: =VLOOKUP(C149,Abbey!$C$3:$L$48,7,FALSE) ->  | AA149: =VLOOKUP(C149,Chevin!$C$3:$L$50,7,FALSE) ->  | AC149: 0 | AD149: 0 | AE149: 0 | AF149: 0 | AG149: 0 | AH149: 0 | AI149: 0 | AJ149: 0 | AK149: 0 | AL149: 0 | AM149: 0 | AN149: 0 | AO149: 0 | AP149: 0 | AQ149: 0 | AR149: 0 | AS149: 0 | AT149: 0 | AU149: 0 | AV149: 0 | AW149: 0 | AX149: 0
C150: Barney Lerner | D150: 1950-01-16 | E150: 66 | F150: =IFERROR(VLOOKUP(C150,'Division Lookup'!$A$2:$D$251,4,FALSE),"Second") -> Premier | G150: =VLOOKUP(C150,Dewsbury!$C$3:$L$46,7,FALSE) -> 0.7018592297 | H150: =VLOOKUP($C150,Bradford!$C$3:$L$66,7,FALSE) ->  | I150: =VLOOKUP($C150,Keighley!$C$3:$N$42,9,FALSE) ->  | J150: =VLOOKUP($C150,'Bunny '!$C$3:$N$20,9,FALSE) ->  | K150: =VLOOKUP($C150,Liverpool!$C$3:$N$59,9,FALSE) -> 0.7016591252 | L150: =VLOOKUP(C150,'VoY 10m'!$C$3:$N$40,9,FALSE) ->  | M150: =VLOOKUP(C150,Guisley!$C$3:$N$49,9,FALSE) ->  | N150: =VLOOKUP(C150,Odda!$C$3:$N$42,9,FALSE) ->  | O150: =VLOOKUP(C150,'Leeds half'!$C$4:$N$31,9,FALSE) ->  | P150: =VLOOKUP(C150,Ilkley!$C$3:$L$46,7,FALSE) ->  | Q150: =VLOOKUP(C150,Otley!$C$3:$L$46,9,FALSE) -> 0.6811707317 | R150: =VLOOKUP(C150,Solstice!$C$3:$L$48,7,FALSE) -> 0.6565064478 | S150: =VLOOKUP(C150,Eccup!$C$3:$L$46,9,FALSE) ->  | U150: =VLOOKUP(C150,Shakerr!$C$3:$L$46,7,FALSE) -> 0.5182642805 | V150: =VLOOKUP(C150,VoY!$C$3:$L$46,9,FALSE) ->  | W150: =VLOOKUP(C150,Kirkstall!$C$3:$L$46,9,FALSE) ->  | X150: =VLOOKUP($C150,City!$C$3:$L$69,9,FALSE) ->  | Y150: =VLOOKUP(C150,'Guy Fawkes'!$C$3:$N$34,9,FALSE) -> 0.6696719739 | Z150: =VLOOKUP(C150,Abbey!$C$3:$L$48,7,FALSE) ->  | AA150: =VLOOKUP(C150,Chevin!$C$3:$L$50,7,FALSE) ->  | AC150: 5 | AD150: 0 | AE150: 0 | AF150: 0 | AG150: 6 | AH150: 0 | AI150: 0 | AJ150: 0 | AK150: 0 | AL150: 0 | AM150: 4 | AN150: 4 | AO150: 0 | AP150: 0 | AQ150: 4 | AR150: 0 | AS150: 0 | AT150: 0 | AU150: 2 | AV150: 0 | AW150: 0 | AX150: 6
C151: sandie lewis | D151: 1964-09-01 | E151: 52 | F151: =IFERROR(VLOOKUP(C151,'Division Lookup'!$A$2:$D$251,4,FALSE),"Second") -> Second | G151: =VLOOKUP(C151,Dewsbury!$C$3:$L$46,7,FALSE) ->  | H151: =VLOOKUP($C151,Bradford!$C$3:$L$66,7,FALSE) ->  | I151: =VLOOKUP($C151,Keighley!$C$3:$N$42,9,FALSE) ->  | J151: =VLOOKUP($C151,'Bunny '!$C$3:$N$20,9,FALSE) ->  | K151: =VLOOKUP($C151,Liverpool!$C$3:$N$59,9,FALSE) ->  | L151: =VLOOKUP(C151,'VoY 10m'!$C$3:$N$40,9,FALSE) ->  | M151: =VLOOKUP(C151,Guisley!$C$3:$N$49,9,FALSE) ->  | N151: =VLOOKUP(C151,Odda!$C$3:$N$42,9,FALSE) ->  | O151: =VLOOKUP(C151,'Leeds half'!$C$4:$N$31,9,FALSE) ->  | P151: =VLOOKUP(C151,Ilkley!$C$3:$L$46,7,FALSE) ->  | Q151: =VLOOKUP(C151,Otley!$C$3:$L$46,9,FALSE) ->  | R151: =VLOOKUP(C151,Solstice!$C$3:$L$48,7,FALSE) ->  | S151: =VLOOKUP(C151,Eccup!$C$3:$L$46,9,FALSE) ->  | U151: =VLOOKUP(C151,Shakerr!$C$3:$L$46,7,FALSE) ->  | V151: =VLOOKUP(C151,VoY!$C$3:$L$46,9,FALSE) ->  | W151: =VLOOKUP(C151,Kirkstall!$C$3:$L$46,9,FALSE) ->  | X151: =VLOOKUP($C151,City!$C$3:$L$69,9,FALSE) ->  | Y151: =VLOOKUP(C151,'Guy Fawkes'!$C$3:$N$34,9,FALSE) ->  | Z151: =VLOOKUP(C151,Abbey!$C$3:$L$48,7,FALSE) ->  | AA151: =VLOOKUP(C151,Chevin!$C$3:$L$50,7,FALSE) ->  | AC151: 0 | AD151: 0 | AE151: 0 | AF151: 0 | AG151: 0 | AH151: 0 | AI151: 0 | AJ151: 0 | AK151: 0 | AL151: 0 | AM151: 0 | AN151: 0 | AO151: 0 | AP151: 0 | AQ151: 0 | AR151: 0 | AS151: 0 | AT151: 0 | AU151: 0 | AV151: 0 | AW151: 0 | AX151: 0
C152: Donna Line | D152: 1975-09-05 | E152: 41 | F152: =IFERROR(VLOOKUP(C152,'Division Lookup'!$A$2:$D$251,4,FALSE),"Second") -> Second | G152: =VLOOKUP(C152,Dewsbury!$C$3:$L$46,7,FALSE) ->  | H152: =VLOOKUP($C152,Bradford!$C$3:$L$66,7,FALSE) ->  | I152: =VLOOKUP($C152,Keighley!$C$3:$N$42,9,FALSE) ->  | J152: =VLOOKUP($C152,'Bunny '!$C$3:$N$20,9,FALSE) ->  | K152: =VLOOKUP($C152,Liverpool!$C$3:$N$59,9,FALSE) ->  | L152: =VLOOKUP(C152,'VoY 10m'!$C$3:$N$40,9,FALSE) ->  | M152: =VLOOKUP(C152,Guisley!$C$3:$N$49,9,FALSE) ->  | N152: =VLOOKUP(C152,Odda!$C$3:$N$42,9,FALSE) ->  | O152: =VLOOKUP(C152,'Leeds half'!$C$4:$N$31,9,FALSE) ->  | P152: =VLOOKUP(C152,Ilkley!$C$3:$L$46,7,FALSE) ->  | Q152: =VLOOKUP(C152,Otley!$C$3:$L$46,9,FALSE) ->  | R152: =VLOOKUP(C152,Solstice!$C$3:$L$48,7,FALSE) ->  | S152: =VLOOKUP(C152,Eccup!$C$3:$L$46,9,FALSE) ->  | U152: =VLOOKUP(C152,Shakerr!$C$3:$L$46,7,FALSE) ->  | V152: =VLOOKUP(C152,VoY!$C$3:$L$46,9,FALSE) ->  | W152: =VLOOKUP(C152,Kirkstall!$C$3:$L$46,9,FALSE) ->  | X152: =VLOOKUP($C152,City!$C$3:$L$69,9,FALSE) ->  | Y152: =VLOOKUP(C152,'Guy Fawkes'!$C$3:$N$34,9,FALSE) ->  | Z152: =VLOOKUP(C152,Abbey!$C$3:$L$48,7,FALSE) ->  | AA152: =VLOOKUP(C152,Chevin!$C$3:$L$50,7,FALSE) ->  | AC152: 0 | AD152: 0 | AE152: 0 | AF152: 0 | AG152: 0 | AH152: 0 | AI152: 0 | AJ152: 0 | AK152: 0 | AL152: 0 | AM152: 0 | AN152: 0 | AO152: 0 | AP152: 0 | AQ152: 0 | AR152: 0 | AS152: 0 | AT152: 0 | AU152: 0 | AV152: 0 | AW152: 0 | AX152: 0
C153: Darren Longhorn | D153: 1966-10-18 | E153: 50 | F153: =IFERROR(VLOOKUP(C153,'Division Lookup'!$A$2:$D$251,4,FALSE),"Second") -> Premier | G153: =VLOOKUP(C153,Dewsbury!$C$3:$L$46,7,FALSE) ->  | H153: =VLOOKUP($C153,Bradford!$C$3:$L$66,7,FALSE) ->  | I153: =VLOOKUP($C153,Keighley!$C$3:$N$42,9,FALSE) ->  | J153: =VLOOKUP($C153,'Bunny '!$C$3:$N$20,9,FALSE) ->  | K153: =VLOOKUP($C153,Liverpool!$C$3:$N$59,9,FALSE) ->  | L153: =VLOOKUP(C153,'VoY 10m'!$C$3:$N$40,9,FALSE) ->  | M153: =VLOOKUP(C153,Guisley!$C$3:$N$49,9,FALSE) ->  | N153: =VLOOKUP(C153,Odda!$C$3:$N$42,9,FALSE) -> 0.5210749646 | O153: =VLOOKUP(C153,'Leeds half'!$C$4:$N$31,9,FALSE) ->  | P153: =VLOOKUP(C153,Ilkley!$C$3:$L$46,7,FALSE) ->  | Q153: =VLOOKUP(C153,Otley!$C$3:$L$46,9,FALSE) ->  | R153: =VLOOKUP(C153,Solstice!$C$3:$L$48,7,FALSE) ->  | S153: =VLOOKUP(C153,Eccup!$C$3:$L$46,9,FALSE) ->  | U153: =VLOOKUP(C153,Shakerr!$C$3:$L$46,7,FALSE) ->  | V153: =VLOOKUP(C153,VoY!$C$3:$L$46,9,FALSE) ->  | W153: =VLOOKUP(C153,Kirkstall!$C$3:$L$46,9,FALSE) ->  | X153: =VLOOKUP($C153,City!$C$3:$L$69,9,FALSE) ->  | Y153: =VLOOKUP(C153,'Guy Fawkes'!$C$3:$N$34,9,FALSE) ->  | Z153: =VLOOKUP(C153,Abbey!$C$3:$L$48,7,FALSE) -> 0.5767063244 | AA153: =VLOOKUP(C153,Chevin!$C$3:$L$50,7,FALSE) ->  | AC153: 0 | AD153: 0 | AE153: 0 | AF153: 0 | AG153: 0 | AH153: 0 | AI153: 0 | AJ153: 6 | AK153: 0 | AL153: 0 | AM153: 0 | AN153: 0 | AO153: 0 | AP153: 0 | AQ153: 0 | AR153: 0 | AS153: 0 | AT153: 0 | AU153: 0 | AV153: 5 | AW153: 0 | AX153: 2
C154: Helen Love | D154: 1957-09-15 | E154: 59 | F154: =IFERROR(VLOOKUP(C154,'Division Lookup'!$A$2:$D$251,4,FALSE),"Second") -> Premier | G154: =VLOOKUP(C154,Dewsbury!$C$3:$L$46,7,FALSE) -> 0.7839756592 | H154: =VLOOKUP($C154,Bradford!$C$3:$L$66,7,FALSE) -> 0.780545271 | I154: =VLOOKUP($C154,Keighley!$C$3:$N$42,9,FALSE) -> 0.7628289474 | J154: =VLOOKUP($C154,'Bunny '!$C$3:$N$20,9,FALSE) -> 0.6573751452 | K154: =VLOOKUP($C154,Liverpool!$C$3:$N$59,9,FALSE) -> 0.7855805243 | L154: =VLOOKUP(C154,'VoY 10m'!$C$3:$N$40,9,FALSE) ->  | M154: =VLOOKUP(C154,Guisley!$C$3:$N$49,9,FALSE) -> 0.5841176471 | N154: =VLOOKUP(C154,Odda!$C$3:$N$42,9,FALSE) -> 0.6393713813 | O154: =VLOOKUP(C154,'Leeds half'!$C$4:$N$31,9,FALSE) ->  | P154: =VLOOKUP(C154,Ilkley!$C$3:$L$46,7,FALSE) ->  | Q154: =VLOOKUP(C154,Otley!$C$3:$L$46,9,FALSE) -> 0.6484235574 | R154: =VLOOKUP(C154,Solstice!$C$3:$L$48,7,FALSE) ->  | S154: =VLOOKUP(C154,Eccup!$C$3:$L$46,9,FALSE) -> 0.6586102719 | U154: =VLOOKUP(C154,Shakerr!$C$3:$L$46,7,FALSE) -> 0.5606866538 | V154: =VLOOKUP(C154,VoY!$C$3:$L$46,9,FALSE) ->  | W154: =VLOOKUP(C154,Kirkstall!$C$3:$L$46,9,FALSE) ->  | X154: =VLOOKUP($C154,City!$C$3:$L$69,9,FALSE) -> 0.7404214559 | Y154: =VLOOKUP(C154,'Guy Fawkes'!$C$3:$N$34,9,FALSE) -> 0.6188493565 | Z154: =VLOOKUP(C154,Abbey!$C$3:$L$48,7,FALSE) ->  | AA154: =VLOOKUP(C154,Chevin!$C$3:$L$50,7,FALSE) ->  | AC154: 2 | AD154: 2 | AE154: 2 | AF154: 4 | AG154: 3 | AH154: 0 | AI154: 4 | AJ154: 2 | AK154: 0 | AL154: 0 | AM154: 6 | AN154: 0 | AO154: 2 | AP154: 0 | AQ154: 3 | AR154: 0 | AS154: 0 | AT154: 4 | AU154: 7 | AV154: 0 | AW154: 0 | AX154: 12
C155: Martin Love | D155: 1961-12-14 | E155: 55 | F155: =IFERROR(VLOOKUP(C155,'Division Lookup'!$A$2:$D$251,4,FALSE),"Second") -> Premier | G155: =VLOOKUP(C155,Dewsbury!$C$3:$L$46,7,FALSE) ->  | H155: =VLOOKUP($C155,Bradford!$C$3:$L$66,7,FALSE) ->  | I155: =VLOOKUP($C155,Keighley!$C$3:$N$42,9,FALSE) ->  | J155: =VLOOKUP($C155,'Bunny '!$C$3:$N$20,9,FALSE) ->  | K155: =VLOOKUP($C155,Liverpool!$C$3:$N$59,9,FALSE) ->  | L155: =VLOOKUP(C155,'VoY 10m'!$C$3:$N$40,9,FALSE) ->  | M155: =VLOOKUP(C155,Guisley!$C$3:$N$49,9,FALSE) -> 0.6160513644 | N155: =VLOOKUP(C155,Odda!$C$3:$N$42,9,FALSE) -> 0.5831054391 | O155: =VLOOKUP(C155,'Leeds half'!$C$4:$N$31,9,FALSE) ->  | P155: =VLOOKUP(C155,Ilkley!$C$3:$L$46,7,FALSE) -> 0.5457906712 | Q155: =VLOOKUP(C155,Otley!$C$3:$L$46,9,FALSE) -> 0.6278098269 | R155: =VLOOKUP(C155,Solstice!$C$3:$L$48,7,FALSE) ->  | S155: =VLOOKUP(C155,Eccup!$C$3:$L$46,9,FALSE) ->  | U155: =VLOOKUP(C155,Shakerr!$C$3:$L$46,7,FALSE) ->  | V155: =VLOOKUP(C155,VoY!$C$3:$L$46,9,FALSE) ->  | W155: =VLOOKUP(C155,Kirkstall!$C$3:$L$46,9,FALSE) ->  | X155: =VLOOKUP($C155,City!$C$3:$L$69,9,FALSE) -> 0.6995989792 | Y155: =VLOOKUP(C155,'Guy Fawkes'!$C$3:$N$34,9,FALSE) -> 0.6631645304 | Z155: =VLOOKUP(C155,Abbey!$C$3:$L$48,7,FALSE) ->  | AA155: =VLOOKUP(C155,Chevin!$C$3:$L$50,7,FALSE) ->  | AC155: 0 | AD155: 0 | AE155: 0 | AF155: 0 | AG155: 0 | AH155: 0 | AI155: 3 | AJ155: 4 | AK155: 0 | AL155: 2 | AM155: 7 | AN155: 0 | AO155: 0 | AP155: 0 | AQ155: 0 | AR155: 0 | AS155: 0 | AT155: 6 | AU155: 3 | AV155: 0 | AW155: 0 | AX155: 6
C156: Ben Marchant | D156: 1985-05-06 | E156: 31 | F156: =IFERROR(VLOOKUP(C156,'Division Lookup'!$A$2:$D$251,4,FALSE),"Second") -> Premier | G156: =VLOOKUP(C156,Dewsbury!$C$3:$L$46,7,FALSE) ->  | H156: =VLOOKUP($C156,Bradford!$C$3:$L$66,7,FALSE) ->  | I156: =VLOOKUP($C156,Keighley!$C$3:$N$42,9,FALSE) ->  | J156: =VLOOKUP($C156,'Bunny '!$C$3:$N$20,9,FALSE) ->  | K156: =VLOOKUP($C156,Liverpool!$C$3:$N$59,9,FALSE) ->  | L156: =VLOOKUP(C156,'VoY 10m'!$C$3:$N$40,9,FALSE) ->  | M156: =VLOOKUP(C156,Guisley!$C$3:$N$49,9,FALSE) ->  | N156: =VLOOKUP(C156,Odda!$C$3:$N$42,9,FALSE) ->  | O156: =VLOOKUP(C156,'Leeds half'!$C$4:$N$31,9,FALSE) ->  | P156: =VLOOKUP(C156,Ilkley!$C$3:$L$46,7,FALSE) ->  | Q156: =VLOOKUP(C156,Otley!$C$3:$L$46,9,FALSE) ->  | R156: =VLOOKUP(C156,Solstice!$C$3:$L$48,7,FALSE) ->  | S156: =VLOOKUP(C156,Eccup!$C$3:$L$46,9,FALSE) ->  | U156: =VLOOKUP(C156,Shakerr!$C$3:$L$46,7,FALSE) ->  | V156: =VLOOKUP(C156,VoY!$C$3:$L$46,9,FALSE) ->  | W156: =VLOOKUP(C156,Kirkstall!$C$3:$L$46,9,FALSE) ->  | X156: =VLOOKUP($C156,City!$C$3:$L$69,9,FALSE) ->  | Y156: =VLOOKUP(C156,'Guy Fawkes'!$C$3:$N$34,9,FALSE) -> 0.5720111612 | Z156: =VLOOKUP(C156,Abbey!$C$3:$L$48,7,FALSE) ->  | AA156: =VLOOKUP(C156,Chevin!$C$3:$L$50,7,FALSE) ->  | AC156: 0 | AD156: 0 | AE156: 0 | AF156: 0 | AG156: 0 | AH156: 0 | AI156: 0 | AJ156: 0 | AK156: 0 | AL156: 0 | AM156: 0 | AN156: 0 | AO156: 0 | AP156: 0 | AQ156: 0 | AR156: 0 | AS156: 0 | AT156: 0 | AU156: 10 | AV156: 0 | AW156: 0 | AX156: 1
C157: Laura Marchant | D157: 1985-08-08 | E157: 31 | F157: =IFERROR(VLOOKUP(C157,'Division Lookup'!$A$2:$D$251,4,FALSE),"Second") -> Second | G157: =VLOOKUP(C157,Dewsbury!$C$3:$L$46,7,FALSE) ->  | H157: =VLOOKUP($C157,Bradford!$C$3:$L$66,7,FALSE) ->  | I157: =VLOOKUP($C157,Keighley!$C$3:$N$42,9,FALSE) ->  | J157: =VLOOKUP($C157,'Bunny '!$C$3:$N$20,9,FALSE) ->  | K157: =VLOOKUP($C157,Liverpool!$C$3:$N$59,9,FALSE) ->  | L157: =VLOOKUP(C157,'VoY 10m'!$C$3:$N$40,9,FALSE) ->  | M157: =VLOOKUP(C157,Guisley!$C$3:$N$49,9,FALSE) ->  | N157: =VLOOKUP(C157,Odda!$C$3:$N$42,9,FALSE) ->  | O157: =VLOOKUP(C157,'Leeds half'!$C$4:$N$31,9,FALSE) ->  | P157: =VLOOKUP(C157,Ilkley!$C$3:$L$46,7,FALSE) ->  | Q157: =VLOOKUP(C157,Otley!$C$3:$L$46,9,FALSE) ->  | R157: =VLOOKUP(C157,Solstice!$C$3:$L$48,7,FALSE) ->  | S157: =VLOOKUP(C157,Eccup!$C$3:$L$46,9,FALSE) ->  | U157: =VLOOKUP(C157,Shakerr!$C$3:$L$46,7,FALSE) ->  | V157: =VLOOKUP(C157,VoY!$C$3:$L$46,9,FALSE) ->  | W157: =VLOOKUP(C157,Kirkstall!$C$3:$L$46,9,FALSE) ->  | X157: =VLOOKUP($C157,City!$C$3:$L$69,9,FALSE) ->  | Y157: =VLOOKUP(C157,'Guy Fawkes'!$C$3:$N$34,9,FALSE) -> 0.518684313 | Z157: =VLOOKUP(C157,Abbey!$C$3:$L$48,7,FALSE) ->  | AA157: =VLOOKUP(C157,Chevin!$C$3:$L$50,7,FALSE) ->  | AC157: 0 | AD157: 0 | AE157: 0 | AF157: 0 | AG157: 0 | AH157: 0 | AI157: 0 | AJ157: 0 | AK157: 0 | AL157: 0 | AM157: 0 | AN157: 0 | AO157: 0 | AP157: 0 | AQ157: 0 | AR157: 0 | AS157: 0 | AT157: 0 | AU157: 2 | AV157: 0 | AW157: 0 | AX157: 1
C158: Charlotte Martin 1 | D158: 1991-03-01 | E158: 25 | F158: =IFERROR(VLOOKUP(C158,'Division Lookup'!$A$2:$D$251,4,FALSE),"Second") -> Second | G158: =VLOOKUP(C158,Dewsbury!$C$3:$L$46,7,FALSE) ->  | H158: =VLOOKUP($C158,Bradford!$C$3:$L$66,7,FALSE) ->  | I158: =VLOOKUP($C158,Keighley!$C$3:$N$42,9,FALSE) ->  | J158: =VLOOKUP($C158,'Bunny '!$C$3:$N$20,9,FALSE) ->  | K158: =VLOOKUP($C158,Liverpool!$C$3:$N$59,9,FALSE) ->  | L158: =VLOOKUP(C158,'VoY 10m'!$C$3:$N$40,9,FALSE) ->  | M158: =VLOOKUP(C158,Guisley!$C$3:$N$49,9,FALSE) ->  | N158: =VLOOKUP(C158,Odda!$C$3:$N$42,9,FALSE) ->  | O158: =VLOOKUP(C158,'Leeds half'!$C$4:$N$31,9,FALSE) ->  | P158: =VLOOKUP(C158,Ilkley!$C$3:$L$46,7,FALSE) ->  | Q158: =VLOOKUP(C158,Otley!$C$3:$L$46,9,FALSE) ->  | R158: =VLOOKUP(C158,Solstice!$C$3:$L$48,7,FALSE) ->  | S158: =VLOOKUP(C158,Eccup!$C$3:$L$46,9,FALSE) ->  | U158: =VLOOKUP(C158,Shakerr!$C$3:$L$46,7,FALSE) ->  | V158: =VLOOKUP(C158,VoY!$C$3:$L$46,9,FALSE) ->  | W158: =VLOOKUP(C158,Kirkstall!$C$3:$L$46,9,FALSE) ->  | X158: =VLOOKUP($C158,City!$C$3:$L$69,9,FALSE) ->  | Y158: =VLOOKUP(C158,'Guy Fawkes'!$C$3:$N$34,9,FALSE) ->  | Z158: =VLOOKUP(C158,Abbey!$C$3:$L$48,7,FALSE) ->  | AA158: =VLOOKUP(C158,Chevin!$C$3:$L$50,7,FALSE) ->  | AC158: 0 | AD158: 0 | AE158: 0 | AF158: 0 | AG158: 0 | AH158: 0 | AI158: 0 | AJ158: 0 | AK158: 0 | AL158: 0 | AM158: 0 | AN158: 0 | AO158: 0 | AP158: 0 | AQ158: 0 | AR158: 0 | AS158: 0 | AT158: 0 | AU158: 0 | AV158: 0 | AW158: 0 | AX158: 0
C159: charlotte martin | D159: 1978-05-20 | E159: 38 | F159: =IFERROR(VLOOKUP(C159,'Division Lookup'!$A$2:$D$251,4,FALSE),"Second") -> Second | G159: =VLOOKUP(C159,Dewsbury!$C$3:$L$46,7,FALSE) ->  | H159: =VLOOKUP($C159,Bradford!$C$3:$L$66,7,FALSE) ->  | I159: =VLOOKUP($C159,Keighley!$C$3:$N$42,9,FALSE) ->  | J159: =VLOOKUP($C159,'Bunny '!$C$3:$N$20,9,FALSE) ->  | K159: =VLOOKUP($C159,Liverpool!$C$3:$N$59,9,FALSE) ->  | L159: =VLOOKUP(C159,'VoY 10m'!$C$3:$N$40,9,FALSE) ->  | M159: =VLOOKUP(C159,Guisley!$C$3:$N$49,9,FALSE) ->  | N159: =VLOOKUP(C159,Odda!$C$3:$N$42,9,FALSE) ->  | O159: =VLOOKUP(C159,'Leeds half'!$C$4:$N$31,9,FALSE) ->  | P159: =VLOOKUP(C159,Ilkley!$C$3:$L$46,7,FALSE) ->  | Q159: =VLOOKUP(C159,Otley!$C$3:$L$46,9,FALSE) ->  | R159: =VLOOKUP(C159,Solstice!$C$3:$L$48,7,FALSE) ->  | S159: =VLOOKUP(C159,Eccup!$C$3:$L$46,9,FALSE) ->  | U159: =VLOOKUP(C159,Shakerr!$C$3:$L$46,7,FALSE) ->  | V159: =VLOOKUP(C159,VoY!$C$3:$L$46,9,FALSE) ->  | W159: =VLOOKUP(C159,Kirkstall!$C$3:$L$46,9,FALSE) ->  | X159: =VLOOKUP($C159,City!$C$3:$L$69,9,FALSE) -> 0.4421202757 | Y159: =VLOOKUP(C159,'Guy Fawkes'!$C$3:$N$34,9,FALSE) ->  | Z159: =VLOOKUP(C159,Abbey!$C$3:$L$48,7,FALSE) -> 0.5040354074 | AA159: =VLOOKUP(C159,Chevin!$C$3:$L$50,7,FALSE) ->  | AC159: 0 | AD159: 0 | AE159: 0 | AF159: 0 | AG159: 0 | AH159: 0 | AI159: 0 | AJ159: 0 | AK159: 0 | AL159: 0 | AM159: 0 | AN159: 0 | AO159: 0 | AP159: 0 | AQ159: 0 | AR159: 0 | AS159: 0 | AT159: 12 | AU159: 0 | AV159: 19 | AW159: 0 | AX159: 2
C160: Tina Martiny | D160: 1965-07-06 | E160: 51 | F160: =IFERROR(VLOOKUP(C160,'Division Lookup'!$A$2:$D$251,4,FALSE),"Second") -> Second | G160: =VLOOKUP(C160,Dewsbury!$C$3:$L$46,7,FALSE) ->  | H160: =VLOOKUP($C160,Bradford!$C$3:$L$66,7,FALSE) ->  | I160: =VLOOKUP($C160,Keighley!$C$3:$N$42,9,FALSE) ->  | J160: =VLOOKUP($C160,'Bunny '!$C$3:$N$20,9,FALSE) ->  | K160: =VLOOKUP($C160,Liverpool!$C$3:$N$59,9,FALSE) ->  | L160: =VLOOKUP(C160,'VoY 10m'!$C$3:$N$40,9,FALSE) ->  | M160: =VLOOKUP(C160,Guisley!$C$3:$N$49,9,FALSE) ->  | N160: =VLOOKUP(C160,Odda!$C$3:$N$42,9,FALSE) ->  | O160: =VLOOKUP(C160,'Leeds half'!$C$4:$N$31,9,FALSE) ->  | P160: =VLOOKUP(C160,Ilkley!$C$3:$L$46,7,FALSE) ->  | Q160: =VLOOKUP(C160,Otley!$C$3:$L$46,9,FALSE) ->  | R160: =VLOOKUP(C160,Solstice!$C$3:$L$48,7,FALSE) ->  | S160: =VLOOKUP(C160,Eccup!$C$3:$L$46,9,FALSE) ->  | U160: =VLOOKUP(C160,Shakerr!$C$3:$L$46,7,FALSE) ->  | V160: =VLOOKUP(C160,VoY!$C$3:$L$46,9,FALSE) ->  | W160: =VLOOKUP(C160,Kirkstall!$C$3:$L$46,9,FALSE) ->  | X160: =VLOOKUP($C160,City!$C$3:$L$69,9,FALSE) ->  | Y160: =VLOOKUP(C160,'Guy Fawkes'!$C$3:$N$34,9,FALSE) ->  | Z160: =VLOOKUP(C160,Abbey!$C$3:$L$48,7,FALSE) ->  | AA160: =VLOOKUP(C160,Chevin!$C$3:$L$50,7,FALSE) ->  | AC160: 0 | AD160: 0 | AE160: 0 | AF160: 0 | AG160: 0 | AH160: 0 | AI160: 0 | AJ160: 0 | AK160: 0 | AL160: 0 | AM160: 0 | AN160: 0 | AO160: 0 | AP160: 0 | AQ160: 0 | AR160: 0 | AS160: 0 | AT160: 0 | AU160: 0 | AV160: 0 | AW160: 0 | AX160: 0
C161: Frank Masley | D161: 1951-04-07 | E161: 65 | F161: =IFERROR(VLOOKUP(C161,'Division Lookup'!$A$2:$D$251,4,FALSE),"Second") -> Premier | G161: =VLOOKUP(C161,Dewsbury!$C$3:$L$46,7,FALSE) ->  | H161: =VLOOKUP($C161,Bradford!$C$3:$L$66,7,FALSE) ->  | I161: =VLOOKUP($C161,Keighley!$C$3:$N$42,9,FALSE) -> 0.5843793584 | J161: =VLOOKUP($C161,'Bunny '!$C$3:$N$20,9,FALSE) ->  | K161: =VLOOKUP($C161,Liverpool!$C$3:$N$59,9,FALSE) ->  | L161: =VLOOKUP(C161,'VoY 10m'!$C$3:$N$40,9,FALSE) ->  | M161: =VLOOKUP(C161,Guisley!$C$3:$N$49,9,FALSE) ->  | N161: =VLOOKUP(C161,Odda!$C$3:$N$42,9,FALSE) ->  | O161: =VLOOKUP(C161,'Leeds half'!$C$4:$N$31,9,FALSE) ->  | P161: =VLOOKUP(C161,Ilkley!$C$3:$L$46,7,FALSE) ->  | Q161: =VLOOKUP(C161,Otley!$C$3:$L$46,9,FALSE) ->  | R161: =VLOOKUP(C161,Solstice!$C$3:$L$48,7,FALSE) ->  | S161: =VLOOKUP(C161,Eccup!$C$3:$L$46,9,FALSE) ->  | U161: =VLOOKUP(C161,Shakerr!$C$3:$L$46,7,FALSE) ->  | V161: =VLOOKUP(C161,VoY!$C$3:$L$46,9,FALSE) -> 0.6397722539 | W161: =VLOOKUP(C161,Kirkstall!$C$3:$L$46,9,FALSE) -> 0.6673684211 | X161: =VLOOKUP($C161,City!$C$3:$L$69,9,FALSE) -> 0.6363912515 | Y161: =VLOOKUP(C161,'Guy Fawkes'!$C$3:$N$34,9,FALSE) ->  | Z161: =VLOOKUP(C161,Abbey!$C$3:$L$48,7,FALSE) ->  | AA161: =VLOOKUP(C161,Chevin!$C$3:$L$50,7,FALSE) ->  | AC161: 0 | AD161: 0 | AE161: 9 | AF161: 0 | AG161: 0 | AH161: 0 | AI161: 0 | AJ161: 0 | AK161: 0 | AL161: 0 | AM161: 0 | AN161: 0 | AO161: 0 | AP161: 0 | AQ161: 0 | AR161: 5 | AS161: 3 | AT161: 10 | AU161: 0 | AV161: 0 | AW161: 0 | AX161: 4
C162: Anne Mason | D162: 1976-12-27 | E162: 40 | F162: =IFERROR(VLOOKUP(C162,'Division Lookup'!$A$2:$D$251,4,FALSE),"Second") -> Second | G162: =VLOOKUP(C162,Dewsbury!$C$3:$L$46,7,FALSE) ->  | H162: =VLOOKUP($C162,Bradford!$C$3:$L$66,7,FALSE) -> 0.5319570136 | I162: =VLOOKUP($C162,Keighley!$C$3:$N$42,9,FALSE) ->  | J162: =VLOOKUP($C162,'Bunny '!$C$3:$N$20,9,FALSE) ->  | K162: =VLOOKUP($C162,Liverpool!$C$3:$N$59,9,FALSE) ->  | L162: =VLOOKUP(C162,'VoY 10m'!$C$3:$N$40,9,FALSE) ->  | M162: =VLOOKUP(C162,Guisley!$C$3:$N$49,9,FALSE) ->  | N162: =VLOOKUP(C162,Odda!$C$3:$N$42,9,FALSE) ->  | O162: =VLOOKUP(C162,'Leeds half'!$C$4:$N$31,9,FALSE) ->  | P162: =VLOOKUP(C162,Ilkley!$C$3:$L$46,7,FALSE) ->  | Q162: =VLOOKUP(C162,Otley!$C$3:$L$46,9,FALSE) ->  | R162: =VLOOKUP(C162,Solstice!$C$3:$L$48,7,FALSE) ->  | S162: =VLOOKUP(C162,Eccup!$C$3:$L$46,9,FALSE) ->  | U162: =VLOOKUP(C162,Shakerr!$C$3:$L$46,7,FALSE) ->  | V162: =VLOOKUP(C162,VoY!$C$3:$L$46,9,FALSE) ->  | W162: =VLOOKUP(C162,Kirkstall!$C$3:$L$46,9,FALSE) ->  | X162: =VLOOKUP($C162,City!$C$3:$L$69,9,FALSE) -> 0.5490367776 | Y162: =VLOOKUP(C162,'Guy Fawkes'!$C$3:$N$34,9,FALSE) ->  | Z162: =VLOOKUP(C162,Abbey!$C$3:$L$48,7,FALSE) ->  | AA162: =VLOOKUP(C162,Chevin!$C$3:$L$50,7,FALSE) ->  | AC162: 0 | AD162: 21 | AE162: 0 | AF162: 0 | AG162: 0 | AH162: 0 | AI162: 0 | AJ162: 0 | AK162: 0 | AL162: 0 | AM162: 0 | AN162: 0 | AO162: 0 | AP162: 0 | AQ162: 0 | AR162: 0 | AS162: 0 | AT162: 10 | AU162: 0 | AV162: 0 | AW162: 0 | AX162: 2
C163: Steven Maude | D163: 1979-09-18 | E163: 37 | F163: =IFERROR(VLOOKUP(C163,'Division Lookup'!$A$2:$D$251,4,FALSE),"Second") -> Second | G163: =VLOOKUP(C163,Dewsbury!$C$3:$L$46,7,FALSE) ->  | H163: =VLOOKUP($C163,Bradford!$C$3:$L$66,7,FALSE) -> 0.6506635441 | I163: =VLOOKUP($C163,Keighley!$C$3:$N$42,9,FALSE) ->  | J163: =VLOOKUP($C163,'Bunny '!$C$3:$N$20,9,FALSE) ->  | K163: =VLOOKUP($C163,Liverpool!$C$3:$N$59,9,FALSE) ->  | L163: =VLOOKUP(C163,'VoY 10m'!$C$3:$N$40,9,FALSE) ->  | M163: =VLOOKUP(C163,Guisley!$C$3:$N$49,9,FALSE) -> 0.5915542938 | N163: =VLOOKUP(C163,Odda!$C$3:$N$42,9,FALSE) ->  | O163: =VLOOKUP(C163,'Leeds half'!$C$4:$N$31,9,FALSE) ->  | P163: =VLOOKUP(C163,Ilkley!$C$3:$L$46,7,FALSE) ->  | Q163: =VLOOKUP(C163,Otley!$C$3:$L$46,9,FALSE) ->  | R163: =VLOOKUP(C163,Solstice!$C$3:$L$48,7,FALSE) ->  | S163: =VLOOKUP(C163,Eccup!$C$3:$L$46,9,FALSE) ->  | U163: =VLOOKUP(C163,Shakerr!$C$3:$L$46,7,FALSE) ->  | V163: =VLOOKUP(C163,VoY!$C$3:$L$46,9,FALSE) ->  | W163: =VLOOKUP(C163,Kirkstall!$C$3:$L$46,9,FALSE) ->  | X163: =VLOOKUP($C163,City!$C$3:$L$69,9,FALSE) ->  | Y163: =VLOOKUP(C163,'Guy Fawkes'!$C$3:$N$34,9,FALSE) ->  | Z163: =VLOOKUP(C163,Abbey!$C$3:$L$48,7,FALSE) ->  | AA163: =VLOOKUP(C163,Chevin!$C$3:$L$50,7,FALSE) ->  | AC163: 0 | AD163: 4 | AE163: 0 | AF163: 0 | AG163: 0 | AH163: 0 | AI163: 2 | AJ163: 0 | AK163: 0 | AL163: 0 | AM163: 0 | AN163: 0 | AO163: 0 | AP163: 0 | AQ163: 0 | AR163: 0 | AS163: 0 | AT163: 0 | AU163: 0 | AV163: 0 | AW163: 0 | AX163: 2
C164: Patricia Mayes | D164: 1960-03-21 | E164: 56 | F164: =IFERROR(VLOOKUP(C164,'Division Lookup'!$A$2:$D$251,4,FALSE),"Second") -> Second | G164: =VLOOKUP(C164,Dewsbury!$C$3:$L$46,7,FALSE) ->  | H164: =VLOOKUP($C164,Bradford!$C$3:$L$66,7,FALSE) ->  | I164: =VLOOKUP($C164,Keighley!$C$3:$N$42,9,FALSE) ->  | J164: =VLOOKUP($C164,'Bunny '!$C$3:$N$20,9,FALSE) ->  | K164: =VLOOKUP($C164,Liverpool!$C$3:$N$59,9,FALSE) ->  | L164: =VLOOKUP(C164,'VoY 10m'!$C$3:$N$40,9,FALSE) ->  | M164: =VLOOKUP(C164,Guisley!$C$3:$N$49,9,FALSE) ->  | N164: =VLOOKUP(C164,Odda!$C$3:$N$42,9,FALSE) ->  | O164: =VLOOKUP(C164,'Leeds half'!$C$4:$N$31,9,FALSE) ->  | P164: =VLOOKUP(C164,Ilkley!$C$3:$L$46,7,FALSE) ->  | Q164: =VLOOKUP(C164,Otley!$C$3:$L$46,9,FALSE) ->  | R164: =VLOOKUP(C164,Solstice!$C$3:$L$48,7,FALSE) ->  | S164: =VLOOKUP(C164,Eccup!$C$3:$L$46,9,FALSE) ->  | U164: =VLOOKUP(C164,Shakerr!$C$3:$L$46,7,FALSE) ->  | V164: =VLOOKUP(C164,VoY!$C$3:$L$46,9,FALSE) ->  | W164: =VLOOKUP(C164,Kirkstall!$C$3:$L$46,9,FALSE) ->  | X164: =VLOOKUP($C164,City!$C$3:$L$69,9,FALSE) ->  | Y164: =VLOOKUP(C164,'Guy Fawkes'!$C$3:$N$34,9,FALSE) ->  | Z164: =VLOOKUP(C164,Abbey!$C$3:$L$48,7,FALSE) ->  | AA164: =VLOOKUP(C164,Chevin!$C$3:$L$50,7,FALSE) ->  | AC164: 0 | AD164: 0 | AE164: 0 | AF164: 0 | AG164: 0 | AH164: 0 | AI164: 0 | AJ164: 0 | AK164: 0 | AL164: 0 | AM164: 0 | AN164: 0 | AO164: 0 | AP164: 0 | AQ164: 0 | AR164: 0 | AS164: 0 | AT164: 0 | AU164: 0 | AV164: 0 | AW164: 0 | AX164: 0
C165: Louise McGechaen | D165: 1965-08-27 | E165: 51 | F165: =IFERROR(VLOOKUP(C165,'Division Lookup'!$A$2:$D$251,4,FALSE),"Second") -> Second | G165: =VLOOKUP(C165,Dewsbury!$C$3:$L$46,7,FALSE) ->  | H165: =VLOOKUP($C165,Bradford!$C$3:$L$66,7,FALSE) ->  | I165: =VLOOKUP($C165,Keighley!$C$3:$N$42,9,FALSE) ->  | J165: =VLOOKUP($C165,'Bunny '!$C$3:$N$20,9,FALSE) ->  | K165: =VLOOKUP($C165,Liverpool!$C$3:$N$59,9,FALSE) ->  | L165: =VLOOKUP(C165,'VoY 10m'!$C$3:$N$40,9,FALSE) ->  | M165: =VLOOKUP(C165,Guisley!$C$3:$N$49,9,FALSE) ->  | N165: =VLOOKUP(C165,Odda!$C$3:$N$42,9,FALSE) ->  | O165: =VLOOKUP(C165,'Leeds half'!$C$4:$N$31,9,FALSE) ->  | P165: =VLOOKUP(C165,Ilkley!$C$3:$L$46,7,FALSE) ->  | Q165: =VLOOKUP(C165,Otley!$C$3:$L$46,9,FALSE) ->  | R165: =VLOOKUP(C165,Solstice!$C$3:$L$48,7,FALSE) ->  | S165: =VLOOKUP(C165,Eccup!$C$3:$L$46,9,FALSE) ->  | U165: =VLOOKUP(C165,Shakerr!$C$3:$L$46,7,FALSE) ->  | V165: =VLOOKUP(C165,VoY!$C$3:$L$46,9,FALSE) ->  | W165: =VLOOKUP(C165,Kirkstall!$C$3:$L$46,9,FALSE) ->  | X165: =VLOOKUP($C165,City!$C$3:$L$69,9,FALSE) ->  | Y165: =VLOOKUP(C165,'Guy Fawkes'!$C$3:$N$34,9,FALSE) ->  | Z165: =VLOOKUP(C165,Abbey!$C$3:$L$48,7,FALSE) ->  | AA165: =VLOOKUP(C165,Chevin!$C$3:$L$50,7,FALSE) ->  | AC165: 0 | AD165: 0 | AE165: 0 | AF165: 0 | AG165: 0 | AH165: 0 | AI165: 0 | AJ165: 0 | AK165: 0 | AL165: 0 | AM165: 0 | AN165: 0 | AO165: 0 | AP165: 0 | AQ165: 0 | AR165: 0 | AS165: 0 | AT165: 0 | AU165: 0 | AV165: 0 | AW165: 0 | AX165: 0
C166: Gary Mckee | D166: 1976-01-29 | E166: 40 | F166: =IFERROR(VLOOKUP(C166,'Division Lookup'!$A$2:$D$251,4,FALSE),"Second") -> Second | G166: =VLOOKUP(C166,Dewsbury!$C$3:$L$46,7,FALSE) ->  | H166: =VLOOKUP($C166,Bradford!$C$3:$L$66,7,FALSE) ->  | I166: =VLOOKUP($C166,Keighley!$C$3:$N$42,9,FALSE) ->  | J166: =VLOOKUP($C166,'Bunny '!$C$3:$N$20,9,FALSE) ->  | K166: =VLOOKUP($C166,Liverpool!$C$3:$N$59,9,FALSE) ->  | L166: =VLOOKUP(C166,'VoY 10m'!$C$3:$N$40,9,FALSE) ->  | M166: =VLOOKUP(C166,Guisley!$C$3:$N$49,9,FALSE) ->  | N166: =VLOOKUP(C166,Odda!$C$3:$N$42,9,FALSE) ->  | O166: =VLOOKUP(C166,'Leeds half'!$C$4:$N$31,9,FALSE) ->  | P166: =VLOOKUP(C166,Ilkley!$C$3:$L$46,7,FALSE) ->  | Q166: =VLOOKUP(C166,Otley!$C$3:$L$46,9,FALSE) ->  | R166: =VLOOKUP(C166,Solstice!$C$3:$L$48,7,FALSE) ->  | S166: =VLOOKUP(C166,Eccup!$C$3:$L$46,9,FALSE) ->  | U166: =VLOOKUP(C166,Shakerr!$C$3:$L$46,7,FALSE) ->  | V166: =VLOOKUP(C166,VoY!$C$3:$L$46,9,FALSE) ->  | W166: =VLOOKUP(C166,Kirkstall!$C$3:$L$46,9,FALSE) ->  | X166: =VLOOKUP($C166,City!$C$3:$L$69,9,FALSE) ->  | Y166: =VLOOKUP(C166,'Guy Fawkes'!$C$3:$N$34,9,FALSE) ->  | Z166: =VLOOKUP(C166,Abbey!$C$3:$L$48,7,FALSE) ->  | AA166: =VLOOKUP(C166,Chevin!$C$3:$L$50,7,FALSE) ->  | AC166: 0 | AD166: 0 | AE166: 0 | AF166: 0 | AG166: 0 | AH166: 0 | AI166: 0 | AJ166: 0 | AK166: 0 | AL166: 0 | AM166: 0 | AN166: 0 | AO166: 0 | AP166: 0 | AQ166: 0 | AR166: 0 | AS166: 0 | AT166: 0 | AU166: 0 | AV166: 0 | AW166: 0 | AX166: 0
C167: Rahul Mehra | D167: 1970-06-03 | E167: 46 | F167: =IFERROR(VLOOKUP(C167,'Division Lookup'!$A$2:$D$251,4,FALSE),"Second") -> Second | G167: =VLOOKUP(C167,Dewsbury!$C$3:$L$46,7,FALSE) ->  | H167: =VLOOKUP($C167,Bradford!$C$3:$L$66,7,FALSE) ->  | I167: =VLOOKUP($C167,Keighley!$C$3:$N$42,9,FALSE) ->  | J167: =VLOOKUP($C167,'Bunny '!$C$3:$N$20,9,FALSE) ->  | K167: =VLOOKUP($C167,Liverpool!$C$3:$N$59,9,FALSE) ->  | L167: =VLOOKUP(C167,'VoY 10m'!$C$3:$N$40,9,FALSE) ->  | M167: =VLOOKUP(C167,Guisley!$C$3:$N$49,9,FALSE) ->  | N167: =VLOOKUP(C167,Odda!$C$3:$N$42,9,FALSE) ->  | O167: =VLOOKUP(C167,'Leeds half'!$C$4:$N$31,9,FALSE) ->  | P167: =VLOOKUP(C167,Ilkley!$C$3:$L$46,7,FALSE) ->  | Q167: =VLOOKUP(C167,Otley!$C$3:$L$46,9,FALSE) ->  | R167: =VLOOKUP(C167,Solstice!$C$3:$L$48,7,FALSE) ->  | S167: =VLOOKUP(C167,Eccup!$C$3:$L$46,9,FALSE) ->  | U167: =VLOOKUP(C167,Shakerr!$C$3:$L$46,7,FALSE) ->  | V167: =VLOOKUP(C167,VoY!$C$3:$L$46,9,FALSE) ->  | W167: =VLOOKUP(C167,Kirkstall!$C$3:$L$46,9,FALSE) ->  | X167: =VLOOKUP($C167,City!$C$3:$L$69,9,FALSE) ->  | Y167: =VLOOKUP(C167,'Guy Fawkes'!$C$3:$N$34,9,FALSE) ->  | Z167: =VLOOKUP(C167,Abbey!$C$3:$L$48,7,FALSE) ->  | AA167: =VLOOKUP(C167,Chevin!$C$3:$L$50,7,FALSE) ->  | AC167: 0 | AD167: 0 | AE167: 0 | AF167: 0 | AG167: 0 | AH167: 0 | AI167: 0 | AJ167: 0 | AK167: 0 | AL167: 0 | AM167: 0 | AN167: 0 | AO167: 0 | AP167: 0 | AQ167: 0 | AR167: 0 | AS167: 0 | AT167: 0 | AU167: 0 | AV167: 0 | AW167: 0 | AX167: 0
C168: Sarah Miller | D168: 1984-08-04 | E168: 32 | F168: =IFERROR(VLOOKUP(C168,'Division Lookup'!$A$2:$D$251,4,FALSE),"Second") -> Second | G168: =VLOOKUP(C168,Dewsbury!$C$3:$L$46,7,FALSE) ->  | H168: =VLOOKUP($C168,Bradford!$C$3:$L$66,7,FALSE) ->  | I168: =VLOOKUP($C168,Keighley!$C$3:$N$42,9,FALSE) ->  | J168: =VLOOKUP($C168,'Bunny '!$C$3:$N$20,9,FALSE) ->  | K168: =VLOOKUP($C168,Liverpool!$C$3:$N$59,9,FALSE) ->  | L168: =VLOOKUP(C168,'VoY 10m'!$C$3:$N$40,9,FALSE) ->  | M168: =VLOOKUP(C168,Guisley!$C$3:$N$49,9,FALSE) ->  | N168: =VLOOKUP(C168,Odda!$C$3:$N$42,9,FALSE) ->  | O168: =VLOOKUP(C168,'Leeds half'!$C$4:$N$31,9,FALSE) ->  | P168: =VLOOKUP(C168,Ilkley!$C$3:$L$46,7,FALSE) ->  | Q168: =VLOOKUP(C168,Otley!$C$3:$L$46,9,FALSE) ->  | R168: =VLOOKUP(C168,Solstice!$C$3:$L$48,7,FALSE) ->  | S168: =VLOOKUP(C168,Eccup!$C$3:$L$46,9,FALSE) ->  | U168: =VLOOKUP(C168,Shakerr!$C$3:$L$46,7,FALSE) ->  | V168: =VLOOKUP(C168,VoY!$C$3:$L$46,9,FALSE) ->  | W168: =VLOOKUP(C168,Kirkstall!$C$3:$L$46,9,FALSE) ->  | X168: =VLOOKUP($C168,City!$C$3:$L$69,9,FALSE) ->  | Y168: =VLOOKUP(C168,'Guy Fawkes'!$C$3:$N$34,9,FALSE) ->  | Z168: =VLOOKUP(C168,Abbey!$C$3:$L$48,7,FALSE) -> 0.5163912219 | AA168: =VLOOKUP(C168,Chevin!$C$3:$L$50,7,FALSE) ->  | AC168: 0 | AD168: 0 | AE168: 0 | AF168: 0 | AG168: 0 | AH168: 0 | AI168: 0 | AJ168: 0 | AK168: 0 | AL168: 0 | AM168: 0 | AN168: 0 | AO168: 0 | AP168: 0 | AQ168: 0 | AR168: 0 | AS168: 0 | AT168: 0 | AU168: 0 | AV168: 17 | AW168: 0 | AX168: 1
C169: Mohanlal Mistry | D169: 1961-08-11 | E169: 55 | F169: =IFERROR(VLOOKUP(C169,'Division Lookup'!$A$2:$D$251,4,FALSE),"Second") -> Premier | G169: =VLOOKUP(C169,Dewsbury!$C$3:$L$46,7,FALSE) -> 0.6377534064 | H169: =VLOOKUP($C169,Bradford!$C$3:$L$66,7,FALSE) -> 0.6358515573 | I169: =VLOOKUP($C169,Keighley!$C$3:$N$42,9,FALSE) ->  | J169: =VLOOKUP($C169,'Bunny '!$C$3:$N$20,9,FALSE) -> 0.5317185698 | K169: =VLOOKUP($C169,Liverpool!$C$3:$N$59,9,FALSE) ->  | L169: =VLOOKUP(C169,'VoY 10m'!$C$3:$N$40,9,FALSE) ->  | M169: =VLOOKUP(C169,Guisley!$C$3:$N$49,9,FALSE) -> 0.532463929 | N169: =VLOOKUP(C169,Odda!$C$3:$N$42,9,FALSE) ->  | O169: =VLOOKUP(C169,'Leeds half'!$C$4:$N$31,9,FALSE) ->  | P169: =VLOOKUP(C169,Ilkley!$C$3:$L$46,7,FALSE) -> 0.4711514854 | Q169: =VLOOKUP(C169,Otley!$C$3:$L$46,9,FALSE) -> 0.5861812779 | R169: =VLOOKUP(C169,Solstice!$C$3:$L$48,7,FALSE) ->  | S169: =VLOOKUP(C169,Eccup!$C$3:$L$46,9,FALSE) -> 0.6043661432 | U169: =VLOOKUP(C169,Shakerr!$C$3:$L$46,7,FALSE) -> 0.4380278475 | V169: =VLOOKUP(C169,VoY!$C$3:$L$46,9,FALSE) -> 0.6058330927 | W169: =VLOOKUP(C169,Kirkstall!$C$3:$L$46,9,FALSE) ->  | X169: =VLOOKUP($C169,City!$C$3:$L$69,9,FALSE) ->  | Y169: =VLOOKUP(C169,'Guy Fawkes'!$C$3:$N$34,9,FALSE) -> 0.5658956428 | Z169: =VLOOKUP(C169,Abbey!$C$3:$L$48,7,FALSE) ->  | AA169: =VLOOKUP(C169,Chevin!$C$3:$L$50,7,FALSE) -> 0.5610640871 | AC169: 10 | AD169: 9 | AE169: 0 | AF169: 12 | AG169: 0 | AH169: 0 | AI169: 7 | AJ169: 0 | AK169: 0 | AL169: 6 | AM169: 10 | AN169: 0 | AO169: 4 | AP169: 0 | AQ169: 8 | AR169: 6 | AS169: 0 | AT169: 0 | AU169: 12 | AV169: 0 | AW169: 5 | AX169: 11
C170: Urmila Mistry | D170: 1962-11-14 | E170: 54 | F170: =IFERROR(VLOOKUP(C170,'Division Lookup'!$A$2:$D$251,4,FALSE),"Second") -> Premier | G170: =VLOOKUP(C170,Dewsbury!$C$3:$L$46,7,FALSE) -> 0.5995024876 | H170: =VLOOKUP($C170,Bradford!$C$3:$L$66,7,FALSE) -> 0.6028349083 | I170: =VLOOKUP($C170,Keighley!$C$3:$N$42,9,FALSE) ->  | J170: =VLOOKUP($C170,'Bunny '!$C$3:$N$20,9,FALSE) ->  | K170: =VLOOKUP($C170,Liverpool!$C$3:$N$59,9,FALSE) ->  | L170: =VLOOKUP(C170,'VoY 10m'!$C$3:$N$40,9,FALSE) ->  | M170: =VLOOKUP(C170,Guisley!$C$3:$N$49,9,FALSE) ->  | N170: =VLOOKUP(C170,Odda!$C$3:$N$42,9,FALSE) ->  | O170: =VLOOKUP(C170,'Leeds half'!$C$4:$N$31,9,FALSE) ->  | P170: =VLOOKUP(C170,Ilkley!$C$3:$L$46,7,FALSE) ->  | Q170: =VLOOKUP(C170,Otley!$C$3:$L$46,9,FALSE) -> 0.482349314 | R170: =VLOOKUP(C170,Solstice!$C$3:$L$48,7,FALSE) ->  | S170: =VLOOKUP(C170,Eccup!$C$3:$L$46,9,FALSE) -> 0.5010408327 | U170: =VLOOKUP(C170,Shakerr!$C$3:$L$46,7,FALSE) -> 0.3866999465 | V170: =VLOOKUP(C170,VoY!$C$3:$L$46,9,FALSE) ->  | W170: =VLOOKUP(C170,Kirkstall!$C$3:$L$46,9,FALSE) ->  | X170: =VLOOKUP($C170,City!$C$3:$L$69,9,FALSE) ->  | Y170: =VLOOKUP(C170,'Guy Fawkes'!$C$3:$N$34,9,FALSE) -> 0.4891355323 | Z170: =VLOOKUP(C170,Abbey!$C$3:$L$48,7,FALSE) ->  | AA170: =VLOOKUP(C170,Chevin!$C$3:$L$50,7,FALSE) -> 0.4688841202 | AC170: 18 | AD170: 11 | AE170: 0 | AF170: 0 | AG170: 0 | AH170: 0 | AI170: 0 | AJ170: 0 | AK170: 0 | AL170: 0 | AM170: 13 | AN170: 0 | AO170: 6 | AP170: 0 | AQ170: 12 | AR170: 0 | AS170: 0 | AT170: 0 | AU170: 19 | AV170: 0 | AW170: 6 | AX170: 7
C171: Tim Mosedale | D171: 1980-05-11 | E171: 36 | F171: =IFERROR(VLOOKUP(C171,'Division Lookup'!$A$2:$D$251,4,FALSE),"Second") -> Premier | G171: =VLOOKUP(C171,Dewsbury!$C$3:$L$46,7,FALSE) -> 0.6094957674 | H171: =VLOOKUP($C171,Bradford!$C$3:$L$66,7,FALSE) ->  | I171: =VLOOKUP($C171,Keighley!$C$3:$N$42,9,FALSE) ->  | J171: =VLOOKUP($C171,'Bunny '!$C$3:$N$20,9,FALSE) -> 0.5625441696 | K171: =VLOOKUP($C171,Liverpool!$C$3:$N$59,9,FALSE) -> 0.5962207857 | L171: =VLOOKUP(C171,'VoY 10m'!$C$3:$N$40,9,FALSE) ->  | M171: =VLOOKUP(C171,Guisley!$C$3:$N$49,9,FALSE) ->  | N171: =VLOOKUP(C171,Odda!$C$3:$N$42,9,FALSE) ->  | O171: =VLOOKUP(C171,'Leeds half'!$C$4:$N$31,9,FALSE) ->  | P171: =VLOOKUP(C171,Ilkley!$C$3:$L$46,7,FALSE) ->  | Q171: =VLOOKUP(C171,Otley!$C$3:$L$46,9,FALSE) ->  | R171: =VLOOKUP(C171,Solstice!$C$3:$L$48,7,FALSE) ->  | S171: =VLOOKUP(C171,Eccup!$C$3:$L$46,9,FALSE) ->  | U171: =VLOOKUP(C171,Shakerr!$C$3:$L$46,7,FALSE) -> 0.4314747264 | V171: =VLOOKUP(C171,VoY!$C$3:$L$46,9,FALSE) ->  | W171: =VLOOKUP(C171,Kirkstall!$C$3:$L$46,9,FALSE) ->  | X171: =VLOOKUP($C171,City!$C$3:$L$69,9,FALSE) -> 0.596112311 | Y171: =VLOOKUP(C171,'Guy Fawkes'!$C$3:$N$34,9,FALSE) -> 0.5716997048 | Z171: =VLOOKUP(C171,Abbey!$C$3:$L$48,7,FALSE) ->  | AA171: =VLOOKUP(C171,Chevin!$C$3:$L$50,7,FALSE) ->  | AC171: 15 | AD171: 0 | AE171: 0 | AF171: 10 | AG171: 15 | AH171: 0 | AI171: 0 | AJ171: 0 | AK171: 0 | AL171: 0 | AM171: 0 | AN171: 0 | AO171: 0 | AP171: 0 | AQ171: 9 | AR171: 0 | AS171: 0 | AT171: 14 | AU171: 11 | AV171: 0 | AW171: 0 | AX171: 6
C172: Michael Moss | D172: 1953-12-06 | E172: 63 | F172: =IFERROR(VLOOKUP(C172,'Division Lookup'!$A$2:$D$251,4,FALSE),"Second") -> Second | G172: =VLOOKUP(C172,Dewsbury!$C$3:$L$46,7,FALSE) ->  | H172: =VLOOKUP($C172,Bradford!$C$3:$L$66,7,FALSE) ->  | I172: =VLOOKUP($C172,Keighley!$C$3:$N$42,9,FALSE) ->  | J172: =VLOOKUP($C172,'Bunny '!$C$3:$N$20,9,FALSE) ->  | K172: =VLOOKUP($C172,Liverpool!$C$3:$N$59,9,FALSE) ->  | L172: =VLOOKUP(C172,'VoY 10m'!$C$3:$N$40,9,FALSE) ->  | M172: =VLOOKUP(C172,Guisley!$C$3:$N$49,9,FALSE) ->  | N172: =VLOOKUP(C172,Odda!$C$3:$N$42,9,FALSE) ->  | O172: =VLOOKUP(C172,'Leeds half'!$C$4:$N$31,9,FALSE) ->  | P172: =VLOOKUP(C172,Ilkley!$C$3:$L$46,7,FALSE) ->  | Q172: =VLOOKUP(C172,Otley!$C$3:$L$46,9,FALSE) ->  | R172: =VLOOKUP(C172,Solstice!$C$3:$L$48,7,FALSE) ->  | S172: =VLOOKUP(C172,Eccup!$C$3:$L$46,9,FALSE) ->  | U172: =VLOOKUP(C172,Shakerr!$C$3:$L$46,7,FALSE) ->  | V172: =VLOOKUP(C172,VoY!$C$3:$L$46,9,FALSE) ->  | W172: =VLOOKUP(C172,Kirkstall!$C$3:$L$46,9,FALSE) ->  | X172: =VLOOKUP($C172,City!$C$3:$L$69,9,FALSE) ->  | Y172: =VLOOKUP(C172,'Guy Fawkes'!$C$3:$N$34,9,FALSE) ->  | Z172: =VLOOKUP(C172,Abbey!$C$3:$L$48,7,FALSE) ->  | AA172: =VLOOKUP(C172,Chevin!$C$3:$L$50,7,FALSE) ->  | AC172: 0 | AD172: 0 | AE172: 0 | AF172: 0 | AG172: 0 | AH172: 0 | AI172: 0 | AJ172: 0 | AK172: 0 | AL172: 0 | AM172: 0 | AN172: 0 | AO172: 0 | AP172: 0 | AQ172: 0 | AR172: 0 | AS172: 0 | AT172: 0 | AU172: 0 | AV172: 0 | AW172: 0 | AX172: 0
C173: Jen Murgatroyd | D173: 1981-12-23 | E173: 35 | F173: =IFERROR(VLOOKUP(C173,'Division Lookup'!$A$2:$D$251,4,FALSE),"Second") -> Second | G173: =VLOOKUP(C173,Dewsbury!$C$3:$L$46,7,FALSE) ->  | H173: =VLOOKUP($C173,Bradford!$C$3:$L$66,7,FALSE) ->  | I173: =VLOOKUP($C173,Keighley!$C$3:$N$42,9,FALSE) ->  | J173: =VLOOKUP($C173,'Bunny '!$C$3:$N$20,9,FALSE) ->  | K173: =VLOOKUP($C173,Liverpool!$C$3:$N$59,9,FALSE) ->  | L173: =VLOOKUP(C173,'VoY 10m'!$C$3:$N$40,9,FALSE) ->  | M173: =VLOOKUP(C173,Guisley!$C$3:$N$49,9,FALSE) ->  | N173: =VLOOKUP(C173,Odda!$C$3:$N$42,9,FALSE) ->  | O173: =VLOOKUP(C173,'Leeds half'!$C$4:$N$31,9,FALSE) ->  | P173: =VLOOKUP(C173,Ilkley!$C$3:$L$46,7,FALSE) ->  | Q173: =VLOOKUP(C173,Otley!$C$3:$L$46,9,FALSE) ->  | R173: =VLOOKUP(C173,Solstice!$C$3:$L$48,7,FALSE) ->  | S173: =VLOOKUP(C173,Eccup!$C$3:$L$46,9,FALSE) ->  | U173: =VLOOKUP(C173,Shakerr!$C$3:$L$46,7,FALSE) ->  | V173: =VLOOKUP(C173,VoY!$C$3:$L$46,9,FALSE) ->  | W173: =VLOOKUP(C173,Kirkstall!$C$3:$L$46,9,FALSE) ->  | X173: =VLOOKUP($C173,City!$C$3:$L$69,9,FALSE) ->  | Y173: =VLOOKUP(C173,'Guy Fawkes'!$C$3:$N$34,9,FALSE) ->  | Z173: =VLOOKUP(C173,Abbey!$C$3:$L$48,7,FALSE) ->  | AA173: =VLOOKUP(C173,Chevin!$C$3:$L$50,7,FALSE) ->  | AC173: 0 | AD173: 0 | AE173: 0 | AF173: 0 | AG173: 0 | AH173: 0 | AI173: 0 | AJ173: 0 | AK173: 0 | AL173: 0 | AM173: 0 | AN173: 0 | AO173: 0 | AP173: 0 | AQ173: 0 | AR173: 0 | AS173: 0 | AT173: 0 | AU173: 0 | AV173: 0 | AW173: 0 | AX173: 0
C174: Alistair Nash | D174: 1971-04-11 | E174: 45 | F174: =IFERROR(VLOOKUP(C174,'Division Lookup'!$A$2:$D$251,4,FALSE),"Second") -> First | G174: =VLOOKUP(C174,Dewsbury!$C$3:$L$46,7,FALSE) ->  | H174: =VLOOKUP($C174,Bradford!$C$3:$L$66,7,FALSE) ->  | I174: =VLOOKUP($C174,Keighley!$C$3:$N$42,9,FALSE) ->  | J174: =VLOOKUP($C174,'Bunny '!$C$3:$N$20,9,FALSE) ->  | K174: =VLOOKUP($C174,Liverpool!$C$3:$N$59,9,FALSE) ->  | L174: =VLOOKUP(C174,'VoY 10m'!$C$3:$N$40,9,FALSE) ->  | M174: =VLOOKUP(C174,Guisley!$C$3:$N$49,9,FALSE) ->  | N174: =VLOOKUP(C174,Odda!$C$3:$N$42,9,FALSE) ->  | O174: =VLOOKUP(C174,'Leeds half'!$C$4:$N$31,9,FALSE) ->  | P174: =VLOOKUP(C174,Ilkley!$C$3:$L$46,7,FALSE) ->  | Q174: =VLOOKUP(C174,Otley!$C$3:$L$46,9,FALSE) ->  | R174: =VLOOKUP(C174,Solstice!$C$3:$L$48,7,FALSE) ->  | S174: =VLOOKUP(C174,Eccup!$C$3:$L$46,9,FALSE) ->  | U174: =VLOOKUP(C174,Shakerr!$C$3:$L$46,7,FALSE) ->  | V174: =VLOOKUP(C174,VoY!$C$3:$L$46,9,FALSE) ->  | W174: =VLOOKUP(C174,Kirkstall!$C$3:$L$46,9,FALSE) -> 0.791558682 | X174: =VLOOKUP($C174,City!$C$3:$L$69,9,FALSE) ->  | Y174: =VLOOKUP(C174,'Guy Fawkes'!$C$3:$N$34,9,FALSE) ->  | Z174: =VLOOKUP(C174,Abbey!$C$3:$L$48,7,FALSE) ->  | AA174: =VLOOKUP(C174,Chevin!$C$3:$L$50,7,FALSE) ->  | AC174: 0 | AD174: 0 | AE174: 0 | AF174: 0 | AG174: 0 | AH174: 0 | AI174: 0 | AJ174: 0 | AK174: 0 | AL174: 0 | AM174: 0 | AN174: 0 | AO174: 0 | AP174: 0 | AQ174: 0 | AR174: 0 | AS174: 1 | AT174: 0 | AU174: 0 | AV174: 0 | AW174: 0 | AX174: 1
C175: Louise Nash | D175: 1969-08-22 | E175: 47 | F175: =IFERROR(VLOOKUP(C175,'Division Lookup'!$A$2:$D$251,4,FALSE),"Second") -> Premier | G175: =VLOOKUP(C175,Dewsbury!$C$3:$L$46,7,FALSE) ->  | H175: =VLOOKUP($C175,Bradford!$C$3:$L$66,7,FALSE) ->  | I175: =VLOOKUP($C175,Keighley!$C$3:$N$42,9,FALSE) ->  | J175: =VLOOKUP($C175,'Bunny '!$C$3:$N$20,9,FALSE) ->  | K175: =VLOOKUP($C175,Liverpool!$C$3:$N$59,9,FALSE) ->  | L175: =VLOOKUP(C175,'VoY 10m'!$C$3:$N$40,9,FALSE) ->  | M175: =VLOOKUP(C175,Guisley!$C$3:$N$49,9,FALSE) ->  | N175: =VLOOKUP(C175,Odda!$C$3:$N$42,9,FALSE) ->  | O175: =VLOOKUP(C175,'Leeds half'!$C$4:$N$31,9,FALSE) ->  | P175: =VLOOKUP(C175,Ilkley!$C$3:$L$46,7,FALSE) ->  | Q175: =VLOOKUP(C175,Otley!$C$3:$L$46,9,FALSE) -> 0.5870646766 | R175: =VLOOKUP(C175,Solstice!$C$3:$L$48,7,FALSE) ->  | S175: =VLOOKUP(C175,Eccup!$C$3:$L$46,9,FALSE) -> 0.5870646766 | U175: =VLOOKUP(C175,Shakerr!$C$3:$L$46,7,FALSE) -> 0.5171428571 | V175: =VLOOKUP(C175,VoY!$C$3:$L$46,9,FALSE) ->  | W175: =VLOOKUP(C175,Kirkstall!$C$3:$L$46,9,FALSE) -> 0.698392283 | X175: =VLOOKUP($C175,City!$C$3:$L$69,9,FALSE) -> 0.7031072068 | Y175: =VLOOKUP(C175,'Guy Fawkes'!$C$3:$N$34,9,FALSE) -> 0.6219692178 | Z175: =VLOOKUP(C175,Abbey!$C$3:$L$48,7,FALSE) ->  | AA175: =VLOOKUP(C175,Chevin!$C$3:$L$50,7,FALSE) ->  | AC175: 0 | AD175: 0 | AE175: 0 | AF175: 0 | AG175: 0 | AH175: 0 | AI175: 0 | AJ175: 0 | AK175: 0 | AL175: 0 | AM175: 9 | AN175: 0 | AO175: 5 | AP175: 0 | AQ175: 5 | AR175: 0 | AS175: 1 | AT175: 5 | AU175: 6 | AV175: 0 | AW175: 0 | AX175: 6
C176: Dairine Nethercott | D176: 1967-03-21 | E176: 49 | F176: =IFERROR(VLOOKUP(C176,'Division Lookup'!$A$2:$D$251,4,FALSE),"Second") -> Premier | G176: =VLOOKUP(C176,Dewsbury!$C$3:$L$46,7,FALSE) ->  | H176: =VLOOKUP($C176,Bradford!$C$3:$L$66,7,FALSE) ->  | I176: =VLOOKUP($C176,Keighley!$C$3:$N$42,9,FALSE) ->  | J176: =VLOOKUP($C176,'Bunny '!$C$3:$N$20,9,FALSE) ->  | K176: =VLOOKUP($C176,Liverpool!$C$3:$N$59,9,FALSE) -> 0.6333285571 | L176: =VLOOKUP(C176,'VoY 10m'!$C$3:$N$40,9,FALSE) ->  | M176: =VLOOKUP(C176,Guisley!$C$3:$N$49,9,FALSE) ->  | N176: =VLOOKUP(C176,Odda!$C$3:$N$42,9,FALSE) ->  | O176: =VLOOKUP(C176,'Leeds half'!$C$4:$N$31,9,FALSE) ->  | P176: =VLOOKUP(C176,Ilkley!$C$3:$L$46,7,FALSE) ->  | Q176: =VLOOKUP(C176,Otley!$C$3:$L$46,9,FALSE) ->  | R176: =VLOOKUP(C176,Solstice!$C$3:$L$48,7,FALSE) -> 0.5420280187 | S176: =VLOOKUP(C176,Eccup!$C$3:$L$46,9,FALSE) ->  | U176: =VLOOKUP(C176,Shakerr!$C$3:$L$46,7,FALSE) ->  | V176: =VLOOKUP(C176,VoY!$C$3:$L$46,9,FALSE) ->  | W176: =VLOOKUP(C176,Kirkstall!$C$3:$L$46,9,FALSE) ->  | X176: =VLOOKUP($C176,City!$C$3:$L$69,9,FALSE) ->  | Y176: =VLOOKUP(C176,'Guy Fawkes'!$C$3:$N$34,9,FALSE) -> 0.5072733424 | Z176: =VLOOKUP(C176,Abbey!$C$3:$L$48,7,FALSE) ->  | AA176: =VLOOKUP(C176,Chevin!$C$3:$L$50,7,FALSE) ->  | AC176: 0 | AD176: 0 | AE176: 0 | AF176: 0 | AG176: 10 | AH176: 0 | AI176: 0 | AJ176: 0 | AK176: 0 | AL176: 0 | AM176: 0 | AN176: 10 | AO176: 0 | AP176: 0 | AQ176: 0 | AR176: 0 | AS176: 0 | AT176: 0 | AU176: 14 | AV176: 0 | AW176: 0 | AX176: 3
C177: Jonathan Nixon | D177: 1981-02-19 | E177: 35 | F177: =IFERROR(VLOOKUP(C177,'Division Lookup'!$A$2:$D$251,4,FALSE),"Second") -> Second | G177: =VLOOKUP(C177,Dewsbury!$C$3:$L$46,7,FALSE) ->  | H177: =VLOOKUP($C177,Bradford!$C$3:$L$66,7,FALSE) ->  | I177: =VLOOKUP($C177,Keighley!$C$3:$N$42,9,FALSE) ->  | J177: =VLOOKUP($C177,'Bunny '!$C$3:$N$20,9,FALSE) ->  | K177: =VLOOKUP($C177,Liverpool!$C$3:$N$59,9,FALSE) ->  | L177: =VLOOKUP(C177,'VoY 10m'!$C$3:$N$40,9,FALSE) ->  | M177: =VLOOKUP(C177,Guisley!$C$3:$N$49,9,FALSE) ->  | N177: =VLOOKUP(C177,Odda!$C$3:$N$42,9,FALSE) ->  | O177: =VLOOKUP(C177,'Leeds half'!$C$4:$N$31,9,FALSE) ->  | P177: =VLOOKUP(C177,Ilkley!$C$3:$L$46,7,FALSE) ->  | Q177: =VLOOKUP(C177,Otley!$C$3:$L$46,9,FALSE) ->  | R177: =VLOOKUP(C177,Solstice!$C$3:$L$48,7,FALSE) ->  | S177: =VLOOKUP(C177,Eccup!$C$3:$L$46,9,FALSE) ->  | U177: =VLOOKUP(C177,Shakerr!$C$3:$L$46,7,FALSE) ->  | V177: =VLOOKUP(C177,VoY!$C$3:$L$46,9,FALSE) ->  | W177: =VLOOKUP(C177,Kirkstall!$C$3:$L$46,9,FALSE) ->  | X177: =VLOOKUP($C177,City!$C$3:$L$69,9,FALSE) ->  | Y177: =VLOOKUP(C177,'Guy Fawkes'!$C$3:$N$34,9,FALSE) ->  | Z177: =VLOOKUP(C177,Abbey!$C$3:$L$48,7,FALSE) ->  | AA177: =VLOOKUP(C177,Chevin!$C$3:$L$50,7,FALSE) ->  | AC177: 0 | AD177: 0 | AE177: 0 | AF177: 0 | AG177: 0 | AH177: 0 | AI177: 0 | AJ177: 0 | AK177: 0 | AL177: 0 | AM177: 0 | AN177: 0 | AO177: 0 | AP177: 0 | AQ177: 0 | AR177: 0 | AS177: 0 | AT177: 0 | AU177: 0 | AV177: 0 | AW177: 0 | AX177: 0
C178: Lorna Nixon | D178: 1971-05-15 | E178: 45 | F178: =IFERROR(VLOOKUP(C178,'Division Lookup'!$A$2:$D$251,4,FALSE),"Second") -> Premier | G178: =VLOOKUP(C178,Dewsbury!$C$3:$L$46,7,FALSE) ->  | H178: =VLOOKUP($C178,Bradford!$C$3:$L$66,7,FALSE) ->  | I178: =VLOOKUP($C178,Keighley!$C$3:$N$42,9,FALSE) ->  | J178: =VLOOKUP($C178,'Bunny '!$C$3:$N$20,9,FALSE) ->  | K178: =VLOOKUP($C178,Liverpool!$C$3:$N$59,9,FALSE) ->  | L178: =VLOOKUP(C178,'VoY 10m'!$C$3:$N$40,9,FALSE) ->  | M178: =VLOOKUP(C178,Guisley!$C$3:$N$49,9,FALSE) ->  | N178: =VLOOKUP(C178,Odda!$C$3:$N$42,9,FALSE) ->  | O178: =VLOOKUP(C178,'Leeds half'!$C$4:$N$31,9,FALSE) ->  | P178: =VLOOKUP(C178,Ilkley!$C$3:$L$46,7,FALSE) ->  | Q178: =VLOOKUP(C178,Otley!$C$3:$L$46,9,FALSE) ->  | R178: =VLOOKUP(C178,Solstice!$C$3:$L$48,7,FALSE) ->  | S178: =VLOOKUP(C178,Eccup!$C$3:$L$46,9,FALSE) ->  | U178: =VLOOKUP(C178,Shakerr!$C$3:$L$46,7,FALSE) ->  | V178: =VLOOKUP(C178,VoY!$C$3:$L$46,9,FALSE) ->  | W178: =VLOOKUP(C178,Kirkstall!$C$3:$L$46,9,FALSE) ->  | X178: =VLOOKUP($C178,City!$C$3:$L$69,9,FALSE) ->  | Y178: =VLOOKUP(C178,'Guy Fawkes'!$C$3:$N$34,9,FALSE) ->  | Z178: =VLOOKUP(C178,Abbey!$C$3:$L$48,7,FALSE) ->  | AA178: =VLOOKUP(C178,Chevin!$C$3:$L$50,7,FALSE) ->  | AC178: 0 | AD178: 0 | AE178: 0 | AF178: 0 | AG178: 0 | AH178: 0 | AI178: 0 | AJ178: 0 | AK178: 0 | AL178: 0 | AM178: 0 | AN178: 0 | AO178: 0 | AP178: 0 | AQ178: 0 | AR178: 0 | AS178: 0 | AT178: 0 | AU178: 0 | AV178: 0 | AW178: 0 | AX178: 0
C179: Richard Nixon | D179: 1970-01-18 | E179: 46 | F179: =IFERROR(VLOOKUP(C179,'Division Lookup'!$A$2:$D$251,4,FALSE),"Second") -> Premier | G179: =VLOOKUP(C179,Dewsbury!$C$3:$L$46,7,FALSE) ->  | H179: =VLOOKUP($C179,Bradford!$C$3:$L$66,7,FALSE) ->  | I179: =VLOOKUP($C179,Keighley!$C$3:$N$42,9,FALSE) ->  | J179: =VLOOKUP($C179,'Bunny '!$C$3:$N$20,9,FALSE) ->  | K179: =VLOOKUP($C179,Liverpool!$C$3:$N$59,9,FALSE) ->  | L179: =VLOOKUP(C179,'VoY 10m'!$C$3:$N$40,9,FALSE) ->  | M179: =VLOOKUP(C179,Guisley!$C$3:$N$49,9,FALSE) ->  | N179: =VLOOKUP(C179,Odda!$C$3:$N$42,9,FALSE) ->  | O179: =VLOOKUP(C179,'Leeds half'!$C$4:$N$31,9,FALSE) ->  | P179: =VLOOKUP(C179,Ilkley!$C$3:$L$46,7,FALSE) ->  | Q179: =VLOOKUP(C179,Otley!$C$3:$L$46,9,FALSE) ->  | R179: =VLOOKUP(C179,Solstice!$C$3:$L$48,7,FALSE) ->  | S179: =VLOOKUP(C179,Eccup!$C$3:$L$46,9,FALSE) ->  | U179: =VLOOKUP(C179,Shakerr!$C$3:$L$46,7,FALSE) ->  | V179: =VLOOKUP(C179,VoY!$C$3:$L$46,9,FALSE) ->  | W179: =VLOOKUP(C179,Kirkstall!$C$3:$L$46,9,FALSE) ->  | X179: =VLOOKUP($C179,City!$C$3:$L$69,9,FALSE) ->  | Y179: =VLOOKUP(C179,'Guy Fawkes'!$C$3:$N$34,9,FALSE) ->  | Z179: =VLOOKUP(C179,Abbey!$C$3:$L$48,7,FALSE) ->  | AA179: =VLOOKUP(C179,Chevin!$C$3:$L$50,7,FALSE) ->  | AC179: 0 | AD179: 0 | AE179: 0 | AF179: 0 | AG179: 0 | AH179: 0 | AI179: 0 | AJ179: 0 | AK179: 0 | AL179: 0 | AM179: 0 | AN179: 0 | AO179: 0 | AP179: 0 | AQ179: 0 | AR179: 0 | AS179: 0 | AT179: 0 | AU179: 0 | AV179: 0 | AW179: 0 | AX179: 0
C180: Matt Nowell | D180: 1980-10-10 | E180: 36 | F180: =IFERROR(VLOOKUP(C180,'Division Lookup'!$A$2:$D$251,4,FALSE),"Second") -> Second | G180: =VLOOKUP(C180,Dewsbury!$C$3:$L$46,7,FALSE) ->  | H180: =VLOOKUP($C180,Bradford!$C$3:$L$66,7,FALSE) ->  | I180: =VLOOKUP($C180,Keighley!$C$3:$N$42,9,FALSE) ->  | J180: =VLOOKUP($C180,'Bunny '!$C$3:$N$20,9,FALSE) ->  | K180: =VLOOKUP($C180,Liverpool!$C$3:$N$59,9,FALSE) ->  | L180: =VLOOKUP(C180,'VoY 10m'!$C$3:$N$40,9,FALSE) ->  | M180: =VLOOKUP(C180,Guisley!$C$3:$N$49,9,FALSE) ->  | N180: =VLOOKUP(C180,Odda!$C$3:$N$42,9,FALSE) ->  | O180: =VLOOKUP(C180,'Leeds half'!$C$4:$N$31,9,FALSE) ->  | P180: =VLOOKUP(C180,Ilkley!$C$3:$L$46,7,FALSE) ->  | Q180: =VLOOKUP(C180,Otley!$C$3:$L$46,9,FALSE) ->  | R180: =VLOOKUP(C180,Solstice!$C$3:$L$48,7,FALSE) ->  | S180: =VLOOKUP(C180,Eccup!$C$3:$L$46,9,FALSE) ->  | U180: =VLOOKUP(C180,Shakerr!$C$3:$L$46,7,FALSE) ->  | V180: =VLOOKUP(C180,VoY!$C$3:$L$46,9,FALSE) -> 0.7363357216 | W180: =VLOOKUP(C180,Kirkstall!$C$3:$L$46,9,FALSE) ->  | X180: =VLOOKUP($C180,City!$C$3:$L$69,9,FALSE) ->  | Y180: =VLOOKUP(C180,'Guy Fawkes'!$C$3:$N$34,9,FALSE) ->  | Z180: =VLOOKUP(C180,Abbey!$C$3:$L$48,7,FALSE) ->  | AA180: =VLOOKUP(C180,Chevin!$C$3:$L$50,7,FALSE) ->  | AC180: 0 | AD180: 0 | AE180: 0 | AF180: 0 | AG180: 0 | AH180: 0 | AI180: 0 | AJ180: 0 | AK180: 0 | AL180: 0 | AM180: 0 | AN180: 0 | AO180: 0 | AP180: 0 | AQ180: 0 | AR180: 1 | AS180: 0 | AT180: 0 | AU180: 0 | AV180: 0 | AW180: 0 | AX180: 1
C181: Judith Nunn | D181: 1961-04-20 | E181: 55 | F181: =IFERROR(VLOOKUP(C181,'Division Lookup'!$A$2:$D$251,4,FALSE),"Second") -> Second | G181: =VLOOKUP(C181,Dewsbury!$C$3:$L$46,7,FALSE) ->  | H181: =VLOOKUP($C181,Bradford!$C$3:$L$66,7,FALSE) ->  | I181: =VLOOKUP($C181,Keighley!$C$3:$N$42,9,FALSE) ->  | J181: =VLOOKUP($C181,'Bunny '!$C$3:$N$20,9,FALSE) ->  | K181: =VLOOKUP($C181,Liverpool!$C$3:$N$59,9,FALSE) ->  | L181: =VLOOKUP(C181,'VoY 10m'!$C$3:$N$40,9,FALSE) ->  | M181: =VLOOKUP(C181,Guisley!$C$3:$N$49,9,FALSE) ->  | N181: =VLOOKUP(C181,Odda!$C$3:$N$42,9,FALSE) ->  | O181: =VLOOKUP(C181,'Leeds half'!$C$4:$N$31,9,FALSE) ->  | P181: =VLOOKUP(C181,Ilkley!$C$3:$L$46,7,FALSE) ->  | Q181: =VLOOKUP(C181,Otley!$C$3:$L$46,9,FALSE) ->  | R181: =VLOOKUP(C181,Solstice!$C$3:$L$48,7,FALSE) ->  | S181: =VLOOKUP(C181,Eccup!$C$3:$L$46,9,FALSE) -> 0.4250505051 | U181: =VLOOKUP(C181,Shakerr!$C$3:$L$46,7,FALSE) ->  | V181: =VLOOKUP(C181,VoY!$C$3:$L$46,9,FALSE) ->  | W181: =VLOOKUP(C181,Kirkstall!$C$3:$L$46,9,FALSE) ->  | X181: =VLOOKUP($C181,City!$C$3:$L$69,9,FALSE) -> 0.491828968 | Y181: =VLOOKUP(C181,'Guy Fawkes'!$C$3:$N$34,9,FALSE) ->  | Z181: =VLOOKUP(C181,Abbey!$C$3:$L$48,7,FALSE) -> 0.4700691629 | AA181: =VLOOKUP(C181,Chevin!$C$3:$L$50,7,FALSE) ->  | AC181: 0 | AD181: 0 | AE181: 0 | AF181: 0 | AG181: 0 | AH181: 0 | AI181: 0 | AJ181: 0 | AK181: 0 | AL181: 0 | AM181: 0 | AN181: 0 | AO181: 5 | AP181: 0 | AQ181: 0 | AR181: 0 | AS181: 0 | AT181: 11 | AU181: 0 | AV181: 22 | AW181: 0 | AX181: 3
C182: Joanne O'Dwyer | D182: 1966-09-07 | E182: 50 | F182: =IFERROR(VLOOKUP(C182,'Division Lookup'!$A$2:$D$251,4,FALSE),"Second") -> Second | G182: =VLOOKUP(C182,Dewsbury!$C$3:$L$46,7,FALSE) ->  | H182: =VLOOKUP($C182,Bradford!$C$3:$L$66,7,FALSE) ->  | I182: =VLOOKUP($C182,Keighley!$C$3:$N$42,9,FALSE) ->  | J182: =VLOOKUP($C182,'Bunny '!$C$3:$N$20,9,FALSE) ->  | K182: =VLOOKUP($C182,Liverpool!$C$3:$N$59,9,FALSE) ->  | L182: =VLOOKUP(C182,'VoY 10m'!$C$3:$N$40,9,FALSE) ->  | M182: =VLOOKUP(C182,Guisley!$C$3:$N$49,9,FALSE) ->  | N182: =VLOOKUP(C182,Odda!$C$3:$N$42,9,FALSE) ->  | O182: =VLOOKUP(C182,'Leeds half'!$C$4:$N$31,9,FALSE) ->  | P182: =VLOOKUP(C182,Ilkley!$C$3:$L$46,7,FALSE) ->  | Q182: =VLOOKUP(C182,Otley!$C$3:$L$46,9,FALSE) ->  | R182: =VLOOKUP(C182,Solstice!$C$3:$L$48,7,FALSE) ->  | S182: =VLOOKUP(C182,Eccup!$C$3:$L$46,9,FALSE) ->  | U182: =VLOOKUP(C182,Shakerr!$C$3:$L$46,7,FALSE) ->  | V182: =VLOOKUP(C182,VoY!$C$3:$L$46,9,FALSE) ->  | W182: =VLOOKUP(C182,Kirkstall!$C$3:$L$46,9,FALSE) ->  | X182: =VLOOKUP($C182,City!$C$3:$L$69,9,FALSE) ->  | Y182: =VLOOKUP(C182,'Guy Fawkes'!$C$3:$N$34,9,FALSE) ->  | Z182: =VLOOKUP(C182,Abbey!$C$3:$L$48,7,FALSE) ->  | AA182: =VLOOKUP(C182,Chevin!$C$3:$L$50,7,FALSE) ->  | AC182: 0 | AD182: 0 | AE182: 0 | AF182: 0 | AG182: 0 | AH182: 0 | AI182: 0 | AJ182: 0 | AK182: 0 | AL182: 0 | AM182: 0 | AN182: 0 | AO182: 0 | AP182: 0 | AQ182: 0 | AR182: 0 | AS182: 0 | AT182: 0 | AU182: 0 | AV182: 0 | AW182: 0 | AX182: 0
C183: Ian Ogden | D183: 1971-12-29 | E183: 45 | F183: =IFERROR(VLOOKUP(C183,'Division Lookup'!$A$2:$D$251,4,FALSE),"Second") -> Second | G183: =VLOOKUP(C183,Dewsbury!$C$3:$L$46,7,FALSE) ->  | H183: =VLOOKUP($C183,Bradford!$C$3:$L$66,7,FALSE) ->  | I183: =VLOOKUP($C183,Keighley!$C$3:$N$42,9,FALSE) ->  | J183: =VLOOKUP($C183,'Bunny '!$C$3:$N$20,9,FALSE) ->  | K183: =VLOOKUP($C183,Liverpool!$C$3:$N$59,9,FALSE) ->  | L183: =VLOOKUP(C183,'VoY 10m'!$C$3:$N$40,9,FALSE) ->  | M183: =VLOOKUP(C183,Guisley!$C$3:$N$49,9,FALSE) ->  | N183: =VLOOKUP(C183,Odda!$C$3:$N$42,9,FALSE) ->  | O183: =VLOOKUP(C183,'Leeds half'!$C$4:$N$31,9,FALSE) ->  | P183: =VLOOKUP(C183,Ilkley!$C$3:$L$46,7,FALSE) ->  | Q183: =VLOOKUP(C183,Otley!$C$3:$L$46,9,FALSE) ->  | R183: =VLOOKUP(C183,Solstice!$C$3:$L$48,7,FALSE) ->  | S183: =VLOOKUP(C183,Eccup!$C$3:$L$46,9,FALSE) ->  | U183: =VLOOKUP(C183,Shakerr!$C$3:$L$46,7,FALSE) ->  | V183: =VLOOKUP(C183,VoY!$C$3:$L$46,9,FALSE) ->  | W183: =VLOOKUP(C183,Kirkstall!$C$3:$L$46,9,FALSE) ->  | X183: =VLOOKUP($C183,City!$C$3:$L$69,9,FALSE) ->  | Y183: =VLOOKUP(C183,'Guy Fawkes'!$C$3:$N$34,9,FALSE) ->  | Z183: =VLOOKUP(C183,Abbey!$C$3:$L$48,7,FALSE) ->  | AA183: =VLOOKUP(C183,Chevin!$C$3:$L$50,7,FALSE) ->  | AC183: 0 | AD183: 0 | AE183: 0 | AF183: 0 | AG183: 0 | AH183: 0 | AI183: 0 | AJ183: 0 | AK183: 0 | AL183: 0 | AM183: 0 | AN183: 0 | AO183: 0 | AP183: 0 | AQ183: 0 | AR183: 0 | AS183: 0 | AT183: 0 | AU183: 0 | AV183: 0 | AW183: 0 | AX183: 0
C184: Hannah Oldroyd | D184: 1987-05-27 | E184: 29 | F184: =IFERROR(VLOOKUP(C184,'Division Lookup'!$A$2:$D$251,4,FALSE),"Second") -> Second | G184: =VLOOKUP(C184,Dewsbury!$C$3:$L$46,7,FALSE) ->  | H184: =VLOOKUP($C184,Bradford!$C$3:$L$66,7,FALSE) ->  | I184: =VLOOKUP($C184,Keighley!$C$3:$N$42,9,FALSE) ->  | J184: =VLOOKUP($C184,'Bunny '!$C$3:$N$20,9,FALSE) ->  | K184: =VLOOKUP($C184,Liverpool!$C$3:$N$59,9,FALSE) ->  | L184: =VLOOKUP(C184,'VoY 10m'!$C$3:$N$40,9,FALSE) ->  | M184: =VLOOKUP(C184,Guisley!$C$3:$N$49,9,FALSE) ->  | N184: =VLOOKUP(C184,Odda!$C$3:$N$42,9,FALSE) ->  | O184: =VLOOKUP(C184,'Leeds half'!$C$4:$N$31,9,FALSE) ->  | P184: =VLOOKUP(C184,Ilkley!$C$3:$L$46,7,FALSE) ->  | Q184: =VLOOKUP(C184,Otley!$C$3:$L$46,9,FALSE) ->  | R184: =VLOOKUP(C184,Solstice!$C$3:$L$48,7,FALSE) ->  | S184: =VLOOKUP(C184,Eccup!$C$3:$L$46,9,FALSE) ->  | U184: =VLOOKUP(C184,Shakerr!$C$3:$L$46,7,FALSE) ->  | V184: =VLOOKUP(C184,VoY!$C$3:$L$46,9,FALSE) ->  | W184: =VLOOKUP(C184,Kirkstall!$C$3:$L$46,9,FALSE) ->  | X184: =VLOOKUP($C184,City!$C$3:$L$69,9,FALSE) ->  | Y184: =VLOOKUP(C184,'Guy Fawkes'!$C$3:$N$34,9,FALSE) ->  | Z184: =VLOOKUP(C184,Abbey!$C$3:$L$48,7,FALSE) ->  | AA184: =VLOOKUP(C184,Chevin!$C$3:$L$50,7,FALSE) ->  | AC184: 0 | AD184: 0 | AE184: 0 | AF184: 0 | AG184: 0 | AH184: 0 | AI184: 0 | AJ184: 0 | AK184: 0 | AL184: 0 | AM184: 0 | AN184: 0 | AO184: 0 | AP184: 0 | AQ184: 0 | AR184: 0 | AS184: 0 | AT184: 0 | AU184: 0 | AV184: 0 | AW184: 0 | AX184: 0
C185: Cristina Pacchiarini | D185: 1994-09-26 | E185: 22 | F185: =IFERROR(VLOOKUP(C185,'Division Lookup'!$A$2:$D$251,4,FALSE),"Second") -> Second | G185: =VLOOKUP(C185,Dewsbury!$C$3:$L$46,7,FALSE) ->  | H185: =VLOOKUP($C185,Bradford!$C$3:$L$66,7,FALSE) -> 0.5543710021 | I185: =VLOOKUP($C185,Keighley!$C$3:$N$42,9,FALSE) ->  | J185: =VLOOKUP($C185,'Bunny '!$C$3:$N$20,9,FALSE) ->  | K185: =VLOOKUP($C185,Liverpool!$C$3:$N$59,9,FALSE) ->  | L185: =VLOOKUP(C185,'VoY 10m'!$C$3:$N$40,9,FALSE) ->  | M185: =VLOOKUP(C185,Guisley!$C$3:$N$49,9,FALSE) ->  | N185: =VLOOKUP(C185,Odda!$C$3:$N$42,9,FALSE) ->  | O185: =VLOOKUP(C185,'Leeds half'!$C$4:$N$31,9,FALSE) ->  | P185: =VLOOKUP(C185,Ilkley!$C$3:$L$46,7,FALSE) ->  | Q185: =VLOOKUP(C185,Otley!$C$3:$L$46,9,FALSE) ->  | R185: =VLOOKUP(C185,Solstice!$C$3:$L$48,7,FALSE) ->  | S185: =VLOOKUP(C185,Eccup!$C$3:$L$46,9,FALSE) ->  | U185: =VLOOKUP(C185,Shakerr!$C$3:$L$46,7,FALSE) ->  | V185: =VLOOKUP(C185,VoY!$C$3:$L$46,9,FALSE) ->  | W185: =VLOOKUP(C185,Kirkstall!$C$3:$L$46,9,FALSE) ->  | X185: =VLOOKUP($C185,City!$C$3:$L$69,9,FALSE) ->  | Y185: =VLOOKUP(C185,'Guy Fawkes'!$C$3:$N$34,9,FALSE) ->  | Z185: =VLOOKUP(C185,Abbey!$C$3:$L$48,7,FALSE) ->  | AA185: =VLOOKUP(C185,Chevin!$C$3:$L$50,7,FALSE) ->  | AC185: 0 | AD185: 14 | AE185: 0 | AF185: 0 | AG185: 0 | AH185: 0 | AI185: 0 | AJ185: 0 | AK185: 0 | AL185: 0 | AM185: 0 | AN185: 0 | AO185: 0 | AP185: 0 | AQ185: 0 | AR185: 0 | AS185: 0 | AT185: 0 | AU185: 0 | AV185: 0 | AW185: 0 | AX185: 1
C186: Darren Parker | D186: 1969-04-16 | E186: 47 | F186: =IFERROR(VLOOKUP(C186,'Division Lookup'!$A$2:$D$251,4,FALSE),"Second") -> Second | G186: =VLOOKUP(C186,Dewsbury!$C$3:$L$46,7,FALSE) ->  | H186: =VLOOKUP($C186,Bradford!$C$3:$L$66,7,FALSE) ->  | I186: =VLOOKUP($C186,Keighley!$C$3:$N$42,9,FALSE) ->  | J186: =VLOOKUP($C186,'Bunny '!$C$3:$N$20,9,FALSE) ->  | K186: =VLOOKUP($C186,Liverpool!$C$3:$N$59,9,FALSE) ->  | L186: =VLOOKUP(C186,'VoY 10m'!$C$3:$N$40,9,FALSE) ->  | M186: =VLOOKUP(C186,Guisley!$C$3:$N$49,9,FALSE) ->  | N186: =VLOOKUP(C186,Odda!$C$3:$N$42,9,FALSE) ->  | O186: =VLOOKUP(C186,'Leeds half'!$C$4:$N$31,9,FALSE) ->  | P186: =VLOOKUP(C186,Ilkley!$C$3:$L$46,7,FALSE) ->  | Q186: =VLOOKUP(C186,Otley!$C$3:$L$46,9,FALSE) ->  | R186: =VLOOKUP(C186,Solstice!$C$3:$L$48,7,FALSE) ->  | S186: =VLOOKUP(C186,Eccup!$C$3:$L$46,9,FALSE) ->  | U186: =VLOOKUP(C186,Shakerr!$C$3:$L$46,7,FALSE) ->  | V186: =VLOOKUP(C186,VoY!$C$3:$L$46,9,FALSE) ->  | W186: =VLOOKUP(C186,Kirkstall!$C$3:$L$46,9,FALSE) ->  | X186: =VLOOKUP($C186,City!$C$3:$L$69,9,FALSE) ->  | Y186: =VLOOKUP(C186,'Guy Fawkes'!$C$3:$N$34,9,FALSE) ->  | Z186: =VLOOKUP(C186,Abbey!$C$3:$L$48,7,FALSE) ->  | AA186: =VLOOKUP(C186,Chevin!$C$3:$L$50,7,FALSE) ->  | AC186: 0 | AD186: 0 | AE186: 0 | AF186: 0 | AG186: 0 | AH186: 0 | AI186: 0 | AJ186: 0 | AK186: 0 | AL186: 0 | AM186: 0 | AN186: 0 | AO186: 0 | AP186: 0 | AQ186: 0 | AR186: 0 | AS186: 0 | AT186: 0 | AU186: 0 | AV186: 0 | AW186: 0 | AX186: 0
C187: Rachel Parker | D187: 1971-08-10 | E187: 45 | F187: =IFERROR(VLOOKUP(C187,'Division Lookup'!$A$2:$D$251,4,FALSE),"Second") -> Premier | G187: =VLOOKUP(C187,Dewsbury!$C$3:$L$46,7,FALSE) ->  | H187: =VLOOKUP($C187,Bradford!$C$3:$L$66,7,FALSE) ->  | I187: =VLOOKUP($C187,Keighley!$C$3:$N$42,9,FALSE) ->  | J187: =VLOOKUP($C187,'Bunny '!$C$3:$N$20,9,FALSE) ->  | K187: =VLOOKUP($C187,Liverpool!$C$3:$N$59,9,FALSE) ->  | L187: =VLOOKUP(C187,'VoY 10m'!$C$3:$N$40,9,FALSE) -> 0.5807915759 | M187: =VLOOKUP(C187,Guisley!$C$3:$N$49,9,FALSE) -> 0.4841443412 | N187: =VLOOKUP(C187,Odda!$C$3:$N$42,9,FALSE) ->  | O187: =VLOOKUP(C187,'Leeds half'!$C$4:$N$31,9,FALSE) ->  | P187: =VLOOKUP(C187,Ilkley!$C$3:$L$46,7,FALSE) ->  | Q187: =VLOOKUP(C187,Otley!$C$3:$L$46,9,FALSE) -> 0.5203441477 | R187: =VLOOKUP(C187,Solstice!$C$3:$L$48,7,FALSE) -> 0.5277777778 | S187: =VLOOKUP(C187,Eccup!$C$3:$L$46,9,FALSE) ->  | U187: =VLOOKUP(C187,Shakerr!$C$3:$L$46,7,FALSE) ->  | V187: =VLOOKUP(C187,VoY!$C$3:$L$46,9,FALSE) ->  | W187: =VLOOKUP(C187,Kirkstall!$C$3:$L$46,9,FALSE) ->  | X187: =VLOOKUP($C187,City!$C$3:$L$69,9,FALSE) -> 0.6332225914 | Y187: =VLOOKUP(C187,'Guy Fawkes'!$C$3:$N$34,9,FALSE) -> 0.5444486122 | Z187: =VLOOKUP(C187,Abbey!$C$3:$L$48,7,FALSE) ->  | AA187: =VLOOKUP(C187,Chevin!$C$3:$L$50,7,FALSE) ->  | AC187: 0 | AD187: 0 | AE187: 0 | AF187: 0 | AG187: 0 | AH187: 3 | AI187: 9 | AJ187: 0 | AK187: 0 | AL187: 0 | AM187: 12 | AN187: 12 | AO187: 0 | AP187: 0 | AQ187: 0 | AR187: 0 | AS187: 0 | AT187: 11 | AU187: 13 | AV187: 0 | AW187: 0 | AX187: 6
C188: Laura Parkin | D188: 1987-03-22 | E188: 29 | F188: =IFERROR(VLOOKUP(C188,'Division Lookup'!$A$2:$D$251,4,FALSE),"Second") -> Second | G188: =VLOOKUP(C188,Dewsbury!$C$3:$L$46,7,FALSE) ->  | H188: =VLOOKUP($C188,Bradford!$C$3:$L$66,7,FALSE) ->  | I188: =VLOOKUP($C188,Keighley!$C$3:$N$42,9,FALSE) ->  | J188: =VLOOKUP($C188,'Bunny '!$C$3:$N$20,9,FALSE) ->  | K188: =VLOOKUP($C188,Liverpool!$C$3:$N$59,9,FALSE) ->  | L188: =VLOOKUP(C188,'VoY 10m'!$C$3:$N$40,9,FALSE) ->  | M188: =VLOOKUP(C188,Guisley!$C$3:$N$49,9,FALSE) ->  | N188: =VLOOKUP(C188,Odda!$C$3:$N$42,9,FALSE) ->  | O188: =VLOOKUP(C188,'Leeds half'!$C$4:$N$31,9,FALSE) ->  | P188: =VLOOKUP(C188,Ilkley!$C$3:$L$46,7,FALSE) ->  | Q188: =VLOOKUP(C188,Otley!$C$3:$L$46,9,FALSE) ->  | R188: =VLOOKUP(C188,Solstice!$C$3:$L$48,7,FALSE) ->  | S188: =VLOOKUP(C188,Eccup!$C$3:$L$46,9,FALSE) ->  | U188: =VLOOKUP(C188,Shakerr!$C$3:$L$46,7,FALSE) ->  | V188: =VLOOKUP(C188,VoY!$C$3:$L$46,9,FALSE) ->  | W188: =VLOOKUP(C188,Kirkstall!$C$3:$L$46,9,FALSE) ->  | X188: =VLOOKUP($C188,City!$C$3:$L$69,9,FALSE) ->  | Y188: =VLOOKUP(C188,'Guy Fawkes'!$C$3:$N$34,9,FALSE) ->  | Z188: =VLOOKUP(C188,Abbey!$C$3:$L$48,7,FALSE) ->  | AA188: =VLOOKUP(C188,Chevin!$C$3:$L$50,7,FALSE) ->  | AC188: 0 | AD188: 0 | AE188: 0 | AF188: 0 | AG188: 0 | AH188: 0 | AI188: 0 | AJ188: 0 | AK188: 0 | AL188: 0 | AM188: 0 | AN188: 0 | AO188: 0 | AP188: 0 | AQ188: 0 | AR188: 0 | AS188: 0 | AT188: 0 | AU188: 0 | AV188: 0 | AW188: 0 | AX188: 0
C189: Hannah Partner | D189: 1982-02-15 | E189: 34 | F189: =IFERROR(VLOOKUP(C189,'Division Lookup'!$A$2:$D$251,4,FALSE),"Second") -> Second | G189: =VLOOKUP(C189,Dewsbury!$C$3:$L$46,7,FALSE) ->  | H189: =VLOOKUP($C189,Bradford!$C$3:$L$66,7,FALSE) ->  | I189: =VLOOKUP($C189,Keighley!$C$3:$N$42,9,FALSE) ->  | J189: =VLOOKUP($C189,'Bunny '!$C$3:$N$20,9,FALSE) ->  | K189: =VLOOKUP($C189,Liverpool!$C$3:$N$59,9,FALSE) ->  | L189: =VLOOKUP(C189,'VoY 10m'!$C$3:$N$40,9,FALSE) ->  | M189: =VLOOKUP(C189,Guisley!$C$3:$N$49,9,FALSE) ->  | N189: =VLOOKUP(C189,Odda!$C$3:$N$42,9,FALSE) ->  | O189: =VLOOKUP(C189,'Leeds half'!$C$4:$N$31,9,FALSE) ->  | P189: =VLOOKUP(C189,Ilkley!$C$3:$L$46,7,FALSE) ->  | Q189: =VLOOKUP(C189,Otley!$C$3:$L$46,9,FALSE) ->  | R189: =VLOOKUP(C189,Solstice!$C$3:$L$48,7,FALSE) ->  | S189: =VLOOKUP(C189,Eccup!$C$3:$L$46,9,FALSE) ->  | U189: =VLOOKUP(C189,Shakerr!$C$3:$L$46,7,FALSE) ->  | V189: =VLOOKUP(C189,VoY!$C$3:$L$46,9,FALSE) ->  | W189: =VLOOKUP(C189,Kirkstall!$C$3:$L$46,9,FALSE) ->  | X189: =VLOOKUP($C189,City!$C$3:$L$69,9,FALSE) ->  | Y189: =VLOOKUP(C189,'Guy Fawkes'!$C$3:$N$34,9,FALSE) ->  | Z189: =VLOOKUP(C189,Abbey!$C$3:$L$48,7,FALSE) ->  | AA189: =VLOOKUP(C189,Chevin!$C$3:$L$50,7,FALSE) ->  | AC189: 0 | AD189: 0 | AE189: 0 | AF189: 0 | AG189: 0 | AH189: 0 | AI189: 0 | AJ189: 0 | AK189: 0 | AL189: 0 | AM189: 0 | AN189: 0 | AO189: 0 | AP189: 0 | AQ189: 0 | AR189: 0 | AS189: 0 | AT189: 0 | AU189: 0 | AV189: 0 | AW189: 0 | AX189: 0
C190: Simon Pass | D190: 1970-11-26 | E190: 46 | F190: =IFERROR(VLOOKUP(C190,'Division Lookup'!$A$2:$D$251,4,FALSE),"Second") -> Second | G190: =VLOOKUP(C190,Dewsbury!$C$3:$L$46,7,FALSE) ->  | H190: =VLOOKUP($C190,Bradford!$C$3:$L$66,7,FALSE) ->  | I190: =VLOOKUP($C190,Keighley!$C$3:$N$42,9,FALSE) ->  | J190: =VLOOKUP($C190,'Bunny '!$C$3:$N$20,9,FALSE) ->  | K190: =VLOOKUP($C190,Liverpool!$C$3:$N$59,9,FALSE) ->  | L190: =VLOOKUP(C190,'VoY 10m'!$C$3:$N$40,9,FALSE) ->  | M190: =VLOOKUP(C190,Guisley!$C$3:$N$49,9,FALSE) ->  | N190: =VLOOKUP(C190,Odda!$C$3:$N$42,9,FALSE) ->  | O190: =VLOOKUP(C190,'Leeds half'!$C$4:$N$31,9,FALSE) ->  | P190: =VLOOKUP(C190,Ilkley!$C$3:$L$46,7,FALSE) ->  | Q190: =VLOOKUP(C190,Otley!$C$3:$L$46,9,FALSE) ->  | R190: =VLOOKUP(C190,Solstice!$C$3:$L$48,7,FALSE) ->  | S190: =VLOOKUP(C190,Eccup!$C$3:$L$46,9,FALSE) ->  | U190: =VLOOKUP(C190,Shakerr!$C$3:$L$46,7,FALSE) ->  | V190: =VLOOKUP(C190,VoY!$C$3:$L$46,9,FALSE) ->  | W190: =VLOOKUP(C190,Kirkstall!$C$3:$L$46,9,FALSE) ->  | X190: =VLOOKUP($C190,City!$C$3:$L$69,9,FALSE) ->  | Y190: =VLOOKUP(C190,'Guy Fawkes'!$C$3:$N$34,9,FALSE) ->  | Z190: =VLOOKUP(C190,Abbey!$C$3:$L$48,7,FALSE) ->  | AA190: =VLOOKUP(C190,Chevin!$C$3:$L$50,7,FALSE) ->  | AC190: 0 | AD190: 0 | AE190: 0 | AF190: 0 | AG190: 0 | AH190: 0 | AI190: 0 | AJ190: 0 | AK190: 0 | AL190: 0 | AM190: 0 | AN190: 0 | AO190: 0 | AP190: 0 | AQ190: 0 | AR190: 0 | AS190: 0 | AT190: 0 | AU190: 0 | AV190: 0 | AW190: 0 | AX190: 0
C191: Megan Paul | D191: 1987-10-21 | E191: 29 | F191: =IFERROR(VLOOKUP(C191,'Division Lookup'!$A$2:$D$251,4,FALSE),"Second") -> Second | G191: =VLOOKUP(C191,Dewsbury!$C$3:$L$46,7,FALSE) ->  | H191: =VLOOKUP($C191,Bradford!$C$3:$L$66,7,FALSE) -> 0.5355481728 | I191: =VLOOKUP($C191,Keighley!$C$3:$N$42,9,FALSE) ->  | J191: =VLOOKUP($C191,'Bunny '!$C$3:$N$20,9,FALSE) ->  | K191: =VLOOKUP($C191,Liverpool!$C$3:$N$59,9,FALSE) ->  | L191: =VLOOKUP(C191,'VoY 10m'!$C$3:$N$40,9,FALSE) ->  | M191: =VLOOKUP(C191,Guisley!$C$3:$N$49,9,FALSE) ->  | N191: =VLOOKUP(C191,Odda!$C$3:$N$42,9,FALSE) ->  | O191: =VLOOKUP(C191,'Leeds half'!$C$4:$N$31,9,FALSE) ->  | P191: =VLOOKUP(C191,Ilkley!$C$3:$L$46,7,FALSE) ->  | Q191: =VLOOKUP(C191,Otley!$C$3:$L$46,9,FALSE) ->  | R191: =VLOOKUP(C191,Solstice!$C$3:$L$48,7,FALSE) ->  | S191: =VLOOKUP(C191,Eccup!$C$3:$L$46,9,FALSE) ->  | U191: =VLOOKUP(C191,Shakerr!$C$3:$L$46,7,FALSE) ->  | V191: =VLOOKUP(C191,VoY!$C$3:$L$46,9,FALSE) ->  | W191: =VLOOKUP(C191,Kirkstall!$C$3:$L$46,9,FALSE) ->  | X191: =VLOOKUP($C191,City!$C$3:$L$69,9,FALSE) ->  | Y191: =VLOOKUP(C191,'Guy Fawkes'!$C$3:$N$34,9,FALSE) ->  | Z191: =VLOOKUP(C191,Abbey!$C$3:$L$48,7,FALSE) -> 0.5680399501 | AA191: =VLOOKUP(C191,Chevin!$C$3:$L$50,7,FALSE) ->  | AC191: 0 | AD191: 20 | AE191: 0 | AF191: 0 | AG191: 0 | AH191: 0 | AI191: 0 | AJ191: 0 | AK191: 0 | AL191: 0 | AM191: 0 | AN191: 0 | AO191: 0 | AP191: 0 | AQ191: 0 | AR191: 0 | AS191: 0 | AT191: 0 | AU191: 0 | AV191: 11 | AW191: 0 | AX191: 2
C192: Benjamin Pearson | D192: 1991-05-10 | E192: 25 | F192: =IFERROR(VLOOKUP(C192,'Division Lookup'!$A$2:$D$251,4,FALSE),"Second") -> Second | G192: =VLOOKUP(C192,Dewsbury!$C$3:$L$46,7,FALSE) ->  | H192: =VLOOKUP($C192,Bradford!$C$3:$L$66,7,FALSE) -> 0.6530198622 | I192: =VLOOKUP($C192,Keighley!$C$3:$N$42,9,FALSE) ->  | J192: =VLOOKUP($C192,'Bunny '!$C$3:$N$20,9,FALSE) ->  | K192: =VLOOKUP($C192,Liverpool!$C$3:$N$59,9,FALSE) ->  | L192: =VLOOKUP(C192,'VoY 10m'!$C$3:$N$40,9,FALSE) ->  | M192: =VLOOKUP(C192,Guisley!$C$3:$N$49,9,FALSE) ->  | N192: =VLOOKUP(C192,Odda!$C$3:$N$42,9,FALSE) ->  | O192: =VLOOKUP(C192,'Leeds half'!$C$4:$N$31,9,FALSE) ->  | P192: =VLOOKUP(C192,Ilkley!$C$3:$L$46,7,FALSE) ->  | Q192: =VLOOKUP(C192,Otley!$C$3:$L$46,9,FALSE) ->  | R192: =VLOOKUP(C192,Solstice!$C$3:$L$48,7,FALSE) ->  | S192: =VLOOKUP(C192,Eccup!$C$3:$L$46,9,FALSE) ->  | U192: =VLOOKUP(C192,Shakerr!$C$3:$L$46,7,FALSE) ->  | V192: =VLOOKUP(C192,VoY!$C$3:$L$46,9,FALSE) ->  | W192: =VLOOKUP(C192,Kirkstall!$C$3:$L$46,9,FALSE) ->  | X192: =VLOOKUP($C192,City!$C$3:$L$69,9,FALSE) ->  | Y192: =VLOOKUP(C192,'Guy Fawkes'!$C$3:$N$34,9,FALSE) ->  | Z192: =VLOOKUP(C192,Abbey!$C$3:$L$48,7,FALSE) ->  | AA192: =VLOOKUP(C192,Chevin!$C$3:$L$50,7,FALSE) -> 0.5526912181 | AC192: 0 | AD192: 3 | AE192: 0 | AF192: 0 | AG192: 0 | AH192: 0 | AI192: 0 | AJ192: 0 | AK192: 0 | AL192: 0 | AM192: 0 | AN192: 0 | AO192: 0 | AP192: 0 | AQ192: 0 | AR192: 0 | AS192: 0 | AT192: 0 | AU192: 0 | AV192: 0 | AW192: 4 | AX192: 2
C193: Lindsey Pearson | D193: 1958-07-18 | E193: 58 | F193: =IFERROR(VLOOKUP(C193,'Division Lookup'!$A$2:$D$251,4,FALSE),"Second") -> Second | G193: =VLOOKUP(C193,Dewsbury!$C$3:$L$46,7,FALSE) ->  | H193: =VLOOKUP($C193,Bradford!$C$3:$L$66,7,FALSE) ->  | I193: =VLOOKUP($C193,Keighley!$C$3:$N$42,9,FALSE) ->  | J193: =VLOOKUP($C193,'Bunny '!$C$3:$N$20,9,FALSE) ->  | K193: =VLOOKUP($C193,Liverpool!$C$3:$N$59,9,FALSE) ->  | L193: =VLOOKUP(C193,'VoY 10m'!$C$3:$N$40,9,FALSE) ->  | M193: =VLOOKUP(C193,Guisley!$C$3:$N$49,9,FALSE) ->  | N193: =VLOOKUP(C193,Odda!$C$3:$N$42,9,FALSE) ->  | O193: =VLOOKUP(C193,'Leeds half'!$C$4:$N$31,9,FALSE) ->  | P193: =VLOOKUP(C193,Ilkley!$C$3:$L$46,7,FALSE) ->  | Q193: =VLOOKUP(C193,Otley!$C$3:$L$46,9,FALSE) ->  | R193: =VLOOKUP(C193,Solstice!$C$3:$L$48,7,FALSE) ->  | S193: =VLOOKUP(C193,Eccup!$C$3:$L$46,9,FALSE) ->  | U193: =VLOOKUP(C193,Shakerr!$C$3:$L$46,7,FALSE) ->  | V193: =VLOOKUP(C193,VoY!$C$3:$L$46,9,FALSE) ->  | W193: =VLOOKUP(C193,Kirkstall!$C$3:$L$46,9,FALSE) ->  | X193: =VLOOKUP($C193,City!$C$3:$L$69,9,FALSE) ->  | Y193: =VLOOKUP(C193,'Guy Fawkes'!$C$3:$N$34,9,FALSE) ->  | Z193: =VLOOKUP(C193,Abbey!$C$3:$L$48,7,FALSE) ->  | AA193: =VLOOKUP(C193,Chevin!$C$3:$L$50,7,FALSE) ->  | AC193: 0 | AD193: 0 | AE193: 0 | AF193: 0 | AG193: 0 | AH193: 0 | AI193: 0 | AJ193: 0 | AK193: 0 | AL193: 0 | AM193: 0 | AN193: 0 | AO193: 0 | AP193: 0 | AQ193: 0 | AR193: 0 | AS193: 0 | AT193: 0 | AU193: 0 | AV193: 0 | AW193: 0 | AX193: 0
C194: Gary Pennington | D194: 1964-08-07 | E194: 52 | F194: =IFERROR(VLOOKUP(C194,'Division Lookup'!$A$2:$D$251,4,FALSE),"Second") -> Premier | G194: =VLOOKUP(C194,Dewsbury!$C$3:$L$46,7,FALSE) -> 0.6573033708 | H194: =VLOOKUP($C194,Bradford!$C$3:$L$66,7,FALSE) ->  | I194: =VLOOKUP($C194,Keighley!$C$3:$N$42,9,FALSE) ->  | J194: =VLOOKUP($C194,'Bunny '!$C$3:$N$20,9,FALSE) ->  | K194: =VLOOKUP($C194,Liverpool!$C$3:$N$59,9,FALSE) ->  | L194: =VLOOKUP(C194,'VoY 10m'!$C$3:$N$40,9,FALSE) ->  | M194: =VLOOKUP(C194,Guisley!$C$3:$N$49,9,FALSE) ->  | N194: =VLOOKUP(C194,Odda!$C$3:$N$42,9,FALSE) ->  | O194: =VLOOKUP(C194,'Leeds half'!$C$4:$N$31,9,FALSE) ->  | P194: =VLOOKUP(C194,Ilkley!$C$3:$L$46,7,FALSE) ->  | Q194: =VLOOKUP(C194,Otley!$C$3:$L$46,9,FALSE) ->  | R194: =VLOOKUP(C194,Solstice!$C$3:$L$48,7,FALSE) ->  | S194: =VLOOKUP(C194,Eccup!$C$3:$L$46,9,FALSE) ->  | U194: =VLOOKUP(C194,Shakerr!$C$3:$L$46,7,FALSE) ->  | V194: =VLOOKUP(C194,VoY!$C$3:$L$46,9,FALSE) ->  | W194: =VLOOKUP(C194,Kirkstall!$C$3:$L$46,9,FALSE) -> 0.6856623219 | X194: =VLOOKUP($C194,City!$C$3:$L$69,9,FALSE) -> 0.6573033708 | Y194: =VLOOKUP(C194,'Guy Fawkes'!$C$3:$N$34,9,FALSE) -> 0.6272949816 | Z194: =VLOOKUP(C194,Abbey!$C$3:$L$48,7,FALSE) ->  | AA194: =VLOOKUP(C194,Chevin!$C$3:$L$50,7,FALSE) -> 0.6150081566 | AC194: 8 | AD194: 0 | AE194: 0 | AF194: 0 | AG194: 0 | AH194: 0 | AI194: 0 | AJ194: 0 | AK194: 0 | AL194: 0 | AM194: 0 | AN194: 0 | AO194: 0 | AP194: 0 | AQ194: 0 | AR194: 0 | AS194: 2 | AT194: 8 | AU194: 5 | AV194: 0 | AW194: 3 | AX194: 5
C195: Helen Pennington | D195: 1971-08-23 | E195: =DATEDIF(D195,$E$1,"Y") -> 45 | F195: =IFERROR(VLOOKUP(C195,'Division Lookup'!$A$2:$D$251,4,FALSE),"Second") -> Second | G195: =VLOOKUP(C195,Dewsbury!$C$3:$L$46,7,FALSE) ->  | H195: =VLOOKUP($C195,Bradford!$C$3:$L$66,7,FALSE) ->  | I195: =VLOOKUP($C195,Keighley!$C$3:$N$42,9,FALSE) ->  | J195: =VLOOKUP($C195,'Bunny '!$C$3:$N$20,9,FALSE) ->  | K195: =VLOOKUP($C195,Liverpool!$C$3:$N$59,9,FALSE) ->  | L195: =VLOOKUP(C195,'VoY 10m'!$C$3:$N$40,9,FALSE) ->  | M195: =VLOOKUP(C195,Guisley!$C$3:$N$49,9,FALSE) ->  | N195: =VLOOKUP(C195,Odda!$C$3:$N$42,9,FALSE) ->  | O195: =VLOOKUP(C195,'Leeds half'!$C$4:$N$31,9,FALSE) ->  | P195: =VLOOKUP(C195,Ilkley!$C$3:$L$46,7,FALSE) ->  | Q195: =VLOOKUP(C195,Otley!$C$3:$L$46,9,FALSE) ->  | R195: =VLOOKUP(C195,Solstice!$C$3:$L$48,7,FALSE) ->  | S195: =VLOOKUP(C195,Eccup!$C$3:$L$46,9,FALSE) ->  | U195: =VLOOKUP(C195,Shakerr!$C$3:$L$46,7,FALSE) ->  | V195: =VLOOKUP(C195,VoY!$C$3:$L$46,9,FALSE) ->  | W195: =VLOOKUP(C195,Kirkstall!$C$3:$L$46,9,FALSE) ->  | X195: =VLOOKUP($C195,City!$C$3:$L$69,9,FALSE) ->  | Y195: =VLOOKUP(C195,'Guy Fawkes'!$C$3:$N$34,9,FALSE) ->  | Z195: =VLOOKUP(C195,Abbey!$C$3:$L$48,7,FALSE) ->  | AA195: =VLOOKUP(C195,Chevin!$C$3:$L$50,7,FALSE) ->  | AC195: =IF(ISNA(G195),0,1+COUNTIFS($F$3:$F$399,$F195,G$3:G$399,">"&G195)) -> 0 | AD195: =IF(ISNA(H195),0,1+COUNTIFS($F$3:$F$399,$F195,H$3:H$399,">"&H195)) -> 0 | AE195: =IF(ISNA(I195),0,1+COUNTIFS($F$3:$F$399,$F195,I$3:I$399,">"&I195)) -> 0 | AF195: =IF(ISNA(J195),0,1+COUNTIFS($F$3:$F$399,$F195,J$3:J$399,">"&J195)) -> 0 | AG195: =IF(ISNA(K195),0,1+COUNTIFS($F$3:$F$399,$F195,K$3:K$399,">"&K195)) -> 0 | AH195: =IF(ISNA(L195),0,1+COUNTIFS($F$3:$F$399,$F195,L$3:L$399,">"&L195)) -> 0 | AI195: =IF(ISNA(M195),0,1+COUNTIFS($F$3:$F$399,$F195,M$3:M$399,">"&M195)) -> 0 | AJ195: =IF(ISNA(N195),0,1+COUNTIFS($F$3:$F$399,$F195,N$3:N$399,">"&N195)) -> 0 | AK195: 0 | AL195: 0 | AM195: 0 | AN195: 0 | AO195: 0 | AP195: 0 | AQ195: 0 | AR195: 0 | AS195: 0 | AT195: 0 | AU195: 0 | AV195: 0 | AW195: 0 | AX195: =COUNTIF(AC195:AW195,">0") -> 0
C196: Sheila Pepper | D196: 1952-01-25 | E196: 64 | F196: =IFERROR(VLOOKUP(C196,'Division Lookup'!$A$2:$D$251,4,FALSE),"Second") -> Second | G196: =VLOOKUP(C196,Dewsbury!$C$3:$L$46,7,FALSE) ->  | H196: =VLOOKUP($C196,Bradford!$C$3:$L$66,7,FALSE) ->  | I196: =VLOOKUP($C196,Keighley!$C$3:$N$42,9,FALSE) ->  | J196: =VLOOKUP($C196,'Bunny '!$C$3:$N$20,9,FALSE) ->  | K196: =VLOOKUP($C196,Liverpool!$C$3:$N$59,9,FALSE) ->  | L196: =VLOOKUP(C196,'VoY 10m'!$C$3:$N$40,9,FALSE) ->  | M196: =VLOOKUP(C196,Guisley!$C$3:$N$49,9,FALSE) ->  | N196: =VLOOKUP(C196,Odda!$C$3:$N$42,9,FALSE) ->  | O196: =VLOOKUP(C196,'Leeds half'!$C$4:$N$31,9,FALSE) ->  | P196: =VLOOKUP(C196,Ilkley!$C$3:$L$46,7,FALSE) ->  | Q196: =VLOOKUP(C196,Otley!$C$3:$L$46,9,FALSE) ->  | R196: =VLOOKUP(C196,Solstice!$C$3:$L$48,7,FALSE) -> 0.5068842427 | S196: =VLOOKUP(C196,Eccup!$C$3:$L$46,9,FALSE) ->  | U196: =VLOOKUP(C196,Shakerr!$C$3:$L$46,7,FALSE) ->  | V196: =VLOOKUP(C196,VoY!$C$3:$L$46,9,FALSE) -> 0.585960351 | W196: =VLOOKUP(C196,Kirkstall!$C$3:$L$46,9,FALSE) ->  | X196: =VLOOKUP($C196,City!$C$3:$L$69,9,FALSE) ->  | Y196: =VLOOKUP(C196,'Guy Fawkes'!$C$3:$N$34,9,FALSE) ->  | Z196: =VLOOKUP(C196,Abbey!$C$3:$L$48,7,FALSE) ->  | AA196: =VLOOKUP(C196,Chevin!$C$3:$L$50,7,FALSE) ->  | AC196: 0 | AD196: 0 | AE196: 0 | AF196: 0 | AG196: 0 | AH196: 0 | AI196: 0 | AJ196: 0 | AK196: =IF(ISNA(O196),0,1+COUNTIFS($F$3:$F$399,$F196,O$3:O$399,">"&O196)) -> 0 | AL196: =IF(ISNA(P196),0,1+COUNTIFS($F$3:$F$399,$F196,P$3:P$399,">"&P196)) -> 0 | AM196: =IF(ISNA(Q196),0,1+COUNTIFS($F$3:$F$399,$F196,Q$3:Q$399,">"&Q196)) -> 0 | AN196: =IF(ISNA(R196),0,1+COUNTIFS($F$3:$F$399,$F196,R$3:R$399,">"&R196)) -> 8 | AO196: =IF(ISNA(S196),0,1+COUNTIFS($F$3:$F$399,$F196,S$3:S$399,">"&S196)) -> 0 | AP196: 0 | AQ196: =IF(ISNA(U196),0,1+COUNTIFS($F$3:$F$399,$F196,U$3:U$399,">"&U196)) -> 0 | AR196: =IF(ISNA(V196),0,1+COUNTIFS($F$3:$F$399,$F196,V$3:V$399,">"&V196)) -> 4 | AS196: =IF(ISNA(W196),0,1+COUNTIFS($F$3:$F$399,$F196,W$3:W$399,">"&W196)) -> 0 | AT196: =IF(ISNA(X196),0,1+COUNTIFS($F$3:$F$399,$F196,X$3:X$399,">"&X196)) -> 0 | AU196: =IF(ISNA(Y196),0,1+COUNTIFS($F$3:$F$399,$F196,Y$3:Y$399,">"&Y196)) -> 0 | AV196: =IF(ISNA(Z196),0,1+COUNTIFS($F$3:$F$399,$F196,Z$3:Z$399,">"&Z196)) -> 0 | AW196: =IF(ISNA(AA196),0,1+COUNTIFS($F$3:$F$399,$F196,AA$3:AA$399,">"&AA196)) -> 0 | AX196: 2
C197: Lynne Perris | D197: 1960-09-24 | E197: 56 | F197: =IFERROR(VLOOKUP(C197,'Division Lookup'!$A$2:$D$251,4,FALSE),"Second") -> Second | G197: =VLOOKUP(C197,Dewsbury!$C$3:$L$46,7,FALSE) ->  | H197: =VLOOKUP($C197,Bradford!$C$3:$L$66,7,FALSE) ->  | I197: =VLOOKUP($C197,Keighley!$C$3:$N$42,9,FALSE) ->  | J197: =VLOOKUP($C197,'Bunny '!$C$3:$N$20,9,FALSE) ->  | K197: =VLOOKUP($C197,Liverpool!$C$3:$N$59,9,FALSE) ->  | L197: =VLOOKUP(C197,'VoY 10m'!$C$3:$N$40,9,FALSE) ->  | M197: =VLOOKUP(C197,Guisley!$C$3:$N$49,9,FALSE) ->  | N197: =VLOOKUP(C197,Odda!$C$3:$N$42,9,FALSE) ->  | O197: =VLOOKUP(C197,'Leeds half'!$C$4:$N$31,9,FALSE) ->  | P197: =VLOOKUP(C197,Ilkley!$C$3:$L$46,7,FALSE) ->  | Q197: =VLOOKUP(C197,Otley!$C$3:$L$46,9,FALSE) ->  | R197: =VLOOKUP(C197,Solstice!$C$3:$L$48,7,FALSE) ->  | S197: =VLOOKUP(C197,Eccup!$C$3:$L$46,9,FALSE) ->  | U197: =VLOOKUP(C197,Shakerr!$C$3:$L$46,7,FALSE) ->  | V197: =VLOOKUP(C197,VoY!$C$3:$L$46,9,FALSE) ->  | W197: =VLOOKUP(C197,Kirkstall!$C$3:$L$46,9,FALSE) ->  | X197: =VLOOKUP($C197,City!$C$3:$L$69,9,FALSE) ->  | Y197: =VLOOKUP(C197,'Guy Fawkes'!$C$3:$N$34,9,FALSE) ->  | Z197: =VLOOKUP(C197,Abbey!$C$3:$L$48,7,FALSE) ->  | AA197: =VLOOKUP(C197,Chevin!$C$3:$L$50,7,FALSE) ->  | AC197: 0 | AD197: 0 | AE197: 0 | AF197: 0 | AG197: 0 | AH197: 0 | AI197: 0 | AJ197: 0 | AK197: 0 | AL197: 0 | AM197: 0 | AN197: 0 | AO197: 0 | AP197: 0 | AQ197: 0 | AR197: 0 | AS197: 0 | AT197: 0 | AU197: 0 | AV197: 0 | AW197: 0 | AX197: 0
C198: Anthea Pickard | D198: 1973-07-09 | E198: 43 | F198: =IFERROR(VLOOKUP(C198,'Division Lookup'!$A$2:$D$251,4,FALSE),"Second") -> Second | G198: =VLOOKUP(C198,Dewsbury!$C$3:$L$46,7,FALSE) ->  | H198: =VLOOKUP($C198,Bradford!$C$3:$L$66,7,FALSE) ->  | I198: =VLOOKUP($C198,Keighley!$C$3:$N$42,9,FALSE) ->  | J198: =VLOOKUP($C198,'Bunny '!$C$3:$N$20,9,FALSE) ->  | K198: =VLOOKUP($C198,Liverpool!$C$3:$N$59,9,FALSE) ->  | L198: =VLOOKUP(C198,'VoY 10m'!$C$3:$N$40,9,FALSE) ->  | M198: =VLOOKUP(C198,Guisley!$C$3:$N$49,9,FALSE) ->  | N198: =VLOOKUP(C198,Odda!$C$3:$N$42,9,FALSE) ->  | O198: =VLOOKUP(C198,'Leeds half'!$C$4:$N$31,9,FALSE) ->  | P198: =VLOOKUP(C198,Ilkley!$C$3:$L$46,7,FALSE) ->  | Q198: =VLOOKUP(C198,Otley!$C$3:$L$46,9,FALSE) ->  | R198: =VLOOKUP(C198,Solstice!$C$3:$L$48,7,FALSE) ->  | S198: =VLOOKUP(C198,Eccup!$C$3:$L$46,9,FALSE) ->  | U198: =VLOOKUP(C198,Shakerr!$C$3:$L$46,7,FALSE) ->  | V198: =VLOOKUP(C198,VoY!$C$3:$L$46,9,FALSE) ->  | W198: =VLOOKUP(C198,Kirkstall!$C$3:$L$46,9,FALSE) ->  | X198: =VLOOKUP($C198,City!$C$3:$L$69,9,FALSE) ->  | Y198: =VLOOKUP(C198,'Guy Fawkes'!$C$3:$N$34,9,FALSE) ->  | Z198: =VLOOKUP(C198,Abbey!$C$3:$L$48,7,FALSE) ->  | AA198: =VLOOKUP(C198,Chevin!$C$3:$L$50,7,FALSE) ->  | AC198: 0 | AD198: 0 | AE198: 0 | AF198: 0 | AG198: 0 | AH198: 0 | AI198: 0 | AJ198: 0 | AK198: 0 | AL198: 0 | AM198: 0 | AN198: 0 | AO198: 0 | AP198: 0 | AQ198: 0 | AR198: 0 | AS198: 0 | AT198: 0 | AU198: 0 | AV198: 0 | AW198: 0 | AX198: 0
C199: Nicola Pickard | D199: 1972-12-29 | E199: 44 | F199: =IFERROR(VLOOKUP(C199,'Division Lookup'!$A$2:$D$251,4,FALSE),"Second") -> First | G199: =VLOOKUP(C199,Dewsbury!$C$3:$L$46,7,FALSE) ->  | H199: =VLOOKUP($C199,Bradford!$C$3:$L$66,7,FALSE) ->  | I199: =VLOOKUP($C199,Keighley!$C$3:$N$42,9,FALSE) ->  | J199: =VLOOKUP($C199,'Bunny '!$C$3:$N$20,9,FALSE) ->  | K199: =VLOOKUP($C199,Liverpool!$C$3:$N$59,9,FALSE) ->  | L199: =VLOOKUP(C199,'VoY 10m'!$C$3:$N$40,9,FALSE) ->  | M199: =VLOOKUP(C199,Guisley!$C$3:$N$49,9,FALSE) ->  | N199: =VLOOKUP(C199,Odda!$C$3:$N$42,9,FALSE) ->  | O199: =VLOOKUP(C199,'Leeds half'!$C$4:$N$31,9,FALSE) ->  | P199: =VLOOKUP(C199,Ilkley!$C$3:$L$46,7,FALSE) ->  | Q199: =VLOOKUP(C199,Otley!$C$3:$L$46,9,FALSE) ->  | R199: =VLOOKUP(C199,Solstice!$C$3:$L$48,7,FALSE) ->  | S199: =VLOOKUP(C199,Eccup!$C$3:$L$46,9,FALSE) ->  | U199: =VLOOKUP(C199,Shakerr!$C$3:$L$46,7,FALSE) ->  | V199: =VLOOKUP(C199,VoY!$C$3:$L$46,9,FALSE) ->  | W199: =VLOOKUP(C199,Kirkstall!$C$3:$L$46,9,FALSE) ->  | X199: =VLOOKUP($C199,City!$C$3:$L$69,9,FALSE) ->  | Y199: =VLOOKUP(C199,'Guy Fawkes'!$C$3:$N$34,9,FALSE) ->  | Z199: =VLOOKUP(C199,Abbey!$C$3:$L$48,7,FALSE) ->  | AA199: =VLOOKUP(C199,Chevin!$C$3:$L$50,7,FALSE) ->  | AC199: 0 | AD199: 0 | AE199: 0 | AF199: 0 | AG199: 0 | AH199: 0 | AI199: 0 | AJ199: 0 | AK199: 0 | AL199: 0 | AM199: 0 | AN199: 0 | AO199: 0 | AP199: 0 | AQ199: 0 | AR199: 0 | AS199: 0 | AT199: 0 | AU199: 0 | AV199: 0 | AW199: 0 | AX199: 0
C200: Rachel Pickles | D200: 1972-12-30 | E200: 44 | F200: =IFERROR(VLOOKUP(C200,'Division Lookup'!$A$2:$D$251,4,FALSE),"Second") -> Second | G200: =VLOOKUP(C200,Dewsbury!$C$3:$L$46,7,FALSE) ->  | H200: =VLOOKUP($C200,Bradford!$C$3:$L$66,7,FALSE) ->  | I200: =VLOOKUP($C200,Keighley!$C$3:$N$42,9,FALSE) ->  | J200: =VLOOKUP($C200,'Bunny '!$C$3:$N$20,9,FALSE) ->  | K200: =VLOOKUP($C200,Liverpool!$C$3:$N$59,9,FALSE) ->  | L200: =VLOOKUP(C200,'VoY 10m'!$C$3:$N$40,9,FALSE) ->  | M200: =VLOOKUP(C200,Guisley!$C$3:$N$49,9,FALSE) ->  | N200: =VLOOKUP(C200,Odda!$C$3:$N$42,9,FALSE) ->  | O200: =VLOOKUP(C200,'Leeds half'!$C$4:$N$31,9,FALSE) ->  | P200: =VLOOKUP(C200,Ilkley!$C$3:$L$46,7,FALSE) ->  | Q200: =VLOOKUP(C200,Otley!$C$3:$L$46,9,FALSE) ->  | R200: =VLOOKUP(C200,Solstice!$C$3:$L$48,7,FALSE) ->  | S200: =VLOOKUP(C200,Eccup!$C$3:$L$46,9,FALSE) ->  | U200: =VLOOKUP(C200,Shakerr!$C$3:$L$46,7,FALSE) ->  | V200: =VLOOKUP(C200,VoY!$C$3:$L$46,9,FALSE) ->  | W200: =VLOOKUP(C200,Kirkstall!$C$3:$L$46,9,FALSE) ->  | X200: =VLOOKUP($C200,City!$C$3:$L$69,9,FALSE) ->  | Y200: =VLOOKUP(C200,'Guy Fawkes'!$C$3:$N$34,9,FALSE) ->  | Z200: =VLOOKUP(C200,Abbey!$C$3:$L$48,7,FALSE) ->  | AA200: =VLOOKUP(C200,Chevin!$C$3:$L$50,7,FALSE) ->  | AC200: 0 | AD200: 0 | AE200: 0 | AF200: 0 | AG200: 0 | AH200: 0 | AI200: 0 | AJ200: 0 | AK200: 0 | AL200: 0 | AM200: 0 | AN200: 0 | AO200: 0 | AP200: 0 | AQ200: 0 | AR200: 0 | AS200: 0 | AT200: 0 | AU200: 0 | AV200: 0 | AW200: 0 | AX200: 0
... 102 more rows

Sheet LeaderPivot
A1: Division | B1: Premier | D1: Division | E1: First | G1: Division | H1: Second
A3: Name | B3: Score | D3: Name | E3: Score | G3: Name | H3: Score
A4: Stuart Dunbar | B4: 400 | D4: Sylvia Ross | E4: 399 | G4: Philippa Bird | H4: 380
A5: Will Kerr | B5: 398 | D5: Ian Jenkins | E5: 395 | G5: John Singh | H5: 379
A6: Martin Fillingham | B6: 391 | D6: Ewan Gibb | E6: 385 | G6: Sarah Sherratt | H6: 333
A7: Helen Love | B7: 388 | D7: Richard Smith | E7: 383 | G7: Bernie Bowden | H7: 297
A8: Gary Western | B8: 375 | D8: Carolyn Rix | E8: 382 | G8: Ann Upton | H8: 257
A9: Alan Douglas | B9: 369 | D9: Gavin Hamilton | E9: 184 | G9: Nick Breare | H9: 232
A10: Tracy Foy | B10: 363 | D10: Stephen Hetherington | E10: 148 | G10: Craig Elliott | H10: 228
A11: Alun Griffiths | B11: 360 | D11: John Walton | E11: 140 | G11: Josephine Briggs | H11: 224
A12: Mohanlal Mistry | B12: 353 | D12: Liz Hamilton | E12: 133 | G12: Jadine Smith | H12: 217
A13: Mel Akeroyd | B13: 320 | D13: Clair Fitzpatrick | E13: 128 | G13: Esther Silva | H13: 198
A14: Helen Brant | B14: 304 | D14: Richard Stone | E14: 100 | G14: Adam Willoughby | H14: 194
A15: Martin Love | B15: 281 | D15: Duane Craven | E15: 98 | G15: Guy Richardson | H15: 189
A16: Barney Lerner | B16: 281 | D16: Loris Dell'Amico | E16: 95 | G16: Heather Bayliss | H16: 182
A17: Louise Nash | B17: 275 | D17: Laura Richardson | E17: 91 | G17: Alexandra Ayling | H17: 165
A18: Urmila Mistry | B18: 272 | D18: Kamil Zakowski | E18: 87 | G18: Rachel Boyd | H18: 150
A19: Noel Fitzpatrick | B19: 257 | D19: Gareth Ward | E19: 86 | G19: Kath Stone | H19: 143
A20: Rachel Parker | B20: 246 | D20: Jenny Colwell | E20: 84 | G20: James Gardner | H20: 139
A21: Simon Frazer | B21: 241 | D21: Ian Dickinson | E21: 83 | G21: Pawel Tryc | H21: 137
A22: Tim Mosedale | B22: 232 | D22: Alistair Nash | E22: 50 | G22: Judith Nunn | H22: 115
A23: Denise Davis | B23: 231 | D23: Vicki Johnston | E23: 49 | G23: Jeremy Rix | H23: 99
A24: Gary Pennington | B24: 229 | D24: Jeremy Wright | E24: 49 | G24: Tim Baldwin | H24: 99
A25: Claire Thaper | B25: 228 | D25: Peter Huby | E25: 48 | G25: Hannah Elliott | H25: 98
A26: Helen Western | B26: 212 | D26: Sam White | E26: 48 | G26: Craig Beza | H26: 98
A27: Frank Beecroft | B27: 205 | D27: John Colwell | E27: 47 | G27: Tom Lee | H27: 98
A28: Fiona Farquhar | B28: 201 | D28: Mervyn Silva | E28: 47 | G28: Steven Maude | H28: 96
A29: Suzanne Hague | B29: 195 | D29: Tamsin Treasure-Jones | E29: 46 | G29: James Goodall | H29: 96
A30: Jack Verity | B30: 187 | D30: Kelly Smith | E30: 46 | G30: Benjamin Pearson | H30: 95
A31: Frank Masley | B31: 177 | D31: Tony Hart | E31: 0 | G31: Malcolm Foy | H31: 94
A32: Louise Dell'Amico | B32: 155 | D32: Emma Cartledge | E32: 0 | G32: Claire Burrill | H32: 92
A33: Gillian Hyde | B33: 154 | D33: Simon Rose | E33: 0 | G33: Adam Camp | H33: 91
A34: Stewart Spink | B34: 143 | D34: Reza Abdi | E34: 0 | G34: Sheila Pepper | H34: 90
A35: Matthew Richardson | B35: 142 | D35: Robert Hague | E35: 0 | G35: Kerry Wood | H35: 88
A36: Mark Walker | B36: 125 | D36: Nicola Pickard | E36: 0 | G36: Lucy Johnston | H36: 86
A37: Dairine Nethercott | B37: 119 | D37: Marcin Soszka | E37: 0 | G37: Simon Furlong | H37: 85
A38: Darren Longhorn | B38: 91 | D38: Bernadette Cook | E38: 0 | G38: jennifer bartlett | H38: 83
A39: Simon Kingsnorth | B39: 87 | D39: Jane Hart | E39: 0 | G39: Julia Beaumont | H39: 81
A40: Graham Corbett | B40: 50 | D40: Igs Robun | E40: 0 | G40: Ambrose Griffiths | H40: 78
A41: Chris Stott | B41: 42 | G41: Harriet Fletcher | H41: 78
A42: Ben Marchant | B42: 41 | G42: Megan Paul | H42: 71
A43: Chris Reynier | B43: 0 | G43: charlotte martin | H43: 71
A44: Chris Jones | B44: 0 | G44: Anne Mason | H44: 71
A45: Paul Disney | B45: 0 | G45: Shiela Bugg | H45: 69
A46: Julie Firth | B46: 0 | G46: Liz Dearden | H46: 67
A47: Lorna Nixon | B47: 0 | G47: Amanda Race | H47: 63
A48: Richard Nixon | B48: 0 | G48: Matt Nowell | H48: 50
G49: Peter Hopson | H49: 50
G50: Robert Burrell Donkin | H50: 50
G51: Steven Fowler | H51: 50
G52: Carl Kernick | H52: 50
G53: Andy Brown | H53: 50
G54: Timothy Forster | H54: 49
G55: Andrew Hutchinson | H55: 49
G56: Laura Marchant | H56: 49
G57: David Scrivener | H57: 47
G58: Wendy Hey | H58: 47
G59: Therese Sheehan | H59: 47
G60: Graham Terry | H60: 47
